Workbook

Sheet Instructions
A1: Instructions - Fleet Procurement Analysis Tool
B2: ="Version " & TEXT(MAX(Version[Version]), "#,##0.00") -> Version 1.05
B3: ="Last Updated: " & TEXT(MAX(Version[Date]), "m/d/yyyy") -> Last Updated: 6/1/2017
A5: Input Definitions | E5: Model Overview
C7: User-entered inputs
C9: Default assumptions that can be overridden by user
C11: Calculations or assumptions that cannot be altered
A13: Ownership Structure Definitions
B15: Purchase (Cash) - Vehicles purchased with cash
B16: Purchase (Loan) - Vehicles purchased with debt financing
B17: FMV (Closed-End) Lease - Vehicles leased with Fair Market Value lease structure. Vehicles not purchased at end of lease term.
B18: FMV (Closed-End) Lease w/ Cash Purchase - Vehicles leased with Fair Market Value lease structure. Vehicles purchased at end of lease term with cash.
B19: FMV (Closed-End) Lease w/ Loan Purchase - Vehicles leased with Fair Market Value lease structure. Vehicles purchased at end of lease term with debt financing.
B20: TRAC (Open-End) Lease - Vehicles leased with Terminal Rental Adjustment Clause lease structure. Vehicles not purchased at end of lease term.
B21: TRAC (Open-End) Lease w/ Cash Purchase - Vehicles leased with Terminal Rental Adjustment Clause lease structure. Vehicles purchased at end of lease term with cash.
B22: TRAC (Open-End) Lease w/ Loan Purchase - Vehicles leased with Terminal Rental Adjustment Clause lease structure. Vehicles purchased at end of lease term with debt financing.
B23: Tax-Exempt Lease Purchase (Cash) - Vehicles leased with tax-exempt lease-purchase structure. Vehicles purchased at end of lease term with cash, typically a nominal amount ($1).

Sheet Solicitation Inputs (hidden)
A1: Quick Inputs - Fleet Procurement Analysis Tool
B2: *Coming soon*
B4: Market Inputs
B6: ZIP Code | C6: 20001
B7: Include Cost of Carbon? | C7: No
B10: Vehicle Inputs
B11: Procurement 1 (Baseline) | K11: Procurement 2 (Comparison)
B12: Vehicle Type #1 | K12: Vehicle Type #1
B13: Vehicle Drivetrain Type | E13: BEV | K13: Vehicle Drivetrain Type | N13: BEV
B14: Vehicle Year | E14: 2017 | K14: Vehicle Year | N14: 2017
B15: Vehicle Make | E15: Chevy | K15: Vehicle Make | N15: Ford
B16: Vehicle Model | E16: Bolt | K16: Vehicle Model | N16: Focus Electric
B19: Vehicle Procurement Inputs
B20: Procurement 1 (Baseline) | K20: Procurement 2 (Comparison)
B21: Vehicle Type #1 | K21: Vehicle Type #1
B22: Ownership Structure | E22: TRAC (Open-End) Lease w/ Cash Purchase | K22: Ownership Structure | N22: TRAC (Open-End) Lease w/ Cash Purchase
B23: Tax Credits Can Be Monetized? (Y/N) | E23: Yes | K23: Tax Credits Can Be Monetized? (Y/N) | N23: Yes

Sheet Initital Settings
A1: Initial Settings - Fleet Procurement Analysis Tool | H1: *HIDDEN* | I1: *HIDDEN* | J1: *HIDDEN*
B3: Save/Load
B5: Procurment Name | C5: Scenario 1.1
B7: Load values from external file
B9: Save all current user inputs to an external file
B12: Sensitivity Settings
B14: Update sensitivity analysis results if Calculation Options is set to Manual or Automatic Excerpt for Tables
B16: Variable | C16: Input Field | D16: Min Value | E16: Max Value | F16: Current Value | G16: Valid | H16: Field Code | I16: Field Reference | J16: Sensitivity Reference
B17: 1 | C17: Electricity Cost ($/kWh) | D17: 0 | E17: 2 | F17: =INDIRECT(H17,FALSE) -> 0.1048 | G17: =IF(IFERROR(VLOOKUP(sensitivity_01_input_field, DB_Sensitivity_Codes,2,FALSE), "Error")<> "Error", "OK", "Error") -> OK | H17: =VLOOKUP(sensitivity_01_input_field,DB_Sensitivity_Codes,2,FALSE) -> Electricity_Price | I17: =MID(CELL("filename",INDIRECT(H17)),FIND("]", CELL("filename",INDIRECT(H17)))+1,32) & "!" & ADDRESS(ROW(INDIRECT(H17)),COLUMN(INDIRECT(H17)),4,1) -> Inputs!E6 | J17: =CELL("address", OFFSET('Sensitivity Tables'!A$9, 16*(B17-1), 0)) -> '[Fleet Procurement Analysis Tool.xlsm]Sensitivity Tables'!$A$9
B18: 2 | C18: Cost of Carbon ($/Ton) | D18: 0 | E18: 150 | F18: =INDIRECT(H18,FALSE) -> 0 | G18: =IF(IFERROR(VLOOKUP(sensitivity_02_input_field, DB_Sensitivity_Codes,2,FALSE), "Error")<> "Error", "OK", "Error") -> OK | H18: =VLOOKUP(sensitivity_02_input_field,DB_Sensitivity_Codes,2,FALSE) -> Carbon_Price | I18: =MID(CELL("filename",INDIRECT(H18)),FIND("]", CELL("filename",INDIRECT(H18)))+1,32) & "!" & ADDRESS(ROW(INDIRECT(H18)),COLUMN(INDIRECT(H18)),4,1) -> Inputs!N6 | J18: =CELL("address", OFFSET('Sensitivity Tables'!A$9, 16*(B18-1), 0)) -> '[Fleet Procurement Analysis Tool.xlsm]Sensitivity Tables'!$A$25
B19: 3 | C19: Gasoline Cost ($/Gallon) | D19: 0 | E19: 10 | F19: =INDIRECT(H19,FALSE) -> 2.417 | G19: =IF(IFERROR(VLOOKUP(sensitivity_03_input_field, DB_Sensitivity_Codes,2,FALSE), "Error")<> "Error", "OK", "Error") -> OK | H19: =VLOOKUP(sensitivity_03_input_field,DB_Sensitivity_Codes,2,FALSE) -> Gasoline_Price | I19: =MID(CELL("filename",INDIRECT(H19)),FIND("]", CELL("filename",INDIRECT(H19)))+1,32) & "!" & ADDRESS(ROW(INDIRECT(H19)),COLUMN(INDIRECT(H19)),4,1) -> Inputs!E5 | J19: =CELL("address", OFFSET('Sensitivity Tables'!A$9, 16*(B19-1), 0)) -> '[Fleet Procurement Analysis Tool.xlsm]Sensitivity Tables'!$A$41
B20: 4 | C20: Inflation Rate (Excluding Fuel) (%/Year) | D20: 0 | E20: 0.1 | F20: =INDIRECT(H20,FALSE) -> 0.02 | G20: =IF(IFERROR(VLOOKUP(sensitivity_04_input_field, DB_Sensitivity_Codes,2,FALSE), "Error")<> "Error", "OK", "Error") -> OK | H20: =VLOOKUP(sensitivity_04_input_field,DB_Sensitivity_Codes,2,FALSE) -> Inflation_Rate_General | I20: =MID(CELL("filename",INDIRECT(H20)),FIND("]", CELL("filename",INDIRECT(H20)))+1,32) & "!" & ADDRESS(ROW(INDIRECT(H20)),COLUMN(INDIRECT(H20)),4,1) -> Inputs!E7 | J20: =CELL("address", OFFSET('Sensitivity Tables'!A$9, 16*(B20-1), 0)) -> '[Fleet Procurement Analysis Tool.xlsm]Sensitivity Tables'!$A$57

Sheet Inputs
A1: Inputs - Fleet Procurement Analysis Tool | F1: *HIDDEN* | G1: *HIDDEN* | H1: *HIDDEN* | O1: *HIDDEN* | P1: *HIDDEN* | Q1: *HIDDEN*
F2: Autofill Values | G2: Sensitivity Values (to model) | H2: Validation Calcs | O2: Autofill Values | P2: Sensitivity Values (to model) | Q2: Validation Calcs
B3: Market Inputs
B5: ZIP Code | C5: 32789 | D5: Gasoline Cost ($/Gallon) | E5: 2.417 | F5: =VLOOKUP(State_Ex,DB_Fuel_Prices[],3,FALSE) -> 2.216 | G5: =IFERROR(INDIRECT(VLOOKUP(MID(CELL("filename",E5),FIND("]", CELL("filename",E5))+1,32) & "!" & ADDRESS(ROW(E5),COLUMN(E5),4,1), DB_Sensitivity_Indirect_Reference,2, FALSE)), E5) -> 2.417 | K5: PADD Region | L5: =VLOOKUP(_Zip_Code,DB_Zip_Code,5,FALSE) -> 1c | M5: Include Cost of Carbon? | N5: No
B6: State | C6: =VLOOKUP(_Zip_Code,DB_Zip_Code,3,FALSE) -> FL | D6: Electricity Cost ($/kWh) | E6: 0.1048 | F6: =VLOOKUP(State_Ex,DB_Fuel_Prices[],2,FALSE) -> 0.087 | G6: =IFERROR(INDIRECT(VLOOKUP(MID(CELL("filename",E6),FIND("]", CELL("filename",E6))+1,32) & "!" & ADDRESS(ROW(E6),COLUMN(E6),4,1), DB_Sensitivity_Indirect_Reference,2, FALSE)), E6) -> 0.1048 | K6: Egrid Region | L6: =VLOOKUP(_Zip_Code,DB_Zip_Code,6,FALSE) -> FRCC | M6: Cost of Carbon ($/Ton) | N6: 0 | O6: =Data!B212 -> 36 | P6: =IFERROR(INDIRECT(VLOOKUP(MID(CELL("filename",N6),FIND("]", CELL("filename",N6))+1,32) & "!" & ADDRESS(ROW(N6),COLUMN(N6),4,1), DB_Sensitivity_Indirect_Reference,2, FALSE)), N6) -> 0
D7: Inflation Rate (Excluding Fuel) (%/Year) | E7: 0.02 | F7: =Data!A150 -> 0.02 | G7: =IFERROR(INDIRECT(VLOOKUP(MID(CELL("filename",E7),FIND("]", CELL("filename",E7))+1,32) & "!" & ADDRESS(ROW(E7),COLUMN(E7),4,1), DB_Sensitivity_Indirect_Reference,2, FALSE)), E7) -> 0.02
B10: Vehicle Inputs
B11: Procurement 1 (Baseline) | K11: Procurement 2 (Comparison)
B12: Vehicle Type #1 | K12: Vehicle Type #1
B13: Vehicle Drivetrain Type | E13: ICE | K13: Vehicle Drivetrain Type | N13: BEV
B14: Vehicle Year | E14: 2017 | K14: Vehicle Year | N14: 2017
B15: Vehicle Make | E15: Chevrolet | K15: Vehicle Make | N15: Chevrolet
B16: Vehicle Model | E16: Cruze | H16: =_Base_V1_Vehicle_Year&" "&_Base_V1_Vehicle_Make&" "&_Base_V1_Vehicle_Model&" "&_Base_V1_Vehicle_Drivetrain -> 2017 Chevrolet Cruze ICE | K16: Vehicle Model | N16: Bolt EV | Q16: =_Comp_V1_Vehicle_Year&" "&_Comp_V1_Vehicle_Make&" "&_Comp_V1_Vehicle_Model&" "&_Comp_V1_Vehicle_Drivetrain -> 2017 Chevrolet Bolt EV BEV
B17: Fuel Economy Gas City (MPG) | E17: 30 | F17: =VLOOKUP(Base_V1_Type_Ex,DB_Vehicles,10,FALSE) -> 30 | G17: =IFERROR(INDIRECT(VLOOKUP(MID(CELL("filename",E17),FIND("]", CELL("filename",E17))+1,32) & "!" & ADDRESS(ROW(E17),COLUMN(E17),4,1), DB_Sensitivity_Indirect_Reference,2, FALSE)), E17) -> 30 | K17: Fuel Economy Gas City (MPG) | N17: 0 | O17: =VLOOKUP(Comp_V1_Type_Ex,DB_Vehicles,10,FALSE) -> 0 | P17: =IFERROR(INDIRECT(VLOOKUP(MID(CELL("filename",N17),FIND("]", CELL("filename",N17))+1,32) & "!" & ADDRESS(ROW(N17),COLUMN(N17),4,1), DB_Sensitivity_Indirect_Reference,2, FALSE)), N17) -> 0
B18: Fuel Economy Gas Highway (MPG) | E18: 40 | F18: =VLOOKUP(Base_V1_Type_Ex,DB_Vehicles,11,FALSE) -> 40 | G18: =IFERROR(INDIRECT(VLOOKUP(MID(CELL("filename",E18),FIND("]", CELL("filename",E18))+1,32) & "!" & ADDRESS(ROW(E18),COLUMN(E18),4,1), DB_Sensitivity_Indirect_Reference,2, FALSE)), E18) -> 40 | K18: Fuel Economy Gas Highway (MPG) | N18: 0 | O18: =VLOOKUP(Comp_V1_Type_Ex,DB_Vehicles,11,FALSE) -> 0 | P18: =IFERROR(INDIRECT(VLOOKUP(MID(CELL("filename",N18),FIND("]", CELL("filename",N18))+1,32) & "!" & ADDRESS(ROW(N18),COLUMN(N18),4,1), DB_Sensitivity_Indirect_Reference,2, FALSE)), N18) -> 0
B19: Fuel Economy Electric City (MPGe) | E19: 0 | F19: =VLOOKUP(Base_V1_Type_Ex,DB_Vehicles,8,FALSE) -> 0 | G19: 0 | K19: Fuel Economy Electric City (MPGe) | N19: 128 | O19: =VLOOKUP(Comp_V1_Type_Ex,DB_Vehicles,8,FALSE) -> 128 | P19: 128
B20: Fuel Economy Electric Highway (MPGe) | E20: 0 | F20: =VLOOKUP(Base_V1_Type_Ex,DB_Vehicles,9,FALSE) -> 0 | G20: =IFERROR(INDIRECT(VLOOKUP(MID(CELL("filename",E20),FIND("]", CELL("filename",E20))+1,32) & "!" & ADDRESS(ROW(E20),COLUMN(E20),4,1), DB_Sensitivity_Indirect_Reference,2, FALSE)), E20) -> 0 | K20: Fuel Economy Electric Highway (MPGe) | N20: 110 | O20: =VLOOKUP(Comp_V1_Type_Ex,DB_Vehicles,9,FALSE) -> 110 | P20: =IFERROR(INDIRECT(VLOOKUP(MID(CELL("filename",N20),FIND("]", CELL("filename",N20))+1,32) & "!" & ADDRESS(ROW(N20),COLUMN(N20),4,1), DB_Sensitivity_Indirect_Reference,2, FALSE)), N20) -> 110
B21: Expected Years of Use/Ownership (Years) | E21: 7 | F21: 7 | G21: 7 | K21: Expected Years of Use/Ownership (Years) | N21: 7 | O21: 7 | P21: 7
B22: Annual Vehicle Mileage (VMT/Year) | E22: 10000 | F22: 15000 | G22: 10000 | K22: Annual Vehicle Mileage (VMT/Year) | N22: 10000 | O22: 15000 | P22: 10000
B23: % of Annual Miles on Gasoline | E23: 1 | F23: =MAX((Base_V1_VMT/365)-VLOOKUP(Base_V1_Type_Ex,DB_Vehicles,7,FALSE),0)/(Base_V1_VMT/365) -> 1 | G23: 1 | K23: % of Annual Miles on Gasoline | N23: 0 | O23: =MAX((Comp_V1_VMT/365)-VLOOKUP(Comp_V1_Type_Ex,DB_Vehicles,7,FALSE),0)/(Comp_V1_VMT/365) -> 0 | P23: 0
B24: % of Annual Miles City Driving | E24: 0.55 | F24: =DB_Percent_Annual_Miles_City_Driving -> 0.55 | G24: 0.55 | K24: % of Annual Miles City Driving | N24: 0.55 | O24: =Data!B211 -> 0.55 | P24: 0.55
B25: Cost to Insure ($/Year) | E25: 550 | F25: =VLOOKUP(Base_V1_Type_Ex,DB_Vehicles,13,FALSE) -> 805.4 | G25: 550 | K25: Cost to Insure ($/Year) | N25: 550 | O25: =VLOOKUP(Comp_V1_Type_Ex,DB_Vehicles,13,FALSE) -> 868.625 | P25: 550
B26: Use Drivetrain Default Maintenance and Repair Costs? | E26: Yes | K26: Use Drivetrain Default Maintenance and Repair Costs? | N26: Yes
B27: Maintenance and Repair Cost - Years 1 - 5 ($/Mile) | E27: 0.08 | F27: =VLOOKUP(_Base_V1_Vehicle_Drivetrain,DB_Maint_Repair_Costs[],2,FALSE) -> 0.08 | G27: 0.08 | K27: Maintenance and Repair Cost - Years 1 - 5 ($/Mile) | N27: 0.04 | O27: =VLOOKUP(_Comp_V1_Vehicle_Drivetrain,DB_Maint_Repair_Costs[],2,FALSE) -> 0.04 | P27: 0.04
B28: Maintenance and Repair Cost - Years 5+ ($/Mile) | E28: 0.104 | F28: =VLOOKUP(_Base_V1_Vehicle_Drivetrain,DB_Maint_Repair_Costs[],7,FALSE) -> 0.104 | G28: =IFERROR(INDIRECT(VLOOKUP(MID(CELL("filename",E28),FIND("]", CELL("filename",E28))+1,32) & "!" & ADDRESS(ROW(E28),COLUMN(E28),4,1), DB_Sensitivity_Indirect_Reference,2, FALSE)), E28) -> 0.104 | K28: Maintenance and Repair Cost - Years 5+ ($/Mile) | N28: 0.052 | O28: =VLOOKUP(_Comp_V1_Vehicle_Drivetrain,DB_Maint_Repair_Costs[],7,FALSE) -> 0.052 | P28: =IFERROR(INDIRECT(VLOOKUP(MID(CELL("filename",N28),FIND("]", CELL("filename",N28))+1,32) & "!" & ADDRESS(ROW(N28),COLUMN(N28),4,1), DB_Sensitivity_Indirect_Reference,2, FALSE)), N28) -> 0.052
B29: Recurring Taxes and Fees ($/Year) | E29: 10 | G29: 10 | K29: Recurring Taxes and Fees ($/Year) | N29: 10 | P29: 10
B31: Vehicle Type #2 | K31: Vehicle Type #2
B32: Etc…etc. | K32: Etc…etc.
B36: Vehicle Procurement Inputs
B37: Procurement 1 (Baseline) | K37: Procurement 2 (Comparison)
B39: Discount Rate for NPV Calculations (%) | E39: 0 | G39: =IFERROR(INDIRECT(VLOOKUP(MID(CELL("filename",E39),FIND("]", CELL("filename",E39))+1,32) & "!" & ADDRESS(ROW(E39),COLUMN(E39),4,1), DB_Sensitivity_Indirect_Reference,2, FALSE)), E39) -> 0 | K39: Discount Rate for NPV Calculations (%) | N39: 0 | P39: =IFERROR(INDIRECT(VLOOKUP(MID(CELL("filename",N39),FIND("]", CELL("filename",N39))+1,32) & "!" & ADDRESS(ROW(N39),COLUMN(N39),4,1), DB_Sensitivity_Indirect_Reference,2, FALSE)), N39) -> 0
B41: Vehicle Type #1 | K41: Vehicle Type #1
B42: Number of Vehicles to Procure (#) | E42: 19 | G42: =IFERROR(INDIRECT(VLOOKUP(MID(CELL("filename",E42),FIND("]", CELL("filename",E42))+1,32) & "!" & ADDRESS(ROW(E42),COLUMN(E42),4,1), DB_Sensitivity_Indirect_Reference,2, FALSE)), E42) -> 19 | K42: Number of Vehicles to Procure (#) | N42: 19 | P42: =IFERROR(INDIRECT(VLOOKUP(MID(CELL("filename",N42),FIND("]", CELL("filename",N42))+1,32) & "!" & ADDRESS(ROW(N42),COLUMN(N42),4,1), DB_Sensitivity_Indirect_Reference,2, FALSE)), N42) -> 19
B43: Pricing Approach (select one) | E43: Dealer Cost Plus Markup | H43: =IF(IFERROR(FIND("MSRP",_Base_V1_Pricing_Approach,1),0)>0,TRUE,FALSE) -> FALSE | K43: Pricing Approach (select one) | N43: Dealer Cost Plus Markup | Q43: =IF(IFERROR(FIND("MSRP",_Comp_V1_Pricing_Approach,1),0)>0,TRUE,FALSE) -> FALSE
B44: MSRP ($/Vehicle) | E44: 16975 | F44: =VLOOKUP(Base_V1_Type_Ex,DB_Vehicles,12,FALSE) -> 19525 | G44: =IFERROR(INDIRECT(VLOOKUP(MID(CELL("filename",E44),FIND("]", CELL("filename",E44))+1,32) & "!" & ADDRESS(ROW(E44),COLUMN(E44),4,1), DB_Sensitivity_Indirect_Reference,2, FALSE)), E44) -> 16975 | K44: MSRP ($) | N44: 36620 | O44: =VLOOKUP(Comp_V1_Type_Ex,DB_Vehicles,12,FALSE) -> 36620 | P44: =IFERROR(INDIRECT(VLOOKUP(MID(CELL("filename",N44),FIND("]", CELL("filename",N44))+1,32) & "!" & ADDRESS(ROW(N44),COLUMN(N44),4,1), DB_Sensitivity_Indirect_Reference,2, FALSE)), N44) -> 36620
B45: Value of Negotiated Discounts off MSRP ($/Vehicle) | E45: 0 | G45: =IFERROR(INDIRECT(VLOOKUP(MID(CELL("filename",E45),FIND("]", CELL("filename",E45))+1,32) & "!" & ADDRESS(ROW(E45),COLUMN(E45),4,1), DB_Sensitivity_Indirect_Reference,2, FALSE)), E45) -> 0 | K45: Value of Negotiated Discounts off MSRP ($/Vehicle) | N45: 0 | P45: =IFERROR(INDIRECT(VLOOKUP(MID(CELL("filename",N45),FIND("]", CELL("filename",N45))+1,32) & "!" & ADDRESS(ROW(N45),COLUMN(N45),4,1), DB_Sensitivity_Indirect_Reference,2, FALSE)), N45) -> 0
B46: Dealer Triple Net Price ($/Vehicle) | E46: 18024 | G46: =IFERROR(INDIRECT(VLOOKUP(MID(CELL("filename",E46),FIND("]", CELL("filename",E46))+1,32) & "!" & ADDRESS(ROW(E46),COLUMN(E46),4,1), DB_Sensitivity_Indirect_Reference,2, FALSE)), E46) -> 18024 | K46: Dealer List Price ($) | N46: 33226 | P46: =IFERROR(INDIRECT(VLOOKUP(MID(CELL("filename",N46),FIND("]", CELL("filename",N46))+1,32) & "!" & ADDRESS(ROW(N46),COLUMN(N46),4,1), DB_Sensitivity_Indirect_Reference,2, FALSE)), N46) -> 33226
B47: Dealer Markup ($/Vehicle) | E47: 200 | G47: =IFERROR(INDIRECT(VLOOKUP(MID(CELL("filename",E47),FIND("]", CELL("filename",E47))+1,32) & "!" & ADDRESS(ROW(E47),COLUMN(E47),4,1), DB_Sensitivity_Indirect_Reference,2, FALSE)), E47) -> 200 | K47: Markup ($) | N47: 300 | P47: =IFERROR(INDIRECT(VLOOKUP(MID(CELL("filename",N47),FIND("]", CELL("filename",N47))+1,32) & "!" & ADDRESS(ROW(N47),COLUMN(N47),4,1), DB_Sensitivity_Indirect_Reference,2, FALSE)), N47) -> 300
B48: Total Base Price | E48: =IF(IFERROR(FIND("MSRP",_Base_V1_Pricing_Approach,1),0)>0,Base_V1_MSRP_Modeled-Base_V1_Discounts_Modeled,Base_V1_List_Price_Modeled+Base_V1_List_Price_Markup_Modeled) -> 18224 | K48: Total Base Price | N48: =IF(IFERROR(FIND("MSRP",_Comp_V1_Pricing_Approach,1),0)>0,Comp_V1_MSRP_Modeled-Comp_V1_Discounts_Modeled,Comp_V1_List_Price_Modeled+Comp_V1_List_Price_Markup_Modeled) -> 33526
B49: Value of Federal Tax Incentives ($/Vehicle) | E49: 0 | F49: =IFERROR(VLOOKUP(Base_V1_Type_Ex,DB_Vehicle_Incentives[],7,FALSE),0) -> 0 | G49: =IFERROR(INDIRECT(VLOOKUP(MID(CELL("filename",E49),FIND("]", CELL("filename",E49))+1,32) & "!" & ADDRESS(ROW(E49),COLUMN(E49),4,1), DB_Sensitivity_Indirect_Reference,2, FALSE)), E49) -> 0 | K49: Value of Federal Tax Credits ($/Vehicle) | N49: 7500 | O49: =IFERROR(VLOOKUP(Comp_V1_Type_Ex,DB_Vehicle_Incentives[],7,FALSE),0) -> 7500 | P49: =IFERROR(INDIRECT(VLOOKUP(MID(CELL("filename",N49),FIND("]", CELL("filename",N49))+1,32) & "!" & ADDRESS(ROW(N49),COLUMN(N49),4,1), DB_Sensitivity_Indirect_Reference,2, FALSE)), N49) -> 7500
B50: Value of State Tax Incentives ($/Vehicle) | E50: 0 | F50: =IFERROR(VLOOKUP(Base_V1_Type_Ex,DB_Vehicle_Incentives[],7+MATCH(State_Ex,DB_Vehicle_Incentives[[#Headers],[CA]:[NY]],0),FALSE),0) -> 0 | G50: 0 | K50: Value of State Tax Incentives ($/Vehicle) | N50: 0 | O50: =IFERROR(VLOOKUP(Comp_V1_Type_Ex,DB_Vehicle_Incentives[],7+MATCH(State_Ex,DB_Vehicle_Incentives[[#Headers],[CA]:[NY]],0),FALSE),0) -> 0 | P50: 0
B51: State Tax Incentive Cap ($) | E51: 0 | G51: 0 | K51: State Tax Incentive Cap ($) | N51: 0 | P51: 0
B52: Value of Non-tax Incentives ($/Vehicle) | G52: 0 | K52: Value of Non-tax Incentives ($/Vehicle) | P52: 0
B53: Initial Tax, Title, and Registration Cost ($/Vehicle) | E53: 1000 | G53: 1000 | K53: Initial Tax, Title, and Registration Cost ($/Vehicle) | N53: 1000 | P53: 1000
B54: Initial Fee as Percent of Vehicle Base Price (%) | E54: 0 | G54: 0 | K54: Initial Fee as Percent of Vehicle Base Price (%) | N54: 0 | P54: 0
B55: Ownership Structure | E55: Purchase (Cash) | H55: =IF(IFERROR(FIND("Cash",_Base_V1_Ownership_Structure,1),0)>0,TRUE,FALSE) -> TRUE | K55: Ownership Structure | N55: Purchase (Cash) | Q55: =IF(IFERROR(FIND("Cash",_Comp_V1_Ownership_Structure,1),0)>0,TRUE,FALSE) -> TRUE
B56: Tax Credits Can Be Monetized? (Y/N) | E56: No | H56: =IF(IFERROR(FIND("Loan",_Base_V1_Ownership_Structure,1),0)>0,TRUE,FALSE) -> FALSE | K56: Tax Credits Can Be Monetized? (Y/N) | N56: Yes | Q56: =IF(IFERROR(FIND("Loan",_Comp_V1_Ownership_Structure,1),0)>0,TRUE,FALSE) -> FALSE
H57: =IF(IFERROR(FIND("Lease",_Base_V1_Ownership_Structure,1),0)>0,TRUE,FALSE) -> FALSE | Q57: =IF(IFERROR(FIND("Lease",_Comp_V1_Ownership_Structure,1),0)>0,TRUE,FALSE) -> FALSE
B58: Down Payment ($/Vehicle) | E58: 0 | G58: =IFERROR(INDIRECT(VLOOKUP(MID(CELL("filename",E58),FIND("]", CELL("filename",E58))+1,32) & "!" & ADDRESS(ROW(E58),COLUMN(E58),4,1), DB_Sensitivity_Indirect_Reference,2, FALSE)), E58) -> 0 | K58: Down Payment ($/Vehicle) | N58: 0 | P58: =IFERROR(INDIRECT(VLOOKUP(MID(CELL("filename",N58),FIND("]", CELL("filename",N58))+1,32) & "!" & ADDRESS(ROW(N58),COLUMN(N58),4,1), DB_Sensitivity_Indirect_Reference,2, FALSE)), N58) -> 0
B59: Lease | K59: Lease
B60: Lease Term (Years) | E60: 3 | G60: =IFERROR(INDIRECT(VLOOKUP(MID(CELL("filename",E60),FIND("]", CELL("filename",E60))+1,32) & "!" & ADDRESS(ROW(E60),COLUMN(E60),4,1), DB_Sensitivity_Indirect_Reference,2, FALSE)), E60) -> 3 | H60: Data validation handled in VBA | K60: Lease Term (Years) | N60: 0 | P60: =IFERROR(INDIRECT(VLOOKUP(MID(CELL("filename",N60),FIND("]", CELL("filename",N60))+1,32) & "!" & ADDRESS(ROW(N60),COLUMN(N60),4,1), DB_Sensitivity_Indirect_Reference,2, FALSE)), N60) -> 0 | Q60: Data validation handled in VBA
B61: Lease Interest Rate (APR - %) | E61: 0.1 | G61: =IFERROR(INDIRECT(VLOOKUP(MID(CELL("filename",E61),FIND("]", CELL("filename",E61))+1,32) & "!" & ADDRESS(ROW(E61),COLUMN(E61),4,1), DB_Sensitivity_Indirect_Reference,2, FALSE)), E61) -> 0.1 | K61: Lease Interest Rate (APR - %) | N61: 0 | P61: =IFERROR(INDIRECT(VLOOKUP(MID(CELL("filename",N61),FIND("]", CELL("filename",N61))+1,32) & "!" & ADDRESS(ROW(N61),COLUMN(N61),4,1), DB_Sensitivity_Indirect_Reference,2, FALSE)), N61) -> 0
B62: OR | K62: OR
B63: Money Factor (#) | E63: 0.004166666667 | G63: =IFERROR(INDIRECT(VLOOKUP(MID(CELL("filename",E63),FIND("]", CELL("filename",E63))+1,32) & "!" & ADDRESS(ROW(E63),COLUMN(E63),4,1), DB_Sensitivity_Indirect_Reference,2, FALSE)), E63) -> 0.004166666667 | K63: Money Factor (#) | N63: 0 | P63: =IFERROR(INDIRECT(VLOOKUP(MID(CELL("filename",N63),FIND("]", CELL("filename",N63))+1,32) & "!" & ADDRESS(ROW(N63),COLUMN(N63),4,1), DB_Sensitivity_Indirect_Reference,2, FALSE)), N63) -> 0
B64: Acquisition Fee ($/Vehicle) | E64: 0 | G64: 0 | K64: Acquisition Fee ($/Vehicle) | N64: 0 | P64: 0
B65: Disposition Charge ($/Vehicle) | E65: 0 | G65: 0 | K65: Disposition Charge ($/Vehicle) | N65: 0 | P65: 0
B66: Residual Value ($/Vehicle) | E66: 17000 | G66: 17000 | H66: =IF(IFERROR(FIND("Tax-Exempt",_Base_V1_Ownership_Structure,1),0)>0,IF(Base_V1_Lease_Residual_Price=1,TRUE,FALSE),TRUE) -> TRUE | K66: Negotiated Residual Value ($/Vehicle) | N66: 0 | P66: 0 | Q66: =IF(IFERROR(FIND("Tax-Exempt",_Comp_V1_Ownership_Structure,1),0)>0,IF(Comp_V1_Lease_Residual_Price=1,TRUE,FALSE),TRUE) -> TRUE
B67: Mileage Included (Closed-End Only) | E67: 0 | G67: 0 | K67: Mileage Included (Closed-End Only) | N67: 0 | P67: 0
B68: Excess Mileage Cost ($/Mile) | E68: 0 | G68: 0 | K68: Excess Mileage Cost ($/Mile) | N68: 0 | P68: 0
B69: Loan | K69: Loan
B70: Loan Term (Years) | E70: 4 | G70: =IFERROR(INDIRECT(VLOOKUP(MID(CELL("filename",E70),FIND("]", CELL("filename",E70))+1,32) & "!" & ADDRESS(ROW(E70),COLUMN(E70),4,1), DB_Sensitivity_Indirect_Reference,2, FALSE)), E70) -> 4 | H70: Data validation handled in VBA | K70: Loan Term (Years) | N70: 4 | P70: =IFERROR(INDIRECT(VLOOKUP(MID(CELL("filename",N70),FIND("]", CELL("filename",N70))+1,32) & "!" & ADDRESS(ROW(N70),COLUMN(N70),4,1), DB_Sensitivity_Indirect_Reference,2, FALSE)), N70) -> 4 | Q70: Data validation handled in VBA
B71: Loan Interest Rate (APR - %) | E71: 0.05 | G71: =IFERROR(INDIRECT(VLOOKUP(MID(CELL("filename",E71),FIND("]", CELL("filename",E71))+1,32) & "!" & ADDRESS(ROW(E71),COLUMN(E71),4,1), DB_Sensitivity_Indirect_Reference,2, FALSE)), E71) -> 0.05 | K71: Loan Interest Rate (APR - %) | N71: 0.05 | P71: =IFERROR(INDIRECT(VLOOKUP(MID(CELL("filename",N71),FIND("]", CELL("filename",N71))+1,32) & "!" & ADDRESS(ROW(N71),COLUMN(N71),4,1), DB_Sensitivity_Indirect_Reference,2, FALSE)), N71) -> 0.05
B73: Vehicle Type #2 | K73: Vehicle Type #2
B74: Etc…etc. | K74: Etc…etc.
B78: EV Infrastructure Inputs
B79: Procurement 1 (Baseline) | K79: Procurement 2 (Comparison)
B80: Procurement Includes EV Charging? | E80: No | K80: Procurement Includes EV Charging? | N80: No
B81: Number of Level 2 EV Stations Needed (#) | E81: 0 | G81: =IFERROR(INDIRECT(VLOOKUP(MID(CELL("filename",E81),FIND("]", CELL("filename",E81))+1,32) & "!" & ADDRESS(ROW(E81),COLUMN(E81),4,1), DB_Sensitivity_Indirect_Reference,2, FALSE)), E81) -> 0 | K81: Number of Level 2 EV Stations Needed (#) | N81: 0 | P81: =IFERROR(INDIRECT(VLOOKUP(MID(CELL("filename",N81),FIND("]", CELL("filename",N81))+1,32) & "!" & ADDRESS(ROW(N81),COLUMN(N81),4,1), DB_Sensitivity_Indirect_Reference,2, FALSE)), N81) -> 0
B82: Equipment and Installation Cost ($/Station) | E82: 0 | F82: =DB_Base_Station_Cost -> 5000 | G82: =IFERROR(INDIRECT(VLOOKUP(MID(CELL("filename",E82),FIND("]", CELL("filename",E82))+1,32) & "!" & ADDRESS(ROW(E82),COLUMN(E82),4,1), DB_Sensitivity_Indirect_Reference,2, FALSE)), E82) -> 0 | K82: Equipment and Installation Cost ($/Station) | N82: 0 | O82: =DB_Base_Station_Cost -> 5000 | P82: =IFERROR(INDIRECT(VLOOKUP(MID(CELL("filename",N82),FIND("]", CELL("filename",N82))+1,32) & "!" & ADDRESS(ROW(N82),COLUMN(N82),4,1), DB_Sensitivity_Indirect_Reference,2, FALSE)), N82) -> 0
B83: Maintenance Cost ($/Station/Year) | E83: 0 | F83: =DB_Base_Station_Maint_Cost -> 75 | G83: =IFERROR(INDIRECT(VLOOKUP(MID(CELL("filename",E83),FIND("]", CELL("filename",E83))+1,32) & "!" & ADDRESS(ROW(E83),COLUMN(E83),4,1), DB_Sensitivity_Indirect_Reference,2, FALSE)), E83) -> 0 | K83: Maintenance Cost ($/Station/Year) | N83: 0 | O83: =DB_Base_Station_Maint_Cost -> 75 | P83: =IFERROR(INDIRECT(VLOOKUP(MID(CELL("filename",N83),FIND("]", CELL("filename",N83))+1,32) & "!" & ADDRESS(ROW(N83),COLUMN(N83),4,1), DB_Sensitivity_Indirect_Reference,2, FALSE)), N83) -> 0
B84: Ownership Structure | E84: Purchase (Cash) | H84: =IF(IFERROR(FIND("Cash",_Base_Inf_Ownership_Structure,1),0)>0,TRUE,FALSE) -> TRUE | K84: Ownership Structure | N84: Purchase (Cash) | Q84: =IF(IFERROR(FIND("Cash",_Comp_Inf_Ownership_Structure,1),0)>0,TRUE,FALSE) -> TRUE
B85: Loan | K85: Loan
B86: Cash Upfront / Down Payment ($) | E86: 0 | G86: =IFERROR(INDIRECT(VLOOKUP(MID(CELL("filename",E86),FIND("]", CELL("filename",E86))+1,32) & "!" & ADDRESS(ROW(E86),COLUMN(E86),4,1), DB_Sensitivity_Indirect_Reference,2, FALSE)), E86) -> 0 | K86: Cash Upfront / Down Payment ($) | N86: 0 | P86: =IFERROR(INDIRECT(VLOOKUP(MID(CELL("filename",N86),FIND("]", CELL("filename",N86))+1,32) & "!" & ADDRESS(ROW(N86),COLUMN(N86),4,1), DB_Sensitivity_Indirect_Reference,2, FALSE)), N86) -> 0
B87: Loan Term (Years) | E87: 0 | G87: =IFERROR(INDIRECT(VLOOKUP(MID(CELL("filename",E87),FIND("]", CELL("filename",E87))+1,32) & "!" & ADDRESS(ROW(E87),COLUMN(E87),4,1), DB_Sensitivity_Indirect_Reference,2, FALSE)), E87) -> 0 | K87: Loan Term (Years) | N87: 0 | P87: =IFERROR(INDIRECT(VLOOKUP(MID(CELL("filename",N87),FIND("]", CELL("filename",N87))+1,32) & "!" & ADDRESS(ROW(N87),COLUMN(N87),4,1), DB_Sensitivity_Indirect_Reference,2, FALSE)), N87) -> 0
B88: Interest Rate (APR - %) | E88: 0 | G88: =IFERROR(INDIRECT(VLOOKUP(MID(CELL("filename",E88),FIND("]", CELL("filename",E88))+1,32) & "!" & ADDRESS(ROW(E88),COLUMN(E88),4,1), DB_Sensitivity_Indirect_Reference,2, FALSE)), E88) -> 0 | K88: Interest Rate (APR - %) | N88: 0 | P88: =IFERROR(INDIRECT(VLOOKUP(MID(CELL("filename",N88),FIND("]", CELL("filename",N88))+1,32) & "!" & ADDRESS(ROW(N88),COLUMN(N88),4,1), DB_Sensitivity_Indirect_Reference,2, FALSE)), N88) -> 0

Sheet Results
A1: Results - Fleet Procurement Analysis Tool
B2: Procurement Summary
L3: Procurement Details
M4: =Base_V1_Type_Ex&" (Baseline)" -> 2017 Chevrolet Cruze ICE (Baseline) | N4: =Comp_V1_Type_Ex&" (Comparison)" -> 2017 Chevrolet Bolt EV BEV (Comparison)
L5: Procurement Type | M5: =_Base_V1_Ownership_Structure -> Purchase (Cash) | N5: =_Comp_V1_Ownership_Structure -> Purchase (Cash)
L6: Number of Vehicles Procured | M6: =Base_V1_Num_Vehicles_Modeled -> 19 | N6: =Comp_V1_Num_Vehicles_Modeled -> 19
L7: Years of Use/Ownership | M7: =Base_V1_Years_Usage_Modeled -> 7 | N7: =Comp_V1_Years_Usage_Modeled -> 7
L8: Miles Procured | M8: =Base_V1_Years_Usage_Modeled*Base_V1_VMT_Modeled*Base_V1_Num_Vehicles_Modeled -> 1330000 | N8: =Comp_V1_Years_Usage_Modeled*Comp_V1_VMT_Modeled*Comp_V1_Num_Vehicles_Modeled -> 1330000
L9: Total NPV Vehicle and Operating Cost | M9: =SUM(M10:M13) -> 631358.6193 | N9: =SUM(N10:N13) -> 723993.974
L10: Total Tax Incentives Captured | M10: =IF(Base_V1_Tax_Incentives_Monetized="Yes",(Base_V1_Federal_Tax_Incentives_Modeled*Base_V1_Num_VehiclesModeled)+IF(Base_V1_State_Tax_Incentive_Cap_Modeled=0,Base_V1_State_Tax_Incentives_Modeled*Base_V1_Num_Vehicles_Modeled,MIN(Base_V1_State_Tax_Incentive_Cap_Modeled,Base_V1_State_Tax_Incentives_Modeled*Base_V1_Num_Vehicles_Modeled)),0) -> 0 | N10: =IF(Comp_V1_Tax_Incentives_Monetized="Yes",(Comp_V1_Federal_Tax_Incentives_Modeled*Comp_V1_Num_Vehicles_Modeled)+IF(Comp_V1_State_Tax_Incentive_Cap_Modeled=0,Comp_V1_State_Tax_Incentives_Modeled*Comp_V1_Num_Vehicles_Modeled,MIN(Comp_V1_State_Tax_Incentive_Cap_Modeled,Comp_V1_State_Tax_Incentives_Modeled*Comp_V1_Num_Vehicles_Modeled)),0) -> 142500
L11: Total Non-Tax Incentive Captured | M11: =Base_V1_Other_Incentives_Modeled*Base_V1_Num_Vehicles_Modeled -> 0 | N11: =Comp_V1_Other_Incentives_Modeled*Comp_V1_Num_Vehicles_Modeled -> 0
L12: Total Discounts Captured | M12: =IF(_Base_V1_Pricing_Approach="MSRP Less Discounts",Base_V1_Discounts_Modeled*Base_V1_Num_Vehicles_Modeled,0) -> 0 | N12: =IF(_Comp_V1_Pricing_Approach="MSRP Less Discounts",Comp_V1_Discounts_Modeled*Comp_V1_Num_Vehicles_Modeled,0) -> 0
L13: NPV Vehicle Total Cost less Incentives and Discounts | M13: =-Base_V1_Annualized_Cost_Ownership_Ex*Base_V1_Years_Usage_Modeled*Base_V1_Num_Vehicles_Modeled -> 631358.6193 | N13: =-Comp_V1_Annualized_Cost_Ownership_Ex*Comp_V1_Years_Usage_Modeled*Comp_V1_Num_Vehicles_Modeled -> 581493.974
L14: NPV Total Cost of Infrastructure | M14: =-Base_Inf_Annualized_Cost_Ownership_Ex*Base_V1_Years_Usage_Modeled -> 0 | N14: =-Comp_Inf_Annualized_Cost_Ownership_Ex*Comp_V1_Years_Usage_Modeled -> 0
L15: Total NPV Cost | M15: =SUM(M13:M14) -> 631358.6193 | N15: =SUM(N13:N14) -> 581493.974
B16: ="The baseline is "& ABS(ROUND(('Results Tables'!C29-'Results Tables'!D29)/'Results Tables'!C29*100,2))&"% "&IF(ROUND(('Results Tables'!C29-'Results Tables'!D29)/'Results Tables'!C29*100,2)>0,"more","less")&" expensive than the comparison vehicle" -> The baseline is 7.9% more expensive than the comparison vehicle | L16: Total NPV Cost / Mile | M16: =M15/M8 -> 0.4747057288 | N16: =N15/N8 -> 0.4372135143
B18: Societal Benefit Summary
B29: Fleet Gasoline Use (Total All Vehicles)
B31: =Base_V1_Type_Ex&" Based Fleet" -> 2017 Chevrolet Cruze ICE Based Fleet | F31: VS | G31: =Comp_V1_Type_Ex&" Based Fleet" -> 2017 Chevrolet Bolt EV BEV Based Fleet | K31: = | L31: ="The baseline fleet uses "& TEXT(ABS(ROUND(B32-G32,0)),"#,##0")&" "&IF(ROUND(B32-G32,0)>0,"more","fewer")&" gallons of gasoline than the comparison fleet" -> The baseline fleet uses 39,346 more gallons of gasoline than the comparison fleet
B32: ='Results Tables'!C36 -> 39345.83333 | D32: gallons | G32: ='Results Tables'!D36 -> 0 | I32: gallons
B34: Cash Flow Summary
B55: Sensitivity Analysis

Sheet Financial Model
A1: Financial Models - Fleet Procurement Analysis Tool
D2: Year 0 | E2: Year 1 | F2: Year 2 | G2: Year 3 | H2: Year 4 | I2: Year 5 | J2: Year 6 | K2: Year 7 | L2: Year 8 | M2: Year 9 | N2: Year 10 | O2: Year 11 | P2: Year 12 | Q2: Year 13 | R2: Year 14 | S2: Year 15 | T2: Year 16 | U2: Year 17 | V2: Year 18 | W2: Year 19 | X2: Year 20 | Y2: Year 21 | Z2: Year 22 | AA2: Year 23 | AB2: Year 24 | AC2: Year 25
B3: Baseline Vehicle 1
D4: Year 0 | E4: Year 1 | F4: Year 2 | G4: Year 3 | H4: Year 4 | I4: Year 5 | J4: Year 6 | K4: Year 7 | L4: Year 8 | M4: Year 9 | N4: Year 10 | O4: Year 11 | P4: Year 12 | Q4: Year 13 | R4: Year 14 | S4: Year 15 | T4: Year 16 | U4: Year 17 | V4: Year 18 | W4: Year 19 | X4: Year 20 | Y4: Year 21 | Z4: Year 22 | AA4: Year 23 | AB4: Year 24 | AC4: Year 25
B5: Depreciation Calculations
B6: Fair Market Value - BEV | D6: =IF(VLOOKUP(Base_V1_Type_Ex,DB_Vehicles,5,FALSE)="BEV",Base_V1_MSRP_Modeled,0) -> 0 | E6: =IF(VLOOKUP(Base_V1_Type_Ex,DB_Vehicles,5,FALSE)="BEV",MAX(IF(VLOOKUP(Base_V1_Type_Ex,DB_Vehicles,5,FALSE)="BEV",Reg_BEV_Const_Ex+Reg_BEV_Age_Coef_Ex*(COLUMN(E4)-COLUMN($D4))+Reg_BEV_Agesq_Coef_Ex*((COLUMN(E4)-COLUMN($D4))^2)+Reg_BEV_MSRP_Coef_Ex*Base_V1_MSRP_Modeled+Reg_BEV_Range_Coef_Ex*VLOOKUP(Base_V1_Type_Ex,DB_Vehicles,7,FALSE)+Reg_BEV_Mileage_Coef_Ex*Base_V1_VMT_Modeled*(COLUMN(E4)-COLUMN($D4)),0),300),0) -> 0 | F6: =IF(VLOOKUP(Base_V1_Type_Ex,DB_Vehicles,5,FALSE)="BEV",MAX(IF(VLOOKUP(Base_V1_Type_Ex,DB_Vehicles,5,FALSE)="BEV",Reg_BEV_Const_Ex+Reg_BEV_Age_Coef_Ex*(COLUMN(F4)-COLUMN($D4))+Reg_BEV_Agesq_Coef_Ex*((COLUMN(F4)-COLUMN($D4))^2)+Reg_BEV_MSRP_Coef_Ex*Base_V1_MSRP_Modeled+Reg_BEV_Range_Coef_Ex*VLOOKUP(Base_V1_Type_Ex,DB_Vehicles,7,FALSE)+Reg_BEV_Mileage_Coef_Ex*Base_V1_VMT_Modeled*(COLUMN(F4)-COLUMN($D4)),0),300),0) -> 0 | G6: =IF(VLOOKUP(Base_V1_Type_Ex,DB_Vehicles,5,FALSE)="BEV",MAX(IF(VLOOKUP(Base_V1_Type_Ex,DB_Vehicles,5,FALSE)="BEV",Reg_BEV_Const_Ex+Reg_BEV_Age_Coef_Ex*(COLUMN(G4)-COLUMN($D4))+Reg_BEV_Agesq_Coef_Ex*((COLUMN(G4)-COLUMN($D4))^2)+Reg_BEV_MSRP_Coef_Ex*Base_V1_MSRP_Modeled+Reg_BEV_Range_Coef_Ex*VLOOKUP(Base_V1_Type_Ex,DB_Vehicles,7,FALSE)+Reg_BEV_Mileage_Coef_Ex*Base_V1_VMT_Modeled*(COLUMN(G4)-COLUMN($D4)),0),300),0) -> 0 | H6: =IF(VLOOKUP(Base_V1_Type_Ex,DB_Vehicles,5,FALSE)="BEV",MAX(IF(VLOOKUP(Base_V1_Type_Ex,DB_Vehicles,5,FALSE)="BEV",Reg_BEV_Const_Ex+Reg_BEV_Age_Coef_Ex*(COLUMN(H4)-COLUMN($D4))+Reg_BEV_Agesq_Coef_Ex*((COLUMN(H4)-COLUMN($D4))^2)+Reg_BEV_MSRP_Coef_Ex*Base_V1_MSRP_Modeled+Reg_BEV_Range_Coef_Ex*VLOOKUP(Base_V1_Type_Ex,DB_Vehicles,7,FALSE)+Reg_BEV_Mileage_Coef_Ex*Base_V1_VMT_Modeled*(COLUMN(H4)-COLUMN($D4)),0),300),0) -> 0 | I6: =IF(VLOOKUP(Base_V1_Type_Ex,DB_Vehicles,5,FALSE)="BEV",MAX(IF(VLOOKUP(Base_V1_Type_Ex,DB_Vehicles,5,FALSE)="BEV",Reg_BEV_Const_Ex+Reg_BEV_Age_Coef_Ex*(COLUMN(I4)-COLUMN($D4))+Reg_BEV_Agesq_Coef_Ex*((COLUMN(I4)-COLUMN($D4))^2)+Reg_BEV_MSRP_Coef_Ex*Base_V1_MSRP_Modeled+Reg_BEV_Range_Coef_Ex*VLOOKUP(Base_V1_Type_Ex,DB_Vehicles,7,FALSE)+Reg_BEV_Mileage_Coef_Ex*Base_V1_VMT_Modeled*(COLUMN(I4)-COLUMN($D4)),0),300),0) -> 0 | J6: =IF($H6-$I6=0,0,MAX((1-($H6-$I6)/$H6)*I6,300)) -> 0 | K6: =IF($H6-$I6=0,0,MAX((1-($H6-$I6)/$H6)*J6,300)) -> 0 | L6: 0 | M6: 0 | N6: 0 | O6: 0 | P6: 0 | Q6: 0 | R6: 0 | S6: 0 | T6: 0 | U6: 0 | V6: 0 | W6: 0 | X6: 0 | Y6: 0 | Z6: 0 | AA6: 0 | AB6: 0 | AC6: 0
B7: Fair Market Value - PHEV | D7: =IF(VLOOKUP(Base_V1_Type_Ex,DB_Vehicles,5,FALSE)="PHEV",Base_V1_MSRP_Modeled,0) -> 0 | E7: =IF(VLOOKUP(Base_V1_Type_Ex,DB_Vehicles,5,FALSE)="PHEV",MAX(IF(VLOOKUP(Base_V1_Type_Ex,DB_Vehicles,5,FALSE)="PHEV",Reg_PHEV_Const_Ex+Reg_PHEV_Age_Coef_Ex*(COLUMN(E4)-COLUMN($D4))+Reg_PHEV_Agesq_Coef_Ex*((COLUMN(E4)-COLUMN($D4))^2)+Reg_PHEV_MSRP_Coef_Ex*Base_V1_MSRP_Modeled+Reg_PHEV_Range_Coef_Ex*VLOOKUP(Base_V1_Type_Ex,DB_Vehicles,7,FALSE)+Reg_PHEV_Mileage_Coef_Ex*Base_V1_VMT_Modeled*(COLUMN(E4)-COLUMN($D4)),0),300),0) -> 0 | F7: =IF(VLOOKUP(Base_V1_Type_Ex,DB_Vehicles,5,FALSE)="PHEV",MAX(IF(VLOOKUP(Base_V1_Type_Ex,DB_Vehicles,5,FALSE)="PHEV",Reg_PHEV_Const_Ex+Reg_PHEV_Age_Coef_Ex*(COLUMN(F4)-COLUMN($D4))+Reg_PHEV_Agesq_Coef_Ex*((COLUMN(F4)-COLUMN($D4))^2)+Reg_PHEV_MSRP_Coef_Ex*Base_V1_MSRP_Modeled+Reg_PHEV_Range_Coef_Ex*VLOOKUP(Base_V1_Type_Ex,DB_Vehicles,7,FALSE)+Reg_PHEV_Mileage_Coef_Ex*Base_V1_VMT_Modeled*(COLUMN(F4)-COLUMN($D4)),0),300),0) -> 0 | G7: =IF(VLOOKUP(Base_V1_Type_Ex,DB_Vehicles,5,FALSE)="PHEV",MAX(IF(VLOOKUP(Base_V1_Type_Ex,DB_Vehicles,5,FALSE)="PHEV",Reg_PHEV_Const_Ex+Reg_PHEV_Age_Coef_Ex*(COLUMN(G4)-COLUMN($D4))+Reg_PHEV_Agesq_Coef_Ex*((COLUMN(G4)-COLUMN($D4))^2)+Reg_PHEV_MSRP_Coef_Ex*Base_V1_MSRP_Modeled+Reg_PHEV_Range_Coef_Ex*VLOOKUP(Base_V1_Type_Ex,DB_Vehicles,7,FALSE)+Reg_PHEV_Mileage_Coef_Ex*Base_V1_VMT_Modeled*(COLUMN(G4)-COLUMN($D4)),0),300),0) -> 0 | H7: =IF(VLOOKUP(Base_V1_Type_Ex,DB_Vehicles,5,FALSE)="PHEV",MAX(IF(VLOOKUP(Base_V1_Type_Ex,DB_Vehicles,5,FALSE)="PHEV",Reg_PHEV_Const_Ex+Reg_PHEV_Age_Coef_Ex*(COLUMN(H4)-COLUMN($D4))+Reg_PHEV_Agesq_Coef_Ex*((COLUMN(H4)-COLUMN($D4))^2)+Reg_PHEV_MSRP_Coef_Ex*Base_V1_MSRP_Modeled+Reg_PHEV_Range_Coef_Ex*VLOOKUP(Base_V1_Type_Ex,DB_Vehicles,7,FALSE)+Reg_PHEV_Mileage_Coef_Ex*Base_V1_VMT_Modeled*(COLUMN(H4)-COLUMN($D4)),0),300),0) -> 0 | I7: =IF(VLOOKUP(Base_V1_Type_Ex,DB_Vehicles,5,FALSE)="PHEV",MAX(IF(VLOOKUP(Base_V1_Type_Ex,DB_Vehicles,5,FALSE)="PHEV",Reg_PHEV_Const_Ex+Reg_PHEV_Age_Coef_Ex*(COLUMN(I4)-COLUMN($D4))+Reg_PHEV_Agesq_Coef_Ex*((COLUMN(I4)-COLUMN($D4))^2)+Reg_PHEV_MSRP_Coef_Ex*Base_V1_MSRP_Modeled+Reg_PHEV_Range_Coef_Ex*VLOOKUP(Base_V1_Type_Ex,DB_Vehicles,7,FALSE)+Reg_PHEV_Mileage_Coef_Ex*Base_V1_VMT_Modeled*(COLUMN(I4)-COLUMN($D4)),0),300),0) -> 0 | J7: =IF($H7-$I7=0,0,MAX((1-($H7-$I7)/$H7)*I7,300)) -> 0 | K7: 0 | L7: 0 | M7: 0 | N7: 0 | O7: 0 | P7: 0 | Q7: 0 | R7: 0 | S7: 0 | T7: 0 | U7: 0 | V7: 0 | W7: 0 | X7: 0 | Y7: 0 | Z7: 0 | AA7: 0 | AB7: 0 | AC7: 0
B8: Fair Market Value - ICE | D8: =IF(VLOOKUP(Base_V1_Type_Ex,DB_Vehicles,5,FALSE)="ICE",Base_V1_MSRP_Modeled,0) -> 16975 | E8: =IF(VLOOKUP(Base_V1_Type_Ex,DB_Vehicles,5,FALSE)="ICE",MAX(IF(VLOOKUP(Base_V1_Type_Ex,DB_Vehicles,5,FALSE)="ICE",Reg_ICE_Const_Ex+Reg_ICE_Age_Coef_Ex*(COLUMN(E4)-COLUMN($D4))+Reg_ICE_Agesq_Coef_Ex*(COLUMN(E4)-COLUMN($D4))^2+Reg_ICE_MSRP_Coef_Ex*Base_V1_MSRP_Modeled+Reg_ICE_MPG_Coef_Ex*VLOOKUP(Base_V1_Type_Ex,DB_Vehicles,10,FALSE)+Reg_ICE_Mileage_Coef_Ex*Base_V1_VMT_Modeled*(COLUMN(E4)-COLUMN($D4)),0),300),0) -> 14110.04692 | F8: =IF(VLOOKUP(Base_V1_Type_Ex,DB_Vehicles,5,FALSE)="ICE",MAX(IF(VLOOKUP(Base_V1_Type_Ex,DB_Vehicles,5,FALSE)="ICE",Reg_ICE_Const_Ex+Reg_ICE_Age_Coef_Ex*(COLUMN(F4)-COLUMN($D4))+Reg_ICE_Agesq_Coef_Ex*(COLUMN(F4)-COLUMN($D4))^2+Reg_ICE_MSRP_Coef_Ex*Base_V1_MSRP_Modeled+Reg_ICE_MPG_Coef_Ex*VLOOKUP(Base_V1_Type_Ex,DB_Vehicles,10,FALSE)+Reg_ICE_Mileage_Coef_Ex*Base_V1_VMT_Modeled*(COLUMN(F4)-COLUMN($D4)),0),300),0) -> 12527.06692 | G8: =IF(VLOOKUP(Base_V1_Type_Ex,DB_Vehicles,5,FALSE)="ICE",MAX(IF(VLOOKUP(Base_V1_Type_Ex,DB_Vehicles,5,FALSE)="ICE",Reg_ICE_Const_Ex+Reg_ICE_Age_Coef_Ex*(COLUMN(G4)-COLUMN($D4))+Reg_ICE_Agesq_Coef_Ex*(COLUMN(G4)-COLUMN($D4))^2+Reg_ICE_MSRP_Coef_Ex*Base_V1_MSRP_Modeled+Reg_ICE_MPG_Coef_Ex*VLOOKUP(Base_V1_Type_Ex,DB_Vehicles,10,FALSE)+Reg_ICE_Mileage_Coef_Ex*Base_V1_VMT_Modeled*(COLUMN(G4)-COLUMN($D4)),0),300),0) -> 10626.38692 | H8: =IF(VLOOKUP(Base_V1_Type_Ex,DB_Vehicles,5,FALSE)="ICE",MAX(IF(VLOOKUP(Base_V1_Type_Ex,DB_Vehicles,5,FALSE)="ICE",Reg_ICE_Const_Ex+Reg_ICE_Age_Coef_Ex*(COLUMN(H4)-COLUMN($D4))+Reg_ICE_Agesq_Coef_Ex*(COLUMN(H4)-COLUMN($D4))^2+Reg_ICE_MSRP_Coef_Ex*Base_V1_MSRP_Modeled+Reg_ICE_MPG_Coef_Ex*VLOOKUP(Base_V1_Type_Ex,DB_Vehicles,10,FALSE)+Reg_ICE_Mileage_Coef_Ex*Base_V1_VMT_Modeled*(COLUMN(H4)-COLUMN($D4)),0),300),0) -> 8408.006925 | I8: =IF(VLOOKUP(Base_V1_Type_Ex,DB_Vehicles,5,FALSE)="ICE",MAX(IF(VLOOKUP(Base_V1_Type_Ex,DB_Vehicles,5,FALSE)="ICE",Reg_ICE_Const_Ex+Reg_ICE_Age_Coef_Ex*(COLUMN(I4)-COLUMN($D4))+Reg_ICE_Agesq_Coef_Ex*(COLUMN(I4)-COLUMN($D4))^2+Reg_ICE_MSRP_Coef_Ex*Base_V1_MSRP_Modeled+Reg_ICE_MPG_Coef_Ex*VLOOKUP(Base_V1_Type_Ex,DB_Vehicles,10,FALSE)+Reg_ICE_Mileage_Coef_Ex*Base_V1_VMT_Modeled*(COLUMN(I4)-COLUMN($D4)),0),300),0) -> 5871.926925 | J8: =IF($H8-$I8=0,0,MAX((1-($H8-$I8)/$H8)*I8,300)) -> 4100.796553 | K8: 2863.88652 | L8: 2000.061669 | M8: 1396.789521 | N8: 975.4804048 | O8: 681.2493977 | P8: 475.76634 | Q8: 332.2624739 | R8: 300 | S8: 300 | T8: 300 | U8: 300 | V8: 300 | W8: 300 | X8: 300 | Y8: 300 | Z8: 300 | AA8: 300 | AB8: 300 | AC8: 300
B10: Capital and Financing Costs
B11: Cash
B12: Cash Payment | D12: =IF(AND(Base_V1_Has_Cash_Purchase_Ex=TRUE,Base_V1_Has_Loan_Ex=FALSE,Base_V1_Has_Lease_Ex=FALSE,COLUMN(D4)-COLUMN($D4)=0),-(Base_V1_Base_Price_Ex-IF(Base_V1_Tax_Incentives_Monetized="Yes",Base_V1_Federal_Tax_Incentives_Modeled+IF(Base_V1_State_Tax_Incentive_Cap_Modeled=0,Base_V1_State_Tax_Incentives_Modeled,MIN(Base_V1_State_Tax_Incentive_Cap_Modeled,Base_V1_State_Tax_Incentives_Modeled*Base_V1_Num_Vehicles_Modeled)/Base_V1_Num_Vehicles_Modeled),0)-Base_V1_Other_Incentives_Modeled),IF(AND(Base_V1_Has_Cash_Purchase_Ex=TRUE,OR(Base_V1_Has_Loan_Ex=TRUE,Base_V1_Has_Lease_Ex=TRUE),COLUMN(D4)-COLUMN($D4)=Base_V1_Lease_Term_Modeled),IF(ISERROR(FIND("Tax",_Base_V1_Ownership_Structure,1)),-SUM(D6:D8),-Base_V1_Lease_Residual_Price_Modeled),0)) -> -18224 | E12: 0 | F12: 0 | G12: 0 | H12: 0 | I12: 0 | J12: 0 | K12: 0 | L12: 0 | M12: 0 | N12: 0 | O12: 0 | P12: 0 | Q12: 0 | R12: 0 | S12: 0 | T12: 0 | U12: 0 | V12: 0 | W12: 0 | X12: 0 | Y12: 0 | Z12: 0 | AA12: 0 | AB12: 0 | AC12: 0
B13: Lease
B14: Down Payment | D14: =IF(Base_V1_Has_Lease_Ex=TRUE,-Base_V1_Down_Payment_Modeled,0) -> 0
B15: Acquisition Fee | D15: =IF(Base_V1_Has_Lease_Ex=TRUE,-Base_V1_Lease_Acquisition_Fee_Modeled,0) -> 0
B16: Disposition Charge | D16: =IF(AND(Base_V1_Has_Lease_Ex=TRUE,((COLUMN(D4)-COLUMN($D4))=Base_V1_Lease_Term_Modeled)),-Base_V1_Lease_Disposition_Fee_Modeled,0) -> 0 | E16: 0 | F16: 0 | G16: 0 | H16: 0 | I16: 0 | J16: 0 | K16: 0 | L16: 0 | M16: 0 | N16: 0 | O16: 0 | P16: 0 | Q16: 0 | R16: 0 | S16: 0 | T16: 0 | U16: 0 | V16: 0 | W16: 0 | X16: 0 | Y16: 0 | Z16: 0 | AA16: 0 | AB16: 0 | AC16: 0
B17: Lease Payments | E17: =IF(Base_V1_Has_Lease_Ex=TRUE,IF((COLUMN(E4)-COLUMN($E4))<Base_V1_Lease_Term_Modeled,-PMT(Base_V1_Lease_APR_Modeled/12,Base_V1_Lease_Term_Modeled*12,-(Base_V1_Base_Price_Ex-IF(Base_V1_Tax_Incentives_Monetized="Yes",Base_V1_Federal_Tax_Incentives_Modeled+IF(Base_V1_State_Tax_Incentive_Cap_Modeled=0,Base_V1_State_Tax_Incentives_Modeled,MIN(Base_V1_State_Tax_Incentive_Cap_Modeled,Base_V1_State_Tax_Incentives_Modeled*Base_V1_Num_Vehicles_Modeled)/Base_V1_Num_Vehicles_Modeled),0)-Base_V1_Other_Incentives_Modeled-Base_V1_Down_Payment_Modeled)+Base_V1_Lease_Residual_Price_Modeled,0)*12,0),0) -> 0 | F17: 0 | G17: 0 | H17: 0 | I17: 0 | J17: 0 | K17: 0 | L17: 0 | M17: 0 | N17: 0 | O17: 0 | P17: 0 | Q17: 0 | R17: 0 | S17: 0 | T17: 0 | U17: 0 | V17: 0 | W17: 0 | X17: 0 | Y17: 0 | Z17: 0 | AA17: 0 | AB17: 0 | AC17: 0
B18: Principal Payments | E18: =IF(Base_V1_Has_Lease_Ex=TRUE,IF((COLUMN(E4)-COLUMN($E4))<Base_V1_Lease_Term_Modeled,-PPMT(Base_V1_Lease_APR_Modeled/12,(COLUMN(E4)-COLUMN($D4))*12,Base_V1_Lease_Term_Modeled*12,-(Base_V1_Base_Price_Ex-IF(Base_V1_Tax_Incentives_Monetized="Yes",Base_V1_Federal_Tax_Incentives_Modeled+IF(Base_V1_State_Tax_Incentive_Cap_Modeled=0,Base_V1_State_Tax_Incentives_Modeled,MIN(Base_V1_State_Tax_Incentive_Cap_Modeled,Base_V1_State_Tax_Incentives_Modeled*Base_V1_Num_Vehicles_Modeled)/Base_V1_Num_Vehicles_Modeled),0)-Base_V1_Other_Incentives_Modeled-Base_V1_Down_Payment_Modeled)+Base_V1_Lease_Residual_Price_Modeled,0)*12,0),0) -> 0 | F18: 0 | G18: 0 | H18: 0 | I18: 0 | J18: 0 | K18: 0 | L18: 0 | M18: 0 | N18: 0 | O18: 0 | P18: 0 | Q18: 0 | R18: 0 | S18: 0 | T18: 0 | U18: 0 | V18: 0 | W18: 0 | X18: 0 | Y18: 0 | Z18: 0 | AA18: 0 | AB18: 0 | AC18: 0
B19: Interest Payments | E19: =IF(Base_V1_Has_Lease_Ex=TRUE,IF((COLUMN(E4)-COLUMN($E4))<Base_V1_Lease_Term_Modeled,-IPMT(Base_V1_Lease_APR_Modeled/12,(COLUMN(E4)-COLUMN($D4))*12,Base_V1_Lease_Term_Modeled*12,-(Base_V1_Base_Price_Ex-IF(Base_V1_Tax_Incentives_Monetized="Yes",Base_V1_Federal_Tax_Incentives_Modeled+IF(Base_V1_State_Tax_Incentive_Cap_Modeled=0,Base_V1_State_Tax_Incentives_Modeled,MIN(Base_V1_State_Tax_Incentive_Cap_Modeled,Base_V1_State_Tax_Incentives_Modeled*Base_V1_Num_Vehicles_Modeled)/Base_V1_Num_Vehicles_Modeled),0)-Base_V1_Other_Incentives_Modeled-Base_V1_Down_Payment_Modeled)+Base_V1_Lease_Residual_Price_Modeled,0)*12,0),0) -> 0 | F19: 0 | G19: 0 | H19: 0 | I19: 0 | J19: 0 | K19: 0 | L19: 0 | M19: 0 | N19: 0 | O19: 0 | P19: 0 | Q19: 0 | R19: 0 | S19: 0 | T19: 0 | U19: 0 | V19: 0 | W19: 0 | X19: 0 | Y19: 0 | Z19: 0 | AA19: 0 | AB19: 0 | AC19: 0
B20: TRAC Value Adjustment | E20: =IF(ISERROR(FIND("TRAC",_Base_V1_Ownership_Structure,1)),0,IF(Base_V1_Has_Loan_Ex=TRUE,0,IF((COLUMN(E4)-COLUMN($D4))=Base_V1_Lease_Term_Modeled,SUM(E6:E8)-Base_V1_Lease_Residual_Price_Modeled,0))) -> 0 | F20: 0 | G20: 0 | H20: 0 | I20: 0 | J20: 0 | K20: 0 | L20: 0 | M20: 0 | N20: 0 | O20: 0 | P20: 0 | Q20: 0 | R20: 0 | S20: 0 | T20: 0 | U20: 0 | V20: 0 | W20: 0 | X20: 0 | Y20: 0 | Z20: 0 | AA20: 0 | AB20: 0 | AC20: 0
B21: FMV Mileage Adjustment | E21: =MIN(0,MAX(-Base_V1_Lease_Residual_Price_Modeled+SUM(E6:E8),IF(IFERROR(IF(FIND("FMV",_Base_V1_Ownership_Structure,1)>0,TRUE,FALSE),FALSE),IF((COLUMN(E4)-COLUMN($D4))=Base_V1_Lease_Term_Modeled,(Base_V1_Lease_Mileage_Inc_Modeled-Base_V1_VMT_Modeled)*(COLUMN(E4)-COLUMN($D4))*Base_V1_Lease_Mileage_Cost_Modeled,0),0))) -> 0 | F21: 0 | G21: 0 | H21: 0 | I21: 0 | J21: 0 | K21: 0 | L21: 0 | M21: 0 | N21: 0 | O21: 0 | P21: 0 | Q21: 0 | R21: 0 | S21: 0 | T21: 0 | U21: 0 | V21: 0 | W21: 0 | X21: 0 | Y21: 0 | Z21: 0 | AA21: 0 | AB21: 0 | AC21: 0
B22: Subtotal Lease Cash Flows | D22: =SUM(D14:D17)+SUM(D20:D21) -> 0 | E22: =SUM(E14:E17)+SUM(E20:E21) -> 0 | F22: 0 | G22: 0 | H22: 0 | I22: 0 | J22: 0 | K22: 0 | L22: 0 | M22: 0 | N22: 0 | O22: 0 | P22: 0 | Q22: 0 | R22: 0 | S22: 0 | T22: 0 | U22: 0 | V22: 0 | W22: 0 | X22: 0 | Y22: 0 | Z22: 0 | AA22: 0 | AB22: 0 | AC22: 0
B23: Loan
B24: Down Payment | D24: =IF(AND(Base_V1_Has_Loan_Ex=TRUE,Base_V1_Has_Lease_Ex=FALSE),-Base_V1_Down_Payment_Modeled,0) -> 0
B25: Loan Payments | E25: =IF(Base_V1_Has_Loan_Ex=TRUE,IF(AND((COLUMN(E4)-COLUMN($E4))<Base_V1_Loan_Term_Modeled+Base_V1_Lease_Term_Modeled,(COLUMN(E4)-COLUMN($E4))>=Base_V1_Lease_Term_Modeled),PMT(Base_V1_Loan_APR_Modeled/12,Base_V1_Loan_Term_Modeled*12,IF(Base_V1_Has_Lease_Ex=TRUE,SUM(OFFSET($D4,0,Comp_V1_Lease_Term_Modeled,3,1)),Base_V1_Base_Price_Ex-IF(Base_V1_Tax_Incentives_Monetized="Yes",Base_V1_Federal_Tax_Incentives_Modeled+IF(Base_V1_State_Tax_Incentive_Cap_Modeled=0,Base_V1_State_Tax_Incentives_Modeled,MIN(Base_V1_State_Tax_Incentive_Cap_Modeled,Base_V1_State_Tax_Incentives_Modeled*Base_V1_Num_Vehicles_Modeled)/Base_V1_Num_Vehicles_Modeled),0)-Base_V1_Other_Incentives_Modeled-Base_V1_Down_Payment_Modeled),0)*12,0),0) -> 0 | F25: 0 | G25: 0 | H25: 0 | I25: 0 | J25: 0 | K25: 0 | L25: 0 | M25: 0 | N25: 0 | O25: 0 | P25: 0 | Q25: 0 | R25: 0 | S25: 0 | T25: 0 | U25: 0 | V25: 0 | W25: 0 | X25: 0 | Y25: 0 | Z25: 0 | AA25: 0 | AB25: 0 | AC25: 0
B26: Principal Payments | E26: =IF(Base_V1_Has_Loan_Ex=TRUE,IF(AND((COLUMN(E4)-COLUMN($E4))<Base_V1_Loan_Term_Modeled+Base_V1_Lease_Term_Modeled,(COLUMN(E4)-COLUMN($E4))>=Base_V1_Lease_Term_Modeled),PPMT(Base_V1_Loan_APR_Modeled/12,IF(Base_V1_Has_Lease_Ex=TRUE,(COLUMN(E4)-COLUMN($D4)-Base_V1_Lease_Term_Modeled)*12,(COLUMN(E4)-COLUMN($D4))*12),Base_V1_Loan_Term_Modeled*12,IF(Base_V1_Has_Lease_Ex=TRUE,SUM(OFFSET($D4,0,Comp_V1_Lease_Term_Modeled,3,1)),Base_V1_Base_Price_Ex-IF(Base_V1_Tax_Incentives_Monetized="Yes",Base_V1_Federal_Tax_Incentives_Modeled+IF(Base_V1_State_Tax_Incentive_Cap_Modeled=0,Base_V1_State_Tax_Incentives_Modeled,MIN(Base_V1_State_Tax_Incentive_Cap_Modeled,Base_V1_State_Tax_Incentives_Modeled*Base_V1_Num_Vehicles_Modeled)/Base_V1_Num_Vehicles_Modeled),0)-Base_V1_Other_Incentives_Modeled-Base_V1_Down_Payment_Modeled),0)*12,0),0) -> 0 | F26: 0 | G26: 0 | H26: 0 | I26: 0 | J26: 0 | K26: 0 | L26: 0 | M26: 0 | N26: 0 | O26: 0 | P26: 0 | Q26: 0 | R26: 0 | S26: 0 | T26: 0 | U26: 0 | V26: 0 | W26: 0 | X26: 0 | Y26: 0 | Z26: 0 | AA26: 0 | AB26: 0 | AC26: 0
B27: Interest Payments | E27: =IF(Base_V1_Has_Loan_Ex=TRUE,IF(AND((COLUMN(E4)-COLUMN($E4))<Base_V1_Loan_Term_Modeled+Base_V1_Lease_Term_Modeled,(COLUMN(E4)-COLUMN($E4))>=Base_V1_Lease_Term_Modeled),IPMT(Base_V1_Loan_APR_Modeled/12,IF(Base_V1_Has_Lease_Ex=TRUE,(COLUMN(E4)-COLUMN($D4)-Base_V1_Lease_Term)*12,(COLUMN(E4)-COLUMN($D4))*12),Base_V1_Loan_Term_Modeled*12,IF(Base_V1_Has_Lease_Ex=TRUE,SUM(OFFSET($D4,0,Comp_V1_Lease_Term_Modeled,3,1)),Base_V1_Base_Price_Ex-IF(Base_V1_Tax_Incentives_Monetized="Yes",Base_V1_Federal_Tax_Incentives_Modeled+IF(Base_V1_State_Tax_Incentive_Cap_Modeled=0,Base_V1_State_Tax_Incentives_Modeled,MIN(Base_V1_State_Tax_Incentive_Cap_Modeled,Base_V1_State_Tax_Incentives_Modeled*Base_V1_Num_Vehicles_Modeled)/Base_V1_Num_Vehicles_Modeled),0)-Base_V1_Other_Incentives_Modeled-Base_V1_Down_Payment_Modeled),0)*12,0),0) -> 0 | F27: 0 | G27: 0 | H27: 0 | I27: 0 | J27: 0 | K27: 0 | L27: 0 | M27: 0 | N27: 0 | O27: 0 | P27: 0 | Q27: 0 | R27: 0 | S27: 0 | T27: 0 | U27: 0 | V27: 0 | W27: 0 | X27: 0 | Y27: 0 | Z27: 0 | AA27: 0 | AB27: 0 | AC27: 0
B28: Subtotal Loan Cash Flows | D28: =SUM(D24:D25) -> 0 | E28: =SUM(E24:E25) -> 0 | F28: 0 | G28: 0 | H28: 0 | I28: 0 | J28: 0 | K28: 0 | L28: 0 | M28: 0 | N28: 0 | O28: 0 | P28: 0 | Q28: 0 | R28: 0 | S28: 0 | T28: 0 | U28: 0 | V28: 0 | W28: 0 | X28: 0 | Y28: 0 | Z28: 0 | AA28: 0 | AB28: 0 | AC28: 0
B29: Terminal Value | E29: =IF(OR(Base_V1_Has_Loan_Ex=TRUE,Base_V1_Has_Cash_Purchase_Ex=TRUE),IF((COLUMN(E4)-COLUMN($D4))=Base_V1_Years_Usage_Modeled,SUM(E6:E8),0),0) -> 0 | F29: 0 | G29: 0 | H29: 0 | I29: 0 | J29: 0 | K29: 2863.88652 | L29: 0 | M29: 0 | N29: 0 | O29: 0 | P29: 0 | Q29: 0 | R29: 0 | S29: 0 | T29: 0 | U29: 0 | V29: 0 | W29: 0 | X29: 0 | Y29: 0 | Z29: 0 | AA29: 0 | AB29: 0 | AC29: 0
B31: Total Capital and Financing Costs | D31: =D12+D22+D28+D29 -> -18224 | E31: =E12+E22+E28+E29 -> 0 | F31: =F12+F22+F28+F29 -> 0 | G31: 0 | H31: 0 | I31: 0 | J31: 0 | K31: 2863.88652 | L31: 0 | M31: 0 | N31: 0 | O31: 0 | P31: 0 | Q31: 0 | R31: 0 | S31: 0 | T31: 0 | U31: 0 | V31: 0 | W31: 0 | X31: 0 | Y31: 0 | Z31: 0 | AA31: 0 | AB31: 0 | AC31: 0
B33: Fuel and Operating Costs
B34: Fuel Cost | E34: =IF(COLUMN(E4)-COLUMN($E4)<Base_V1_Years_Usage_Modeled,-((Base_V1_Gas_Usage_Ex*Gasoline_Price_Modeled*Data!C$142)+(Base_V1_Electricity_Usage_Ex*Electricity_Price_Modeled*Data!C$144)),0) -> -715.0291667 | F34: =IF(COLUMN(F4)-COLUMN($E4)<Base_V1_Years_Usage_Modeled,-((Base_V1_Gas_Usage_Ex*Gasoline_Price_Modeled*Data!D$142)+(Base_V1_Electricity_Usage_Ex*Electricity_Price_Modeled*Data!D$144)),0) -> -778.5934526 | G34: =IF(COLUMN(G4)-COLUMN($E4)<Base_V1_Years_Usage_Modeled,-((Base_V1_Gas_Usage_Ex*Gasoline_Price_Modeled*Data!E$142)+(Base_V1_Electricity_Usage_Ex*Electricity_Price_Modeled*Data!E$144)),0) -> -835.7857689 | H34: =IF(COLUMN(H4)-COLUMN($E4)<Base_V1_Years_Usage_Modeled,-((Base_V1_Gas_Usage_Ex*Gasoline_Price_Modeled*Data!F$142)+(Base_V1_Electricity_Usage_Ex*Electricity_Price_Modeled*Data!F$144)),0) -> -919.7618528 | I34: =IF(COLUMN(I4)-COLUMN($E4)<Base_V1_Years_Usage_Modeled,-((Base_V1_Gas_Usage_Ex*Gasoline_Price_Modeled*Data!G$142)+(Base_V1_Electricity_Usage_Ex*Electricity_Price_Modeled*Data!G$144)),0) -> -965.9305401 | J34: =IF(COLUMN(J4)-COLUMN($E4)<Base_V1_Years_Usage_Modeled,-((Base_V1_Gas_Usage_Ex*Gasoline_Price_Modeled*Data!H$142)+(Base_V1_Electricity_Usage_Ex*Electricity_Price_Modeled*Data!H$144)),0) -> -996.5222717 | K34: =IF(COLUMN(K4)-COLUMN($E4)<Base_V1_Years_Usage_Modeled,-((Base_V1_Gas_Usage_Ex*Gasoline_Price_Modeled*Data!I$142)+(Base_V1_Electricity_Usage_Ex*Electricity_Price_Modeled*Data!I$144)),0) -> -1011.78071 | L34: =IF(COLUMN(L4)-COLUMN($E4)<Base_V1_Years_Usage_Modeled,-((Base_V1_Gas_Usage_Ex*Gasoline_Price_Modeled*Data!J$142)+(Base_V1_Electricity_Usage_Ex*Electricity_Price_Modeled*Data!J$144)),0) -> 0 | M34: =IF(COLUMN(M4)-COLUMN($E4)<Base_V1_Years_Usage_Modeled,-((Base_V1_Gas_Usage_Ex*Gasoline_Price_Modeled*Data!K$142)+(Base_V1_Electricity_Usage_Ex*Electricity_Price_Modeled*Data!K$144)),0) -> 0 | N34: =IF(COLUMN(N4)-COLUMN($E4)<Base_V1_Years_Usage_Modeled,-((Base_V1_Gas_Usage_Ex*Gasoline_Price_Modeled*Data!L$142)+(Base_V1_Electricity_Usage_Ex*Electricity_Price_Modeled*Data!L$144)),0) -> 0 | O34: =IF(COLUMN(O4)-COLUMN($E4)<Base_V1_Years_Usage_Modeled,-((Base_V1_Gas_Usage_Ex*Gasoline_Price_Modeled*Data!M$142)+(Base_V1_Electricity_Usage_Ex*Electricity_Price_Modeled*Data!M$144)),0) -> 0 | P34: =IF(COLUMN(P4)-COLUMN($E4)<Base_V1_Years_Usage_Modeled,-((Base_V1_Gas_Usage_Ex*Gasoline_Price_Modeled*Data!N$142)+(Base_V1_Electricity_Usage_Ex*Electricity_Price_Modeled*Data!N$144)),0) -> 0 | Q34: =IF(COLUMN(Q4)-COLUMN($E4)<Base_V1_Years_Usage_Modeled,-((Base_V1_Gas_Usage_Ex*Gasoline_Price_Modeled*Data!O$142)+(Base_V1_Electricity_Usage_Ex*Electricity_Price_Modeled*Data!O$144)),0) -> 0 | R34: =IF(COLUMN(R4)-COLUMN($E4)<Base_V1_Years_Usage_Modeled,-((Base_V1_Gas_Usage_Ex*Gasoline_Price_Modeled*Data!P$142)+(Base_V1_Electricity_Usage_Ex*Electricity_Price_Modeled*Data!P$144)),0) -> 0 | S34: =IF(COLUMN(S4)-COLUMN($E4)<Base_V1_Years_Usage_Modeled,-((Base_V1_Gas_Usage_Ex*Gasoline_Price_Modeled*Data!Q$142)+(Base_V1_Electricity_Usage_Ex*Electricity_Price_Modeled*Data!Q$144)),0) -> 0 | T34: =IF(COLUMN(T4)-COLUMN($E4)<Base_V1_Years_Usage_Modeled,-((Base_V1_Gas_Usage_Ex*Gasoline_Price_Modeled*Data!R$142)+(Base_V1_Electricity_Usage_Ex*Electricity_Price_Modeled*Data!R$144)),0) -> 0 | U34: =IF(COLUMN(U4)-COLUMN($E4)<Base_V1_Years_Usage_Modeled,-((Base_V1_Gas_Usage_Ex*Gasoline_Price_Modeled*Data!S$142)+(Base_V1_Electricity_Usage_Ex*Electricity_Price_Modeled*Data!S$144)),0) -> 0 | V34: =IF(COLUMN(V4)-COLUMN($E4)<Base_V1_Years_Usage_Modeled,-((Base_V1_Gas_Usage_Ex*Gasoline_Price_Modeled*Data!T$142)+(Base_V1_Electricity_Usage_Ex*Electricity_Price_Modeled*Data!T$144)),0) -> 0 | W34: =IF(COLUMN(W4)-COLUMN($E4)<Base_V1_Years_Usage_Modeled,-((Base_V1_Gas_Usage_Ex*Gasoline_Price_Modeled*Data!U$142)+(Base_V1_Electricity_Usage_Ex*Electricity_Price_Modeled*Data!U$144)),0) -> 0 | X34: =IF(COLUMN(X4)-COLUMN($E4)<Base_V1_Years_Usage_Modeled,-((Base_V1_Gas_Usage_Ex*Gasoline_Price_Modeled*Data!V$142)+(Base_V1_Electricity_Usage_Ex*Electricity_Price_Modeled*Data!V$144)),0) -> 0 | Y34: =IF(COLUMN(Y4)-COLUMN($E4)<Base_V1_Years_Usage_Modeled,-((Base_V1_Gas_Usage_Ex*Gasoline_Price_Modeled*Data!W$142)+(Base_V1_Electricity_Usage_Ex*Electricity_Price_Modeled*Data!W$144)),0) -> 0 | Z34: =IF(COLUMN(Z4)-COLUMN($E4)<Base_V1_Years_Usage_Modeled,-((Base_V1_Gas_Usage_Ex*Gasoline_Price_Modeled*Data!X$142)+(Base_V1_Electricity_Usage_Ex*Electricity_Price_Modeled*Data!X$144)),0) -> 0 | AA34: =IF(COLUMN(AA4)-COLUMN($E4)<Base_V1_Years_Usage_Modeled,-((Base_V1_Gas_Usage_Ex*Gasoline_Price_Modeled*Data!Y$142)+(Base_V1_Electricity_Usage_Ex*Electricity_Price_Modeled*Data!Y$144)),0) -> 0 | AB34: =IF(COLUMN(AB4)-COLUMN($E4)<Base_V1_Years_Usage_Modeled,-((Base_V1_Gas_Usage_Ex*Gasoline_Price_Modeled*Data!Z$142)+(Base_V1_Electricity_Usage_Ex*Electricity_Price_Modeled*Data!Z$144)),0) -> 0 | AC34: =IF(COLUMN(AC4)-COLUMN($E4)<Base_V1_Years_Usage_Modeled,-((Base_V1_Gas_Usage_Ex*Gasoline_Price_Modeled*Data!AA$142)+(Base_V1_Electricity_Usage_Ex*Electricity_Price_Modeled*Data!AA$144)),0) -> 0
B35: Maintenance and Repair Cost | E35: =-IF(_Base_V1_Maint_Repair_Cost_Use_Default="Yes",IF(COLUMN(E4)-COLUMN($E4)<Base_V1_Years_Usage_Modeled,VLOOKUP(_Base_V1_Vehicle_Drivetrain,DB_Maint_Repair_Costs[],COLUMN(E4)-COLUMN($E4)+2,FALSE)*Base_V1_VMT_Modeled,0),IF(AND(COLUMN(E4)-COLUMN($E4)<Base_V1_Years_Usage_Modeled,COLUMN(E4)-COLUMN($E4)<5),Base_V1_Maint_Repair_Cost_Year_1_Modeled*Base_V1_VMT_Modeled,IF(AND(COLUMN(E4)-COLUMN($E4)<Base_V1_Years_Usage_Modeled,COLUMN(E4)-COLUMN($E4)>=5),Base_V1_Maint_Repair_Cost_Year_5_Modeled*Base_V1_VMT_Modeled,0)))*Data!E$150 -> -800 | F35: =-IF(_Base_V1_Maint_Repair_Cost_Use_Default="Yes",IF(COLUMN(F4)-COLUMN($E4)<Base_V1_Years_Usage_Modeled,VLOOKUP(_Base_V1_Vehicle_Drivetrain,DB_Maint_Repair_Costs[],COLUMN(F4)-COLUMN($E4)+2,FALSE)*Base_V1_VMT_Modeled,0),IF(AND(COLUMN(F4)-COLUMN($E4)<Base_V1_Years_Usage_Modeled,COLUMN(F4)-COLUMN($E4)<5),Base_V1_Maint_Repair_Cost_Year_1_Modeled*Base_V1_VMT_Modeled,IF(AND(COLUMN(F4)-COLUMN($E4)<Base_V1_Years_Usage_Modeled,COLUMN(F4)-COLUMN($E4)>=5),Base_V1_Maint_Repair_Cost_Year_5_Modeled*Base_V1_VMT_Modeled,0)))*Data!F$150 -> -816 | G35: =-IF(_Base_V1_Maint_Repair_Cost_Use_Default="Yes",IF(COLUMN(G4)-COLUMN($E4)<Base_V1_Years_Usage_Modeled,VLOOKUP(_Base_V1_Vehicle_Drivetrain,DB_Maint_Repair_Costs[],COLUMN(G4)-COLUMN($E4)+2,FALSE)*Base_V1_VMT_Modeled,0),IF(AND(COLUMN(G4)-COLUMN($E4)<Base_V1_Years_Usage_Modeled,COLUMN(G4)-COLUMN($E4)<5),Base_V1_Maint_Repair_Cost_Year_1_Modeled*Base_V1_VMT_Modeled,IF(AND(COLUMN(G4)-COLUMN($E4)<Base_V1_Years_Usage_Modeled,COLUMN(G4)-COLUMN($E4)>=5),Base_V1_Maint_Repair_Cost_Year_5_Modeled*Base_V1_VMT_Modeled,0)))*Data!G$150 -> -832.32 | H35: =-IF(_Base_V1_Maint_Repair_Cost_Use_Default="Yes",IF(COLUMN(H4)-COLUMN($E4)<Base_V1_Years_Usage_Modeled,VLOOKUP(_Base_V1_Vehicle_Drivetrain,DB_Maint_Repair_Costs[],COLUMN(H4)-COLUMN($E4)+2,FALSE)*Base_V1_VMT_Modeled,0),IF(AND(COLUMN(H4)-COLUMN($E4)<Base_V1_Years_Usage_Modeled,COLUMN(H4)-COLUMN($E4)<5),Base_V1_Maint_Repair_Cost_Year_1_Modeled*Base_V1_VMT_Modeled,IF(AND(COLUMN(H4)-COLUMN($E4)<Base_V1_Years_Usage_Modeled,COLUMN(H4)-COLUMN($E4)>=5),Base_V1_Maint_Repair_Cost_Year_5_Modeled*Base_V1_VMT_Modeled,0)))*Data!H$150 -> -848.9664 | I35: =-IF(_Base_V1_Maint_Repair_Cost_Use_Default="Yes",IF(COLUMN(I4)-COLUMN($E4)<Base_V1_Years_Usage_Modeled,VLOOKUP(_Base_V1_Vehicle_Drivetrain,DB_Maint_Repair_Costs[],COLUMN(I4)-COLUMN($E4)+2,FALSE)*Base_V1_VMT_Modeled,0),IF(AND(COLUMN(I4)-COLUMN($E4)<Base_V1_Years_Usage_Modeled,COLUMN(I4)-COLUMN($E4)<5),Base_V1_Maint_Repair_Cost_Year_1_Modeled*Base_V1_VMT_Modeled,IF(AND(COLUMN(I4)-COLUMN($E4)<Base_V1_Years_Usage_Modeled,COLUMN(I4)-COLUMN($E4)>=5),Base_V1_Maint_Repair_Cost_Year_5_Modeled*Base_V1_VMT_Modeled,0)))*Data!I$150 -> -865.945728 | J35: =-IF(_Base_V1_Maint_Repair_Cost_Use_Default="Yes",IF(COLUMN(J4)-COLUMN($E4)<Base_V1_Years_Usage_Modeled,VLOOKUP(_Base_V1_Vehicle_Drivetrain,DB_Maint_Repair_Costs[],COLUMN(J4)-COLUMN($E4)+2,FALSE)*Base_V1_VMT_Modeled,0),IF(AND(COLUMN(J4)-COLUMN($E4)<Base_V1_Years_Usage_Modeled,COLUMN(J4)-COLUMN($E4)<5),Base_V1_Maint_Repair_Cost_Year_1_Modeled*Base_V1_VMT_Modeled,IF(AND(COLUMN(J4)-COLUMN($E4)<Base_V1_Years_Usage_Modeled,COLUMN(J4)-COLUMN($E4)>=5),Base_V1_Maint_Repair_Cost_Year_5_Modeled*Base_V1_VMT_Modeled,0)))*Data!J$150 -> -1148.244035 | K35: =-IF(_Base_V1_Maint_Repair_Cost_Use_Default="Yes",IF(COLUMN(K4)-COLUMN($E4)<Base_V1_Years_Usage_Modeled,VLOOKUP(_Base_V1_Vehicle_Drivetrain,DB_Maint_Repair_Costs[],COLUMN(K4)-COLUMN($E4)+2,FALSE)*Base_V1_VMT_Modeled,0),IF(AND(COLUMN(K4)-COLUMN($E4)<Base_V1_Years_Usage_Modeled,COLUMN(K4)-COLUMN($E4)<5),Base_V1_Maint_Repair_Cost_Year_1_Modeled*Base_V1_VMT_Modeled,IF(AND(COLUMN(K4)-COLUMN($E4)<Base_V1_Years_Usage_Modeled,COLUMN(K4)-COLUMN($E4)>=5),Base_V1_Maint_Repair_Cost_Year_5_Modeled*Base_V1_VMT_Modeled,0)))*Data!K$150 -> -1171.208916 | L35: =-IF(_Base_V1_Maint_Repair_Cost_Use_Default="Yes",IF(COLUMN(L4)-COLUMN($E4)<Base_V1_Years_Usage_Modeled,VLOOKUP(_Base_V1_Vehicle_Drivetrain,DB_Maint_Repair_Costs[],COLUMN(L4)-COLUMN($E4)+2,FALSE)*Base_V1_VMT_Modeled,0),IF(AND(COLUMN(L4)-COLUMN($E4)<Base_V1_Years_Usage_Modeled,COLUMN(L4)-COLUMN($E4)<5),Base_V1_Maint_Repair_Cost_Year_1_Modeled*Base_V1_VMT_Modeled,IF(AND(COLUMN(L4)-COLUMN($E4)<Base_V1_Years_Usage_Modeled,COLUMN(L4)-COLUMN($E4)>=5),Base_V1_Maint_Repair_Cost_Year_5_Modeled*Base_V1_VMT_Modeled,0)))*Data!L$150 -> 0 | M35: =-IF(_Base_V1_Maint_Repair_Cost_Use_Default="Yes",IF(COLUMN(M4)-COLUMN($E4)<Base_V1_Years_Usage_Modeled,VLOOKUP(_Base_V1_Vehicle_Drivetrain,DB_Maint_Repair_Costs[],COLUMN(M4)-COLUMN($E4)+2,FALSE)*Base_V1_VMT_Modeled,0),IF(AND(COLUMN(M4)-COLUMN($E4)<Base_V1_Years_Usage_Modeled,COLUMN(M4)-COLUMN($E4)<5),Base_V1_Maint_Repair_Cost_Year_1_Modeled*Base_V1_VMT_Modeled,IF(AND(COLUMN(M4)-COLUMN($E4)<Base_V1_Years_Usage_Modeled,COLUMN(M4)-COLUMN($E4)>=5),Base_V1_Maint_Repair_Cost_Year_5_Modeled*Base_V1_VMT_Modeled,0)))*Data!M$150 -> 0 | N35: =-IF(_Base_V1_Maint_Repair_Cost_Use_Default="Yes",IF(COLUMN(N4)-COLUMN($E4)<Base_V1_Years_Usage_Modeled,VLOOKUP(_Base_V1_Vehicle_Drivetrain,DB_Maint_Repair_Costs[],COLUMN(N4)-COLUMN($E4)+2,FALSE)*Base_V1_VMT_Modeled,0),IF(AND(COLUMN(N4)-COLUMN($E4)<Base_V1_Years_Usage_Modeled,COLUMN(N4)-COLUMN($E4)<5),Base_V1_Maint_Repair_Cost_Year_1_Modeled*Base_V1_VMT_Modeled,IF(AND(COLUMN(N4)-COLUMN($E4)<Base_V1_Years_Usage_Modeled,COLUMN(N4)-COLUMN($E4)>=5),Base_V1_Maint_Repair_Cost_Year_5_Modeled*Base_V1_VMT_Modeled,0)))*Data!N$150 -> 0 | O35: =-IF(_Base_V1_Maint_Repair_Cost_Use_Default="Yes",IF(COLUMN(O4)-COLUMN($E4)<Base_V1_Years_Usage_Modeled,VLOOKUP(_Base_V1_Vehicle_Drivetrain,DB_Maint_Repair_Costs[],COLUMN(O4)-COLUMN($E4)+2,FALSE)*Base_V1_VMT_Modeled,0),IF(AND(COLUMN(O4)-COLUMN($E4)<Base_V1_Years_Usage_Modeled,COLUMN(O4)-COLUMN($E4)<5),Base_V1_Maint_Repair_Cost_Year_1_Modeled*Base_V1_VMT_Modeled,IF(AND(COLUMN(O4)-COLUMN($E4)<Base_V1_Years_Usage_Modeled,COLUMN(O4)-COLUMN($E4)>=5),Base_V1_Maint_Repair_Cost_Year_5_Modeled*Base_V1_VMT_Modeled,0)))*Data!O$150 -> 0 | P35: =-IF(_Base_V1_Maint_Repair_Cost_Use_Default="Yes",IF(COLUMN(P4)-COLUMN($E4)<Base_V1_Years_Usage_Modeled,VLOOKUP(_Base_V1_Vehicle_Drivetrain,DB_Maint_Repair_Costs[],COLUMN(P4)-COLUMN($E4)+2,FALSE)*Base_V1_VMT_Modeled,0),IF(AND(COLUMN(P4)-COLUMN($E4)<Base_V1_Years_Usage_Modeled,COLUMN(P4)-COLUMN($E4)<5),Base_V1_Maint_Repair_Cost_Year_1_Modeled*Base_V1_VMT_Modeled,IF(AND(COLUMN(P4)-COLUMN($E4)<Base_V1_Years_Usage_Modeled,COLUMN(P4)-COLUMN($E4)>=5),Base_V1_Maint_Repair_Cost_Year_5_Modeled*Base_V1_VMT_Modeled,0)))*Data!P$150 -> 0 | Q35: =-IF(_Base_V1_Maint_Repair_Cost_Use_Default="Yes",IF(COLUMN(Q4)-COLUMN($E4)<Base_V1_Years_Usage_Modeled,VLOOKUP(_Base_V1_Vehicle_Drivetrain,DB_Maint_Repair_Costs[],COLUMN(Q4)-COLUMN($E4)+2,FALSE)*Base_V1_VMT_Modeled,0),IF(AND(COLUMN(Q4)-COLUMN($E4)<Base_V1_Years_Usage_Modeled,COLUMN(Q4)-COLUMN($E4)<5),Base_V1_Maint_Repair_Cost_Year_1_Modeled*Base_V1_VMT_Modeled,IF(AND(COLUMN(Q4)-COLUMN($E4)<Base_V1_Years_Usage_Modeled,COLUMN(Q4)-COLUMN($E4)>=5),Base_V1_Maint_Repair_Cost_Year_5_Modeled*Base_V1_VMT_Modeled,0)))*Data!Q$150 -> 0 | R35: =-IF(_Base_V1_Maint_Repair_Cost_Use_Default="Yes",IF(COLUMN(R4)-COLUMN($E4)<Base_V1_Years_Usage_Modeled,VLOOKUP(_Base_V1_Vehicle_Drivetrain,DB_Maint_Repair_Costs[],COLUMN(R4)-COLUMN($E4)+2,FALSE)*Base_V1_VMT_Modeled,0),IF(AND(COLUMN(R4)-COLUMN($E4)<Base_V1_Years_Usage_Modeled,COLUMN(R4)-COLUMN($E4)<5),Base_V1_Maint_Repair_Cost_Year_1_Modeled*Base_V1_VMT_Modeled,IF(AND(COLUMN(R4)-COLUMN($E4)<Base_V1_Years_Usage_Modeled,COLUMN(R4)-COLUMN($E4)>=5),Base_V1_Maint_Repair_Cost_Year_5_Modeled*Base_V1_VMT_Modeled,0)))*Data!R$150 -> 0 | S35: =-IF(_Base_V1_Maint_Repair_Cost_Use_Default="Yes",IF(COLUMN(S4)-COLUMN($E4)<Base_V1_Years_Usage_Modeled,VLOOKUP(_Base_V1_Vehicle_Drivetrain,DB_Maint_Repair_Costs[],COLUMN(S4)-COLUMN($E4)+2,FALSE)*Base_V1_VMT_Modeled,0),IF(AND(COLUMN(S4)-COLUMN($E4)<Base_V1_Years_Usage_Modeled,COLUMN(S4)-COLUMN($E4)<5),Base_V1_Maint_Repair_Cost_Year_1_Modeled*Base_V1_VMT_Modeled,IF(AND(COLUMN(S4)-COLUMN($E4)<Base_V1_Years_Usage_Modeled,COLUMN(S4)-COLUMN($E4)>=5),Base_V1_Maint_Repair_Cost_Year_5_Modeled*Base_V1_VMT_Modeled,0)))*Data!S$150 -> 0 | T35: =-IF(_Base_V1_Maint_Repair_Cost_Use_Default="Yes",IF(COLUMN(T4)-COLUMN($E4)<Base_V1_Years_Usage_Modeled,VLOOKUP(_Base_V1_Vehicle_Drivetrain,DB_Maint_Repair_Costs[],COLUMN(T4)-COLUMN($E4)+2,FALSE)*Base_V1_VMT_Modeled,0),IF(AND(COLUMN(T4)-COLUMN($E4)<Base_V1_Years_Usage_Modeled,COLUMN(T4)-COLUMN($E4)<5),Base_V1_Maint_Repair_Cost_Year_1_Modeled*Base_V1_VMT_Modeled,IF(AND(COLUMN(T4)-COLUMN($E4)<Base_V1_Years_Usage_Modeled,COLUMN(T4)-COLUMN($E4)>=5),Base_V1_Maint_Repair_Cost_Year_5_Modeled*Base_V1_VMT_Modeled,0)))*Data!T$150 -> 0 | U35: =-IF(_Base_V1_Maint_Repair_Cost_Use_Default="Yes",IF(COLUMN(U4)-COLUMN($E4)<Base_V1_Years_Usage_Modeled,VLOOKUP(_Base_V1_Vehicle_Drivetrain,DB_Maint_Repair_Costs[],COLUMN(U4)-COLUMN($E4)+2,FALSE)*Base_V1_VMT_Modeled,0),IF(AND(COLUMN(U4)-COLUMN($E4)<Base_V1_Years_Usage_Modeled,COLUMN(U4)-COLUMN($E4)<5),Base_V1_Maint_Repair_Cost_Year_1_Modeled*Base_V1_VMT_Modeled,IF(AND(COLUMN(U4)-COLUMN($E4)<Base_V1_Years_Usage_Modeled,COLUMN(U4)-COLUMN($E4)>=5),Base_V1_Maint_Repair_Cost_Year_5_Modeled*Base_V1_VMT_Modeled,0)))*Data!U$150 -> 0 | V35: =-IF(_Base_V1_Maint_Repair_Cost_Use_Default="Yes",IF(COLUMN(V4)-COLUMN($E4)<Base_V1_Years_Usage_Modeled,VLOOKUP(_Base_V1_Vehicle_Drivetrain,DB_Maint_Repair_Costs[],COLUMN(V4)-COLUMN($E4)+2,FALSE)*Base_V1_VMT_Modeled,0),IF(AND(COLUMN(V4)-COLUMN($E4)<Base_V1_Years_Usage_Modeled,COLUMN(V4)-COLUMN($E4)<5),Base_V1_Maint_Repair_Cost_Year_1_Modeled*Base_V1_VMT_Modeled,IF(AND(COLUMN(V4)-COLUMN($E4)<Base_V1_Years_Usage_Modeled,COLUMN(V4)-COLUMN($E4)>=5),Base_V1_Maint_Repair_Cost_Year_5_Modeled*Base_V1_VMT_Modeled,0)))*Data!V$150 -> 0 | W35: =-IF(_Base_V1_Maint_Repair_Cost_Use_Default="Yes",IF(COLUMN(W4)-COLUMN($E4)<Base_V1_Years_Usage_Modeled,VLOOKUP(_Base_V1_Vehicle_Drivetrain,DB_Maint_Repair_Costs[],COLUMN(W4)-COLUMN($E4)+2,FALSE)*Base_V1_VMT_Modeled,0),IF(AND(COLUMN(W4)-COLUMN($E4)<Base_V1_Years_Usage_Modeled,COLUMN(W4)-COLUMN($E4)<5),Base_V1_Maint_Repair_Cost_Year_1_Modeled*Base_V1_VMT_Modeled,IF(AND(COLUMN(W4)-COLUMN($E4)<Base_V1_Years_Usage_Modeled,COLUMN(W4)-COLUMN($E4)>=5),Base_V1_Maint_Repair_Cost_Year_5_Modeled*Base_V1_VMT_Modeled,0)))*Data!W$150 -> 0 | X35: =-IF(_Base_V1_Maint_Repair_Cost_Use_Default="Yes",IF(COLUMN(X4)-COLUMN($E4)<Base_V1_Years_Usage_Modeled,VLOOKUP(_Base_V1_Vehicle_Drivetrain,DB_Maint_Repair_Costs[],COLUMN(X4)-COLUMN($E4)+2,FALSE)*Base_V1_VMT_Modeled,0),IF(AND(COLUMN(X4)-COLUMN($E4)<Base_V1_Years_Usage_Modeled,COLUMN(X4)-COLUMN($E4)<5),Base_V1_Maint_Repair_Cost_Year_1_Modeled*Base_V1_VMT_Modeled,IF(AND(COLUMN(X4)-COLUMN($E4)<Base_V1_Years_Usage_Modeled,COLUMN(X4)-COLUMN($E4)>=5),Base_V1_Maint_Repair_Cost_Year_5_Modeled*Base_V1_VMT_Modeled,0)))*Data!X$150 -> 0 | Y35: =-IF(_Base_V1_Maint_Repair_Cost_Use_Default="Yes",IF(COLUMN(Y4)-COLUMN($E4)<Base_V1_Years_Usage_Modeled,VLOOKUP(_Base_V1_Vehicle_Drivetrain,DB_Maint_Repair_Costs[],COLUMN(Y4)-COLUMN($E4)+2,FALSE)*Base_V1_VMT_Modeled,0),IF(AND(COLUMN(Y4)-COLUMN($E4)<Base_V1_Years_Usage_Modeled,COLUMN(Y4)-COLUMN($E4)<5),Base_V1_Maint_Repair_Cost_Year_1_Modeled*Base_V1_VMT_Modeled,IF(AND(COLUMN(Y4)-COLUMN($E4)<Base_V1_Years_Usage_Modeled,COLUMN(Y4)-COLUMN($E4)>=5),Base_V1_Maint_Repair_Cost_Year_5_Modeled*Base_V1_VMT_Modeled,0)))*Data!Y$150 -> 0 | Z35: =-IF(_Base_V1_Maint_Repair_Cost_Use_Default="Yes",IF(COLUMN(Z4)-COLUMN($E4)<Base_V1_Years_Usage_Modeled,VLOOKUP(_Base_V1_Vehicle_Drivetrain,DB_Maint_Repair_Costs[],COLUMN(Z4)-COLUMN($E4)+2,FALSE)*Base_V1_VMT_Modeled,0),IF(AND(COLUMN(Z4)-COLUMN($E4)<Base_V1_Years_Usage_Modeled,COLUMN(Z4)-COLUMN($E4)<5),Base_V1_Maint_Repair_Cost_Year_1_Modeled*Base_V1_VMT_Modeled,IF(AND(COLUMN(Z4)-COLUMN($E4)<Base_V1_Years_Usage_Modeled,COLUMN(Z4)-COLUMN($E4)>=5),Base_V1_Maint_Repair_Cost_Year_5_Modeled*Base_V1_VMT_Modeled,0)))*Data!Z$150 -> 0 | AA35: =-IF(_Base_V1_Maint_Repair_Cost_Use_Default="Yes",IF(COLUMN(AA4)-COLUMN($E4)<Base_V1_Years_Usage_Modeled,VLOOKUP(_Base_V1_Vehicle_Drivetrain,DB_Maint_Repair_Costs[],COLUMN(AA4)-COLUMN($E4)+2,FALSE)*Base_V1_VMT_Modeled,0),IF(AND(COLUMN(AA4)-COLUMN($E4)<Base_V1_Years_Usage_Modeled,COLUMN(AA4)-COLUMN($E4)<5),Base_V1_Maint_Repair_Cost_Year_1_Modeled*Base_V1_VMT_Modeled,IF(AND(COLUMN(AA4)-COLUMN($E4)<Base_V1_Years_Usage_Modeled,COLUMN(AA4)-COLUMN($E4)>=5),Base_V1_Maint_Repair_Cost_Year_5_Modeled*Base_V1_VMT_Modeled,0)))*Data!AA$150 -> 0 | AB35: =-IF(_Base_V1_Maint_Repair_Cost_Use_Default="Yes",IF(COLUMN(AB4)-COLUMN($E4)<Base_V1_Years_Usage_Modeled,VLOOKUP(_Base_V1_Vehicle_Drivetrain,DB_Maint_Repair_Costs[],COLUMN(AB4)-COLUMN($E4)+2,FALSE)*Base_V1_VMT_Modeled,0),IF(AND(COLUMN(AB4)-COLUMN($E4)<Base_V1_Years_Usage_Modeled,COLUMN(AB4)-COLUMN($E4)<5),Base_V1_Maint_Repair_Cost_Year_1_Modeled*Base_V1_VMT_Modeled,IF(AND(COLUMN(AB4)-COLUMN($E4)<Base_V1_Years_Usage_Modeled,COLUMN(AB4)-COLUMN($E4)>=5),Base_V1_Maint_Repair_Cost_Year_5_Modeled*Base_V1_VMT_Modeled,0)))*Data!AB$150 -> 0 | AC35: =-IF(_Base_V1_Maint_Repair_Cost_Use_Default="Yes",IF(COLUMN(AC4)-COLUMN($E4)<Base_V1_Years_Usage_Modeled,VLOOKUP(_Base_V1_Vehicle_Drivetrain,DB_Maint_Repair_Costs[],COLUMN(AC4)-COLUMN($E4)+2,FALSE)*Base_V1_VMT_Modeled,0),IF(AND(COLUMN(AC4)-COLUMN($E4)<Base_V1_Years_Usage_Modeled,COLUMN(AC4)-COLUMN($E4)<5),Base_V1_Maint_Repair_Cost_Year_1_Modeled*Base_V1_VMT_Modeled,IF(AND(COLUMN(AC4)-COLUMN($E4)<Base_V1_Years_Usage_Modeled,COLUMN(AC4)-COLUMN($E4)>=5),Base_V1_Maint_Repair_Cost_Year_5_Modeled*Base_V1_VMT_Modeled,0)))*Data!AC$150 -> 0
B36: Taxes and Fees | D36: =-Base_V1_Initial_Taxes_Fees_Modeled-(Base_V1_Initial_Percent_Base_Price_Modeled*Base_V1_Base_Price_Ex) -> -1000 | E36: =-IF(COLUMN(E4)-COLUMN($E4)<Base_V1_Years_Usage_Modeled,Base_V1_Taxes_Fees_Modeled,0)*Data!E$150 -> -10 | F36: =-IF(COLUMN(F4)-COLUMN($E4)<Base_V1_Years_Usage_Modeled,Base_V1_Taxes_Fees_Modeled,0)*Data!F$150 -> -10.2 | G36: =-IF(COLUMN(G4)-COLUMN($E4)<Base_V1_Years_Usage_Modeled,Base_V1_Taxes_Fees_Modeled,0)*Data!G$150 -> -10.404 | H36: =-IF(COLUMN(H4)-COLUMN($E4)<Base_V1_Years_Usage_Modeled,Base_V1_Taxes_Fees_Modeled,0)*Data!H$150 -> -10.61208 | I36: =-IF(COLUMN(I4)-COLUMN($E4)<Base_V1_Years_Usage_Modeled,Base_V1_Taxes_Fees_Modeled,0)*Data!I$150 -> -10.8243216 | J36: =-IF(COLUMN(J4)-COLUMN($E4)<Base_V1_Years_Usage_Modeled,Base_V1_Taxes_Fees_Modeled,0)*Data!J$150 -> -11.04080803 | K36: =-IF(COLUMN(K4)-COLUMN($E4)<Base_V1_Years_Usage_Modeled,Base_V1_Taxes_Fees_Modeled,0)*Data!K$150 -> -11.26162419 | L36: =-IF(COLUMN(L4)-COLUMN($E4)<Base_V1_Years_Usage_Modeled,Base_V1_Taxes_Fees_Modeled,0)*Data!L$150 -> 0 | M36: =-IF(COLUMN(M4)-COLUMN($E4)<Base_V1_Years_Usage_Modeled,Base_V1_Taxes_Fees_Modeled,0)*Data!M$150 -> 0 | N36: =-IF(COLUMN(N4)-COLUMN($E4)<Base_V1_Years_Usage_Modeled,Base_V1_Taxes_Fees_Modeled,0)*Data!N$150 -> 0 | O36: =-IF(COLUMN(O4)-COLUMN($E4)<Base_V1_Years_Usage_Modeled,Base_V1_Taxes_Fees_Modeled,0)*Data!O$150 -> 0 | P36: =-IF(COLUMN(P4)-COLUMN($E4)<Base_V1_Years_Usage_Modeled,Base_V1_Taxes_Fees_Modeled,0)*Data!P$150 -> 0 | Q36: =-IF(COLUMN(Q4)-COLUMN($E4)<Base_V1_Years_Usage_Modeled,Base_V1_Taxes_Fees_Modeled,0)*Data!Q$150 -> 0 | R36: =-IF(COLUMN(R4)-COLUMN($E4)<Base_V1_Years_Usage_Modeled,Base_V1_Taxes_Fees_Modeled,0)*Data!R$150 -> 0 | S36: =-IF(COLUMN(S4)-COLUMN($E4)<Base_V1_Years_Usage_Modeled,Base_V1_Taxes_Fees_Modeled,0)*Data!S$150 -> 0 | T36: =-IF(COLUMN(T4)-COLUMN($E4)<Base_V1_Years_Usage_Modeled,Base_V1_Taxes_Fees_Modeled,0)*Data!T$150 -> 0 | U36: =-IF(COLUMN(U4)-COLUMN($E4)<Base_V1_Years_Usage_Modeled,Base_V1_Taxes_Fees_Modeled,0)*Data!U$150 -> 0 | V36: =-IF(COLUMN(V4)-COLUMN($E4)<Base_V1_Years_Usage_Modeled,Base_V1_Taxes_Fees_Modeled,0)*Data!V$150 -> 0 | W36: =-IF(COLUMN(W4)-COLUMN($E4)<Base_V1_Years_Usage_Modeled,Base_V1_Taxes_Fees_Modeled,0)*Data!W$150 -> 0 | X36: =-IF(COLUMN(X4)-COLUMN($E4)<Base_V1_Years_Usage_Modeled,Base_V1_Taxes_Fees_Modeled,0)*Data!X$150 -> 0 | Y36: =-IF(COLUMN(Y4)-COLUMN($E4)<Base_V1_Years_Usage_Modeled,Base_V1_Taxes_Fees_Modeled,0)*Data!Y$150 -> 0 | Z36: =-IF(COLUMN(Z4)-COLUMN($E4)<Base_V1_Years_Usage_Modeled,Base_V1_Taxes_Fees_Modeled,0)*Data!Z$150 -> 0 | AA36: =-IF(COLUMN(AA4)-COLUMN($E4)<Base_V1_Years_Usage_Modeled,Base_V1_Taxes_Fees_Modeled,0)*Data!AA$150 -> 0 | AB36: =-IF(COLUMN(AB4)-COLUMN($E4)<Base_V1_Years_Usage_Modeled,Base_V1_Taxes_Fees_Modeled,0)*Data!AB$150 -> 0 | AC36: =-IF(COLUMN(AC4)-COLUMN($E4)<Base_V1_Years_Usage_Modeled,Base_V1_Taxes_Fees_Modeled,0)*Data!AC$150 -> 0
B37: Insurance Cost | E37: =-IF(COLUMN(E4)-COLUMN($E4)<Base_V1_Years_Usage_Modeled,Base_V1_Insurance_Cost_Modeled,0)*Data!E$150 -> -550 | F37: =-IF(COLUMN(F4)-COLUMN($E4)<Base_V1_Years_Usage_Modeled,Base_V1_Insurance_Cost_Modeled,0)*Data!F$150 -> -561 | G37: =-IF(COLUMN(G4)-COLUMN($E4)<Base_V1_Years_Usage_Modeled,Base_V1_Insurance_Cost_Modeled,0)*Data!G$150 -> -572.22 | H37: =-IF(COLUMN(H4)-COLUMN($E4)<Base_V1_Years_Usage_Modeled,Base_V1_Insurance_Cost_Modeled,0)*Data!H$150 -> -583.6644 | I37: =-IF(COLUMN(I4)-COLUMN($E4)<Base_V1_Years_Usage_Modeled,Base_V1_Insurance_Cost_Modeled,0)*Data!I$150 -> -595.337688 | J37: =-IF(COLUMN(J4)-COLUMN($E4)<Base_V1_Years_Usage_Modeled,Base_V1_Insurance_Cost_Modeled,0)*Data!J$150 -> -607.2444418 | K37: =-IF(COLUMN(K4)-COLUMN($E4)<Base_V1_Years_Usage_Modeled,Base_V1_Insurance_Cost_Modeled,0)*Data!K$150 -> -619.3893306 | L37: =-IF(COLUMN(L4)-COLUMN($E4)<Base_V1_Years_Usage_Modeled,Base_V1_Insurance_Cost_Modeled,0)*Data!L$150 -> 0 | M37: =-IF(COLUMN(M4)-COLUMN($E4)<Base_V1_Years_Usage_Modeled,Base_V1_Insurance_Cost_Modeled,0)*Data!M$150 -> 0 | N37: =-IF(COLUMN(N4)-COLUMN($E4)<Base_V1_Years_Usage_Modeled,Base_V1_Insurance_Cost_Modeled,0)*Data!N$150 -> 0 | O37: =-IF(COLUMN(O4)-COLUMN($E4)<Base_V1_Years_Usage_Modeled,Base_V1_Insurance_Cost_Modeled,0)*Data!O$150 -> 0 | P37: =-IF(COLUMN(P4)-COLUMN($E4)<Base_V1_Years_Usage_Modeled,Base_V1_Insurance_Cost_Modeled,0)*Data!P$150 -> 0 | Q37: =-IF(COLUMN(Q4)-COLUMN($E4)<Base_V1_Years_Usage_Modeled,Base_V1_Insurance_Cost_Modeled,0)*Data!Q$150 -> 0 | R37: =-IF(COLUMN(R4)-COLUMN($E4)<Base_V1_Years_Usage_Modeled,Base_V1_Insurance_Cost_Modeled,0)*Data!R$150 -> 0 | S37: =-IF(COLUMN(S4)-COLUMN($E4)<Base_V1_Years_Usage_Modeled,Base_V1_Insurance_Cost_Modeled,0)*Data!S$150 -> 0 | T37: =-IF(COLUMN(T4)-COLUMN($E4)<Base_V1_Years_Usage_Modeled,Base_V1_Insurance_Cost_Modeled,0)*Data!T$150 -> 0 | U37: =-IF(COLUMN(U4)-COLUMN($E4)<Base_V1_Years_Usage_Modeled,Base_V1_Insurance_Cost_Modeled,0)*Data!U$150 -> 0 | V37: =-IF(COLUMN(V4)-COLUMN($E4)<Base_V1_Years_Usage_Modeled,Base_V1_Insurance_Cost_Modeled,0)*Data!V$150 -> 0 | W37: =-IF(COLUMN(W4)-COLUMN($E4)<Base_V1_Years_Usage_Modeled,Base_V1_Insurance_Cost_Modeled,0)*Data!W$150 -> 0 | X37: =-IF(COLUMN(X4)-COLUMN($E4)<Base_V1_Years_Usage_Modeled,Base_V1_Insurance_Cost_Modeled,0)*Data!X$150 -> 0 | Y37: =-IF(COLUMN(Y4)-COLUMN($E4)<Base_V1_Years_Usage_Modeled,Base_V1_Insurance_Cost_Modeled,0)*Data!Y$150 -> 0 | Z37: =-IF(COLUMN(Z4)-COLUMN($E4)<Base_V1_Years_Usage_Modeled,Base_V1_Insurance_Cost_Modeled,0)*Data!Z$150 -> 0 | AA37: =-IF(COLUMN(AA4)-COLUMN($E4)<Base_V1_Years_Usage_Modeled,Base_V1_Insurance_Cost_Modeled,0)*Data!AA$150 -> 0 | AB37: =-IF(COLUMN(AB4)-COLUMN($E4)<Base_V1_Years_Usage_Modeled,Base_V1_Insurance_Cost_Modeled,0)*Data!AB$150 -> 0 | AC37: =-IF(COLUMN(AC4)-COLUMN($E4)<Base_V1_Years_Usage_Modeled,Base_V1_Insurance_Cost_Modeled,0)*Data!AC$150 -> 0
B38: Subtotal Fuel and Operating Costs | D38: =SUM(D34:D37) -> -1000 | E38: -2075.029167 | F38: -2165.793453 | G38: -2250.729769 | H38: -2363.004733 | I38: -2438.038278 | J38: -2763.051557 | K38: -2813.640581 | L38: 0 | M38: 0 | N38: 0 | O38: 0 | P38: 0 | Q38: 0 | R38: 0 | S38: 0 | T38: 0 | U38: 0 | V38: 0 | W38: 0 | X38: 0 | Y38: 0 | Z38: 0 | AA38: 0 | AB38: 0 | AC38: 0
B40: Other Costs
B41: Cost of Carbon | E41: =-IF(COLUMN(E4)-COLUMN($E4)<Base_V1_Years_Usage_Modeled,Base_V1_CO2_Ex/2204.62*Carbon_Price_Modeled,0) -> 0 | F41: 0 | G41: 0 | H41: 0 | I41: 0 | J41: 0 | K41: 0 | L41: 0 | M41: 0 | N41: 0 | O41: 0 | P41: 0 | Q41: 0 | R41: 0 | S41: 0 | T41: 0 | U41: 0 | V41: 0 | W41: 0 | X41: 0 | Y41: 0 | Z41: 0 | AA41: 0 | AB41: 0 | AC41: 0
B42: Subtotal Other Costs | D42: =SUM(D41:D41) -> 0 | E42: 0 | F42: 0 | G42: 0 | H42: 0 | I42: 0 | J42: 0 | K42: 0 | L42: 0 | M42: 0 | N42: 0 | O42: 0 | P42: 0 | Q42: 0 | R42: 0 | S42: 0 | T42: 0 | U42: 0 | V42: 0 | W42: 0 | X42: 0 | Y42: 0 | Z42: 0 | AA42: 0 | AB42: 0 | AC42: =SUM(AC41:AC41) -> 0
B44: Total Discounted Costs
B45: Total Annual Costs | D45: =D31+D38+D42 -> -19224 | E45: -2075.029167 | F45: -2165.793453 | G45: -2250.729769 | H45: -2363.004733 | I45: -2438.038278 | J45: -2763.051557 | K45: 50.24593921 | L45: 0 | M45: 0 | N45: 0 | O45: 0 | P45: 0 | Q45: 0 | R45: 0 | S45: 0 | T45: 0 | U45: 0 | V45: 0 | W45: 0 | X45: 0 | Y45: 0 | Z45: 0 | AA45: 0 | AB45: 0 | AC45: 0
B46: Discount Factor | C46: =Base_Discount_Rate_Modeled -> 0 | D46: =(1/(1+$C46))^(COLUMN(D4)-COLUMN($D4)) -> 1 | E46: 1 | F46: 1 | G46: 1 | H46: 1 | I46: 1 | J46: 1 | K46: 1 | L46: 1 | M46: 1 | N46: 1 | O46: 1 | P46: 1 | Q46: 1 | R46: 1 | S46: 1 | T46: 1 | U46: 1 | V46: 1 | W46: 1 | X46: 1 | Y46: 1 | Z46: 1 | AA46: 1 | AB46: 1 | AC46: 1
B47: Discounted Total | D47: =D45*D46 -> -19224 | E47: =E45*E46 -> -2075.029167 | F47: =F45*F46 -> -2165.793453 | G47: -2250.729769 | H47: -2363.004733 | I47: -2438.038278 | J47: -2763.051557 | K47: 50.24593921 | L47: 0 | M47: 0 | N47: 0 | O47: 0 | P47: 0 | Q47: 0 | R47: 0 | S47: 0 | T47: 0 | U47: 0 | V47: 0 | W47: 0 | X47: 0 | Y47: 0 | Z47: 0 | AA47: 0 | AB47: 0 | AC47: 0
B48: Cumulative Discounted Total | D48: =IF((COLUMN(D4)-COLUMN($D4))<=Base_V1_Years_Usage_Modeled,C48+D47,0) -> -19224 | E48: -21299.02917 | F48: -23464.82262 | G48: -25715.55239 | H48: -28078.55712 | I48: -30516.5954 | J48: -33279.64696 | K48: -33229.40102 | L48: 0 | M48: 0 | N48: 0 | O48: 0 | P48: 0 | Q48: 0 | R48: 0 | S48: 0 | T48: 0 | U48: 0 | V48: 0 | W48: 0 | X48: 0 | Y48: 0 | Z48: 0 | AA48: 0 | AB48: 0 | AC48: 0
B49: Annualized NPV Total Cost of Ownership | D49: =OFFSET($D48,0,Base_V1_Years_Usage_Modeled)/Base_V1_Years_Usage_Modeled -> -4747.057288
B51: Baseline EV Infrastructure
D52: Year 0 | E52: Year 1 | F52: Year 2 | G52: Year 3 | H52: Year 4 | I52: Year 5 | J52: Year 6 | K52: Year 7 | L52: Year 8 | M52: Year 9 | N52: Year 10 | O52: Year 11 | P52: Year 12 | Q52: Year 13 | R52: Year 14 | S52: Year 15 | T52: Year 16 | U52: Year 17 | V52: Year 18 | W52: Year 19 | X52: Year 20 | Y52: Year 21 | Z52: Year 22 | AA52: Year 23 | AB52: Year 24 | AC52: Year 25
B53: Capital and Financing Costs
B54: Cash
B55: Cash Payment | D55: =IF(AND(Base_Inf_Has_Cash_Purchase_Ex=TRUE,_Base_Include_Charging="Yes"),-Base_Num_Stations_Modeled*Base_Station_Cost_Modeled,0) -> 0
B56: Loan
B57: Down Payment | D57: =IF(AND(Base_Inf_Has_Cash_Purchase_Ex=FALSE,_Base_Include_Charging="Yes"),-Base_Inf_Down_Payment_Modeled,0) -> 0
B58: Loan Payments | E58: =IF(AND(Base_Inf_Has_Cash_Purchase_Ex=FALSE,_Base_Include_Charging="Yes",(COLUMN(E52)-COLUMN($E52))<Base_Inf_Loan_Term_Modeled),PMT(Base_Inf_Loan_APR_Modeled/12,Base_Inf_Loan_Term_Modeled*12,(Base_Num_Stations_Modeled*Base_Station_Cost_Modeled)-Base_Inf_Down_Payment_Modeled,0)*12,0) -> 0 | F58: 0 | G58: 0 | H58: 0 | I58: 0 | J58: 0 | K58: 0 | L58: 0 | M58: 0 | N58: 0 | O58: 0 | P58: 0 | Q58: 0 | R58: 0 | S58: 0 | T58: 0 | U58: 0 | V58: 0 | W58: 0 | X58: 0 | Y58: 0 | Z58: 0 | AA58: 0 | AB58: 0 | AC58: 0
B59: Subtotal Loan Cash Flows | D59: =SUM(D57:D58) -> 0 | E59: =SUM(E57:E58) -> 0 | F59: 0 | G59: 0 | H59: 0 | I59: 0 | J59: 0 | K59: 0 | L59: 0 | M59: 0 | N59: 0 | O59: 0 | P59: 0 | Q59: 0 | R59: 0 | S59: 0 | T59: 0 | U59: 0 | V59: 0 | W59: 0 | X59: 0 | Y59: 0 | Z59: 0 | AA59: 0 | AB59: 0 | AC59: 0
B61: Total Capital and Financing Costs | D61: =D55+D59 -> 0 | E61: =E55+E59 -> 0 | F61: 0 | G61: 0 | H61: 0 | I61: 0 | J61: 0 | K61: 0 | L61: 0 | M61: 0 | N61: 0 | O61: 0 | P61: 0 | Q61: 0 | R61: 0 | S61: 0 | T61: 0 | U61: 0 | V61: 0 | W61: 0 | X61: 0 | Y61: 0 | Z61: 0 | AA61: 0 | AB61: 0 | AC61: 0
B63: Operating Costs
B64: Maintenance Cost | E64: =-IF(AND(COLUMN(E52)-COLUMN($E52)<Base_V1_Years_Usage_Modeled,_Base_Include_Charging="Yes"),Base_Station_Maint_Cost_Modeled*Base_Num_Stations_Modeled,0)*Data!E$150 -> 0 | F64: =-IF(AND(COLUMN(F52)-COLUMN($E52)<Base_V1_Years_Usage_Modeled,_Base_Include_Charging="Yes"),Base_Station_Maint_Cost_Modeled*Base_Num_Stations_Modeled,0)*Data!F$150 -> 0 | G64: =-IF(AND(COLUMN(G52)-COLUMN($E52)<Base_V1_Years_Usage_Modeled,_Base_Include_Charging="Yes"),Base_Station_Maint_Cost_Modeled*Base_Num_Stations_Modeled,0)*Data!G$150 -> 0 | H64: =-IF(AND(COLUMN(H52)-COLUMN($E52)<Base_V1_Years_Usage_Modeled,_Base_Include_Charging="Yes"),Base_Station_Maint_Cost_Modeled*Base_Num_Stations_Modeled,0)*Data!H$150 -> 0 | I64: =-IF(AND(COLUMN(I52)-COLUMN($E52)<Base_V1_Years_Usage_Modeled,_Base_Include_Charging="Yes"),Base_Station_Maint_Cost_Modeled*Base_Num_Stations_Modeled,0)*Data!I$150 -> 0 | J64: =-IF(AND(COLUMN(J52)-COLUMN($E52)<Base_V1_Years_Usage_Modeled,_Base_Include_Charging="Yes"),Base_Station_Maint_Cost_Modeled*Base_Num_Stations_Modeled,0)*Data!J$150 -> 0 | K64: =-IF(AND(COLUMN(K52)-COLUMN($E52)<Base_V1_Years_Usage_Modeled,_Base_Include_Charging="Yes"),Base_Station_Maint_Cost_Modeled*Base_Num_Stations_Modeled,0)*Data!K$150 -> 0 | L64: =-IF(AND(COLUMN(L52)-COLUMN($E52)<Base_V1_Years_Usage_Modeled,_Base_Include_Charging="Yes"),Base_Station_Maint_Cost_Modeled*Base_Num_Stations_Modeled,0)*Data!L$150 -> 0 | M64: =-IF(AND(COLUMN(M52)-COLUMN($E52)<Base_V1_Years_Usage_Modeled,_Base_Include_Charging="Yes"),Base_Station_Maint_Cost_Modeled*Base_Num_Stations_Modeled,0)*Data!M$150 -> 0 | N64: =-IF(AND(COLUMN(N52)-COLUMN($E52)<Base_V1_Years_Usage_Modeled,_Base_Include_Charging="Yes"),Base_Station_Maint_Cost_Modeled*Base_Num_Stations_Modeled,0)*Data!N$150 -> 0 | O64: =-IF(AND(COLUMN(O52)-COLUMN($E52)<Base_V1_Years_Usage_Modeled,_Base_Include_Charging="Yes"),Base_Station_Maint_Cost_Modeled*Base_Num_Stations_Modeled,0)*Data!O$150 -> 0 | P64: =-IF(AND(COLUMN(P52)-COLUMN($E52)<Base_V1_Years_Usage_Modeled,_Base_Include_Charging="Yes"),Base_Station_Maint_Cost_Modeled*Base_Num_Stations_Modeled,0)*Data!P$150 -> 0 | Q64: =-IF(AND(COLUMN(Q52)-COLUMN($E52)<Base_V1_Years_Usage_Modeled,_Base_Include_Charging="Yes"),Base_Station_Maint_Cost_Modeled*Base_Num_Stations_Modeled,0)*Data!Q$150 -> 0 | R64: =-IF(AND(COLUMN(R52)-COLUMN($E52)<Base_V1_Years_Usage_Modeled,_Base_Include_Charging="Yes"),Base_Station_Maint_Cost_Modeled*Base_Num_Stations_Modeled,0)*Data!R$150 -> 0 | S64: =-IF(AND(COLUMN(S52)-COLUMN($E52)<Base_V1_Years_Usage_Modeled,_Base_Include_Charging="Yes"),Base_Station_Maint_Cost_Modeled*Base_Num_Stations_Modeled,0)*Data!S$150 -> 0 | T64: =-IF(AND(COLUMN(T52)-COLUMN($E52)<Base_V1_Years_Usage_Modeled,_Base_Include_Charging="Yes"),Base_Station_Maint_Cost_Modeled*Base_Num_Stations_Modeled,0)*Data!T$150 -> 0 | U64: =-IF(AND(COLUMN(U52)-COLUMN($E52)<Base_V1_Years_Usage_Modeled,_Base_Include_Charging="Yes"),Base_Station_Maint_Cost_Modeled*Base_Num_Stations_Modeled,0)*Data!U$150 -> 0 | V64: =-IF(AND(COLUMN(V52)-COLUMN($E52)<Base_V1_Years_Usage_Modeled,_Base_Include_Charging="Yes"),Base_Station_Maint_Cost_Modeled*Base_Num_Stations_Modeled,0)*Data!V$150 -> 0 | W64: =-IF(AND(COLUMN(W52)-COLUMN($E52)<Base_V1_Years_Usage_Modeled,_Base_Include_Charging="Yes"),Base_Station_Maint_Cost_Modeled*Base_Num_Stations_Modeled,0)*Data!W$150 -> 0 | X64: =-IF(AND(COLUMN(X52)-COLUMN($E52)<Base_V1_Years_Usage_Modeled,_Base_Include_Charging="Yes"),Base_Station_Maint_Cost_Modeled*Base_Num_Stations_Modeled,0)*Data!X$150 -> 0 | Y64: =-IF(AND(COLUMN(Y52)-COLUMN($E52)<Base_V1_Years_Usage_Modeled,_Base_Include_Charging="Yes"),Base_Station_Maint_Cost_Modeled*Base_Num_Stations_Modeled,0)*Data!Y$150 -> 0 | Z64: =-IF(AND(COLUMN(Z52)-COLUMN($E52)<Base_V1_Years_Usage_Modeled,_Base_Include_Charging="Yes"),Base_Station_Maint_Cost_Modeled*Base_Num_Stations_Modeled,0)*Data!Z$150 -> 0 | AA64: =-IF(AND(COLUMN(AA52)-COLUMN($E52)<Base_V1_Years_Usage_Modeled,_Base_Include_Charging="Yes"),Base_Station_Maint_Cost_Modeled*Base_Num_Stations_Modeled,0)*Data!AA$150 -> 0 | AB64: =-IF(AND(COLUMN(AB52)-COLUMN($E52)<Base_V1_Years_Usage_Modeled,_Base_Include_Charging="Yes"),Base_Station_Maint_Cost_Modeled*Base_Num_Stations_Modeled,0)*Data!AB$150 -> 0 | AC64: =-IF(AND(COLUMN(AC52)-COLUMN($E52)<Base_V1_Years_Usage_Modeled,_Base_Include_Charging="Yes"),Base_Station_Maint_Cost_Modeled*Base_Num_Stations_Modeled,0)*Data!AC$150 -> 0
B65: Subtotal Operating Costs | E65: =SUM(E64:E64) -> 0 | F65: 0 | G65: 0 | H65: 0 | I65: 0 | J65: 0 | K65: 0 | L65: 0 | M65: 0 | N65: 0 | O65: 0 | P65: 0 | Q65: 0 | R65: 0 | S65: 0 | T65: 0 | U65: 0 | V65: 0 | W65: 0 | X65: 0 | Y65: 0 | Z65: 0 | AA65: 0 | AB65: 0 | AC65: 0
B66: Total Discounted Costs
B67: Total Annual Costs | D67: =D61+D65 -> 0 | E67: =E61+E65 -> 0 | F67: 0 | G67: 0 | H67: 0 | I67: 0 | J67: 0 | K67: 0 | L67: 0 | M67: 0 | N67: 0 | O67: 0 | P67: 0 | Q67: 0 | R67: 0 | S67: 0 | T67: 0 | U67: 0 | V67: 0 | W67: 0 | X67: 0 | Y67: 0 | Z67: 0 | AA67: 0 | AB67: 0 | AC67: 0
B68: Discount Factor | C68: =Base_Discount_Rate_Modeled -> 0 | D68: =(1/(1+$C68))^(COLUMN(D52)-COLUMN($D52)) -> 1 | E68: 1 | F68: 1 | G68: 1 | H68: 1 | I68: 1 | J68: 1 | K68: 1 | L68: 1 | M68: 1 | N68: 1 | O68: 1 | P68: 1 | Q68: 1 | R68: 1 | S68: 1 | T68: 1 | U68: 1 | V68: 1 | W68: 1 | X68: 1 | Y68: 1 | Z68: 1 | AA68: 1 | AB68: 1 | AC68: 1
B69: Discounted Total | D69: =D67*D68 -> 0 | E69: =E67*E68 -> 0 | F69: =F67*F68 -> 0 | G69: 0 | H69: 0 | I69: 0 | J69: 0 | K69: 0 | L69: 0 | M69: 0 | N69: 0 | O69: 0 | P69: 0 | Q69: 0 | R69: 0 | S69: 0 | T69: 0 | U69: 0 | V69: 0 | W69: 0 | X69: 0 | Y69: 0 | Z69: 0 | AA69: 0 | AB69: 0 | AC69: 0
B70: Cumulative Discounted Total | D70: =IF((COLUMN(D52)-COLUMN($D52))<=Base_V1_Years_Usage_Modeled,C70+D69,0) -> 0 | E70: 0 | F70: 0 | G70: 0 | H70: 0 | I70: 0 | J70: 0 | K70: 0 | L70: 0 | M70: 0 | N70: 0 | O70: 0 | P70: 0 | Q70: 0 | R70: 0 | S70: 0 | T70: 0 | U70: 0 | V70: 0 | W70: 0 | X70: 0 | Y70: 0 | Z70: 0 | AA70: 0 | AB70: 0 | AC70: 0
B71: Annualized NPV Total Cost of Ownership | D71: =OFFSET($D70,0,Base_V1_Years_Usage_Modeled)/Base_V1_Years_Usage_Modeled -> 0
B73: Comparison Vehicle 1
D74: Year 0 | E74: Year 1 | F74: Year 2 | G74: Year 3 | H74: Year 4 | I74: Year 5 | J74: Year 6 | K74: Year 7 | L74: Year 8 | M74: Year 9 | N74: Year 10 | O74: Year 11 | P74: Year 12 | Q74: Year 13 | R74: Year 14 | S74: Year 15 | T74: Year 16 | U74: Year 17 | V74: Year 18 | W74: Year 19 | X74: Year 20 | Y74: Year 21 | Z74: Year 22 | AA74: Year 23 | AB74: Year 24 | AC74: Year 25
B75: Depreciation Calculations
B76: Fair Market Value - BEV | D76: =IF(VLOOKUP(Comp_V1_Type_Ex,DB_Vehicles,5,FALSE)="BEV",Comp_V1_MSRP_Modeled,0) -> 36620 | E76: =IF(VLOOKUP(Comp_V1_Type_Ex,DB_Vehicles,5,FALSE)="BEV",MAX(IF(VLOOKUP(Comp_V1_Type_Ex,DB_Vehicles,5,FALSE)="BEV",Reg_BEV_Const_Ex+Reg_BEV_Age_Coef_Ex*(COLUMN(E74)-COLUMN($D74))+Reg_BEV_Agesq_Coef_Ex*((COLUMN(E74)-COLUMN($D74))^2)+Reg_BEV_MSRP_Coef_Ex*Comp_V1_MSRP_Modeled+Reg_BEV_Range_Coef_Ex*VLOOKUP(Comp_V1_Type_Ex,DB_Vehicles,7,FALSE)+Reg_BEV_Mileage_Coef_Ex*Comp_V1_VMT_Modeled*(COLUMN(E74)-COLUMN($D74)),0),300),0) -> 26545.23764 | F76: =IF(VLOOKUP(Comp_V1_Type_Ex,DB_Vehicles,5,FALSE)="BEV",MAX(IF(VLOOKUP(Comp_V1_Type_Ex,DB_Vehicles,5,FALSE)="BEV",Reg_BEV_Const_Ex+Reg_BEV_Age_Coef_Ex*(COLUMN(F74)-COLUMN($D74))+Reg_BEV_Agesq_Coef_Ex*((COLUMN(F74)-COLUMN($D74))^2)+Reg_BEV_MSRP_Coef_Ex*Comp_V1_MSRP_Modeled+Reg_BEV_Range_Coef_Ex*VLOOKUP(Comp_V1_Type_Ex,DB_Vehicles,7,FALSE)+Reg_BEV_Mileage_Coef_Ex*Comp_V1_VMT_Modeled*(COLUMN(F74)-COLUMN($D74)),0),300),0) -> 23137.43864 | G76: =IF(VLOOKUP(Comp_V1_Type_Ex,DB_Vehicles,5,FALSE)="BEV",MAX(IF(VLOOKUP(Comp_V1_Type_Ex,DB_Vehicles,5,FALSE)="BEV",Reg_BEV_Const_Ex+Reg_BEV_Age_Coef_Ex*(COLUMN(G74)-COLUMN($D74))+Reg_BEV_Agesq_Coef_Ex*((COLUMN(G74)-COLUMN($D74))^2)+Reg_BEV_MSRP_Coef_Ex*Comp_V1_MSRP_Modeled+Reg_BEV_Range_Coef_Ex*VLOOKUP(Comp_V1_Type_Ex,DB_Vehicles,7,FALSE)+Reg_BEV_Mileage_Coef_Ex*Comp_V1_VMT_Modeled*(COLUMN(G74)-COLUMN($D74)),0),300),0) -> 19467.07364 | H76: =IF(VLOOKUP(Comp_V1_Type_Ex,DB_Vehicles,5,FALSE)="BEV",MAX(IF(VLOOKUP(Comp_V1_Type_Ex,DB_Vehicles,5,FALSE)="BEV",Reg_BEV_Const_Ex+Reg_BEV_Age_Coef_Ex*(COLUMN(H74)-COLUMN($D74))+Reg_BEV_Agesq_Coef_Ex*((COLUMN(H74)-COLUMN($D74))^2)+Reg_BEV_MSRP_Coef_Ex*Comp_V1_MSRP_Modeled+Reg_BEV_Range_Coef_Ex*VLOOKUP(Comp_V1_Type_Ex,DB_Vehicles,7,FALSE)+Reg_BEV_Mileage_Coef_Ex*Comp_V1_VMT_Modeled*(COLUMN(H74)-COLUMN($D74)),0),300),0) -> 15534.14264 | I76: =IF(VLOOKUP(Comp_V1_Type_Ex,DB_Vehicles,5,FALSE)="BEV",MAX(IF(VLOOKUP(Comp_V1_Type_Ex,DB_Vehicles,5,FALSE)="BEV",Reg_BEV_Const_Ex+Reg_BEV_Age_Coef_Ex*(COLUMN(I74)-COLUMN($D74))+Reg_BEV_Agesq_Coef_Ex*((COLUMN(I74)-COLUMN($D74))^2)+Reg_BEV_MSRP_Coef_Ex*Comp_V1_MSRP_Modeled+Reg_BEV_Range_Coef_Ex*VLOOKUP(Comp_V1_Type_Ex,DB_Vehicles,7,FALSE)+Reg_BEV_Mileage_Coef_Ex*Comp_V1_VMT_Modeled*(COLUMN(I74)-COLUMN($D74)),0),300),0) -> 11338.64564 | J76: =IF($H76-$I76=0,0,MAX((1-($H76-$I76)/$H76)*I76,300)) -> 8276.278127 | K76: 6041.00188 | L76: 4409.434188 | M76: 3218.524053 | N76: 2349.257668 | O76: 1714.76475 | P76: 1251.637139 | Q76: 913.5920997 | R76: 666.8470426 | S76: 486.7434584 | T76: 355.2826648 | U76: 300 | V76: 300 | W76: 300 | X76: 300 | Y76: 300 | Z76: 300 | AA76: 300 | AB76: 300 | AC76: 300
B77: Fair Market Value - PHEV | D77: =IF(VLOOKUP(Comp_V1_Type_Ex,DB_Vehicles,5,FALSE)="PHEV",Comp_V1_MSRP_Modeled,0) -> 0 | E77: =IF(VLOOKUP(Comp_V1_Type_Ex,DB_Vehicles,5,FALSE)="PHEV",MAX(IF(VLOOKUP(Comp_V1_Type_Ex,DB_Vehicles,5,FALSE)="PHEV",Reg_PHEV_Const_Ex+Reg_PHEV_Age_Coef_Ex*(COLUMN(E74)-COLUMN($D74))+Reg_PHEV_Agesq_Coef_Ex*((COLUMN(E74)-COLUMN($D74))^2)+Reg_PHEV_MSRP_Coef_Ex*Comp_V1_MSRP_Modeled+Reg_PHEV_Range_Coef_Ex*VLOOKUP(Comp_V1_Type_Ex,DB_Vehicles,7,FALSE)+Reg_PHEV_Mileage_Coef_Ex*Comp_V1_VMT_Modeled*(COLUMN(E74)-COLUMN($D74)),0),300),0) -> 0 | F77: =IF(VLOOKUP(Comp_V1_Type_Ex,DB_Vehicles,5,FALSE)="PHEV",MAX(IF(VLOOKUP(Comp_V1_Type_Ex,DB_Vehicles,5,FALSE)="PHEV",Reg_PHEV_Const_Ex+Reg_PHEV_Age_Coef_Ex*(COLUMN(F74)-COLUMN($D74))+Reg_PHEV_Agesq_Coef_Ex*((COLUMN(F74)-COLUMN($D74))^2)+Reg_PHEV_MSRP_Coef_Ex*Comp_V1_MSRP_Modeled+Reg_PHEV_Range_Coef_Ex*VLOOKUP(Comp_V1_Type_Ex,DB_Vehicles,7,FALSE)+Reg_PHEV_Mileage_Coef_Ex*Comp_V1_VMT_Modeled*(COLUMN(F74)-COLUMN($D74)),0),300),0) -> 0 | G77: =IF(VLOOKUP(Comp_V1_Type_Ex,DB_Vehicles,5,FALSE)="PHEV",MAX(IF(VLOOKUP(Comp_V1_Type_Ex,DB_Vehicles,5,FALSE)="PHEV",Reg_PHEV_Const_Ex+Reg_PHEV_Age_Coef_Ex*(COLUMN(G74)-COLUMN($D74))+Reg_PHEV_Agesq_Coef_Ex*((COLUMN(G74)-COLUMN($D74))^2)+Reg_PHEV_MSRP_Coef_Ex*Comp_V1_MSRP_Modeled+Reg_PHEV_Range_Coef_Ex*VLOOKUP(Comp_V1_Type_Ex,DB_Vehicles,7,FALSE)+Reg_PHEV_Mileage_Coef_Ex*Comp_V1_VMT_Modeled*(COLUMN(G74)-COLUMN($D74)),0),300),0) -> 0 | H77: =IF(VLOOKUP(Comp_V1_Type_Ex,DB_Vehicles,5,FALSE)="PHEV",MAX(IF(VLOOKUP(Comp_V1_Type_Ex,DB_Vehicles,5,FALSE)="PHEV",Reg_PHEV_Const_Ex+Reg_PHEV_Age_Coef_Ex*(COLUMN(H74)-COLUMN($D74))+Reg_PHEV_Agesq_Coef_Ex*((COLUMN(H74)-COLUMN($D74))^2)+Reg_PHEV_MSRP_Coef_Ex*Comp_V1_MSRP_Modeled+Reg_PHEV_Range_Coef_Ex*VLOOKUP(Comp_V1_Type_Ex,DB_Vehicles,7,FALSE)+Reg_PHEV_Mileage_Coef_Ex*Comp_V1_VMT_Modeled*(COLUMN(H74)-COLUMN($D74)),0),300),0) -> 0 | I77: =IF(VLOOKUP(Comp_V1_Type_Ex,DB_Vehicles,5,FALSE)="PHEV",MAX(IF(VLOOKUP(Comp_V1_Type_Ex,DB_Vehicles,5,FALSE)="PHEV",Reg_PHEV_Const_Ex+Reg_PHEV_Age_Coef_Ex*(COLUMN(I74)-COLUMN($D74))+Reg_PHEV_Agesq_Coef_Ex*((COLUMN(I74)-COLUMN($D74))^2)+Reg_PHEV_MSRP_Coef_Ex*Comp_V1_MSRP_Modeled+Reg_PHEV_Range_Coef_Ex*VLOOKUP(Comp_V1_Type_Ex,DB_Vehicles,7,FALSE)+Reg_PHEV_Mileage_Coef_Ex*Comp_V1_VMT_Modeled*(COLUMN(I74)-COLUMN($D74)),0),300),0) -> 0 | J77: =IF($H77-$I77=0,0,MAX((1-($H77-$I77)/$H77)*I77,300)) -> 0 | K77: 0 | L77: 0 | M77: 0 | N77: 0 | O77: 0 | P77: 0 | Q77: 0 | R77: 0 | S77: 0 | T77: 0 | U77: 0 | V77: 0 | W77: 0 | X77: 0 | Y77: 0 | Z77: 0 | AA77: 0 | AB77: 0 | AC77: 0
B78: Fair Market Value - ICE | D78: =IF(VLOOKUP(Comp_V1_Type_Ex,DB_Vehicles,5,FALSE)="ICE",Comp_V1_MSRP_Modeled,0) -> 0 | E78: =IF(VLOOKUP(Comp_V1_Type_Ex,DB_Vehicles,5,FALSE)="ICE",MAX(IF(VLOOKUP(Comp_V1_Type_Ex,DB_Vehicles,5,FALSE)="ICE",Reg_ICE_Const_Ex+Reg_ICE_Age_Coef_Ex*(COLUMN(E74)-COLUMN($D74))+Reg_ICE_Agesq_Coef_Ex*(COLUMN(E74)-COLUMN($D74))^2+Reg_ICE_MSRP_Coef_Ex*Comp_V1_MSRP_Modeled+Reg_ICE_MPG_Coef_Ex*VLOOKUP(Comp_V1_Type_Ex,DB_Vehicles,10,FALSE)+Reg_ICE_Mileage_Coef_Ex*Comp_V1_VMT_Modeled*(COLUMN(E74)-COLUMN($D74)),0),300),0) -> 0 | F78: =IF(VLOOKUP(Comp_V1_Type_Ex,DB_Vehicles,5,FALSE)="ICE",MAX(IF(VLOOKUP(Comp_V1_Type_Ex,DB_Vehicles,5,FALSE)="ICE",Reg_ICE_Const_Ex+Reg_ICE_Age_Coef_Ex*(COLUMN(F74)-COLUMN($D74))+Reg_ICE_Agesq_Coef_Ex*(COLUMN(F74)-COLUMN($D74))^2+Reg_ICE_MSRP_Coef_Ex*Comp_V1_MSRP_Modeled+Reg_ICE_MPG_Coef_Ex*VLOOKUP(Comp_V1_Type_Ex,DB_Vehicles,10,FALSE)+Reg_ICE_Mileage_Coef_Ex*Comp_V1_VMT_Modeled*(COLUMN(F74)-COLUMN($D74)),0),300),0) -> 0 | G78: =IF(VLOOKUP(Comp_V1_Type_Ex,DB_Vehicles,5,FALSE)="ICE",MAX(IF(VLOOKUP(Comp_V1_Type_Ex,DB_Vehicles,5,FALSE)="ICE",Reg_ICE_Const_Ex+Reg_ICE_Age_Coef_Ex*(COLUMN(G74)-COLUMN($D74))+Reg_ICE_Agesq_Coef_Ex*(COLUMN(G74)-COLUMN($D74))^2+Reg_ICE_MSRP_Coef_Ex*Comp_V1_MSRP_Modeled+Reg_ICE_MPG_Coef_Ex*VLOOKUP(Comp_V1_Type_Ex,DB_Vehicles,10,FALSE)+Reg_ICE_Mileage_Coef_Ex*Comp_V1_VMT_Modeled*(COLUMN(G74)-COLUMN($D74)),0),300),0) -> 0 | H78: =IF(VLOOKUP(Comp_V1_Type_Ex,DB_Vehicles,5,FALSE)="ICE",MAX(IF(VLOOKUP(Comp_V1_Type_Ex,DB_Vehicles,5,FALSE)="ICE",Reg_ICE_Const_Ex+Reg_ICE_Age_Coef_Ex*(COLUMN(H74)-COLUMN($D74))+Reg_ICE_Agesq_Coef_Ex*(COLUMN(H74)-COLUMN($D74))^2+Reg_ICE_MSRP_Coef_Ex*Comp_V1_MSRP_Modeled+Reg_ICE_MPG_Coef_Ex*VLOOKUP(Comp_V1_Type_Ex,DB_Vehicles,10,FALSE)+Reg_ICE_Mileage_Coef_Ex*Comp_V1_VMT_Modeled*(COLUMN(H74)-COLUMN($D74)),0),300),0) -> 0 | I78: =IF(VLOOKUP(Comp_V1_Type_Ex,DB_Vehicles,5,FALSE)="ICE",MAX(IF(VLOOKUP(Comp_V1_Type_Ex,DB_Vehicles,5,FALSE)="ICE",Reg_ICE_Const_Ex+Reg_ICE_Age_Coef_Ex*(COLUMN(I74)-COLUMN($D74))+Reg_ICE_Agesq_Coef_Ex*(COLUMN(I74)-COLUMN($D74))^2+Reg_ICE_MSRP_Coef_Ex*Comp_V1_MSRP_Modeled+Reg_ICE_MPG_Coef_Ex*VLOOKUP(Comp_V1_Type_Ex,DB_Vehicles,10,FALSE)+Reg_ICE_Mileage_Coef_Ex*Comp_V1_VMT_Modeled*(COLUMN(I74)-COLUMN($D74)),0),300),0) -> 0 | J78: =IF($H78-$I78=0,0,MAX((1-($H78-$I78)/$H78)*I78,300)) -> 0 | K78: 0 | L78: 0 | M78: 0 | N78: 0 | O78: 0 | P78: 0 | Q78: 0 | R78: 0 | S78: 0 | T78: 0 | U78: 0 | V78: 0 | W78: 0 | X78: 0 | Y78: 0 | Z78: 0 | AA78: 0 | AB78: 0 | AC78: 0
B80: Capital and Financing Costs
B81: Cash
B82: Cash Payment | D82: =IF(AND(Comp_V1_Has_Cash_Purchase_Ex=TRUE,Comp_V1_Has_Loan_Ex=FALSE,Comp_V1_Has_Lease_Ex=FALSE,COLUMN(D74)-COLUMN($D74)=0),-(Comp_V1_Base_Price_Ex-IF(Comp_V1_Tax_Incentives_Monetized="Yes",Comp_V1_Federal_Tax_Incentives_Modeled+IF(Comp_V1_State_Tax_Incentive_Cap_Modeled=0,Comp_V1_State_Tax_Incentives_Modeled,MIN(Comp_V1_State_Tax_Incentive_Cap_Modeled,Comp_V1_State_Tax_Incentives_Modeled*Comp_V1_Num_Vehicles_Modeled)/Comp_V1_Num_Vehicles_Modeled),0)-Comp_V1_Other_Incentives_Modeled),IF(AND(Comp_V1_Has_Cash_Purchase_Ex=TRUE,OR(Comp_V1_Has_Loan_Ex=TRUE,Comp_V1_Has_Lease_Ex=TRUE),COLUMN(D74)-COLUMN($D74)=Comp_V1_Lease_Term_Modeled),IF(ISERROR(FIND("Tax",_Comp_V1_Ownership_Structure,1)),-SUM(D76:D78),-Comp_V1_Lease_Residual_Price_Modeled),0)) -> -26026 | E82: 0 | F82: 0 | G82: 0 | H82: 0 | I82: 0 | J82: 0 | K82: 0 | L82: 0 | M82: 0 | N82: 0 | O82: 0 | P82: 0 | Q82: 0 | R82: 0 | S82: 0 | T82: 0 | U82: 0 | V82: 0 | W82: 0 | X82: 0 | Y82: 0 | Z82: 0 | AA82: 0 | AB82: 0 | AC82: 0
B83: Lease
B84: Down Payment | D84: =IF(Comp_V1_Has_Lease_Ex=TRUE,-Comp_V1_Down_Payment_Modeled,0) -> 0
B85: Acquisition Fee | D85: =IF(Comp_V1_Has_Lease_Ex=TRUE,-Comp_V1_Lease_Acquisition_Fee_Modeled,0) -> 0
B86: Disposition Charge | D86: =IF(AND(Comp_V1_Has_Lease_Ex=TRUE,((COLUMN(D74)-COLUMN($D74))=Comp_V1_Lease_Term_Modeled)),-Comp_V1_Lease_Disposition_Fee_Modeled,0) -> 0 | E86: 0 | F86: 0 | G86: 0 | H86: 0 | I86: 0 | J86: 0 | K86: 0 | L86: 0 | M86: 0 | N86: 0 | O86: 0 | P86: 0 | Q86: 0 | R86: 0 | S86: 0 | T86: 0 | U86: 0 | V86: 0 | W86: 0 | X86: 0 | Y86: 0 | Z86: 0 | AA86: 0 | AB86: 0 | AC86: 0
B87: Lease Payments | E87: =IF(Comp_V1_Has_Lease_Ex=TRUE,IF((COLUMN(E74)-COLUMN($E74))<Comp_V1_Lease_Term_Modeled,-PMT(Comp_V1_Lease_APR_Modeled/12,Comp_V1_Lease_Term_Modeled*12,-(Comp_V1_Base_Price_Ex-IF(Comp_V1_Tax_Incentives_Monetized="Yes",Comp_V1_Federal_Tax_Incentives_Modeled+IF(Comp_V1_State_Tax_Incentive_Cap_Modeled=0,Comp_V1_State_Tax_Incentives_Modeled,MIN(Comp_V1_State_Tax_Incentive_Cap_Modeled,Comp_V1_State_Tax_Incentives_Modeled*Comp_V1_Num_Vehicles_Modeled)/Comp_V1_Num_Vehicles_Modeled),0)-Comp_V1_Other_Incentives_Modeled-Comp_V1_Down_Payment_Modeled)+Comp_V1_Lease_Residual_Price_Modeled,0)*12,0),0) -> 0 | F87: 0 | G87: 0 | H87: 0 | I87: 0 | J87: 0 | K87: 0 | L87: 0 | M87: 0 | N87: 0 | O87: 0 | P87: 0 | Q87: 0 | R87: 0 | S87: 0 | T87: 0 | U87: 0 | V87: 0 | W87: 0 | X87: 0 | Y87: 0 | Z87: 0 | AA87: 0 | AB87: 0 | AC87: 0
B88: Principal Payments | E88: =IF(Comp_V1_Has_Lease_Ex=TRUE,IF((COLUMN(E74)-COLUMN($E74))<Comp_V1_Lease_Term_Modeled,-PPMT(Comp_V1_Lease_APR_Modeled/12,(COLUMN(E74)-COLUMN($D74))*12,Comp_V1_Lease_Term_Modeled*12,-(Comp_V1_Base_Price_Ex-IF(Comp_V1_Tax_Incentives_Monetized="Yes",Comp_V1_Federal_Tax_Incentives_Modeled+IF(Comp_V1_State_Tax_Incentive_Cap_Modeled=0,Comp_V1_State_Tax_Incentives_Modeled,MIN(Comp_V1_State_Tax_Incentive_Cap_Modeled,Comp_V1_State_Tax_Incentives_Modeled*Comp_V1_Num_Vehicles_Modeled)/Comp_V1_Num_Vehicles_Modeled),0)-Comp_V1_Other_Incentives_Modeled-Comp_V1_Down_Payment_Modeled)+Comp_V1_Lease_Residual_Price_Modeled,0)*12,0),0) -> 0 | F88: 0 | G88: 0 | H88: 0 | I88: 0 | J88: 0 | K88: 0 | L88: 0 | M88: 0 | N88: 0 | O88: 0 | P88: 0 | Q88: 0 | R88: 0 | S88: 0 | T88: 0 | U88: 0 | V88: 0 | W88: 0 | X88: 0 | Y88: 0 | Z88: 0 | AA88: 0 | AB88: 0 | AC88: 0
B89: Interest Payments | E89: =IF(Comp_V1_Has_Lease_Ex=TRUE,IF((COLUMN(E74)-COLUMN($E74))<Comp_V1_Lease_Term_Modeled,-IPMT(Comp_V1_Lease_APR_Modeled/12,(COLUMN(E74)-COLUMN($D74))*12,Comp_V1_Lease_Term_Modeled*12,-(Comp_V1_Base_Price_Ex-IF(Comp_V1_Tax_Incentives_Monetized="Yes",Comp_V1_Federal_Tax_Incentives_Modeled+IF(Comp_V1_State_Tax_Incentive_Cap_Modeled=0,Comp_V1_State_Tax_Incentives_Modeled,MIN(Comp_V1_State_Tax_Incentive_Cap_Modeled,Comp_V1_State_Tax_Incentives_Modeled*Comp_V1_Num_Vehicles_Modeled)/Comp_V1_Num_Vehicles_Modeled),0)-Comp_V1_Other_Incentives_Modeled-Comp_V1_Down_Payment_Modeled)+Comp_V1_Lease_Residual_Price_Modeled,0)*12,0),0) -> 0 | F89: 0 | G89: 0 | H89: 0 | I89: 0 | J89: 0 | K89: 0 | L89: 0 | M89: 0 | N89: 0 | O89: 0 | P89: 0 | Q89: 0 | R89: 0 | S89: 0 | T89: 0 | U89: 0 | V89: 0 | W89: 0 | X89: 0 | Y89: 0 | Z89: 0 | AA89: 0 | AB89: 0 | AC89: 0
B90: TRAC Value Adjustment | E90: =IF(ISERROR(FIND("TRAC",_Comp_V1_Ownership_Structure,1)),0,IF(Comp_V1_Has_Loan_Ex=TRUE,0,IF((COLUMN(E74)-COLUMN($D74))=Comp_V1_Lease_Term_Modeled,SUM(E76:E78)-Comp_V1_Lease_Residual_Price_Modeled,0))) -> 0 | F90: 0 | G90: 0 | H90: 0 | I90: 0 | J90: 0 | K90: 0 | L90: 0 | M90: 0 | N90: 0 | O90: 0 | P90: 0 | Q90: 0 | R90: 0 | S90: 0 | T90: 0 | U90: 0 | V90: 0 | W90: 0 | X90: 0 | Y90: 0 | Z90: 0 | AA90: 0 | AB90: 0 | AC90: 0
B91: FMV Mileage Adjustment | E91: =MIN(0,MAX(-Comp_V1_Lease_Residual_Price_Modeled+SUM(E76:E78),IF(IFERROR(IF(FIND("FMV",_Comp_V1_Ownership_Structure,1)>0,TRUE,FALSE),FALSE),IF((COLUMN(E74)-COLUMN($D74))=Comp_V1_Lease_Term_Modeled,(Comp_V1_Lease_Mileage_Inc_Modeled-Comp_V1_VMT_Modeled)*(COLUMN(E74)-COLUMN($D74))*Comp_V1_Lease_Mileage_Cost_Modeled,0),0))) -> 0 | F91: 0 | G91: 0 | H91: 0 | I91: 0 | J91: 0 | K91: 0 | L91: 0 | M91: 0 | N91: 0 | O91: 0 | P91: 0 | Q91: 0 | R91: 0 | S91: 0 | T91: 0 | U91: 0 | V91: 0 | W91: 0 | X91: 0 | Y91: 0 | Z91: 0 | AA91: 0 | AB91: 0 | AC91: 0
B92: Subtotal Lease Cash Flows | D92: =SUM(D84:D87)+SUM(D90:D91) -> 0 | E92: =SUM(E84:E87)+SUM(E90:E91) -> 0 | F92: 0 | G92: 0 | H92: 0 | I92: 0 | J92: 0 | K92: 0 | L92: 0 | M92: 0 | N92: 0 | O92: 0 | P92: 0 | Q92: 0 | R92: 0 | S92: 0 | T92: 0 | U92: 0 | V92: 0 | W92: 0 | X92: 0 | Y92: 0 | Z92: 0 | AA92: 0 | AB92: 0 | AC92: 0
B93: Loan
B94: Down Payment | D94: =IF(AND(Comp_V1_Has_Loan_Ex=TRUE,Comp_V1_Has_Lease_Ex=FALSE),-Comp_V1_Down_Payment_Modeled,0) -> 0
B95: Loan Payments | E95: =IF(Comp_V1_Has_Loan_Ex=TRUE,IF(AND((COLUMN(E74)-COLUMN($E74))<Comp_V1_Loan_Term_Modeled+Comp_V1_Lease_Term_Modeled,(COLUMN(E74)-COLUMN($E74))>=Comp_V1_Lease_Term_Modeled),PMT(Comp_V1_Loan_APR_Modeled/12,Comp_V1_Loan_Term_Modeled*12,IF(Comp_V1_Has_Lease_Ex=TRUE,SUM(OFFSET($D76,0,Comp_V1_Lease_Term_Modeled,3,1)),Comp_V1_Base_Price_Ex-IF(Comp_V1_Tax_Incentives_Monetized="Yes",Comp_V1_Federal_Tax_Incentives_Modeled+IF(Comp_V1_State_Tax_Incentive_Cap_Modeled=0,Comp_V1_State_Tax_Incentives_Modeled,MIN(Comp_V1_State_Tax_Incentive_Cap_Modeled,Comp_V1_State_Tax_Incentives_Modeled*Comp_V1_Num_Vehicles_Modeled)/Comp_V1_Num_Vehicles_Modeled),0)-Comp_V1_Other_Incentives_Modeled-Comp_V1_Down_Payment_Modeled),0)*12,0),0) -> 0 | F95: 0 | G95: 0 | H95: 0 | I95: 0 | J95: 0 | K95: 0 | L95: 0 | M95: 0 | N95: 0 | O95: 0 | P95: 0 | Q95: 0 | R95: 0 | S95: 0 | T95: 0 | U95: 0 | V95: 0 | W95: 0 | X95: 0 | Y95: 0 | Z95: 0 | AA95: 0 | AB95: 0 | AC95: 0
B96: Principal Payments | E96: =IF(Comp_V1_Has_Loan_Ex=TRUE,IF(AND((COLUMN(E74)-COLUMN($E74))<Comp_V1_Loan_Term_Modeled+Comp_V1_Lease_Term_Modeled,(COLUMN(E74)-COLUMN($E74))>=Comp_V1_Lease_Term_Modeled),PPMT(Comp_V1_Loan_APR_Modeled/12,IF(Comp_V1_Has_Lease_Ex=TRUE,(COLUMN(E74)-COLUMN($D74)-Comp_V1_Lease_Term_Modeled)*12,(COLUMN(E74)-COLUMN($D74))*12),Comp_V1_Loan_Term_Modeled*12,IF(Comp_V1_Has_Lease_Ex=TRUE,SUM(OFFSET($D76,0,Comp_V1_Lease_Term_Modeled,3,1)),Comp_V1_Base_Price_Ex-IF(Comp_V1_Tax_Incentives_Monetized="Yes",Comp_V1_Federal_Tax_Incentives_Modeled+IF(Comp_V1_State_Tax_Incentive_Cap_Modeled=0,Comp_V1_State_Tax_Incentives_Modeled,MIN(Comp_V1_State_Tax_Incentive_Cap_Modeled,Comp_V1_State_Tax_Incentives_Modeled*Comp_V1_Num_Vehicles_Modeled)/Comp_V1_Num_Vehicles_Modeled),0)-Comp_V1_Other_Incentives_Modeled-Comp_V1_Down_Payment_Modeled),0)*12,0),0) -> 0 | F96: 0 | G96: 0 | H96: 0 | I96: 0 | J96: 0 | K96: 0 | L96: 0 | M96: 0 | N96: 0 | O96: 0 | P96: 0 | Q96: 0 | R96: 0 | S96: 0 | T96: 0 | U96: 0 | V96: 0 | W96: 0 | X96: 0 | Y96: 0 | Z96: 0 | AA96: 0 | AB96: 0 | AC96: 0
B97: Interest Payments | E97: =IF(Comp_V1_Has_Loan_Ex=TRUE,IF(AND((COLUMN(E74)-COLUMN($E74))<Comp_V1_Loan_Term_Modeled+Comp_V1_Lease_Term_Modeled,(COLUMN(E74)-COLUMN($E74))>=Comp_V1_Lease_Term_Modeled),IPMT(Comp_V1_Loan_APR_Modeled/12,IF(Comp_V1_Has_Lease_Ex=TRUE,(COLUMN(E74)-COLUMN($D74)-Comp_V1_Lease_Term)*12,(COLUMN(E74)-COLUMN($D74))*12),Comp_V1_Loan_Term_Modeled*12,IF(Comp_V1_Has_Lease_Ex=TRUE,SUM(OFFSET($D76,0,Comp_V1_Lease_Term_Modeled,3,1)),Comp_V1_Base_Price_Ex-IF(Comp_V1_Tax_Incentives_Monetized="Yes",Comp_V1_Federal_Tax_Incentives_Modeled+IF(Comp_V1_State_Tax_Incentive_Cap_Modeled=0,Comp_V1_State_Tax_Incentives_Modeled,MIN(Comp_V1_State_Tax_Incentive_Cap_Modeled,Comp_V1_State_Tax_Incentives_Modeled*Comp_V1_Num_Vehicles_Modeled)/Comp_V1_Num_Vehicles_Modeled),0)-Comp_V1_Other_Incentives_Modeled-Comp_V1_Down_Payment_Modeled),0)*12,0),0) -> 0 | F97: 0 | G97: 0 | H97: 0 | I97: 0 | J97: 0 | K97: 0 | L97: 0 | M97: 0 | N97: 0 | O97: 0 | P97: 0 | Q97: 0 | R97: 0 | S97: 0 | T97: 0 | U97: 0 | V97: 0 | W97: 0 | X97: 0 | Y97: 0 | Z97: 0 | AA97: 0 | AB97: 0 | AC97: 0
B98: Subtotal Loan Cash Flows | D98: =SUM(D94:D95) -> 0 | E98: =SUM(E94:E95) -> 0 | F98: 0 | G98: 0 | H98: 0 | I98: 0 | J98: 0 | K98: 0 | L98: 0 | M98: 0 | N98: 0 | O98: 0 | P98: 0 | Q98: 0 | R98: 0 | S98: 0 | T98: 0 | U98: 0 | V98: 0 | W98: 0 | X98: 0 | Y98: 0 | Z98: 0 | AA98: 0 | AB98: 0 | AC98: 0
B99: Terminal Value | E99: =IF(OR(Comp_V1_Has_Loan_Ex=TRUE,Comp_V1_Has_Cash_Purchase_Ex=TRUE),IF((COLUMN(E74)-COLUMN($D74))=Comp_V1_Years_Usage_Modeled,SUM(E76:E78),0),0) -> 0 | F99: 0 | G99: 0 | H99: 0 | I99: 0 | J99: 0 | K99: 6041.00188 | L99: 0 | M99: 0 | N99: 0 | O99: 0 | P99: 0 | Q99: 0 | R99: 0 | S99: 0 | T99: 0 | U99: 0 | V99: 0 | W99: 0 | X99: 0 | Y99: 0 | Z99: 0 | AA99: 0 | AB99: 0 | AC99: 0
B101: Total Capital and Financing Costs | D101: =D82+D92+D98+D99 -> -26026 | E101: 0 | F101: 0 | G101: 0 | H101: 0 | I101: 0 | J101: 0 | K101: 6041.00188 | L101: 0 | M101: 0 | N101: 0 | O101: 0 | P101: 0 | Q101: 0 | R101: 0 | S101: 0 | T101: 0 | U101: 0 | V101: 0 | W101: 0 | X101: 0 | Y101: 0 | Z101: 0 | AA101: 0 | AB101: 0 | AC101: 0
B103: Fuel and Operating Costs
B104: Fuel Cost | E104: =IF(COLUMN(E74)-COLUMN($E74)<Comp_V1_Years_Usage_Modeled,-((Comp_V1_Gas_Usage_Ex*Gasoline_Price_Modeled*Data!C$142)+(Comp_V1_Electricity_Usage_Ex*Electricity_Price_Modeled*Data!C$144)),0) -> -296.2364034 | F104: =IF(COLUMN(F74)-COLUMN($E74)<Comp_V1_Years_Usage_Modeled,-((Comp_V1_Gas_Usage_Ex*Gasoline_Price_Modeled*Data!D$142)+(Comp_V1_Electricity_Usage_Ex*Electricity_Price_Modeled*Data!D$144)),0) -> -293.2522394 | G104: =IF(COLUMN(G74)-COLUMN($E74)<Comp_V1_Years_Usage_Modeled,-((Comp_V1_Gas_Usage_Ex*Gasoline_Price_Modeled*Data!E$142)+(Comp_V1_Electricity_Usage_Ex*Electricity_Price_Modeled*Data!E$144)),0) -> -304.139525 | H104: =IF(COLUMN(H74)-COLUMN($E74)<Comp_V1_Years_Usage_Modeled,-((Comp_V1_Gas_Usage_Ex*Gasoline_Price_Modeled*Data!F$142)+(Comp_V1_Electricity_Usage_Ex*Electricity_Price_Modeled*Data!F$144)),0) -> -320.3989294 | I104: =IF(COLUMN(I74)-COLUMN($E74)<Comp_V1_Years_Usage_Modeled,-((Comp_V1_Gas_Usage_Ex*Gasoline_Price_Modeled*Data!G$142)+(Comp_V1_Electricity_Usage_Ex*Electricity_Price_Modeled*Data!G$144)),0) -> -328.3231396 | J104: =IF(COLUMN(J74)-COLUMN($E74)<Comp_V1_Years_Usage_Modeled,-((Comp_V1_Gas_Usage_Ex*Gasoline_Price_Modeled*Data!H$142)+(Comp_V1_Electricity_Usage_Ex*Electricity_Price_Modeled*Data!H$144)),0) -> -334.7665841 | K104: =IF(COLUMN(K74)-COLUMN($E74)<Comp_V1_Years_Usage_Modeled,-((Comp_V1_Gas_Usage_Ex*Gasoline_Price_Modeled*Data!I$142)+(Comp_V1_Electricity_Usage_Ex*Electricity_Price_Modeled*Data!I$144)),0) -> -338.2898278 | L104: =IF(COLUMN(L74)-COLUMN($E74)<Comp_V1_Years_Usage_Modeled,-((Comp_V1_Gas_Usage_Ex*Gasoline_Price_Modeled*Data!J$142)+(Comp_V1_Electricity_Usage_Ex*Electricity_Price_Modeled*Data!J$144)),0) -> 0 | M104: =IF(COLUMN(M74)-COLUMN($E74)<Comp_V1_Years_Usage_Modeled,-((Comp_V1_Gas_Usage_Ex*Gasoline_Price_Modeled*Data!K$142)+(Comp_V1_Electricity_Usage_Ex*Electricity_Price_Modeled*Data!K$144)),0) -> 0 | N104: =IF(COLUMN(N74)-COLUMN($E74)<Comp_V1_Years_Usage_Modeled,-((Comp_V1_Gas_Usage_Ex*Gasoline_Price_Modeled*Data!L$142)+(Comp_V1_Electricity_Usage_Ex*Electricity_Price_Modeled*Data!L$144)),0) -> 0 | O104: =IF(COLUMN(O74)-COLUMN($E74)<Comp_V1_Years_Usage_Modeled,-((Comp_V1_Gas_Usage_Ex*Gasoline_Price_Modeled*Data!M$142)+(Comp_V1_Electricity_Usage_Ex*Electricity_Price_Modeled*Data!M$144)),0) -> 0 | P104: =IF(COLUMN(P74)-COLUMN($E74)<Comp_V1_Years_Usage_Modeled,-((Comp_V1_Gas_Usage_Ex*Gasoline_Price_Modeled*Data!N$142)+(Comp_V1_Electricity_Usage_Ex*Electricity_Price_Modeled*Data!N$144)),0) -> 0 | Q104: =IF(COLUMN(Q74)-COLUMN($E74)<Comp_V1_Years_Usage_Modeled,-((Comp_V1_Gas_Usage_Ex*Gasoline_Price_Modeled*Data!O$142)+(Comp_V1_Electricity_Usage_Ex*Electricity_Price_Modeled*Data!O$144)),0) -> 0 | R104: =IF(COLUMN(R74)-COLUMN($E74)<Comp_V1_Years_Usage_Modeled,-((Comp_V1_Gas_Usage_Ex*Gasoline_Price_Modeled*Data!P$142)+(Comp_V1_Electricity_Usage_Ex*Electricity_Price_Modeled*Data!P$144)),0) -> 0 | S104: =IF(COLUMN(S74)-COLUMN($E74)<Comp_V1_Years_Usage_Modeled,-((Comp_V1_Gas_Usage_Ex*Gasoline_Price_Modeled*Data!Q$142)+(Comp_V1_Electricity_Usage_Ex*Electricity_Price_Modeled*Data!Q$144)),0) -> 0 | T104: =IF(COLUMN(T74)-COLUMN($E74)<Comp_V1_Years_Usage_Modeled,-((Comp_V1_Gas_Usage_Ex*Gasoline_Price_Modeled*Data!R$142)+(Comp_V1_Electricity_Usage_Ex*Electricity_Price_Modeled*Data!R$144)),0) -> 0 | U104: =IF(COLUMN(U74)-COLUMN($E74)<Comp_V1_Years_Usage_Modeled,-((Comp_V1_Gas_Usage_Ex*Gasoline_Price_Modeled*Data!S$142)+(Comp_V1_Electricity_Usage_Ex*Electricity_Price_Modeled*Data!S$144)),0) -> 0 | V104: =IF(COLUMN(V74)-COLUMN($E74)<Comp_V1_Years_Usage_Modeled,-((Comp_V1_Gas_Usage_Ex*Gasoline_Price_Modeled*Data!T$142)+(Comp_V1_Electricity_Usage_Ex*Electricity_Price_Modeled*Data!T$144)),0) -> 0 | W104: =IF(COLUMN(W74)-COLUMN($E74)<Comp_V1_Years_Usage_Modeled,-((Comp_V1_Gas_Usage_Ex*Gasoline_Price_Modeled*Data!U$142)+(Comp_V1_Electricity_Usage_Ex*Electricity_Price_Modeled*Data!U$144)),0) -> 0 | X104: =IF(COLUMN(X74)-COLUMN($E74)<Comp_V1_Years_Usage_Modeled,-((Comp_V1_Gas_Usage_Ex*Gasoline_Price_Modeled*Data!V$142)+(Comp_V1_Electricity_Usage_Ex*Electricity_Price_Modeled*Data!V$144)),0) -> 0 | Y104: =IF(COLUMN(Y74)-COLUMN($E74)<Comp_V1_Years_Usage_Modeled,-((Comp_V1_Gas_Usage_Ex*Gasoline_Price_Modeled*Data!W$142)+(Comp_V1_Electricity_Usage_Ex*Electricity_Price_Modeled*Data!W$144)),0) -> 0 | Z104: =IF(COLUMN(Z74)-COLUMN($E74)<Comp_V1_Years_Usage_Modeled,-((Comp_V1_Gas_Usage_Ex*Gasoline_Price_Modeled*Data!X$142)+(Comp_V1_Electricity_Usage_Ex*Electricity_Price_Modeled*Data!X$144)),0) -> 0 | AA104: =IF(COLUMN(AA74)-COLUMN($E74)<Comp_V1_Years_Usage_Modeled,-((Comp_V1_Gas_Usage_Ex*Gasoline_Price_Modeled*Data!Y$142)+(Comp_V1_Electricity_Usage_Ex*Electricity_Price_Modeled*Data!Y$144)),0) -> 0 | AB104: =IF(COLUMN(AB74)-COLUMN($E74)<Comp_V1_Years_Usage_Modeled,-((Comp_V1_Gas_Usage_Ex*Gasoline_Price_Modeled*Data!Z$142)+(Comp_V1_Electricity_Usage_Ex*Electricity_Price_Modeled*Data!Z$144)),0) -> 0 | AC104: =IF(COLUMN(AC74)-COLUMN($E74)<Comp_V1_Years_Usage_Modeled,-((Comp_V1_Gas_Usage_Ex*Gasoline_Price_Modeled*Data!AA$142)+(Comp_V1_Electricity_Usage_Ex*Electricity_Price_Modeled*Data!AA$144)),0) -> 0
B105: Maintenance and Repair Cost | E105: =-IF(_Comp_V1_Maint_Repair_Cost_Use_Default="Yes",IF(COLUMN(E74)-COLUMN($E74)<Comp_V1_Years_Usage_Modeled,VLOOKUP(_Comp_V1_Vehicle_Drivetrain,DB_Maint_Repair_Costs[],COLUMN(E74)-COLUMN($E74)+2,FALSE)*Comp_V1_VMT_Modeled,0),IF(AND(COLUMN(E74)-COLUMN($E74)<Comp_V1_Years_Usage_Modeled,COLUMN(E74)-COLUMN($E74)<5),Comp_V1_Maint_Repair_Cost_Year_1_Modeled*Comp_V1_VMT_Modeled,IF(AND(COLUMN(E74)-COLUMN($E74)<Comp_V1_Years_Usage_Modeled,COLUMN(E74)-COLUMN($E74)>=5),Comp_V1_Maint_Repair_Cost_Year_5_Modeled*Comp_V1_VMT_Modeled,0)))*Data!E$150 -> -400 | F105: =-IF(_Comp_V1_Maint_Repair_Cost_Use_Default="Yes",IF(COLUMN(F74)-COLUMN($E74)<Comp_V1_Years_Usage_Modeled,VLOOKUP(_Comp_V1_Vehicle_Drivetrain,DB_Maint_Repair_Costs[],COLUMN(F74)-COLUMN($E74)+2,FALSE)*Comp_V1_VMT_Modeled,0),IF(AND(COLUMN(F74)-COLUMN($E74)<Comp_V1_Years_Usage_Modeled,COLUMN(F74)-COLUMN($E74)<5),Comp_V1_Maint_Repair_Cost_Year_1_Modeled*Comp_V1_VMT_Modeled,IF(AND(COLUMN(F74)-COLUMN($E74)<Comp_V1_Years_Usage_Modeled,COLUMN(F74)-COLUMN($E74)>=5),Comp_V1_Maint_Repair_Cost_Year_5_Modeled*Comp_V1_VMT_Modeled,0)))*Data!F$150 -> -408 | G105: =-IF(_Comp_V1_Maint_Repair_Cost_Use_Default="Yes",IF(COLUMN(G74)-COLUMN($E74)<Comp_V1_Years_Usage_Modeled,VLOOKUP(_Comp_V1_Vehicle_Drivetrain,DB_Maint_Repair_Costs[],COLUMN(G74)-COLUMN($E74)+2,FALSE)*Comp_V1_VMT_Modeled,0),IF(AND(COLUMN(G74)-COLUMN($E74)<Comp_V1_Years_Usage_Modeled,COLUMN(G74)-COLUMN($E74)<5),Comp_V1_Maint_Repair_Cost_Year_1_Modeled*Comp_V1_VMT_Modeled,IF(AND(COLUMN(G74)-COLUMN($E74)<Comp_V1_Years_Usage_Modeled,COLUMN(G74)-COLUMN($E74)>=5),Comp_V1_Maint_Repair_Cost_Year_5_Modeled*Comp_V1_VMT_Modeled,0)))*Data!G$150 -> -416.16 | H105: =-IF(_Comp_V1_Maint_Repair_Cost_Use_Default="Yes",IF(COLUMN(H74)-COLUMN($E74)<Comp_V1_Years_Usage_Modeled,VLOOKUP(_Comp_V1_Vehicle_Drivetrain,DB_Maint_Repair_Costs[],COLUMN(H74)-COLUMN($E74)+2,FALSE)*Comp_V1_VMT_Modeled,0),IF(AND(COLUMN(H74)-COLUMN($E74)<Comp_V1_Years_Usage_Modeled,COLUMN(H74)-COLUMN($E74)<5),Comp_V1_Maint_Repair_Cost_Year_1_Modeled*Comp_V1_VMT_Modeled,IF(AND(COLUMN(H74)-COLUMN($E74)<Comp_V1_Years_Usage_Modeled,COLUMN(H74)-COLUMN($E74)>=5),Comp_V1_Maint_Repair_Cost_Year_5_Modeled*Comp_V1_VMT_Modeled,0)))*Data!H$150 -> -424.4832 | I105: =-IF(_Comp_V1_Maint_Repair_Cost_Use_Default="Yes",IF(COLUMN(I74)-COLUMN($E74)<Comp_V1_Years_Usage_Modeled,VLOOKUP(_Comp_V1_Vehicle_Drivetrain,DB_Maint_Repair_Costs[],COLUMN(I74)-COLUMN($E74)+2,FALSE)*Comp_V1_VMT_Modeled,0),IF(AND(COLUMN(I74)-COLUMN($E74)<Comp_V1_Years_Usage_Modeled,COLUMN(I74)-COLUMN($E74)<5),Comp_V1_Maint_Repair_Cost_Year_1_Modeled*Comp_V1_VMT_Modeled,IF(AND(COLUMN(I74)-COLUMN($E74)<Comp_V1_Years_Usage_Modeled,COLUMN(I74)-COLUMN($E74)>=5),Comp_V1_Maint_Repair_Cost_Year_5_Modeled*Comp_V1_VMT_Modeled,0)))*Data!I$150 -> -432.972864 | J105: =-IF(_Comp_V1_Maint_Repair_Cost_Use_Default="Yes",IF(COLUMN(J74)-COLUMN($E74)<Comp_V1_Years_Usage_Modeled,VLOOKUP(_Comp_V1_Vehicle_Drivetrain,DB_Maint_Repair_Costs[],COLUMN(J74)-COLUMN($E74)+2,FALSE)*Comp_V1_VMT_Modeled,0),IF(AND(COLUMN(J74)-COLUMN($E74)<Comp_V1_Years_Usage_Modeled,COLUMN(J74)-COLUMN($E74)<5),Comp_V1_Maint_Repair_Cost_Year_1_Modeled*Comp_V1_VMT_Modeled,IF(AND(COLUMN(J74)-COLUMN($E74)<Comp_V1_Years_Usage_Modeled,COLUMN(J74)-COLUMN($E74)>=5),Comp_V1_Maint_Repair_Cost_Year_5_Modeled*Comp_V1_VMT_Modeled,0)))*Data!J$150 -> -574.1220177 | K105: =-IF(_Comp_V1_Maint_Repair_Cost_Use_Default="Yes",IF(COLUMN(K74)-COLUMN($E74)<Comp_V1_Years_Usage_Modeled,VLOOKUP(_Comp_V1_Vehicle_Drivetrain,DB_Maint_Repair_Costs[],COLUMN(K74)-COLUMN($E74)+2,FALSE)*Comp_V1_VMT_Modeled,0),IF(AND(COLUMN(K74)-COLUMN($E74)<Comp_V1_Years_Usage_Modeled,COLUMN(K74)-COLUMN($E74)<5),Comp_V1_Maint_Repair_Cost_Year_1_Modeled*Comp_V1_VMT_Modeled,IF(AND(COLUMN(K74)-COLUMN($E74)<Comp_V1_Years_Usage_Modeled,COLUMN(K74)-COLUMN($E74)>=5),Comp_V1_Maint_Repair_Cost_Year_5_Modeled*Comp_V1_VMT_Modeled,0)))*Data!K$150 -> -585.604458 | L105: =-IF(_Comp_V1_Maint_Repair_Cost_Use_Default="Yes",IF(COLUMN(L74)-COLUMN($E74)<Comp_V1_Years_Usage_Modeled,VLOOKUP(_Comp_V1_Vehicle_Drivetrain,DB_Maint_Repair_Costs[],COLUMN(L74)-COLUMN($E74)+2,FALSE)*Comp_V1_VMT_Modeled,0),IF(AND(COLUMN(L74)-COLUMN($E74)<Comp_V1_Years_Usage_Modeled,COLUMN(L74)-COLUMN($E74)<5),Comp_V1_Maint_Repair_Cost_Year_1_Modeled*Comp_V1_VMT_Modeled,IF(AND(COLUMN(L74)-COLUMN($E74)<Comp_V1_Years_Usage_Modeled,COLUMN(L74)-COLUMN($E74)>=5),Comp_V1_Maint_Repair_Cost_Year_5_Modeled*Comp_V1_VMT_Modeled,0)))*Data!L$150 -> 0 | M105: =-IF(_Comp_V1_Maint_Repair_Cost_Use_Default="Yes",IF(COLUMN(M74)-COLUMN($E74)<Comp_V1_Years_Usage_Modeled,VLOOKUP(_Comp_V1_Vehicle_Drivetrain,DB_Maint_Repair_Costs[],COLUMN(M74)-COLUMN($E74)+2,FALSE)*Comp_V1_VMT_Modeled,0),IF(AND(COLUMN(M74)-COLUMN($E74)<Comp_V1_Years_Usage_Modeled,COLUMN(M74)-COLUMN($E74)<5),Comp_V1_Maint_Repair_Cost_Year_1_Modeled*Comp_V1_VMT_Modeled,IF(AND(COLUMN(M74)-COLUMN($E74)<Comp_V1_Years_Usage_Modeled,COLUMN(M74)-COLUMN($E74)>=5),Comp_V1_Maint_Repair_Cost_Year_5_Modeled*Comp_V1_VMT_Modeled,0)))*Data!M$150 -> 0 | N105: =-IF(_Comp_V1_Maint_Repair_Cost_Use_Default="Yes",IF(COLUMN(N74)-COLUMN($E74)<Comp_V1_Years_Usage_Modeled,VLOOKUP(_Comp_V1_Vehicle_Drivetrain,DB_Maint_Repair_Costs[],COLUMN(N74)-COLUMN($E74)+2,FALSE)*Comp_V1_VMT_Modeled,0),IF(AND(COLUMN(N74)-COLUMN($E74)<Comp_V1_Years_Usage_Modeled,COLUMN(N74)-COLUMN($E74)<5),Comp_V1_Maint_Repair_Cost_Year_1_Modeled*Comp_V1_VMT_Modeled,IF(AND(COLUMN(N74)-COLUMN($E74)<Comp_V1_Years_Usage_Modeled,COLUMN(N74)-COLUMN($E74)>=5),Comp_V1_Maint_Repair_Cost_Year_5_Modeled*Comp_V1_VMT_Modeled,0)))*Data!N$150 -> 0 | O105: =-IF(_Comp_V1_Maint_Repair_Cost_Use_Default="Yes",IF(COLUMN(O74)-COLUMN($E74)<Comp_V1_Years_Usage_Modeled,VLOOKUP(_Comp_V1_Vehicle_Drivetrain,DB_Maint_Repair_Costs[],COLUMN(O74)-COLUMN($E74)+2,FALSE)*Comp_V1_VMT_Modeled,0),IF(AND(COLUMN(O74)-COLUMN($E74)<Comp_V1_Years_Usage_Modeled,COLUMN(O74)-COLUMN($E74)<5),Comp_V1_Maint_Repair_Cost_Year_1_Modeled*Comp_V1_VMT_Modeled,IF(AND(COLUMN(O74)-COLUMN($E74)<Comp_V1_Years_Usage_Modeled,COLUMN(O74)-COLUMN($E74)>=5),Comp_V1_Maint_Repair_Cost_Year_5_Modeled*Comp_V1_VMT_Modeled,0)))*Data!O$150 -> 0 | P105: =-IF(_Comp_V1_Maint_Repair_Cost_Use_Default="Yes",IF(COLUMN(P74)-COLUMN($E74)<Comp_V1_Years_Usage_Modeled,VLOOKUP(_Comp_V1_Vehicle_Drivetrain,DB_Maint_Repair_Costs[],COLUMN(P74)-COLUMN($E74)+2,FALSE)*Comp_V1_VMT_Modeled,0),IF(AND(COLUMN(P74)-COLUMN($E74)<Comp_V1_Years_Usage_Modeled,COLUMN(P74)-COLUMN($E74)<5),Comp_V1_Maint_Repair_Cost_Year_1_Modeled*Comp_V1_VMT_Modeled,IF(AND(COLUMN(P74)-COLUMN($E74)<Comp_V1_Years_Usage_Modeled,COLUMN(P74)-COLUMN($E74)>=5),Comp_V1_Maint_Repair_Cost_Year_5_Modeled*Comp_V1_VMT_Modeled,0)))*Data!P$150 -> 0 | Q105: =-IF(_Comp_V1_Maint_Repair_Cost_Use_Default="Yes",IF(COLUMN(Q74)-COLUMN($E74)<Comp_V1_Years_Usage_Modeled,VLOOKUP(_Comp_V1_Vehicle_Drivetrain,DB_Maint_Repair_Costs[],COLUMN(Q74)-COLUMN($E74)+2,FALSE)*Comp_V1_VMT_Modeled,0),IF(AND(COLUMN(Q74)-COLUMN($E74)<Comp_V1_Years_Usage_Modeled,COLUMN(Q74)-COLUMN($E74)<5),Comp_V1_Maint_Repair_Cost_Year_1_Modeled*Comp_V1_VMT_Modeled,IF(AND(COLUMN(Q74)-COLUMN($E74)<Comp_V1_Years_Usage_Modeled,COLUMN(Q74)-COLUMN($E74)>=5),Comp_V1_Maint_Repair_Cost_Year_5_Modeled*Comp_V1_VMT_Modeled,0)))*Data!Q$150 -> 0 | R105: =-IF(_Comp_V1_Maint_Repair_Cost_Use_Default="Yes",IF(COLUMN(R74)-COLUMN($E74)<Comp_V1_Years_Usage_Modeled,VLOOKUP(_Comp_V1_Vehicle_Drivetrain,DB_Maint_Repair_Costs[],COLUMN(R74)-COLUMN($E74)+2,FALSE)*Comp_V1_VMT_Modeled,0),IF(AND(COLUMN(R74)-COLUMN($E74)<Comp_V1_Years_Usage_Modeled,COLUMN(R74)-COLUMN($E74)<5),Comp_V1_Maint_Repair_Cost_Year_1_Modeled*Comp_V1_VMT_Modeled,IF(AND(COLUMN(R74)-COLUMN($E74)<Comp_V1_Years_Usage_Modeled,COLUMN(R74)-COLUMN($E74)>=5),Comp_V1_Maint_Repair_Cost_Year_5_Modeled*Comp_V1_VMT_Modeled,0)))*Data!R$150 -> 0 | S105: =-IF(_Comp_V1_Maint_Repair_Cost_Use_Default="Yes",IF(COLUMN(S74)-COLUMN($E74)<Comp_V1_Years_Usage_Modeled,VLOOKUP(_Comp_V1_Vehicle_Drivetrain,DB_Maint_Repair_Costs[],COLUMN(S74)-COLUMN($E74)+2,FALSE)*Comp_V1_VMT_Modeled,0),IF(AND(COLUMN(S74)-COLUMN($E74)<Comp_V1_Years_Usage_Modeled,COLUMN(S74)-COLUMN($E74)<5),Comp_V1_Maint_Repair_Cost_Year_1_Modeled*Comp_V1_VMT_Modeled,IF(AND(COLUMN(S74)-COLUMN($E74)<Comp_V1_Years_Usage_Modeled,COLUMN(S74)-COLUMN($E74)>=5),Comp_V1_Maint_Repair_Cost_Year_5_Modeled*Comp_V1_VMT_Modeled,0)))*Data!S$150 -> 0 | T105: =-IF(_Comp_V1_Maint_Repair_Cost_Use_Default="Yes",IF(COLUMN(T74)-COLUMN($E74)<Comp_V1_Years_Usage_Modeled,VLOOKUP(_Comp_V1_Vehicle_Drivetrain,DB_Maint_Repair_Costs[],COLUMN(T74)-COLUMN($E74)+2,FALSE)*Comp_V1_VMT_Modeled,0),IF(AND(COLUMN(T74)-COLUMN($E74)<Comp_V1_Years_Usage_Modeled,COLUMN(T74)-COLUMN($E74)<5),Comp_V1_Maint_Repair_Cost_Year_1_Modeled*Comp_V1_VMT_Modeled,IF(AND(COLUMN(T74)-COLUMN($E74)<Comp_V1_Years_Usage_Modeled,COLUMN(T74)-COLUMN($E74)>=5),Comp_V1_Maint_Repair_Cost_Year_5_Modeled*Comp_V1_VMT_Modeled,0)))*Data!T$150 -> 0 | U105: =-IF(_Comp_V1_Maint_Repair_Cost_Use_Default="Yes",IF(COLUMN(U74)-COLUMN($E74)<Comp_V1_Years_Usage_Modeled,VLOOKUP(_Comp_V1_Vehicle_Drivetrain,DB_Maint_Repair_Costs[],COLUMN(U74)-COLUMN($E74)+2,FALSE)*Comp_V1_VMT_Modeled,0),IF(AND(COLUMN(U74)-COLUMN($E74)<Comp_V1_Years_Usage_Modeled,COLUMN(U74)-COLUMN($E74)<5),Comp_V1_Maint_Repair_Cost_Year_1_Modeled*Comp_V1_VMT_Modeled,IF(AND(COLUMN(U74)-COLUMN($E74)<Comp_V1_Years_Usage_Modeled,COLUMN(U74)-COLUMN($E74)>=5),Comp_V1_Maint_Repair_Cost_Year_5_Modeled*Comp_V1_VMT_Modeled,0)))*Data!U$150 -> 0 | V105: =-IF(_Comp_V1_Maint_Repair_Cost_Use_Default="Yes",IF(COLUMN(V74)-COLUMN($E74)<Comp_V1_Years_Usage_Modeled,VLOOKUP(_Comp_V1_Vehicle_Drivetrain,DB_Maint_Repair_Costs[],COLUMN(V74)-COLUMN($E74)+2,FALSE)*Comp_V1_VMT_Modeled,0),IF(AND(COLUMN(V74)-COLUMN($E74)<Comp_V1_Years_Usage_Modeled,COLUMN(V74)-COLUMN($E74)<5),Comp_V1_Maint_Repair_Cost_Year_1_Modeled*Comp_V1_VMT_Modeled,IF(AND(COLUMN(V74)-COLUMN($E74)<Comp_V1_Years_Usage_Modeled,COLUMN(V74)-COLUMN($E74)>=5),Comp_V1_Maint_Repair_Cost_Year_5_Modeled*Comp_V1_VMT_Modeled,0)))*Data!V$150 -> 0 | W105: =-IF(_Comp_V1_Maint_Repair_Cost_Use_Default="Yes",IF(COLUMN(W74)-COLUMN($E74)<Comp_V1_Years_Usage_Modeled,VLOOKUP(_Comp_V1_Vehicle_Drivetrain,DB_Maint_Repair_Costs[],COLUMN(W74)-COLUMN($E74)+2,FALSE)*Comp_V1_VMT_Modeled,0),IF(AND(COLUMN(W74)-COLUMN($E74)<Comp_V1_Years_Usage_Modeled,COLUMN(W74)-COLUMN($E74)<5),Comp_V1_Maint_Repair_Cost_Year_1_Modeled*Comp_V1_VMT_Modeled,IF(AND(COLUMN(W74)-COLUMN($E74)<Comp_V1_Years_Usage_Modeled,COLUMN(W74)-COLUMN($E74)>=5),Comp_V1_Maint_Repair_Cost_Year_5_Modeled*Comp_V1_VMT_Modeled,0)))*Data!W$150 -> 0 | X105: =-IF(_Comp_V1_Maint_Repair_Cost_Use_Default="Yes",IF(COLUMN(X74)-COLUMN($E74)<Comp_V1_Years_Usage_Modeled,VLOOKUP(_Comp_V1_Vehicle_Drivetrain,DB_Maint_Repair_Costs[],COLUMN(X74)-COLUMN($E74)+2,FALSE)*Comp_V1_VMT_Modeled,0),IF(AND(COLUMN(X74)-COLUMN($E74)<Comp_V1_Years_Usage_Modeled,COLUMN(X74)-COLUMN($E74)<5),Comp_V1_Maint_Repair_Cost_Year_1_Modeled*Comp_V1_VMT_Modeled,IF(AND(COLUMN(X74)-COLUMN($E74)<Comp_V1_Years_Usage_Modeled,COLUMN(X74)-COLUMN($E74)>=5),Comp_V1_Maint_Repair_Cost_Year_5_Modeled*Comp_V1_VMT_Modeled,0)))*Data!X$150 -> 0 | Y105: =-IF(_Comp_V1_Maint_Repair_Cost_Use_Default="Yes",IF(COLUMN(Y74)-COLUMN($E74)<Comp_V1_Years_Usage_Modeled,VLOOKUP(_Comp_V1_Vehicle_Drivetrain,DB_Maint_Repair_Costs[],COLUMN(Y74)-COLUMN($E74)+2,FALSE)*Comp_V1_VMT_Modeled,0),IF(AND(COLUMN(Y74)-COLUMN($E74)<Comp_V1_Years_Usage_Modeled,COLUMN(Y74)-COLUMN($E74)<5),Comp_V1_Maint_Repair_Cost_Year_1_Modeled*Comp_V1_VMT_Modeled,IF(AND(COLUMN(Y74)-COLUMN($E74)<Comp_V1_Years_Usage_Modeled,COLUMN(Y74)-COLUMN($E74)>=5),Comp_V1_Maint_Repair_Cost_Year_5_Modeled*Comp_V1_VMT_Modeled,0)))*Data!Y$150 -> 0 | Z105: =-IF(_Comp_V1_Maint_Repair_Cost_Use_Default="Yes",IF(COLUMN(Z74)-COLUMN($E74)<Comp_V1_Years_Usage_Modeled,VLOOKUP(_Comp_V1_Vehicle_Drivetrain,DB_Maint_Repair_Costs[],COLUMN(Z74)-COLUMN($E74)+2,FALSE)*Comp_V1_VMT_Modeled,0),IF(AND(COLUMN(Z74)-COLUMN($E74)<Comp_V1_Years_Usage_Modeled,COLUMN(Z74)-COLUMN($E74)<5),Comp_V1_Maint_Repair_Cost_Year_1_Modeled*Comp_V1_VMT_Modeled,IF(AND(COLUMN(Z74)-COLUMN($E74)<Comp_V1_Years_Usage_Modeled,COLUMN(Z74)-COLUMN($E74)>=5),Comp_V1_Maint_Repair_Cost_Year_5_Modeled*Comp_V1_VMT_Modeled,0)))*Data!Z$150 -> 0 | AA105: =-IF(_Comp_V1_Maint_Repair_Cost_Use_Default="Yes",IF(COLUMN(AA74)-COLUMN($E74)<Comp_V1_Years_Usage_Modeled,VLOOKUP(_Comp_V1_Vehicle_Drivetrain,DB_Maint_Repair_Costs[],COLUMN(AA74)-COLUMN($E74)+2,FALSE)*Comp_V1_VMT_Modeled,0),IF(AND(COLUMN(AA74)-COLUMN($E74)<Comp_V1_Years_Usage_Modeled,COLUMN(AA74)-COLUMN($E74)<5),Comp_V1_Maint_Repair_Cost_Year_1_Modeled*Comp_V1_VMT_Modeled,IF(AND(COLUMN(AA74)-COLUMN($E74)<Comp_V1_Years_Usage_Modeled,COLUMN(AA74)-COLUMN($E74)>=5),Comp_V1_Maint_Repair_Cost_Year_5_Modeled*Comp_V1_VMT_Modeled,0)))*Data!AA$150 -> 0 | AB105: =-IF(_Comp_V1_Maint_Repair_Cost_Use_Default="Yes",IF(COLUMN(AB74)-COLUMN($E74)<Comp_V1_Years_Usage_Modeled,VLOOKUP(_Comp_V1_Vehicle_Drivetrain,DB_Maint_Repair_Costs[],COLUMN(AB74)-COLUMN($E74)+2,FALSE)*Comp_V1_VMT_Modeled,0),IF(AND(COLUMN(AB74)-COLUMN($E74)<Comp_V1_Years_Usage_Modeled,COLUMN(AB74)-COLUMN($E74)<5),Comp_V1_Maint_Repair_Cost_Year_1_Modeled*Comp_V1_VMT_Modeled,IF(AND(COLUMN(AB74)-COLUMN($E74)<Comp_V1_Years_Usage_Modeled,COLUMN(AB74)-COLUMN($E74)>=5),Comp_V1_Maint_Repair_Cost_Year_5_Modeled*Comp_V1_VMT_Modeled,0)))*Data!AB$150 -> 0 | AC105: =-IF(_Comp_V1_Maint_Repair_Cost_Use_Default="Yes",IF(COLUMN(AC74)-COLUMN($E74)<Comp_V1_Years_Usage_Modeled,VLOOKUP(_Comp_V1_Vehicle_Drivetrain,DB_Maint_Repair_Costs[],COLUMN(AC74)-COLUMN($E74)+2,FALSE)*Comp_V1_VMT_Modeled,0),IF(AND(COLUMN(AC74)-COLUMN($E74)<Comp_V1_Years_Usage_Modeled,COLUMN(AC74)-COLUMN($E74)<5),Comp_V1_Maint_Repair_Cost_Year_1_Modeled*Comp_V1_VMT_Modeled,IF(AND(COLUMN(AC74)-COLUMN($E74)<Comp_V1_Years_Usage_Modeled,COLUMN(AC74)-COLUMN($E74)>=5),Comp_V1_Maint_Repair_Cost_Year_5_Modeled*Comp_V1_VMT_Modeled,0)))*Data!AC$150 -> 0
B106: Taxes and Fees | D106: =-Comp_V1_Initial_Taxes_Fees_Modeled-(Comp_V1_Initial_Percent_Base_Price_Modeled*Comp_V1_Base_Price_Ex) -> -1000 | E106: =-IF(COLUMN(E74)-COLUMN($E74)<Comp_V1_Years_Usage_Modeled,Comp_V1_Taxes_Fees_Modeled,0)*Data!E$150 -> -10 | F106: =-IF(COLUMN(F74)-COLUMN($E74)<Comp_V1_Years_Usage_Modeled,Comp_V1_Taxes_Fees_Modeled,0)*Data!F$150 -> -10.2 | G106: =-IF(COLUMN(G74)-COLUMN($E74)<Comp_V1_Years_Usage_Modeled,Comp_V1_Taxes_Fees_Modeled,0)*Data!G$150 -> -10.404 | H106: =-IF(COLUMN(H74)-COLUMN($E74)<Comp_V1_Years_Usage_Modeled,Comp_V1_Taxes_Fees_Modeled,0)*Data!H$150 -> -10.61208 | I106: =-IF(COLUMN(I74)-COLUMN($E74)<Comp_V1_Years_Usage_Modeled,Comp_V1_Taxes_Fees_Modeled,0)*Data!I$150 -> -10.8243216 | J106: =-IF(COLUMN(J74)-COLUMN($E74)<Comp_V1_Years_Usage_Modeled,Comp_V1_Taxes_Fees_Modeled,0)*Data!J$150 -> -11.04080803 | K106: =-IF(COLUMN(K74)-COLUMN($E74)<Comp_V1_Years_Usage_Modeled,Comp_V1_Taxes_Fees_Modeled,0)*Data!K$150 -> -11.26162419 | L106: =-IF(COLUMN(L74)-COLUMN($E74)<Comp_V1_Years_Usage_Modeled,Comp_V1_Taxes_Fees_Modeled,0)*Data!L$150 -> 0 | M106: =-IF(COLUMN(M74)-COLUMN($E74)<Comp_V1_Years_Usage_Modeled,Comp_V1_Taxes_Fees_Modeled,0)*Data!M$150 -> 0 | N106: =-IF(COLUMN(N74)-COLUMN($E74)<Comp_V1_Years_Usage_Modeled,Comp_V1_Taxes_Fees_Modeled,0)*Data!N$150 -> 0 | O106: =-IF(COLUMN(O74)-COLUMN($E74)<Comp_V1_Years_Usage_Modeled,Comp_V1_Taxes_Fees_Modeled,0)*Data!O$150 -> 0 | P106: =-IF(COLUMN(P74)-COLUMN($E74)<Comp_V1_Years_Usage_Modeled,Comp_V1_Taxes_Fees_Modeled,0)*Data!P$150 -> 0 | Q106: =-IF(COLUMN(Q74)-COLUMN($E74)<Comp_V1_Years_Usage_Modeled,Comp_V1_Taxes_Fees_Modeled,0)*Data!Q$150 -> 0 | R106: =-IF(COLUMN(R74)-COLUMN($E74)<Comp_V1_Years_Usage_Modeled,Comp_V1_Taxes_Fees_Modeled,0)*Data!R$150 -> 0 | S106: =-IF(COLUMN(S74)-COLUMN($E74)<Comp_V1_Years_Usage_Modeled,Comp_V1_Taxes_Fees_Modeled,0)*Data!S$150 -> 0 | T106: =-IF(COLUMN(T74)-COLUMN($E74)<Comp_V1_Years_Usage_Modeled,Comp_V1_Taxes_Fees_Modeled,0)*Data!T$150 -> 0 | U106: =-IF(COLUMN(U74)-COLUMN($E74)<Comp_V1_Years_Usage_Modeled,Comp_V1_Taxes_Fees_Modeled,0)*Data!U$150 -> 0 | V106: =-IF(COLUMN(V74)-COLUMN($E74)<Comp_V1_Years_Usage_Modeled,Comp_V1_Taxes_Fees_Modeled,0)*Data!V$150 -> 0 | W106: =-IF(COLUMN(W74)-COLUMN($E74)<Comp_V1_Years_Usage_Modeled,Comp_V1_Taxes_Fees_Modeled,0)*Data!W$150 -> 0 | X106: =-IF(COLUMN(X74)-COLUMN($E74)<Comp_V1_Years_Usage_Modeled,Comp_V1_Taxes_Fees_Modeled,0)*Data!X$150 -> 0 | Y106: =-IF(COLUMN(Y74)-COLUMN($E74)<Comp_V1_Years_Usage_Modeled,Comp_V1_Taxes_Fees_Modeled,0)*Data!Y$150 -> 0 | Z106: =-IF(COLUMN(Z74)-COLUMN($E74)<Comp_V1_Years_Usage_Modeled,Comp_V1_Taxes_Fees_Modeled,0)*Data!Z$150 -> 0 | AA106: =-IF(COLUMN(AA74)-COLUMN($E74)<Comp_V1_Years_Usage_Modeled,Comp_V1_Taxes_Fees_Modeled,0)*Data!AA$150 -> 0 | AB106: =-IF(COLUMN(AB74)-COLUMN($E74)<Comp_V1_Years_Usage_Modeled,Comp_V1_Taxes_Fees_Modeled,0)*Data!AB$150 -> 0 | AC106: =-IF(COLUMN(AC74)-COLUMN($E74)<Comp_V1_Years_Usage_Modeled,Comp_V1_Taxes_Fees_Modeled,0)*Data!AC$150 -> 0
B107: Insurance Cost | E107: =-IF(COLUMN(E74)-COLUMN($E74)<Comp_V1_Years_Usage_Modeled,Comp_V1_Insurance_Cost_Modeled,0)*Data!E$150 -> -550 | F107: =-IF(COLUMN(F74)-COLUMN($E74)<Comp_V1_Years_Usage_Modeled,Comp_V1_Insurance_Cost_Modeled,0)*Data!F$150 -> -561 | G107: =-IF(COLUMN(G74)-COLUMN($E74)<Comp_V1_Years_Usage_Modeled,Comp_V1_Insurance_Cost_Modeled,0)*Data!G$150 -> -572.22 | H107: =-IF(COLUMN(H74)-COLUMN($E74)<Comp_V1_Years_Usage_Modeled,Comp_V1_Insurance_Cost_Modeled,0)*Data!H$150 -> -583.6644 | I107: =-IF(COLUMN(I74)-COLUMN($E74)<Comp_V1_Years_Usage_Modeled,Comp_V1_Insurance_Cost_Modeled,0)*Data!I$150 -> -595.337688 | J107: =-IF(COLUMN(J74)-COLUMN($E74)<Comp_V1_Years_Usage_Modeled,Comp_V1_Insurance_Cost_Modeled,0)*Data!J$150 -> -607.2444418 | K107: =-IF(COLUMN(K74)-COLUMN($E74)<Comp_V1_Years_Usage_Modeled,Comp_V1_Insurance_Cost_Modeled,0)*Data!K$150 -> -619.3893306 | L107: =-IF(COLUMN(L74)-COLUMN($E74)<Comp_V1_Years_Usage_Modeled,Comp_V1_Insurance_Cost_Modeled,0)*Data!L$150 -> 0 | M107: =-IF(COLUMN(M74)-COLUMN($E74)<Comp_V1_Years_Usage_Modeled,Comp_V1_Insurance_Cost_Modeled,0)*Data!M$150 -> 0 | N107: =-IF(COLUMN(N74)-COLUMN($E74)<Comp_V1_Years_Usage_Modeled,Comp_V1_Insurance_Cost_Modeled,0)*Data!N$150 -> 0 | O107: =-IF(COLUMN(O74)-COLUMN($E74)<Comp_V1_Years_Usage_Modeled,Comp_V1_Insurance_Cost_Modeled,0)*Data!O$150 -> 0 | P107: =-IF(COLUMN(P74)-COLUMN($E74)<Comp_V1_Years_Usage_Modeled,Comp_V1_Insurance_Cost_Modeled,0)*Data!P$150 -> 0 | Q107: =-IF(COLUMN(Q74)-COLUMN($E74)<Comp_V1_Years_Usage_Modeled,Comp_V1_Insurance_Cost_Modeled,0)*Data!Q$150 -> 0 | R107: =-IF(COLUMN(R74)-COLUMN($E74)<Comp_V1_Years_Usage_Modeled,Comp_V1_Insurance_Cost_Modeled,0)*Data!R$150 -> 0 | S107: =-IF(COLUMN(S74)-COLUMN($E74)<Comp_V1_Years_Usage_Modeled,Comp_V1_Insurance_Cost_Modeled,0)*Data!S$150 -> 0 | T107: =-IF(COLUMN(T74)-COLUMN($E74)<Comp_V1_Years_Usage_Modeled,Comp_V1_Insurance_Cost_Modeled,0)*Data!T$150 -> 0 | U107: =-IF(COLUMN(U74)-COLUMN($E74)<Comp_V1_Years_Usage_Modeled,Comp_V1_Insurance_Cost_Modeled,0)*Data!U$150 -> 0 | V107: =-IF(COLUMN(V74)-COLUMN($E74)<Comp_V1_Years_Usage_Modeled,Comp_V1_Insurance_Cost_Modeled,0)*Data!V$150 -> 0 | W107: =-IF(COLUMN(W74)-COLUMN($E74)<Comp_V1_Years_Usage_Modeled,Comp_V1_Insurance_Cost_Modeled,0)*Data!W$150 -> 0 | X107: =-IF(COLUMN(X74)-COLUMN($E74)<Comp_V1_Years_Usage_Modeled,Comp_V1_Insurance_Cost_Modeled,0)*Data!X$150 -> 0 | Y107: =-IF(COLUMN(Y74)-COLUMN($E74)<Comp_V1_Years_Usage_Modeled,Comp_V1_Insurance_Cost_Modeled,0)*Data!Y$150 -> 0 | Z107: =-IF(COLUMN(Z74)-COLUMN($E74)<Comp_V1_Years_Usage_Modeled,Comp_V1_Insurance_Cost_Modeled,0)*Data!Z$150 -> 0 | AA107: =-IF(COLUMN(AA74)-COLUMN($E74)<Comp_V1_Years_Usage_Modeled,Comp_V1_Insurance_Cost_Modeled,0)*Data!AA$150 -> 0 | AB107: =-IF(COLUMN(AB74)-COLUMN($E74)<Comp_V1_Years_Usage_Modeled,Comp_V1_Insurance_Cost_Modeled,0)*Data!AB$150 -> 0 | AC107: =-IF(COLUMN(AC74)-COLUMN($E74)<Comp_V1_Years_Usage_Modeled,Comp_V1_Insurance_Cost_Modeled,0)*Data!AC$150 -> 0
B108: Subtotal Fuel and Operating Costs | D108: =SUM(D104:D107) -> -1000 | E108: -1256.236403 | F108: -1272.452239 | G108: -1302.923525 | H108: -1339.158609 | I108: -1367.458013 | J108: -1527.173852 | K108: -1554.545241 | L108: 0 | M108: 0 | N108: 0 | O108: 0 | P108: 0 | Q108: 0 | R108: 0 | S108: 0 | T108: 0 | U108: 0 | V108: 0 | W108: 0 | X108: 0 | Y108: 0 | Z108: 0 | AA108: 0 | AB108: 0 | AC108: 0
B110: Other Costs
B111: Cost of Carbon | E111: =-IF(COLUMN(E74)-COLUMN($E74)<Comp_V1_Years_Usage_Modeled,Comp_V1_CO2_Ex/2204.62*Carbon_Price_Modeled,0) -> 0 | F111: 0 | G111: 0 | H111: 0 | I111: 0 | J111: 0 | K111: 0 | L111: 0 | M111: 0 | N111: 0 | O111: 0 | P111: 0 | Q111: 0 | R111: 0 | S111: 0 | T111: 0 | U111: 0 | V111: 0 | W111: 0 | X111: 0 | Y111: 0 | Z111: 0 | AA111: 0 | AB111: 0 | AC111: 0
B112: Subtotal Other Costs | D112: =SUM(D111:D111) -> 0 | E112: 0 | F112: 0 | G112: 0 | H112: 0 | I112: 0 | J112: 0 | K112: 0 | L112: 0 | M112: 0 | N112: 0 | O112: 0 | P112: 0 | Q112: 0 | R112: 0 | S112: 0 | T112: 0 | U112: 0 | V112: 0 | W112: 0 | X112: 0 | Y112: 0 | Z112: 0 | AA112: 0 | AB112: 0 | AC112: =SUM(AC111:AC111) -> 0
B114: Total Discounted Costs
B115: Total Annual Costs | D115: =D101+D108+D112 -> -27026 | E115: -1256.236403 | F115: -1272.452239 | G115: -1302.923525 | H115: -1339.158609 | I115: -1367.458013 | J115: -1527.173852 | K115: 4486.45664 | L115: 0 | M115: 0 | N115: 0 | O115: 0 | P115: 0 | Q115: 0 | R115: 0 | S115: 0 | T115: 0 | U115: 0 | V115: 0 | W115: 0 | X115: 0 | Y115: 0 | Z115: 0 | AA115: 0 | AB115: 0 | AC115: 0
B116: Discount Factor | C116: =Comp_Discount_Rate_Modeled -> 0 | D116: =(1/(1+$C116))^(COLUMN(D74)-COLUMN($D74)) -> 1 | E116: 1 | F116: 1 | G116: 1 | H116: 1 | I116: 1 | J116: 1 | K116: 1 | L116: 1 | M116: 1 | N116: 1 | O116: 1 | P116: 1 | Q116: 1 | R116: 1 | S116: 1 | T116: 1 | U116: 1 | V116: 1 | W116: 1 | X116: 1 | Y116: 1 | Z116: 1 | AA116: 1 | AB116: 1 | AC116: 1
B117: Discounted Total | D117: =D115*D116 -> -27026 | E117: =E115*E116 -> -1256.236403 | F117: =F115*F116 -> -1272.452239 | G117: -1302.923525 | H117: -1339.158609 | I117: -1367.458013 | J117: -1527.173852 | K117: 4486.45664 | L117: 0 | M117: 0 | N117: 0 | O117: 0 | P117: 0 | Q117: 0 | R117: 0 | S117: 0 | T117: 0 | U117: 0 | V117: 0 | W117: 0 | X117: 0 | Y117: 0 | Z117: 0 | AA117: 0 | AB117: 0 | AC117: 0
B118: Cumulative Discounted Total | D118: =IF((COLUMN(D74)-COLUMN($D74))<=Comp_V1_Years_Usage_Modeled,C118+D117,0) -> -27026 | E118: -28282.2364 | F118: -29554.68864 | G118: -30857.61217 | H118: -32196.77078 | I118: -33564.22879 | J118: -35091.40264 | K118: -30604.946 | L118: 0 | M118: 0 | N118: 0 | O118: 0 | P118: 0 | Q118: 0 | R118: 0 | S118: 0 | T118: 0 | U118: 0 | V118: 0 | W118: 0 | X118: 0 | Y118: 0 | Z118: 0 | AA118: 0 | AB118: 0 | AC118: 0
B119: Annualized NPV Total Cost of Ownership | D119: =OFFSET($D118,0,Comp_V1_Years_Usage_Modeled)/Comp_V1_Years_Usage_Modeled -> -4372.135143
B121: Comparison EV Infrastructure
D122: Year 0 | E122: Year 1 | F122: Year 2 | G122: Year 3 | H122: Year 4 | I122: Year 5 | J122: Year 6 | K122: Year 7 | L122: Year 8 | M122: Year 9 | N122: Year 10 | O122: Year 11 | P122: Year 12 | Q122: Year 13 | R122: Year 14 | S122: Year 15 | T122: Year 16 | U122: Year 17 | V122: Year 18 | W122: Year 19 | X122: Year 20 | Y122: Year 21 | Z122: Year 22 | AA122: Year 23 | AB122: Year 24 | AC122: Year 25
B123: Capital and Financing Costs
B124: Cash
B125: Cash Payment | D125: =IF(AND(Comp_Inf_Has_Cash_Purchase_Ex=TRUE,_Comp_Include_Charging="Yes"),-Comp_Num_Stations_Modeled*Comp_Station_Cost_Modeled,0) -> 0
B126: Loan
B127: Down Payment | D127: =IF(AND(Comp_Inf_Has_Cash_Purchase_Ex=FALSE,_Comp_Include_Charging="Yes"),-Comp_Inf_Down_Payment_Modeled,0) -> 0
B128: Loan Payments | E128: =IF(AND(Comp_Inf_Has_Cash_Purchase_Ex=FALSE,_Comp_Include_Charging="Yes",(COLUMN(E122)-COLUMN($E122))<Comp_Inf_Loan_Term_Modeled),PMT(Comp_Inf_Loan_APR_Modeled/12,Comp_Inf_Loan_Term_Modeled*12,(Comp_Num_Stations_Modeled*Comp_Station_Cost_Modeled)-Comp_Inf_Down_Payment_Modeled,0)*12,0) -> 0 | F128: 0 | G128: 0 | H128: 0 | I128: 0 | J128: 0 | K128: 0 | L128: 0 | M128: 0 | N128: 0 | O128: 0 | P128: 0 | Q128: 0 | R128: 0 | S128: 0 | T128: 0 | U128: 0 | V128: 0 | W128: 0 | X128: 0 | Y128: 0 | Z128: 0 | AA128: 0 | AB128: 0 | AC128: 0
B129: Subtotal Loan Cash Flows | D129: =SUM(D127:D128) -> 0 | E129: 0 | F129: 0 | G129: 0 | H129: 0 | I129: 0 | J129: 0 | K129: 0 | L129: 0 | M129: 0 | N129: 0 | O129: 0 | P129: 0 | Q129: 0 | R129: 0 | S129: 0 | T129: 0 | U129: 0 | V129: 0 | W129: 0 | X129: 0 | Y129: 0 | Z129: 0 | AA129: 0 | AB129: 0 | AC129: 0
B131: Total Capital and Financing Costs | D131: =D125+D129 -> 0 | E131: =E125+E129 -> 0 | F131: 0 | G131: 0 | H131: 0 | I131: 0 | J131: 0 | K131: 0 | L131: 0 | M131: 0 | N131: 0 | O131: 0 | P131: 0 | Q131: 0 | R131: 0 | S131: 0 | T131: 0 | U131: 0 | V131: 0 | W131: 0 | X131: 0 | Y131: 0 | Z131: 0 | AA131: 0 | AB131: 0 | AC131: 0
B133: Operating Costs
B134: Maintenance Cost | E134: =-IF(AND(COLUMN(E122)-COLUMN($E122)<Comp_V1_Years_Usage_Modeled,_Comp_Include_Charging="Yes"),Comp_Station_Maint_Cost_Modeled*Comp_Num_Stations_Modeled,0)*Data!E$150 -> 0 | F134: =-IF(AND(COLUMN(F122)-COLUMN($E122)<Comp_V1_Years_Usage_Modeled,_Comp_Include_Charging="Yes"),Comp_Station_Maint_Cost_Modeled*Comp_Num_Stations_Modeled,0)*Data!F$150 -> 0 | G134: =-IF(AND(COLUMN(G122)-COLUMN($E122)<Comp_V1_Years_Usage_Modeled,_Comp_Include_Charging="Yes"),Comp_Station_Maint_Cost_Modeled*Comp_Num_Stations_Modeled,0)*Data!G$150 -> 0 | H134: =-IF(AND(COLUMN(H122)-COLUMN($E122)<Comp_V1_Years_Usage_Modeled,_Comp_Include_Charging="Yes"),Comp_Station_Maint_Cost_Modeled*Comp_Num_Stations_Modeled,0)*Data!H$150 -> 0 | I134: =-IF(AND(COLUMN(I122)-COLUMN($E122)<Comp_V1_Years_Usage_Modeled,_Comp_Include_Charging="Yes"),Comp_Station_Maint_Cost_Modeled*Comp_Num_Stations_Modeled,0)*Data!I$150 -> 0 | J134: =-IF(AND(COLUMN(J122)-COLUMN($E122)<Comp_V1_Years_Usage_Modeled,_Comp_Include_Charging="Yes"),Comp_Station_Maint_Cost_Modeled*Comp_Num_Stations_Modeled,0)*Data!J$150 -> 0 | K134: =-IF(AND(COLUMN(K122)-COLUMN($E122)<Comp_V1_Years_Usage_Modeled,_Comp_Include_Charging="Yes"),Comp_Station_Maint_Cost_Modeled*Comp_Num_Stations_Modeled,0)*Data!K$150 -> 0 | L134: =-IF(AND(COLUMN(L122)-COLUMN($E122)<Comp_V1_Years_Usage_Modeled,_Comp_Include_Charging="Yes"),Comp_Station_Maint_Cost_Modeled*Comp_Num_Stations_Modeled,0)*Data!L$150 -> 0 | M134: =-IF(AND(COLUMN(M122)-COLUMN($E122)<Comp_V1_Years_Usage_Modeled,_Comp_Include_Charging="Yes"),Comp_Station_Maint_Cost_Modeled*Comp_Num_Stations_Modeled,0)*Data!M$150 -> 0 | N134: =-IF(AND(COLUMN(N122)-COLUMN($E122)<Comp_V1_Years_Usage_Modeled,_Comp_Include_Charging="Yes"),Comp_Station_Maint_Cost_Modeled*Comp_Num_Stations_Modeled,0)*Data!N$150 -> 0 | O134: =-IF(AND(COLUMN(O122)-COLUMN($E122)<Comp_V1_Years_Usage_Modeled,_Comp_Include_Charging="Yes"),Comp_Station_Maint_Cost_Modeled*Comp_Num_Stations_Modeled,0)*Data!O$150 -> 0 | P134: =-IF(AND(COLUMN(P122)-COLUMN($E122)<Comp_V1_Years_Usage_Modeled,_Comp_Include_Charging="Yes"),Comp_Station_Maint_Cost_Modeled*Comp_Num_Stations_Modeled,0)*Data!P$150 -> 0 | Q134: =-IF(AND(COLUMN(Q122)-COLUMN($E122)<Comp_V1_Years_Usage_Modeled,_Comp_Include_Charging="Yes"),Comp_Station_Maint_Cost_Modeled*Comp_Num_Stations_Modeled,0)*Data!Q$150 -> 0 | R134: =-IF(AND(COLUMN(R122)-COLUMN($E122)<Comp_V1_Years_Usage_Modeled,_Comp_Include_Charging="Yes"),Comp_Station_Maint_Cost_Modeled*Comp_Num_Stations_Modeled,0)*Data!R$150 -> 0 | S134: =-IF(AND(COLUMN(S122)-COLUMN($E122)<Comp_V1_Years_Usage_Modeled,_Comp_Include_Charging="Yes"),Comp_Station_Maint_Cost_Modeled*Comp_Num_Stations_Modeled,0)*Data!S$150 -> 0 | T134: =-IF(AND(COLUMN(T122)-COLUMN($E122)<Comp_V1_Years_Usage_Modeled,_Comp_Include_Charging="Yes"),Comp_Station_Maint_Cost_Modeled*Comp_Num_Stations_Modeled,0)*Data!T$150 -> 0 | U134: =-IF(AND(COLUMN(U122)-COLUMN($E122)<Comp_V1_Years_Usage_Modeled,_Comp_Include_Charging="Yes"),Comp_Station_Maint_Cost_Modeled*Comp_Num_Stations_Modeled,0)*Data!U$150 -> 0 | V134: =-IF(AND(COLUMN(V122)-COLUMN($E122)<Comp_V1_Years_Usage_Modeled,_Comp_Include_Charging="Yes"),Comp_Station_Maint_Cost_Modeled*Comp_Num_Stations_Modeled,0)*Data!V$150 -> 0 | W134: =-IF(AND(COLUMN(W122)-COLUMN($E122)<Comp_V1_Years_Usage_Modeled,_Comp_Include_Charging="Yes"),Comp_Station_Maint_Cost_Modeled*Comp_Num_Stations_Modeled,0)*Data!W$150 -> 0 | X134: =-IF(AND(COLUMN(X122)-COLUMN($E122)<Comp_V1_Years_Usage_Modeled,_Comp_Include_Charging="Yes"),Comp_Station_Maint_Cost_Modeled*Comp_Num_Stations_Modeled,0)*Data!X$150 -> 0 | Y134: =-IF(AND(COLUMN(Y122)-COLUMN($E122)<Comp_V1_Years_Usage_Modeled,_Comp_Include_Charging="Yes"),Comp_Station_Maint_Cost_Modeled*Comp_Num_Stations_Modeled,0)*Data!Y$150 -> 0 | Z134: =-IF(AND(COLUMN(Z122)-COLUMN($E122)<Comp_V1_Years_Usage_Modeled,_Comp_Include_Charging="Yes"),Comp_Station_Maint_Cost_Modeled*Comp_Num_Stations_Modeled,0)*Data!Z$150 -> 0 | AA134: =-IF(AND(COLUMN(AA122)-COLUMN($E122)<Comp_V1_Years_Usage_Modeled,_Comp_Include_Charging="Yes"),Comp_Station_Maint_Cost_Modeled*Comp_Num_Stations_Modeled,0)*Data!AA$150 -> 0 | AB134: =-IF(AND(COLUMN(AB122)-COLUMN($E122)<Comp_V1_Years_Usage_Modeled,_Comp_Include_Charging="Yes"),Comp_Station_Maint_Cost_Modeled*Comp_Num_Stations_Modeled,0)*Data!AB$150 -> 0 | AC134: =-IF(AND(COLUMN(AC122)-COLUMN($E122)<Comp_V1_Years_Usage_Modeled,_Comp_Include_Charging="Yes"),Comp_Station_Maint_Cost_Modeled*Comp_Num_Stations_Modeled,0)*Data!AC$150 -> 0
B135: Subtotal Operating Costs | E135: =SUM(E134:E134) -> 0 | F135: 0 | G135: 0 | H135: 0 | I135: 0 | J135: 0 | K135: 0 | L135: 0 | M135: 0 | N135: 0 | O135: 0 | P135: 0 | Q135: 0 | R135: 0 | S135: 0 | T135: 0 | U135: 0 | V135: 0 | W135: 0 | X135: 0 | Y135: 0 | Z135: 0 | AA135: 0 | AB135: 0 | AC135: 0
B136: Total Discounted Costs
B137: Total Annual Costs | D137: =D131+D135 -> 0 | E137: =E131+E135 -> 0 | F137: 0 | G137: 0 | H137: 0 | I137: 0 | J137: 0 | K137: 0 | L137: 0 | M137: 0 | N137: 0 | O137: 0 | P137: 0 | Q137: 0 | R137: 0 | S137: 0 | T137: 0 | U137: 0 | V137: 0 | W137: 0 | X137: 0 | Y137: 0 | Z137: 0 | AA137: 0 | AB137: 0 | AC137: 0
B138: Discount Factor | C138: =Comp_Discount_Rate_Modeled -> 0 | D138: =(1/(1+$C138))^(COLUMN(D122)-COLUMN($D122)) -> 1 | E138: 1 | F138: 1 | G138: 1 | H138: 1 | I138: 1 | J138: 1 | K138: 1 | L138: 1 | M138: 1 | N138: 1 | O138: 1 | P138: 1 | Q138: 1 | R138: 1 | S138: 1 | T138: 1 | U138: 1 | V138: 1 | W138: 1 | X138: 1 | Y138: 1 | Z138: 1 | AA138: 1 | AB138: 1 | AC138: 1
B139: Discounted Total | D139: =D137*D138 -> 0 | E139: =E137*E138 -> 0 | F139: =F137*F138 -> 0 | G139: 0 | H139: 0 | I139: 0 | J139: 0 | K139: 0 | L139: 0 | M139: 0 | N139: 0 | O139: 0 | P139: 0 | Q139: 0 | R139: 0 | S139: 0 | T139: 0 | U139: 0 | V139: 0 | W139: 0 | X139: 0 | Y139: 0 | Z139: 0 | AA139: 0 | AB139: 0 | AC139: 0
B140: Cumulative Discounted Total | D140: =IF((COLUMN(D122)-COLUMN($D122))<=Comp_V1_Years_Usage_Modeled,C140+D139,0) -> 0 | E140: 0 | F140: 0 | G140: 0 | H140: 0 | I140: 0 | J140: 0 | K140: 0 | L140: 0 | M140: 0 | N140: 0 | O140: 0 | P140: 0 | Q140: 0 | R140: 0 | S140: 0 | T140: 0 | U140: 0 | V140: 0 | W140: 0 | X140: 0 | Y140: 0 | Z140: 0 | AA140: 0 | AB140: 0 | AC140: 0
B141: Annualized NPV Total Cost of Ownership | D141: =OFFSET($D140,0,Comp_V1_Years_Usage_Modeled)/Comp_V1_Years_Usage_Modeled -> 0

Sheet Results Tables (hidden)
A1: Results Tables - EV Fleet Procurement Analysis Tool
B3: Total Cost per Vehicle
C4: =Base_V1_Type_Ex&" (Baseline)" -> 2017 Chevrolet Cruze ICE (Baseline) | D4: =Comp_V1_Type_Ex&" (Comparison)" -> 2017 Chevrolet Bolt EV BEV (Comparison)
B5: Depreciation (less tax credits and incentives) | C5: =SUM('Financial Model'!D31:AC31)-SUM('Financial Model'!D19:AC19)-SUM('Financial Model'!D27:AC27) -> -15360.11348 | D5: =SUM('Financial Model'!D101:AC101)-SUM('Financial Model'!D89:AC89)-SUM('Financial Model'!D97:AC97) -> -19984.99812
B6: Financing | C6: =SUM('Financial Model'!E19:AC19)+SUM('Financial Model'!E27:AC27) -> 0 | D6: =SUM('Financial Model'!E89:AC89)+SUM('Financial Model'!E97:AC97) -> 0
B7: Fuel | C7: =SUM('Financial Model'!D34:AC34) -> -6223.403763 | D7: =SUM('Financial Model'!D104:AC104) -> -2215.406649
B8: Maintenance and Repairs | C8: =SUM('Financial Model'!D35:AC35) -> -6482.685079 | D8: =SUM('Financial Model'!D105:AC105) -> -3241.34254
B9: Taxes & Fees | C9: =SUM('Financial Model'!D36:AC36) -> -1074.342834 | D9: =SUM('Financial Model'!D106:AC106) -> -1074.342834
B10: Insurance | C10: =SUM('Financial Model'!D37:AC37) -> -4088.85586 | D10: =SUM('Financial Model'!D107:AC107) -> -4088.85586
B11: Carbon | C11: =SUM('Financial Model'!D41:AC41) -> 0 | D11: =SUM('Financial Model'!D111:AC111) -> 0
B12: Vehicle Total | C12: =SUM(C5:C11) -> -33229.40102 | D12: =SUM(D5:D11) -> -30604.946
B13: Vehicle Total - Check | C13: =SUM('Financial Model'!D45:AC45) -> -33229.40102 | D13: =SUM('Financial Model'!D115:AC115) -> -30604.946
B14: Infrastructure per Vehicle | C14: =SUM('Financial Model'!D67:AC67)/Base_V1_Num_Vehicles_Modeled -> 0 | D14: =SUM('Financial Model'!D137:AC137)/Comp_V1_Num_Vehicles_Modeled -> 0
B15: Grand Total | C15: =C12+C14 -> -33229.40102 | D15: =D12+D14 -> -30604.946
B17: Vehicle Cost per Mile
C18: =C4 -> 2017 Chevrolet Cruze ICE (Baseline) | D18: =D4 -> 2017 Chevrolet Bolt EV BEV (Comparison)
B19: Depreciation (less tax credits and incentives) | C19: =-C5/(Base_V1_VMT_Modeled*Base_V1_Years_Usage_Modeled) -> 0.2194301926 | D19: =-D5/(Comp_V1_VMT_Modeled*Comp_V1_Years_Usage_Modeled) -> 0.2854999731
B20: Financing | C20: 0 | D20: 0
B21: Fuel | C21: 0.08890576804 | D21: 0.03164866641
B22: Maintenance and Repairs | C22: 0.09260978685 | D22: 0.04630489342
B23: Taxes & Fees | C23: 0.01534775477 | D23: 0.01534775477
B24: Insurance | C24: 0.05841222658 | D24: 0.05841222658
B25: Carbon | C25: 0 | D25: 0
B26: Vehicle Total | C26: =SUM(C19:C25) -> 0.4747057288 | D26: =SUM(D19:D25) -> 0.4372135143
B27: Vehicle Total - Check | C27: =-C13/(Base_V1_VMT_Modeled*Base_V1_Years_Usage_Modeled) -> 0.4747057288 | D27: =-D13/(Comp_V1_VMT_Modeled*Comp_V1_Years_Usage_Modeled) -> 0.4372135143
B28: Charging Infrastructure | C28: =-C14/(Base_V1_VMT_Modeled*Base_V1_Years_Usage_Modeled) -> 0 | D28: =-D14/(Comp_V1_VMT_Modeled*Comp_V1_Years_Usage_Modeled) -> 0
B29: Grand Total | C29: =-C15/(Base_V1_VMT_Modeled*Base_V1_Years_Usage_Modeled) -> 0.4747057288 | D29: =-D15/(Comp_V1_VMT_Modeled*Comp_V1_Years_Usage_Modeled) -> 0.4372135143
B31: Gasoline Displaced
C32: =C4 -> 2017 Chevrolet Cruze ICE (Baseline) | D32: =D4 -> 2017 Chevrolet Bolt EV BEV (Comparison)
B33: Gallons of Gasoline / Year / Vehicle | C33: =Base_V1_Gas_Usage_Ex -> 295.8333333 | D33: =Comp_V1_Gas_Usage_Ex -> 0
B34: Number of Years | C34: =Base_V1_Years_Usage_Modeled -> 7 | D34: =Comp_V1_Years_Usage_Modeled -> 7
B35: Number of Vehicles | C35: =Base_V1_Num_Vehicles_Modeled -> 19 | D35: =Comp_V1_Num_Vehicles_Modeled -> 19
B36: Total Gasoline Consumption (Gallons) | C36: =C33*C34*C35 -> 39345.83333 | D36: =D33*D34*D35 -> 0
B37: Gasoline Consumption / Mile (Average) | C37: =C33/Base_V1_VMT_Modeled -> 0.02958333333 | D37: =D33/Comp_V1_VMT_Modeled -> 0
B39: Cash Flow Chart
B41: =Base_V1_Type_Ex&" (Baseline)" -> 2017 Chevrolet Cruze ICE (Baseline)
C42: Year 0 | D42: Year 1 | E42: Year 2 | F42: Year 3 | G42: Year 4 | H42: Year 5 | I42: Year 6 | J42: Year 7 | K42: Year 8 | L42: Year 9 | M42: Year 10 | N42: Year 11 | O42: Year 12 | P42: Year 13 | Q42: Year 14 | R42: Year 15 | S42: Year 16 | T42: Year 17 | U42: Year 18 | V42: Year 19 | W42: Year 20 | X42: Year 21 | Y42: Year 22 | Z42: Year 23 | AA42: Year 24 | AB42: Year 25 | AC42: Totals
B43: Principal (less tax credits and incentives) | C43: =('Financial Model'!D31-'Financial Model'!D27-'Financial Model'!D29)*Base_V1_Num_Vehicles_Modeled -> -346256 | D43: =('Financial Model'!E31-'Financial Model'!E27-'Financial Model'!E29)*Base_V1_Num_Vehicles_Modeled -> 0 | E43: =('Financial Model'!F31-'Financial Model'!F27-'Financial Model'!F29)*Base_V1_Num_Vehicles_Modeled -> 0 | F43: =('Financial Model'!G31-'Financial Model'!G27-'Financial Model'!G29)*Base_V1_Num_Vehicles_Modeled -> 0 | G43: =('Financial Model'!H31-'Financial Model'!H27-'Financial Model'!H29)*Base_V1_Num_Vehicles_Modeled -> 0 | H43: =('Financial Model'!I31-'Financial Model'!I27-'Financial Model'!I29)*Base_V1_Num_Vehicles_Modeled -> 0 | I43: =('Financial Model'!J31-'Financial Model'!J27-'Financial Model'!J29)*Base_V1_Num_Vehicles_Modeled -> 0 | J43: =('Financial Model'!K31-'Financial Model'!K27-'Financial Model'!K29)*Base_V1_Num_Vehicles_Modeled -> 0 | K43: =('Financial Model'!L31-'Financial Model'!L27-'Financial Model'!L29)*Base_V1_Num_Vehicles_Modeled -> 0 | L43: =('Financial Model'!M31-'Financial Model'!M27-'Financial Model'!M29)*Base_V1_Num_Vehicles_Modeled -> 0 | M43: =('Financial Model'!N31-'Financial Model'!N27-'Financial Model'!N29)*Base_V1_Num_Vehicles_Modeled -> 0 | N43: =('Financial Model'!O31-'Financial Model'!O27-'Financial Model'!O29)*Base_V1_Num_Vehicles_Modeled -> 0 | O43: =('Financial Model'!P31-'Financial Model'!P27-'Financial Model'!P29)*Base_V1_Num_Vehicles_Modeled -> 0 | P43: =('Financial Model'!Q31-'Financial Model'!Q27-'Financial Model'!Q29)*Base_V1_Num_Vehicles_Modeled -> 0 | Q43: =('Financial Model'!R31-'Financial Model'!R27-'Financial Model'!R29)*Base_V1_Num_Vehicles_Modeled -> 0 | R43: =('Financial Model'!S31-'Financial Model'!S27-'Financial Model'!S29)*Base_V1_Num_Vehicles_Modeled -> 0 | S43: =('Financial Model'!T31-'Financial Model'!T27-'Financial Model'!T29)*Base_V1_Num_Vehicles_Modeled -> 0 | T43: =('Financial Model'!U31-'Financial Model'!U27-'Financial Model'!U29)*Base_V1_Num_Vehicles_Modeled -> 0 | U43: =('Financial Model'!V31-'Financial Model'!V27-'Financial Model'!V29)*Base_V1_Num_Vehicles_Modeled -> 0 | V43: =('Financial Model'!W31-'Financial Model'!W27-'Financial Model'!W29)*Base_V1_Num_Vehicles_Modeled -> 0 | W43: =('Financial Model'!X31-'Financial Model'!X27-'Financial Model'!X29)*Base_V1_Num_Vehicles_Modeled -> 0 | X43: =('Financial Model'!Y31-'Financial Model'!Y27-'Financial Model'!Y29)*Base_V1_Num_Vehicles_Modeled -> 0 | Y43: =('Financial Model'!Z31-'Financial Model'!Z27-'Financial Model'!Z29)*Base_V1_Num_Vehicles_Modeled -> 0 | Z43: =('Financial Model'!AA31-'Financial Model'!AA27-'Financial Model'!AA29)*Base_V1_Num_Vehicles_Modeled -> 0 | AA43: =('Financial Model'!AB31-'Financial Model'!AB27-'Financial Model'!AB29)*Base_V1_Num_Vehicles_Modeled -> 0 | AB43: =('Financial Model'!AC31-'Financial Model'!AC27-'Financial Model'!AC29)*Base_V1_Num_Vehicles_Modeled -> 0 | AC43: =SUM(C43:AB43) -> -346256
B44: Financing | C44: ='Financial Model'!D27*Base_V1_Num_Vehicles_Modeled -> 0 | D44: ='Financial Model'!E27*Base_V1_Num_Vehicles_Modeled -> 0 | E44: ='Financial Model'!F27*Base_V1_Num_Vehicles_Modeled -> 0 | F44: ='Financial Model'!G27*Base_V1_Num_Vehicles_Modeled -> 0 | G44: ='Financial Model'!H27*Base_V1_Num_Vehicles_Modeled -> 0 | H44: ='Financial Model'!I27*Base_V1_Num_Vehicles_Modeled -> 0 | I44: ='Financial Model'!J27*Base_V1_Num_Vehicles_Modeled -> 0 | J44: ='Financial Model'!K27*Base_V1_Num_Vehicles_Modeled -> 0 | K44: ='Financial Model'!L27*Base_V1_Num_Vehicles_Modeled -> 0 | L44: ='Financial Model'!M27*Base_V1_Num_Vehicles_Modeled -> 0 | M44: ='Financial Model'!N27*Base_V1_Num_Vehicles_Modeled -> 0 | N44: ='Financial Model'!O27*Base_V1_Num_Vehicles_Modeled -> 0 | O44: ='Financial Model'!P27*Base_V1_Num_Vehicles_Modeled -> 0 | P44: ='Financial Model'!Q27*Base_V1_Num_Vehicles_Modeled -> 0 | Q44: ='Financial Model'!R27*Base_V1_Num_Vehicles_Modeled -> 0 | R44: ='Financial Model'!S27*Base_V1_Num_Vehicles_Modeled -> 0 | S44: ='Financial Model'!T27*Base_V1_Num_Vehicles_Modeled -> 0 | T44: ='Financial Model'!U27*Base_V1_Num_Vehicles_Modeled -> 0 | U44: ='Financial Model'!V27*Base_V1_Num_Vehicles_Modeled -> 0 | V44: ='Financial Model'!W27*Base_V1_Num_Vehicles_Modeled -> 0 | W44: ='Financial Model'!X27*Base_V1_Num_Vehicles_Modeled -> 0 | X44: ='Financial Model'!Y27*Base_V1_Num_Vehicles_Modeled -> 0 | Y44: ='Financial Model'!Z27*Base_V1_Num_Vehicles_Modeled -> 0 | Z44: ='Financial Model'!AA27*Base_V1_Num_Vehicles_Modeled -> 0 | AA44: ='Financial Model'!AB27*Base_V1_Num_Vehicles_Modeled -> 0 | AB44: ='Financial Model'!AC27*Base_V1_Num_Vehicles_Modeled -> 0 | AC44: =SUM(C44:AB44) -> 0
B45: Residual Value (Vehicle Sale) | C45: ='Financial Model'!D29*Base_V1_Num_Vehicles_Modeled -> 0 | D45: ='Financial Model'!E29*Base_V1_Num_Vehicles_Modeled -> 0 | E45: ='Financial Model'!F29*Base_V1_Num_Vehicles_Modeled -> 0 | F45: ='Financial Model'!G29*Base_V1_Num_Vehicles_Modeled -> 0 | G45: ='Financial Model'!H29*Base_V1_Num_Vehicles_Modeled -> 0 | H45: ='Financial Model'!I29*Base_V1_Num_Vehicles_Modeled -> 0 | I45: ='Financial Model'!J29*Base_V1_Num_Vehicles_Modeled -> 0 | J45: ='Financial Model'!K29*Base_V1_Num_Vehicles_Modeled -> 54413.84388 | K45: ='Financial Model'!L29*Base_V1_Num_Vehicles_Modeled -> 0 | L45: ='Financial Model'!M29*Base_V1_Num_Vehicles_Modeled -> 0 | M45: ='Financial Model'!N29*Base_V1_Num_Vehicles_Modeled -> 0 | N45: ='Financial Model'!O29*Base_V1_Num_Vehicles_Modeled -> 0 | O45: ='Financial Model'!P29*Base_V1_Num_Vehicles_Modeled -> 0 | P45: ='Financial Model'!Q29*Base_V1_Num_Vehicles_Modeled -> 0 | Q45: ='Financial Model'!R29*Base_V1_Num_Vehicles_Modeled -> 0 | R45: ='Financial Model'!S29*Base_V1_Num_Vehicles_Modeled -> 0 | S45: ='Financial Model'!T29*Base_V1_Num_Vehicles_Modeled -> 0 | T45: ='Financial Model'!U29*Base_V1_Num_Vehicles_Modeled -> 0 | U45: ='Financial Model'!V29*Base_V1_Num_Vehicles_Modeled -> 0 | V45: ='Financial Model'!W29*Base_V1_Num_Vehicles_Modeled -> 0 | W45: ='Financial Model'!X29*Base_V1_Num_Vehicles_Modeled -> 0 | X45: ='Financial Model'!Y29*Base_V1_Num_Vehicles_Modeled -> 0 | Y45: ='Financial Model'!Z29*Base_V1_Num_Vehicles_Modeled -> 0 | Z45: ='Financial Model'!AA29*Base_V1_Num_Vehicles_Modeled -> 0 | AA45: ='Financial Model'!AB29*Base_V1_Num_Vehicles_Modeled -> 0 | AB45: ='Financial Model'!AC29*Base_V1_Num_Vehicles_Modeled -> 0 | AC45: 54413.84388
B46: Fuel | C46: ='Financial Model'!D34*Base_V1_Num_Vehicles_Modeled -> 0 | D46: ='Financial Model'!E34*Base_V1_Num_Vehicles_Modeled -> -13585.55417 | E46: ='Financial Model'!F34*Base_V1_Num_Vehicles_Modeled -> -14793.2756 | F46: ='Financial Model'!G34*Base_V1_Num_Vehicles_Modeled -> -15879.92961 | G46: ='Financial Model'!H34*Base_V1_Num_Vehicles_Modeled -> -17475.4752 | H46: ='Financial Model'!I34*Base_V1_Num_Vehicles_Modeled -> -18352.68026 | I46: ='Financial Model'!J34*Base_V1_Num_Vehicles_Modeled -> -18933.92316 | J46: ='Financial Model'!K34*Base_V1_Num_Vehicles_Modeled -> -19223.83349 | K46: ='Financial Model'!L34*Base_V1_Num_Vehicles_Modeled -> 0 | L46: ='Financial Model'!M34*Base_V1_Num_Vehicles_Modeled -> 0 | M46: ='Financial Model'!N34*Base_V1_Num_Vehicles_Modeled -> 0 | N46: ='Financial Model'!O34*Base_V1_Num_Vehicles_Modeled -> 0 | O46: ='Financial Model'!P34*Base_V1_Num_Vehicles_Modeled -> 0 | P46: ='Financial Model'!Q34*Base_V1_Num_Vehicles_Modeled -> 0 | Q46: ='Financial Model'!R34*Base_V1_Num_Vehicles_Modeled -> 0 | R46: ='Financial Model'!S34*Base_V1_Num_Vehicles_Modeled -> 0 | S46: ='Financial Model'!T34*Base_V1_Num_Vehicles_Modeled -> 0 | T46: ='Financial Model'!U34*Base_V1_Num_Vehicles_Modeled -> 0 | U46: ='Financial Model'!V34*Base_V1_Num_Vehicles_Modeled -> 0 | V46: ='Financial Model'!W34*Base_V1_Num_Vehicles_Modeled -> 0 | W46: ='Financial Model'!X34*Base_V1_Num_Vehicles_Modeled -> 0 | X46: ='Financial Model'!Y34*Base_V1_Num_Vehicles_Modeled -> 0 | Y46: ='Financial Model'!Z34*Base_V1_Num_Vehicles_Modeled -> 0 | Z46: ='Financial Model'!AA34*Base_V1_Num_Vehicles_Modeled -> 0 | AA46: ='Financial Model'!AB34*Base_V1_Num_Vehicles_Modeled -> 0 | AB46: ='Financial Model'!AC34*Base_V1_Num_Vehicles_Modeled -> 0 | AC46: -118244.6715
B47: Maintenance and Repairs | C47: ='Financial Model'!D35*Base_V1_Num_Vehicles_Modeled -> 0 | D47: ='Financial Model'!E35*Base_V1_Num_Vehicles_Modeled -> -15200 | E47: ='Financial Model'!F35*Base_V1_Num_Vehicles_Modeled -> -15504 | F47: ='Financial Model'!G35*Base_V1_Num_Vehicles_Modeled -> -15814.08 | G47: ='Financial Model'!H35*Base_V1_Num_Vehicles_Modeled -> -16130.3616 | H47: ='Financial Model'!I35*Base_V1_Num_Vehicles_Modeled -> -16452.96883 | I47: ='Financial Model'!J35*Base_V1_Num_Vehicles_Modeled -> -21816.63667 | J47: ='Financial Model'!K35*Base_V1_Num_Vehicles_Modeled -> -22252.9694 | K47: ='Financial Model'!L35*Base_V1_Num_Vehicles_Modeled -> 0 | L47: ='Financial Model'!M35*Base_V1_Num_Vehicles_Modeled -> 0 | M47: ='Financial Model'!N35*Base_V1_Num_Vehicles_Modeled -> 0 | N47: ='Financial Model'!O35*Base_V1_Num_Vehicles_Modeled -> 0 | O47: ='Financial Model'!P35*Base_V1_Num_Vehicles_Modeled -> 0 | P47: ='Financial Model'!Q35*Base_V1_Num_Vehicles_Modeled -> 0 | Q47: ='Financial Model'!R35*Base_V1_Num_Vehicles_Modeled -> 0 | R47: ='Financial Model'!S35*Base_V1_Num_Vehicles_Modeled -> 0 | S47: ='Financial Model'!T35*Base_V1_Num_Vehicles_Modeled -> 0 | T47: ='Financial Model'!U35*Base_V1_Num_Vehicles_Modeled -> 0 | U47: ='Financial Model'!V35*Base_V1_Num_Vehicles_Modeled -> 0 | V47: ='Financial Model'!W35*Base_V1_Num_Vehicles_Modeled -> 0 | W47: ='Financial Model'!X35*Base_V1_Num_Vehicles_Modeled -> 0 | X47: ='Financial Model'!Y35*Base_V1_Num_Vehicles_Modeled -> 0 | Y47: ='Financial Model'!Z35*Base_V1_Num_Vehicles_Modeled -> 0 | Z47: ='Financial Model'!AA35*Base_V1_Num_Vehicles_Modeled -> 0 | AA47: ='Financial Model'!AB35*Base_V1_Num_Vehicles_Modeled -> 0 | AB47: ='Financial Model'!AC35*Base_V1_Num_Vehicles_Modeled -> 0 | AC47: -123171.0165
B48: Taxes & Fees | C48: ='Financial Model'!D36*Base_V1_Num_Vehicles_Modeled -> -19000 | D48: ='Financial Model'!E36*Base_V1_Num_Vehicles_Modeled -> -190 | E48: ='Financial Model'!F36*Base_V1_Num_Vehicles_Modeled -> -193.8 | F48: ='Financial Model'!G36*Base_V1_Num_Vehicles_Modeled -> -197.676 | G48: ='Financial Model'!H36*Base_V1_Num_Vehicles_Modeled -> -201.62952 | H48: ='Financial Model'!I36*Base_V1_Num_Vehicles_Modeled -> -205.6621104 | I48: ='Financial Model'!J36*Base_V1_Num_Vehicles_Modeled -> -209.7753526 | J48: ='Financial Model'!K36*Base_V1_Num_Vehicles_Modeled -> -213.9708597 | K48: ='Financial Model'!L36*Base_V1_Num_Vehicles_Modeled -> 0 | L48: ='Financial Model'!M36*Base_V1_Num_Vehicles_Modeled -> 0 | M48: ='Financial Model'!N36*Base_V1_Num_Vehicles_Modeled -> 0 | N48: ='Financial Model'!O36*Base_V1_Num_Vehicles_Modeled -> 0 | O48: ='Financial Model'!P36*Base_V1_Num_Vehicles_Modeled -> 0 | P48: ='Financial Model'!Q36*Base_V1_Num_Vehicles_Modeled -> 0 | Q48: ='Financial Model'!R36*Base_V1_Num_Vehicles_Modeled -> 0 | R48: ='Financial Model'!S36*Base_V1_Num_Vehicles_Modeled -> 0 | S48: ='Financial Model'!T36*Base_V1_Num_Vehicles_Modeled -> 0 | T48: ='Financial Model'!U36*Base_V1_Num_Vehicles_Modeled -> 0 | U48: ='Financial Model'!V36*Base_V1_Num_Vehicles_Modeled -> 0 | V48: ='Financial Model'!W36*Base_V1_Num_Vehicles_Modeled -> 0 | W48: ='Financial Model'!X36*Base_V1_Num_Vehicles_Modeled -> 0 | X48: ='Financial Model'!Y36*Base_V1_Num_Vehicles_Modeled -> 0 | Y48: ='Financial Model'!Z36*Base_V1_Num_Vehicles_Modeled -> 0 | Z48: ='Financial Model'!AA36*Base_V1_Num_Vehicles_Modeled -> 0 | AA48: ='Financial Model'!AB36*Base_V1_Num_Vehicles_Modeled -> 0 | AB48: ='Financial Model'!AC36*Base_V1_Num_Vehicles_Modeled -> 0 | AC48: -20412.51384
B49: Insurance | C49: ='Financial Model'!D37*Base_V1_Num_Vehicles_Modeled -> 0 | D49: ='Financial Model'!E37*Base_V1_Num_Vehicles_Modeled -> -10450 | E49: ='Financial Model'!F37*Base_V1_Num_Vehicles_Modeled -> -10659 | F49: ='Financial Model'!G37*Base_V1_Num_Vehicles_Modeled -> -10872.18 | G49: ='Financial Model'!H37*Base_V1_Num_Vehicles_Modeled -> -11089.6236 | H49: ='Financial Model'!I37*Base_V1_Num_Vehicles_Modeled -> -11311.41607 | I49: ='Financial Model'!J37*Base_V1_Num_Vehicles_Modeled -> -11537.64439 | J49: ='Financial Model'!K37*Base_V1_Num_Vehicles_Modeled -> -11768.39728 | K49: ='Financial Model'!L37*Base_V1_Num_Vehicles_Modeled -> 0 | L49: ='Financial Model'!M37*Base_V1_Num_Vehicles_Modeled -> 0 | M49: ='Financial Model'!N37*Base_V1_Num_Vehicles_Modeled -> 0 | N49: ='Financial Model'!O37*Base_V1_Num_Vehicles_Modeled -> 0 | O49: ='Financial Model'!P37*Base_V1_Num_Vehicles_Modeled -> 0 | P49: ='Financial Model'!Q37*Base_V1_Num_Vehicles_Modeled -> 0 | Q49: ='Financial Model'!R37*Base_V1_Num_Vehicles_Modeled -> 0 | R49: ='Financial Model'!S37*Base_V1_Num_Vehicles_Modeled -> 0 | S49: ='Financial Model'!T37*Base_V1_Num_Vehicles_Modeled -> 0 | T49: ='Financial Model'!U37*Base_V1_Num_Vehicles_Modeled -> 0 | U49: ='Financial Model'!V37*Base_V1_Num_Vehicles_Modeled -> 0 | V49: ='Financial Model'!W37*Base_V1_Num_Vehicles_Modeled -> 0 | W49: ='Financial Model'!X37*Base_V1_Num_Vehicles_Modeled -> 0 | X49: ='Financial Model'!Y37*Base_V1_Num_Vehicles_Modeled -> 0 | Y49: ='Financial Model'!Z37*Base_V1_Num_Vehicles_Modeled -> 0 | Z49: ='Financial Model'!AA37*Base_V1_Num_Vehicles_Modeled -> 0 | AA49: ='Financial Model'!AB37*Base_V1_Num_Vehicles_Modeled -> 0 | AB49: ='Financial Model'!AC37*Base_V1_Num_Vehicles_Modeled -> 0 | AC49: -77688.26135
B50: Carbon | C50: ='Financial Model'!D42*Base_V1_Num_Vehicles_Modeled -> 0 | D50: ='Financial Model'!E42*Base_V1_Num_Vehicles_Modeled -> 0 | E50: ='Financial Model'!F42*Base_V1_Num_Vehicles_Modeled -> 0 | F50: ='Financial Model'!G42*Base_V1_Num_Vehicles_Modeled -> 0 | G50: ='Financial Model'!H42*Base_V1_Num_Vehicles_Modeled -> 0 | H50: ='Financial Model'!I42*Base_V1_Num_Vehicles_Modeled -> 0 | I50: ='Financial Model'!J42*Base_V1_Num_Vehicles_Modeled -> 0 | J50: ='Financial Model'!K42*Base_V1_Num_Vehicles_Modeled -> 0 | K50: ='Financial Model'!L42*Base_V1_Num_Vehicles_Modeled -> 0 | L50: ='Financial Model'!M42*Base_V1_Num_Vehicles_Modeled -> 0 | M50: ='Financial Model'!N42*Base_V1_Num_Vehicles_Modeled -> 0 | N50: ='Financial Model'!O42*Base_V1_Num_Vehicles_Modeled -> 0 | O50: ='Financial Model'!P42*Base_V1_Num_Vehicles_Modeled -> 0 | P50: ='Financial Model'!Q42*Base_V1_Num_Vehicles_Modeled -> 0 | Q50: ='Financial Model'!R42*Base_V1_Num_Vehicles_Modeled -> 0 | R50: ='Financial Model'!S42*Base_V1_Num_Vehicles_Modeled -> 0 | S50: ='Financial Model'!T42*Base_V1_Num_Vehicles_Modeled -> 0 | T50: ='Financial Model'!U42*Base_V1_Num_Vehicles_Modeled -> 0 | U50: ='Financial Model'!V42*Base_V1_Num_Vehicles_Modeled -> 0 | V50: ='Financial Model'!W42*Base_V1_Num_Vehicles_Modeled -> 0 | W50: ='Financial Model'!X42*Base_V1_Num_Vehicles_Modeled -> 0 | X50: ='Financial Model'!Y42*Base_V1_Num_Vehicles_Modeled -> 0 | Y50: ='Financial Model'!Z42*Base_V1_Num_Vehicles_Modeled -> 0 | Z50: ='Financial Model'!AA42*Base_V1_Num_Vehicles_Modeled -> 0 | AA50: ='Financial Model'!AB42*Base_V1_Num_Vehicles_Modeled -> 0 | AB50: ='Financial Model'!AC42*Base_V1_Num_Vehicles_Modeled -> 0 | AC50: 0
B51: Vehicle Total | C51: =SUM(C43:C50) -> -365256 | D51: -39425.55417 | E51: -41150.0756 | F51: -42763.86561 | G51: -44897.08992 | H51: -46322.72728 | I51: -52497.97958 | J51: 954.672845 | K51: 0 | L51: 0 | M51: 0 | N51: 0 | O51: 0 | P51: 0 | Q51: 0 | R51: 0 | S51: 0 | T51: 0 | U51: 0 | V51: 0 | W51: 0 | X51: 0 | Y51: 0 | Z51: 0 | AA51: 0 | AB51: 0 | AC51: -631358.6193
B52: Vehicle Total - Check | C52: ='Financial Model'!D45*Base_V1_Num_Vehicles_Modeled -> -365256 | D52: ='Financial Model'!E45*Base_V1_Num_Vehicles_Modeled -> -39425.55417 | E52: ='Financial Model'!F45*Base_V1_Num_Vehicles_Modeled -> -41150.0756 | F52: ='Financial Model'!G45*Base_V1_Num_Vehicles_Modeled -> -42763.86561 | G52: ='Financial Model'!H45*Base_V1_Num_Vehicles_Modeled -> -44897.08992 | H52: ='Financial Model'!I45*Base_V1_Num_Vehicles_Modeled -> -46322.72728 | I52: ='Financial Model'!J45*Base_V1_Num_Vehicles_Modeled -> -52497.97958 | J52: ='Financial Model'!K45*Base_V1_Num_Vehicles_Modeled -> 954.672845 | K52: ='Financial Model'!L45*Base_V1_Num_Vehicles_Modeled -> 0 | L52: ='Financial Model'!M45*Base_V1_Num_Vehicles_Modeled -> 0 | M52: ='Financial Model'!N45*Base_V1_Num_Vehicles_Modeled -> 0 | N52: ='Financial Model'!O45*Base_V1_Num_Vehicles_Modeled -> 0 | O52: ='Financial Model'!P45*Base_V1_Num_Vehicles_Modeled -> 0 | P52: ='Financial Model'!Q45*Base_V1_Num_Vehicles_Modeled -> 0 | Q52: ='Financial Model'!R45*Base_V1_Num_Vehicles_Modeled -> 0 | R52: ='Financial Model'!S45*Base_V1_Num_Vehicles_Modeled -> 0 | S52: ='Financial Model'!T45*Base_V1_Num_Vehicles_Modeled -> 0 | T52: ='Financial Model'!U45*Base_V1_Num_Vehicles_Modeled -> 0 | U52: ='Financial Model'!V45*Base_V1_Num_Vehicles_Modeled -> 0 | V52: ='Financial Model'!W45*Base_V1_Num_Vehicles_Modeled -> 0 | W52: ='Financial Model'!X45*Base_V1_Num_Vehicles_Modeled -> 0 | X52: ='Financial Model'!Y45*Base_V1_Num_Vehicles_Modeled -> 0 | Y52: ='Financial Model'!Z45*Base_V1_Num_Vehicles_Modeled -> 0 | Z52: ='Financial Model'!AA45*Base_V1_Num_Vehicles_Modeled -> 0 | AA52: ='Financial Model'!AB45*Base_V1_Num_Vehicles_Modeled -> 0 | AB52: ='Financial Model'!AC45*Base_V1_Num_Vehicles_Modeled -> 0 | AC52: -631358.6193
B53: Charging Infrastructure | C53: ='Financial Model'!D67 -> 0 | D53: ='Financial Model'!E67 -> 0 | E53: ='Financial Model'!F67 -> 0 | F53: ='Financial Model'!G67 -> 0 | G53: ='Financial Model'!H67 -> 0 | H53: ='Financial Model'!I67 -> 0 | I53: ='Financial Model'!J67 -> 0 | J53: ='Financial Model'!K67 -> 0 | K53: ='Financial Model'!L67 -> 0 | L53: ='Financial Model'!M67 -> 0 | M53: ='Financial Model'!N67 -> 0 | N53: ='Financial Model'!O67 -> 0 | O53: ='Financial Model'!P67 -> 0 | P53: ='Financial Model'!Q67 -> 0 | Q53: ='Financial Model'!R67 -> 0 | R53: ='Financial Model'!S67 -> 0 | S53: ='Financial Model'!T67 -> 0 | T53: ='Financial Model'!U67 -> 0 | U53: ='Financial Model'!V67 -> 0 | V53: ='Financial Model'!W67 -> 0 | W53: ='Financial Model'!X67 -> 0 | X53: ='Financial Model'!Y67 -> 0 | Y53: ='Financial Model'!Z67 -> 0 | Z53: ='Financial Model'!AA67 -> 0 | AA53: ='Financial Model'!AB67 -> 0 | AB53: ='Financial Model'!AC67 -> 0 | AC53: 0
B54: Grand Total | C54: =C51+C53 -> -365256 | D54: =D51+D53 -> -39425.55417 | E54: -41150.0756 | F54: -42763.86561 | G54: -44897.08992 | H54: -46322.72728 | I54: -52497.97958 | J54: 954.672845 | K54: 0 | L54: 0 | M54: 0 | N54: 0 | O54: 0 | P54: 0 | Q54: 0 | R54: 0 | S54: 0 | T54: 0 | U54: 0 | V54: 0 | W54: 0 | X54: 0 | Y54: 0 | Z54: 0 | AA54: 0 | AB54: 0 | AC54: -631358.6193
B55: Discount Factor | C55: ='Financial Model'!D46 -> 1 | D55: ='Financial Model'!E46 -> 1 | E55: ='Financial Model'!F46 -> 1 | F55: ='Financial Model'!G46 -> 1 | G55: ='Financial Model'!H46 -> 1 | H55: ='Financial Model'!I46 -> 1 | I55: ='Financial Model'!J46 -> 1 | J55: ='Financial Model'!K46 -> 1 | K55: ='Financial Model'!L46 -> 1 | L55: ='Financial Model'!M46 -> 1 | M55: ='Financial Model'!N46 -> 1 | N55: ='Financial Model'!O46 -> 1 | O55: ='Financial Model'!P46 -> 1 | P55: ='Financial Model'!Q46 -> 1 | Q55: ='Financial Model'!R46 -> 1 | R55: ='Financial Model'!S46 -> 1 | S55: ='Financial Model'!T46 -> 1 | T55: ='Financial Model'!U46 -> 1 | U55: ='Financial Model'!V46 -> 1 | V55: ='Financial Model'!W46 -> 1 | W55: ='Financial Model'!X46 -> 1 | X55: ='Financial Model'!Y46 -> 1 | Y55: ='Financial Model'!Z46 -> 1 | Z55: ='Financial Model'!AA46 -> 1 | AA55: ='Financial Model'!AB46 -> 1 | AB55: ='Financial Model'!AC46 -> 1
B56: NPV Total | C56: =C54*C55 -> -365256 | D56: =D54*D55 -> -39425.55417 | E56: -41150.0756 | F56: -42763.86561 | G56: -44897.08992 | H56: -46322.72728 | I56: -52497.97958 | J56: 954.672845 | K56: 0 | L56: 0 | M56: 0 | N56: 0 | O56: 0 | P56: 0 | Q56: 0 | R56: 0 | S56: 0 | T56: 0 | U56: 0 | V56: 0 | W56: 0 | X56: 0 | Y56: 0 | Z56: 0 | AA56: 0 | AB56: 0 | AC56: -631358.6193
B58: =Comp_V1_Type_Ex&" (Comparison)" -> 2017 Chevrolet Bolt EV BEV (Comparison)
C59: Year 0 | D59: Year 1 | E59: Year 2 | F59: Year 3 | G59: Year 4 | H59: Year 5 | I59: Year 6 | J59: Year 7 | K59: Year 8 | L59: Year 9 | M59: Year 10 | N59: Year 11 | O59: Year 12 | P59: Year 13 | Q59: Year 14 | R59: Year 15 | S59: Year 16 | T59: Year 17 | U59: Year 18 | V59: Year 19 | W59: Year 20 | X59: Year 21 | Y59: Year 22 | Z59: Year 23 | AA59: Year 24 | AB59: Year 25 | AC59: Totals
B60: Principal (less tax credits and incentives) | C60: =('Financial Model'!D101-'Financial Model'!D97-'Financial Model'!D99)*Comp_V1_Num_Vehicles_Modeled -> -494494 | D60: =('Financial Model'!E101-'Financial Model'!E97-'Financial Model'!E99)*Comp_V1_Num_Vehicles_Modeled -> 0 | E60: =('Financial Model'!F101-'Financial Model'!F97-'Financial Model'!F99)*Comp_V1_Num_Vehicles_Modeled -> 0 | F60: =('Financial Model'!G101-'Financial Model'!G97-'Financial Model'!G99)*Comp_V1_Num_Vehicles_Modeled -> 0 | G60: =('Financial Model'!H101-'Financial Model'!H97-'Financial Model'!H99)*Comp_V1_Num_Vehicles_Modeled -> 0 | H60: =('Financial Model'!I101-'Financial Model'!I97-'Financial Model'!I99)*Comp_V1_Num_Vehicles_Modeled -> 0 | I60: =('Financial Model'!J101-'Financial Model'!J97-'Financial Model'!J99)*Comp_V1_Num_Vehicles_Modeled -> 0 | J60: =('Financial Model'!K101-'Financial Model'!K97-'Financial Model'!K99)*Comp_V1_Num_Vehicles_Modeled -> 0 | K60: =('Financial Model'!L101-'Financial Model'!L97-'Financial Model'!L99)*Comp_V1_Num_Vehicles_Modeled -> 0 | L60: =('Financial Model'!M101-'Financial Model'!M97-'Financial Model'!M99)*Comp_V1_Num_Vehicles_Modeled -> 0 | M60: =('Financial Model'!N101-'Financial Model'!N97-'Financial Model'!N99)*Comp_V1_Num_Vehicles_Modeled -> 0 | N60: =('Financial Model'!O101-'Financial Model'!O97-'Financial Model'!O99)*Comp_V1_Num_Vehicles_Modeled -> 0 | O60: =('Financial Model'!P101-'Financial Model'!P97-'Financial Model'!P99)*Comp_V1_Num_Vehicles_Modeled -> 0 | P60: =('Financial Model'!Q101-'Financial Model'!Q97-'Financial Model'!Q99)*Comp_V1_Num_Vehicles_Modeled -> 0 | Q60: =('Financial Model'!R101-'Financial Model'!R97-'Financial Model'!R99)*Comp_V1_Num_Vehicles_Modeled -> 0 | R60: =('Financial Model'!S101-'Financial Model'!S97-'Financial Model'!S99)*Comp_V1_Num_Vehicles_Modeled -> 0 | S60: =('Financial Model'!T101-'Financial Model'!T97-'Financial Model'!T99)*Comp_V1_Num_Vehicles_Modeled -> 0 | T60: =('Financial Model'!U101-'Financial Model'!U97-'Financial Model'!U99)*Comp_V1_Num_Vehicles_Modeled -> 0 | U60: =('Financial Model'!V101-'Financial Model'!V97-'Financial Model'!V99)*Comp_V1_Num_Vehicles_Modeled -> 0 | V60: =('Financial Model'!W101-'Financial Model'!W97-'Financial Model'!W99)*Comp_V1_Num_Vehicles_Modeled -> 0 | W60: =('Financial Model'!X101-'Financial Model'!X97-'Financial Model'!X99)*Comp_V1_Num_Vehicles_Modeled -> 0 | X60: =('Financial Model'!Y101-'Financial Model'!Y97-'Financial Model'!Y99)*Comp_V1_Num_Vehicles_Modeled -> 0 | Y60: =('Financial Model'!Z101-'Financial Model'!Z97-'Financial Model'!Z99)*Comp_V1_Num_Vehicles_Modeled -> 0 | Z60: =('Financial Model'!AA101-'Financial Model'!AA97-'Financial Model'!AA99)*Comp_V1_Num_Vehicles_Modeled -> 0 | AA60: =('Financial Model'!AB101-'Financial Model'!AB97-'Financial Model'!AB99)*Comp_V1_Num_Vehicles_Modeled -> 0 | AB60: =('Financial Model'!AC101-'Financial Model'!AC97-'Financial Model'!AC99)*Comp_V1_Num_Vehicles_Modeled -> 0 | AC60: =SUM(C60:AB60) -> -494494
B61: Financing | C61: ='Financial Model'!D97*Comp_V1_Num_Vehicles_Modeled -> 0 | D61: ='Financial Model'!E97*Comp_V1_Num_Vehicles_Modeled -> 0 | E61: ='Financial Model'!F97*Comp_V1_Num_Vehicles_Modeled -> 0 | F61: ='Financial Model'!G97*Comp_V1_Num_Vehicles_Modeled -> 0 | G61: ='Financial Model'!H97*Comp_V1_Num_Vehicles_Modeled -> 0 | H61: ='Financial Model'!I97*Comp_V1_Num_Vehicles_Modeled -> 0 | I61: ='Financial Model'!J97*Comp_V1_Num_Vehicles_Modeled -> 0 | J61: ='Financial Model'!K97*Comp_V1_Num_Vehicles_Modeled -> 0 | K61: ='Financial Model'!L97*Comp_V1_Num_Vehicles_Modeled -> 0 | L61: ='Financial Model'!M97*Comp_V1_Num_Vehicles_Modeled -> 0 | M61: ='Financial Model'!N97*Comp_V1_Num_Vehicles_Modeled -> 0 | N61: ='Financial Model'!O97*Comp_V1_Num_Vehicles_Modeled -> 0 | O61: ='Financial Model'!P97*Comp_V1_Num_Vehicles_Modeled -> 0 | P61: ='Financial Model'!Q97*Comp_V1_Num_Vehicles_Modeled -> 0 | Q61: ='Financial Model'!R97*Comp_V1_Num_Vehicles_Modeled -> 0 | R61: ='Financial Model'!S97*Comp_V1_Num_Vehicles_Modeled -> 0 | S61: ='Financial Model'!T97*Comp_V1_Num_Vehicles_Modeled -> 0 | T61: ='Financial Model'!U97*Comp_V1_Num_Vehicles_Modeled -> 0 | U61: ='Financial Model'!V97*Comp_V1_Num_Vehicles_Modeled -> 0 | V61: ='Financial Model'!W97*Comp_V1_Num_Vehicles_Modeled -> 0 | W61: ='Financial Model'!X97*Comp_V1_Num_Vehicles_Modeled -> 0 | X61: ='Financial Model'!Y97*Comp_V1_Num_Vehicles_Modeled -> 0 | Y61: ='Financial Model'!Z97*Comp_V1_Num_Vehicles_Modeled -> 0 | Z61: ='Financial Model'!AA97*Comp_V1_Num_Vehicles_Modeled -> 0 | AA61: ='Financial Model'!AB97*Comp_V1_Num_Vehicles_Modeled -> 0 | AB61: ='Financial Model'!AC97*Comp_V1_Num_Vehicles_Modeled -> 0 | AC61: =SUM(C61:AB61) -> 0
B62: Residual Value (Vehicle Sale) | C62: ='Financial Model'!D99*Comp_V1_Num_Vehicles_Modeled -> 0 | D62: ='Financial Model'!E99*Comp_V1_Num_Vehicles_Modeled -> 0 | E62: ='Financial Model'!F99*Comp_V1_Num_Vehicles_Modeled -> 0 | F62: ='Financial Model'!G99*Comp_V1_Num_Vehicles_Modeled -> 0 | G62: ='Financial Model'!H99*Comp_V1_Num_Vehicles_Modeled -> 0 | H62: ='Financial Model'!I99*Comp_V1_Num_Vehicles_Modeled -> 0 | I62: ='Financial Model'!J99*Comp_V1_Num_Vehicles_Modeled -> 0 | J62: ='Financial Model'!K99*Comp_V1_Num_Vehicles_Modeled -> 114779.0357 | K62: ='Financial Model'!L99*Comp_V1_Num_Vehicles_Modeled -> 0 | L62: ='Financial Model'!M99*Comp_V1_Num_Vehicles_Modeled -> 0 | M62: ='Financial Model'!N99*Comp_V1_Num_Vehicles_Modeled -> 0 | N62: ='Financial Model'!O99*Comp_V1_Num_Vehicles_Modeled -> 0 | O62: ='Financial Model'!P99*Comp_V1_Num_Vehicles_Modeled -> 0 | P62: ='Financial Model'!Q99*Comp_V1_Num_Vehicles_Modeled -> 0 | Q62: ='Financial Model'!R99*Comp_V1_Num_Vehicles_Modeled -> 0 | R62: ='Financial Model'!S99*Comp_V1_Num_Vehicles_Modeled -> 0 | S62: ='Financial Model'!T99*Comp_V1_Num_Vehicles_Modeled -> 0 | T62: ='Financial Model'!U99*Comp_V1_Num_Vehicles_Modeled -> 0 | U62: ='Financial Model'!V99*Comp_V1_Num_Vehicles_Modeled -> 0 | V62: ='Financial Model'!W99*Comp_V1_Num_Vehicles_Modeled -> 0 | W62: ='Financial Model'!X99*Comp_V1_Num_Vehicles_Modeled -> 0 | X62: ='Financial Model'!Y99*Comp_V1_Num_Vehicles_Modeled -> 0 | Y62: ='Financial Model'!Z99*Comp_V1_Num_Vehicles_Modeled -> 0 | Z62: ='Financial Model'!AA99*Comp_V1_Num_Vehicles_Modeled -> 0 | AA62: ='Financial Model'!AB99*Comp_V1_Num_Vehicles_Modeled -> 0 | AB62: ='Financial Model'!AC99*Comp_V1_Num_Vehicles_Modeled -> 0 | AC62: 114779.0357
B63: Fuel | C63: ='Financial Model'!D104*Comp_V1_Num_Vehicles_Modeled -> 0 | D63: ='Financial Model'!E104*Comp_V1_Num_Vehicles_Modeled -> -5628.491665 | E63: ='Financial Model'!F104*Comp_V1_Num_Vehicles_Modeled -> -5571.792549 | F63: ='Financial Model'!G104*Comp_V1_Num_Vehicles_Modeled -> -5778.650975 | G63: ='Financial Model'!H104*Comp_V1_Num_Vehicles_Modeled -> -6087.579658 | H63: ='Financial Model'!I104*Comp_V1_Num_Vehicles_Modeled -> -6238.139652 | I63: ='Financial Model'!J104*Comp_V1_Num_Vehicles_Modeled -> -6360.565098 | J63: ='Financial Model'!K104*Comp_V1_Num_Vehicles_Modeled -> -6427.506728 | K63: ='Financial Model'!L104*Comp_V1_Num_Vehicles_Modeled -> 0 | L63: ='Financial Model'!M104*Comp_V1_Num_Vehicles_Modeled -> 0 | M63: ='Financial Model'!N104*Comp_V1_Num_Vehicles_Modeled -> 0 | N63: ='Financial Model'!O104*Comp_V1_Num_Vehicles_Modeled -> 0 | O63: ='Financial Model'!P104*Comp_V1_Num_Vehicles_Modeled -> 0 | P63: ='Financial Model'!Q104*Comp_V1_Num_Vehicles_Modeled -> 0 | Q63: ='Financial Model'!R104*Comp_V1_Num_Vehicles_Modeled -> 0 | R63: ='Financial Model'!S104*Comp_V1_Num_Vehicles_Modeled -> 0 | S63: ='Financial Model'!T104*Comp_V1_Num_Vehicles_Modeled -> 0 | T63: ='Financial Model'!U104*Comp_V1_Num_Vehicles_Modeled -> 0 | U63: ='Financial Model'!V104*Comp_V1_Num_Vehicles_Modeled -> 0 | V63: ='Financial Model'!W104*Comp_V1_Num_Vehicles_Modeled -> 0 | W63: ='Financial Model'!X104*Comp_V1_Num_Vehicles_Modeled -> 0 | X63: ='Financial Model'!Y104*Comp_V1_Num_Vehicles_Modeled -> 0 | Y63: ='Financial Model'!Z104*Comp_V1_Num_Vehicles_Modeled -> 0 | Z63: ='Financial Model'!AA104*Comp_V1_Num_Vehicles_Modeled -> 0 | AA63: ='Financial Model'!AB104*Comp_V1_Num_Vehicles_Modeled -> 0 | AB63: ='Financial Model'!AC104*Comp_V1_Num_Vehicles_Modeled -> 0 | AC63: -42092.72632
B64: Maintenance and Repairs | C64: ='Financial Model'!D105*Comp_V1_Num_Vehicles_Modeled -> 0 | D64: ='Financial Model'!E105*Comp_V1_Num_Vehicles_Modeled -> -7600 | E64: ='Financial Model'!F105*Comp_V1_Num_Vehicles_Modeled -> -7752 | F64: ='Financial Model'!G105*Comp_V1_Num_Vehicles_Modeled -> -7907.04 | G64: ='Financial Model'!H105*Comp_V1_Num_Vehicles_Modeled -> -8065.1808 | H64: ='Financial Model'!I105*Comp_V1_Num_Vehicles_Modeled -> -8226.484416 | I64: ='Financial Model'!J105*Comp_V1_Num_Vehicles_Modeled -> -10908.31834 | J64: ='Financial Model'!K105*Comp_V1_Num_Vehicles_Modeled -> -11126.4847 | K64: ='Financial Model'!L105*Comp_V1_Num_Vehicles_Modeled -> 0 | L64: ='Financial Model'!M105*Comp_V1_Num_Vehicles_Modeled -> 0 | M64: ='Financial Model'!N105*Comp_V1_Num_Vehicles_Modeled -> 0 | N64: ='Financial Model'!O105*Comp_V1_Num_Vehicles_Modeled -> 0 | O64: ='Financial Model'!P105*Comp_V1_Num_Vehicles_Modeled -> 0 | P64: ='Financial Model'!Q105*Comp_V1_Num_Vehicles_Modeled -> 0 | Q64: ='Financial Model'!R105*Comp_V1_Num_Vehicles_Modeled -> 0 | R64: ='Financial Model'!S105*Comp_V1_Num_Vehicles_Modeled -> 0 | S64: ='Financial Model'!T105*Comp_V1_Num_Vehicles_Modeled -> 0 | T64: ='Financial Model'!U105*Comp_V1_Num_Vehicles_Modeled -> 0 | U64: ='Financial Model'!V105*Comp_V1_Num_Vehicles_Modeled -> 0 | V64: ='Financial Model'!W105*Comp_V1_Num_Vehicles_Modeled -> 0 | W64: ='Financial Model'!X105*Comp_V1_Num_Vehicles_Modeled -> 0 | X64: ='Financial Model'!Y105*Comp_V1_Num_Vehicles_Modeled -> 0 | Y64: ='Financial Model'!Z105*Comp_V1_Num_Vehicles_Modeled -> 0 | Z64: ='Financial Model'!AA105*Comp_V1_Num_Vehicles_Modeled -> 0 | AA64: ='Financial Model'!AB105*Comp_V1_Num_Vehicles_Modeled -> 0 | AB64: ='Financial Model'!AC105*Comp_V1_Num_Vehicles_Modeled -> 0 | AC64: -61585.50825
B65: Taxes & Fees | C65: ='Financial Model'!D106*Comp_V1_Num_Vehicles_Modeled -> -19000 | D65: ='Financial Model'!E106*Comp_V1_Num_Vehicles_Modeled -> -190 | E65: ='Financial Model'!F106*Comp_V1_Num_Vehicles_Modeled -> -193.8 | F65: ='Financial Model'!G106*Comp_V1_Num_Vehicles_Modeled -> -197.676 | G65: ='Financial Model'!H106*Comp_V1_Num_Vehicles_Modeled -> -201.62952 | H65: ='Financial Model'!I106*Comp_V1_Num_Vehicles_Modeled -> -205.6621104 | I65: ='Financial Model'!J106*Comp_V1_Num_Vehicles_Modeled -> -209.7753526 | J65: ='Financial Model'!K106*Comp_V1_Num_Vehicles_Modeled -> -213.9708597 | K65: ='Financial Model'!L106*Comp_V1_Num_Vehicles_Modeled -> 0 | L65: ='Financial Model'!M106*Comp_V1_Num_Vehicles_Modeled -> 0 | M65: ='Financial Model'!N106*Comp_V1_Num_Vehicles_Modeled -> 0 | N65: ='Financial Model'!O106*Comp_V1_Num_Vehicles_Modeled -> 0 | O65: ='Financial Model'!P106*Comp_V1_Num_Vehicles_Modeled -> 0 | P65: ='Financial Model'!Q106*Comp_V1_Num_Vehicles_Modeled -> 0 | Q65: ='Financial Model'!R106*Comp_V1_Num_Vehicles_Modeled -> 0 | R65: ='Financial Model'!S106*Comp_V1_Num_Vehicles_Modeled -> 0 | S65: ='Financial Model'!T106*Comp_V1_Num_Vehicles_Modeled -> 0 | T65: ='Financial Model'!U106*Comp_V1_Num_Vehicles_Modeled -> 0 | U65: ='Financial Model'!V106*Comp_V1_Num_Vehicles_Modeled -> 0 | V65: ='Financial Model'!W106*Comp_V1_Num_Vehicles_Modeled -> 0 | W65: ='Financial Model'!X106*Comp_V1_Num_Vehicles_Modeled -> 0 | X65: ='Financial Model'!Y106*Comp_V1_Num_Vehicles_Modeled -> 0 | Y65: ='Financial Model'!Z106*Comp_V1_Num_Vehicles_Modeled -> 0 | Z65: ='Financial Model'!AA106*Comp_V1_Num_Vehicles_Modeled -> 0 | AA65: ='Financial Model'!AB106*Comp_V1_Num_Vehicles_Modeled -> 0 | AB65: ='Financial Model'!AC106*Comp_V1_Num_Vehicles_Modeled -> 0 | AC65: -20412.51384
B66: Insurance | C66: ='Financial Model'!D107*Comp_V1_Num_Vehicles_Modeled -> 0 | D66: ='Financial Model'!E107*Comp_V1_Num_Vehicles_Modeled -> -10450 | E66: ='Financial Model'!F107*Comp_V1_Num_Vehicles_Modeled -> -10659 | F66: ='Financial Model'!G107*Comp_V1_Num_Vehicles_Modeled -> -10872.18 | G66: ='Financial Model'!H107*Comp_V1_Num_Vehicles_Modeled -> -11089.6236 | H66: ='Financial Model'!I107*Comp_V1_Num_Vehicles_Modeled -> -11311.41607 | I66: ='Financial Model'!J107*Comp_V1_Num_Vehicles_Modeled -> -11537.64439 | J66: ='Financial Model'!K107*Comp_V1_Num_Vehicles_Modeled -> -11768.39728 | K66: ='Financial Model'!L107*Comp_V1_Num_Vehicles_Modeled -> 0 | L66: ='Financial Model'!M107*Comp_V1_Num_Vehicles_Modeled -> 0 | M66: ='Financial Model'!N107*Comp_V1_Num_Vehicles_Modeled -> 0 | N66: ='Financial Model'!O107*Comp_V1_Num_Vehicles_Modeled -> 0 | O66: ='Financial Model'!P107*Comp_V1_Num_Vehicles_Modeled -> 0 | P66: ='Financial Model'!Q107*Comp_V1_Num_Vehicles_Modeled -> 0 | Q66: ='Financial Model'!R107*Comp_V1_Num_Vehicles_Modeled -> 0 | R66: ='Financial Model'!S107*Comp_V1_Num_Vehicles_Modeled -> 0 | S66: ='Financial Model'!T107*Comp_V1_Num_Vehicles_Modeled -> 0 | T66: ='Financial Model'!U107*Comp_V1_Num_Vehicles_Modeled -> 0 | U66: ='Financial Model'!V107*Comp_V1_Num_Vehicles_Modeled -> 0 | V66: ='Financial Model'!W107*Comp_V1_Num_Vehicles_Modeled -> 0 | W66: ='Financial Model'!X107*Comp_V1_Num_Vehicles_Modeled -> 0 | X66: ='Financial Model'!Y107*Comp_V1_Num_Vehicles_Modeled -> 0 | Y66: ='Financial Model'!Z107*Comp_V1_Num_Vehicles_Modeled -> 0 | Z66: ='Financial Model'!AA107*Comp_V1_Num_Vehicles_Modeled -> 0 | AA66: ='Financial Model'!AB107*Comp_V1_Num_Vehicles_Modeled -> 0 | AB66: ='Financial Model'!AC107*Comp_V1_Num_Vehicles_Modeled -> 0 | AC66: -77688.26135
B67: Carbon | C67: ='Financial Model'!D112*Comp_V1_Num_Vehicles_Modeled -> 0 | D67: ='Financial Model'!E112*Comp_V1_Num_Vehicles_Modeled -> 0 | E67: ='Financial Model'!F112*Comp_V1_Num_Vehicles_Modeled -> 0 | F67: ='Financial Model'!G112*Comp_V1_Num_Vehicles_Modeled -> 0 | G67: ='Financial Model'!H112*Comp_V1_Num_Vehicles_Modeled -> 0 | H67: ='Financial Model'!I112*Comp_V1_Num_Vehicles_Modeled -> 0 | I67: ='Financial Model'!J112*Comp_V1_Num_Vehicles_Modeled -> 0 | J67: ='Financial Model'!K112*Comp_V1_Num_Vehicles_Modeled -> 0 | K67: ='Financial Model'!L112*Comp_V1_Num_Vehicles_Modeled -> 0 | L67: ='Financial Model'!M112*Comp_V1_Num_Vehicles_Modeled -> 0 | M67: ='Financial Model'!N112*Comp_V1_Num_Vehicles_Modeled -> 0 | N67: ='Financial Model'!O112*Comp_V1_Num_Vehicles_Modeled -> 0 | O67: ='Financial Model'!P112*Comp_V1_Num_Vehicles_Modeled -> 0 | P67: ='Financial Model'!Q112*Comp_V1_Num_Vehicles_Modeled -> 0 | Q67: ='Financial Model'!R112*Comp_V1_Num_Vehicles_Modeled -> 0 | R67: ='Financial Model'!S112*Comp_V1_Num_Vehicles_Modeled -> 0 | S67: ='Financial Model'!T112*Comp_V1_Num_Vehicles_Modeled -> 0 | T67: ='Financial Model'!U112*Comp_V1_Num_Vehicles_Modeled -> 0 | U67: ='Financial Model'!V112*Comp_V1_Num_Vehicles_Modeled -> 0 | V67: ='Financial Model'!W112*Comp_V1_Num_Vehicles_Modeled -> 0 | W67: ='Financial Model'!X112*Comp_V1_Num_Vehicles_Modeled -> 0 | X67: ='Financial Model'!Y112*Comp_V1_Num_Vehicles_Modeled -> 0 | Y67: ='Financial Model'!Z112*Comp_V1_Num_Vehicles_Modeled -> 0 | Z67: ='Financial Model'!AA112*Comp_V1_Num_Vehicles_Modeled -> 0 | AA67: ='Financial Model'!AB112*Comp_V1_Num_Vehicles_Modeled -> 0 | AB67: ='Financial Model'!AC112*Comp_V1_Num_Vehicles_Modeled -> 0 | AC67: 0
B68: Vehicle Total | C68: =SUM(C60:C67) -> -513494 | D68: -23868.49166 | E68: -24176.59255 | F68: -24755.54697 | G68: -25444.01358 | H68: -25981.70225 | I68: -29016.30318 | J68: 85242.67616 | K68: 0 | L68: 0 | M68: 0 | N68: 0 | O68: 0 | P68: 0 | Q68: 0 | R68: 0 | S68: 0 | T68: 0 | U68: 0 | V68: 0 | W68: 0 | X68: 0 | Y68: 0 | Z68: 0 | AA68: 0 | AB68: 0 | AC68: -581493.974
B69: Vehicle Total - Check | C69: ='Financial Model'!D115*Comp_V1_Num_Vehicles_Modeled -> -513494 | D69: ='Financial Model'!E115*Comp_V1_Num_Vehicles_Modeled -> -23868.49166 | E69: ='Financial Model'!F115*Comp_V1_Num_Vehicles_Modeled -> -24176.59255 | F69: ='Financial Model'!G115*Comp_V1_Num_Vehicles_Modeled -> -24755.54697 | G69: ='Financial Model'!H115*Comp_V1_Num_Vehicles_Modeled -> -25444.01358 | H69: ='Financial Model'!I115*Comp_V1_Num_Vehicles_Modeled -> -25981.70225 | I69: ='Financial Model'!J115*Comp_V1_Num_Vehicles_Modeled -> -29016.30318 | J69: ='Financial Model'!K115*Comp_V1_Num_Vehicles_Modeled -> 85242.67616 | K69: ='Financial Model'!L115*Comp_V1_Num_Vehicles_Modeled -> 0 | L69: ='Financial Model'!M115*Comp_V1_Num_Vehicles_Modeled -> 0 | M69: ='Financial Model'!N115*Comp_V1_Num_Vehicles_Modeled -> 0 | N69: ='Financial Model'!O115*Comp_V1_Num_Vehicles_Modeled -> 0 | O69: ='Financial Model'!P115*Comp_V1_Num_Vehicles_Modeled -> 0 | P69: ='Financial Model'!Q115*Comp_V1_Num_Vehicles_Modeled -> 0 | Q69: ='Financial Model'!R115*Comp_V1_Num_Vehicles_Modeled -> 0 | R69: ='Financial Model'!S115*Comp_V1_Num_Vehicles_Modeled -> 0 | S69: ='Financial Model'!T115*Comp_V1_Num_Vehicles_Modeled -> 0 | T69: ='Financial Model'!U115*Comp_V1_Num_Vehicles_Modeled -> 0 | U69: ='Financial Model'!V115*Comp_V1_Num_Vehicles_Modeled -> 0 | V69: ='Financial Model'!W115*Comp_V1_Num_Vehicles_Modeled -> 0 | W69: ='Financial Model'!X115*Comp_V1_Num_Vehicles_Modeled -> 0 | X69: ='Financial Model'!Y115*Comp_V1_Num_Vehicles_Modeled -> 0 | Y69: ='Financial Model'!Z115*Comp_V1_Num_Vehicles_Modeled -> 0 | Z69: ='Financial Model'!AA115*Comp_V1_Num_Vehicles_Modeled -> 0 | AA69: ='Financial Model'!AB115*Comp_V1_Num_Vehicles_Modeled -> 0 | AB69: ='Financial Model'!AC115*Comp_V1_Num_Vehicles_Modeled -> 0 | AC69: -581493.974
B70: Charging Infrastructure | C70: ='Financial Model'!D137 -> 0 | D70: ='Financial Model'!E137 -> 0 | E70: ='Financial Model'!F137 -> 0 | F70: ='Financial Model'!G137 -> 0 | G70: ='Financial Model'!H137 -> 0 | H70: ='Financial Model'!I137 -> 0 | I70: ='Financial Model'!J137 -> 0 | J70: ='Financial Model'!K137 -> 0 | K70: ='Financial Model'!L137 -> 0 | L70: ='Financial Model'!M137 -> 0 | M70: ='Financial Model'!N137 -> 0 | N70: ='Financial Model'!O137 -> 0 | O70: ='Financial Model'!P137 -> 0 | P70: ='Financial Model'!Q137 -> 0 | Q70: ='Financial Model'!R137 -> 0 | R70: ='Financial Model'!S137 -> 0 | S70: ='Financial Model'!T137 -> 0 | T70: ='Financial Model'!U137 -> 0 | U70: ='Financial Model'!V137 -> 0 | V70: ='Financial Model'!W137 -> 0 | W70: ='Financial Model'!X137 -> 0 | X70: ='Financial Model'!Y137 -> 0 | Y70: ='Financial Model'!Z137 -> 0 | Z70: ='Financial Model'!AA137 -> 0 | AA70: ='Financial Model'!AB137 -> 0 | AB70: ='Financial Model'!AC137 -> 0 | AC70: 0
B71: Grand Total | C71: =C68+C70 -> -513494 | D71: -23868.49166 | E71: -24176.59255 | F71: -24755.54697 | G71: -25444.01358 | H71: -25981.70225 | I71: -29016.30318 | J71: 85242.67616 | K71: 0 | L71: 0 | M71: 0 | N71: 0 | O71: 0 | P71: 0 | Q71: 0 | R71: 0 | S71: 0 | T71: 0 | U71: 0 | V71: 0 | W71: 0 | X71: 0 | Y71: 0 | Z71: 0 | AA71: 0 | AB71: 0 | AC71: -581493.974
B72: Discount Factor | C72: ='Financial Model'!D116 -> 1 | D72: ='Financial Model'!E116 -> 1 | E72: ='Financial Model'!F116 -> 1 | F72: ='Financial Model'!G116 -> 1 | G72: ='Financial Model'!H116 -> 1 | H72: ='Financial Model'!I116 -> 1 | I72: ='Financial Model'!J116 -> 1 | J72: ='Financial Model'!K116 -> 1 | K72: ='Financial Model'!L116 -> 1 | L72: ='Financial Model'!M116 -> 1 | M72: ='Financial Model'!N116 -> 1 | N72: ='Financial Model'!O116 -> 1 | O72: ='Financial Model'!P116 -> 1 | P72: ='Financial Model'!Q116 -> 1 | Q72: ='Financial Model'!R116 -> 1 | R72: ='Financial Model'!S116 -> 1 | S72: ='Financial Model'!T116 -> 1 | T72: ='Financial Model'!U116 -> 1 | U72: ='Financial Model'!V116 -> 1 | V72: ='Financial Model'!W116 -> 1 | W72: ='Financial Model'!X116 -> 1 | X72: ='Financial Model'!Y116 -> 1 | Y72: ='Financial Model'!Z116 -> 1 | Z72: ='Financial Model'!AA116 -> 1 | AA72: ='Financial Model'!AB116 -> 1 | AB72: ='Financial Model'!AC116 -> 1
B73: NPV Total | C73: =C71*C72 -> -513494 | D73: -23868.49166 | E73: -24176.59255 | F73: -24755.54697 | G73: -25444.01358 | H73: -25981.70225 | I73: -29016.30318 | J73: 85242.67616 | K73: 0 | L73: 0 | M73: 0 | N73: 0 | O73: 0 | P73: 0 | Q73: 0 | R73: 0 | S73: 0 | T73: 0 | U73: 0 | V73: 0 | W73: 0 | X73: 0 | Y73: 0 | Z73: 0 | AA73: 0 | AB73: 0 | AC73: =SUM(C73:AB73) -> -581493.974

Sheet Environmental Model
A1: Environmental Models - Fleet Procurement Analysis Tool
B3: =Base_V1_Type_Ex&" (Baseline)" -> 2017 Chevrolet Cruze ICE (Baseline) | C3: =Comp_V1_Type_Ex&" (Comparison)" -> 2017 Chevrolet Bolt EV BEV (Comparison)
A4: Annual VMT | B4: =Base_V1_VMT_Modeled -> 10000 | C4: =Comp_V1_VMT_Modeled -> 10000
A5: Fuel Economy Gas City (MPG) | B5: =Base_V1_Fuel_Economy_Gas_City_Modeled -> 30 | C5: =Comp_V1_Fuel_Economy_Gas_City_Modeled -> 0
A6: Fuel Economy Gas Highway (MPG) | B6: =Base_V1_Fuel_Economy_Gas_Hwy_Modeled -> 40 | C6: =Comp_V1_Fuel_Economy_Gas_Hwy_Modeled -> 0
A7: Fuel Economy Electric City (MPGe) | B7: =Base_V1_Fuel_Economy_Electric_City_Modeled -> 0 | C7: =Comp_V1_Fuel_Economy_Electric_City_Modeled -> 128
A8: Fuel Economy Electric Highway (MPGe) | B8: =Base_V1_Fuel_Economy_Electric_Hwy_Modeled -> 0 | C8: =Comp_V1_Fuel_Economy_Electric_Hwy_Modeled -> 110
A9: % of Annual Miles on Gasoline* | B9: =Base_V1_Miles_Gas_Modeled -> 1 | C9: =Comp_V1_Miles_Gas_Modeled -> 0
A10: % of Annual Miles City Driving | B10: =Base_V1_Miles_City_Modeled -> 0.55 | C10: =Comp_V1_Miles_City_Modeled -> 0.55
A11: Gallons of Gasoline / Year | B11: =IF(B5=0,0,(B4*B10*B9)/B5)+IF(B6=0,0,(B4*B9*(1-B10))/B6) -> 295.8333333 | C11: =IF(C5=0,0,(C4*C10*C9)/C5)+IF(C6=0,0,(C4*C9*(1-C10))/C6) -> 0
A12: Lifecycle Carbon Intensity of Gallon of Gasoline (lbs) | B12: =Data!$C$199*Data!$B$215/Data!$B$217 -> 24.07450851 | C12: =Data!$C$199*Data!$B$215/Data!$B$217 -> 24.07450851
A13: kWh Electricity / Year | B13: =IF(B7=0,0,((B4*(1-B9)*B10)/B7*33.7))+IF(B8=0,0,((B4*(1-B9)*(1-B10))/B8*33.7)) -> 0 | C13: =IF(C7=0,0,((C4*(1-C9)*C10)/C7*33.7))+IF(C8=0,0,((C4*(1-C9)*(1-C10))/C8*33.7)) -> 2826.683239
A14: eGrid Region | B14: =eGrid_Region_Ex -> FRCC | C14: =eGrid_Region_Ex -> FRCC
A15: Lifecycle Carbon Intensity of kWh (lbs) | B15: =(VLOOKUP(eGrid_Region_Ex,Data!$B$167:$G$194,2,FALSE)+VLOOKUP(eGrid_Region_Ex,Data!$B$167:$G$194,5,FALSE))/1000 -> 1.257137954 | C15: =(VLOOKUP(eGrid_Region_Ex,Data!$B$167:$G$194,2,FALSE)+VLOOKUP(eGrid_Region_Ex,Data!$B$167:$G$194,5,FALSE))/1000 -> 1.257137954
A16: Electrical Transmission Line Loss | B16: =VLOOKUP(eGrid_Region_Ex,Data!$B$167:$G$194,6,FALSE) -> 0.0497 | C16: =VLOOKUP(eGrid_Region_Ex,Data!$B$167:$G$194,6,FALSE) -> 0.0497
A17: Total Annual CO2 (lbs) | B17: =(B11*B12)+(B13*(B15/(1-B16))) -> 7122.042101 | C17: =(C11*C12)+(C13*(C15/(1-C16))) -> 3739.377862
A18: Lifecycle CO2 (lbs/mile) | B18: =B17/B4 -> 0.7122042101 | C18: =C17/C4 -> 0.3739377862
A19: Other Lifecycle Emissions
A20: NOX (mg/mile) | B20: =(VLOOKUP(eGrid_Region_Ex,Data!$B$167:$L$194,7,FALSE)/1000*Data!$B$216*Base_V1_Electricity_Usage_Ex/Base_V1_VMT_Modeled)+(Base_V1_Gas_Usage_Ex*Data!$B$215*Data!$C201/Base_V1_VMT_Modeled) -> 243.4809572 | C20: =(VLOOKUP(eGrid_Region_Ex,Data!$B$167:$L$194,7,FALSE)/1000*Data!$B$216*Comp_V1_Electricity_Usage_Ex/Comp_V1_VMT_Modeled)+(Comp_V1_Gas_Usage_Ex*Data!$B$215*Data!$C201/Comp_V1_VMT_Modeled) -> 79.36575993
A21: SOX (mg/mile) | B21: =(VLOOKUP(eGrid_Region_Ex,Data!$B$167:$L$194,8,FALSE)/1000*Data!$B$216*Base_V1_Electricity_Usage_Ex/Base_V1_VMT_Modeled)+(Base_V1_Gas_Usage_Ex*Data!$B$215*Data!$C202/Base_V1_VMT_Modeled) -> 127.3752826 | C21: =(VLOOKUP(eGrid_Region_Ex,Data!$B$167:$L$194,8,FALSE)/1000*Data!$B$216*Comp_V1_Electricity_Usage_Ex/Comp_V1_VMT_Modeled)+(Comp_V1_Gas_Usage_Ex*Data!$B$215*Data!$C202/Comp_V1_VMT_Modeled) -> 105.5218424
A22: PM10 (mg/mile) | B22: =(VLOOKUP(eGrid_Region_Ex,Data!$B$167:$L$194,9,FALSE)/1000*Data!$B$216*Base_V1_Electricity_Usage_Ex/Base_V1_VMT_Modeled)+(Base_V1_Gas_Usage_Ex*Data!$B$215*Data!$C203/Base_V1_VMT_Modeled) -> 17.47865952 | C22: =(VLOOKUP(eGrid_Region_Ex,Data!$B$167:$L$194,9,FALSE)/1000*Data!$B$216*Comp_V1_Electricity_Usage_Ex/Comp_V1_VMT_Modeled)+(Comp_V1_Gas_Usage_Ex*Data!$B$215*Data!$C203/Comp_V1_VMT_Modeled) -> 15.83751334
A23: PM2.5 (mg/mile) | B23: =(VLOOKUP(eGrid_Region_Ex,Data!$B$167:$L$194,10,FALSE)/1000*Data!$B$216*Base_V1_Electricity_Usage_Ex/Base_V1_VMT_Modeled)+(Base_V1_Gas_Usage_Ex*Data!$B$215*Data!$C204/Base_V1_VMT_Modeled) -> 12.56166495 | C23: =(VLOOKUP(eGrid_Region_Ex,Data!$B$167:$L$194,10,FALSE)/1000*Data!$B$216*Comp_V1_Electricity_Usage_Ex/Comp_V1_VMT_Modeled)+(Comp_V1_Gas_Usage_Ex*Data!$B$215*Data!$C204/Comp_V1_VMT_Modeled) -> 12.28665073
A24: VOC (mg/mile) | B24: =(VLOOKUP(eGrid_Region_Ex,Data!$B$167:$L$194,11,FALSE)/1000*Data!$B$216*Base_V1_Electricity_Usage_Ex/Base_V1_VMT_Modeled)+(Base_V1_Gas_Usage_Ex*Data!$B$215*Data!$C205/Base_V1_VMT_Modeled) -> 208.128843 | C24: =(VLOOKUP(eGrid_Region_Ex,Data!$B$167:$L$194,11,FALSE)/1000*Data!$B$216*Comp_V1_Electricity_Usage_Ex/Comp_V1_VMT_Modeled)+(Comp_V1_Gas_Usage_Ex*Data!$B$215*Data!$C205/Comp_V1_VMT_Modeled) -> 2.588383131
A26: *For PHEV calculations, assumes an equal number of miles driven on a daily basis, 365 days per year. No charging during the day.

Sheet Data
A1: Data - Fleet Procurement Analysis Tool
A2: Electricity and Gasoline Prices
A3: Vehicles
A4: Federal and State Vehicles Incentive
A5: Energy Inflation
A6: General Inflation (Maintenance, Insurance)
A7: Maintenance and Repair Costs
A8: Electricity Emissions
A9: Gasoline Emissions
A10: Other Default Values and Scalars
A12: Electricity and Gasoline Prices
A13: State Abbreviation | B13: Commerical Electricity Price ($/kWh) | C13: Gasoline Price
A14: AK | B14: 0.166 | C14: 2.646
A15: AL | B15: 0.112 | C15: 2.024
A16: AR | B16: 0.081 | C16: 2.024
A17: AZ | B17: 0.104 | C17: 2.646
A18: CA | B18: 0.156 | C18: 2.782
A19: CO | B19: 0.094 | C19: 2.14
A20: CT | B20: 0.156 | C20: 2.255
A21: DC | B21: 0.122 | C21: 2.312
A22: DE | B22: 0.122 | C22: 2.312
A23: FL | B23: 0.087 | C23: 2.216
A24: GA | B24: 0.095 | C24: 2.206
A25: HI | B25: 0.246 | C25: 2.646
A26: IA | B26: 0.092 | C26: 2.143
A27: ID | B27: 0.078 | C27: 2.212
A28: IL | B28: 0.089 | C28: 2.143
A29: IN | B29: 0.099 | C29: 2.143
A30: KS | B30: 0.101 | C30: 2.143
A31: KY | B31: 0.094 | C31: 2.143
A32: LA | B32: 0.086 | C32: 2.024
A33: MA | B33: 0.152 | C33: 2.221
A34: MD | B34: 0.117 | C34: 2.312
A35: ME | B35: 0.118 | C35: 2.255
A36: MI | B36: 0.11 | C36: 2.143
A37: MN | B37: 0.097 | C37: 2.09
A38: MO | B38: 0.092 | C38: 2.143
A39: MS | B39: 0.09 | C39: 2.024
A40: MT | B40: 0.103 | C40: 2.212
A41: NC | B41: 0.082 | C41: 2.206
A42: ND | B42: 0.09 | C42: 2.143
A43: NE | B43: 0.085 | C43: 2.143
A44: NH | B44: 0.191 | C44: 2.255
A45: NJ | B45: 0.128 | C45: 2.312
A46: NM | B46: 0.095 | C46: 2.024
A47: NV | B47: 0.082 | C47: 2.646
A48: NY | B48: 0.16 | C48: 2.361
A49: OH | B49: 0.108 | C49: 2.185
A50: OK | B50: 0.07 | C50: 2.143
A51: OR | B51: 0.092 | C51: 2.646
A52: PA | B52: 0.111 | C52: 2.312
A53: RI | B53: 0.164 | C53: 2.255
A54: SC | B54: 0.1 | C54: 2.206
A55: SD | B55: 0.095 | C55: 2.143
A56: TN | B56: 0.1 | C56: 2.143
A57: TX | B57: 0.082 | C57: 2.016
A58: UT | B58: 0.088 | C58: 2.212
A59: VA | B59: 0.078 | C59: 2.206
A60: VT | B60: 0.145 | C60: 2.255
A61: WA | B61: 0.089 | C61: 2.531
A62: WI | B62: 0.108 | C62: 2.143
A63: WV | B63: 0.093 | C63: 2.206
A64: WY | B64: 0.092 | C64: 2.212
A66: Source: Electricity Prices, https://www.eia.gov/electricity/data/eia861m/index.html
A67: Source: Gasoline Prices, http://www.eia.gov/dnav/pet/pet_pri_gnd_a_epmr_pte_dpgal_w.htm
A69: Vehicles
A70: Selection Name | B70: Year | C70: Make | D70: Model | E70: Drivetrain Type | F70: Battery Size (kwh)1 | G70: Electric Range1 | H70: Fuel Economy Electric City (MPGe)2 | I70: Fuel Economy Electric Hwy (MPGe)2 | J70: Fuel Economy Gas City (MPG)2 | K70: Fuel Economy Gas Hwy (MPG)2 | L70: MSRP1 | M70: Annual Insurance Cost (National Average)3
A71: =B71&" "&C71&" "&D71&" "&E71 -> *Custom BEV | B71: *Custom | E71: BEV
A72: *Custom ICE | B72: *Custom | E72: ICE
A73: *Custom PHEV | B73: *Custom | E73: PHEV
A74: 2016 Chevrolet Malibu ICE | B74: 2016 | C74: Chevrolet | D74: Malibu | E74: ICE | J74: 22 | K74: 32 | L74: 21625 | M74: =4113/5 -> 822.6
A75: 2016 Chevrolet Sonic ICE | B75: 2016 | C75: Chevrolet | D75: Sonic | E75: ICE | J75: 24 | K75: 34 | L75: 14345 | M75: =3793/5 -> 758.6
A76: 2016 Chevrolet Spark EV BEV | B76: 2016 | C76: Chevrolet | D76: Spark EV | E76: BEV | F76: 19 | G76: 82 | H76: 128 | I76: 109 | L76: 25120 | M76: 845
A77: 2016 Chevrolet Volt PHEV | B77: 2016 | C77: Chevrolet | D77: Volt | E77: PHEV | F77: 18.4 | G77: 53 | H77: 113 | I77: 99 | J77: 43 | K77: 42 | L77: 33170 | M77: 855
A78: 2016 Fiat 500e BEV | B78: 2016 | C78: Fiat | D78: 500e | E78: BEV | F78: 24 | G78: 84 | H78: 121 | I78: 103 | L78: 31800 | M78: 862
A79: 2016 Ford C-MAX Energi Plug-in Hybrid PHEV | B79: 2016 | C79: Ford | D79: C-MAX Energi Plug-in Hybrid | E79: PHEV | F79: 7.6 | G79: 20 | H79: 95 | I79: 81 | J79: 40 | K79: 36 | L79: 31770 | M79: 886
A80: 2016 Ford Edge ICE | B80: 2016 | C80: Ford | D80: Edge | E80: ICE | J80: 18 | K80: 26 | L80: 28700 | M80: =3898/5 -> 779.6
A81: 2016 Ford Focus Electric BEV | B81: 2016 | C81: Ford | D81: Focus Electric | E81: BEV | F81: 23 | G81: 76 | H81: 110 | I81: 99 | L81: 29170 | M81: 888
A82: 2016 Ford Fusion Energi Plug-in Hybrid PHEV | B82: 2016 | C82: Ford | D82: Fusion Energi Plug-in Hybrid | E82: PHEV | F82: 7.6 | G82: 20 | H82: 95 | I82: 81 | J82: 40 | K82: 36 | L82: 33900 | M82: 942
A83: 2016 Ford Taurus ICE | B83: 2016 | C83: Ford | D83: Taurus | E83: ICE | J83: 18 | K83: 27 | L83: 27110 | M83: =4397/5 -> 879.4
A84: 2016 Hyundai Sonata Plug-in Hybrid PHEV | B84: 2016 | C84: Hyundai | D84: Sonata Plug-in Hybrid | E84: PHEV | F84: 9.8 | G84: 27 | H84: 99 | I84: 98 | J84: 38 | K84: 41 | L84: 34600 | M84: 855
A85: 2016 Kia Soul Electric BEV | B85: 2016 | C85: Kia | D85: Soul Electric | E85: BEV | F85: 27 | G85: 93 | H85: 120 | I85: 92 | L85: 31950 | M85: 868.625
A86: 2016 Mitsubishi i-MiEV BEV | B86: 2016 | C86: Mitsubishi | D86: i-MiEV | E86: BEV | F86: 16 | G86: 62 | H86: 126 | I86: 99 | L86: 22995 | M86: 868.625
A87: 2016 Nissan Leaf BEV | B87: 2016 | C87: Nissan | D87: Leaf | E87: BEV | F87: 24 | G87: 84 | H87: 124 | I87: 101 | L87: 29010 | M87: 915
A88: 2016 Smart fortwo electric drive coupe BEV | B88: 2016 | C88: Smart | D88: fortwo electric drive coupe | E88: BEV | F88: 17.6 | G88: 68 | H88: 122 | I88: 93 | L88: 25750 | M88: 868.625
A89: 2016 Volkswagen e-Golf BEV | B89: 2016 | C89: Volkswagen | D89: e-Golf | E89: BEV | F89: 24.2 | G89: 83 | H89: 126 | I89: 105 | L89: 28995 | M89: 868.625
A90: 2017 Chevrolet Bolt EV BEV | B90: 2017 | C90: Chevrolet | D90: Bolt EV | E90: BEV | F90: 60 | G90: 238 | H90: 128 | I90: 110 | L90: 36620 | M90: 868.625
A91: 2017 Chevrolet Cruze ICE | B91: 2017 | C91: Chevrolet | D91: Cruze | E91: ICE | J91: 30 | K91: 40 | L91: 19525 | M91: 805.4
A92: 2017 Chevrolet Volt PHEV | B92: 2017 | C92: Chevrolet | D92: Volt | E92: PHEV | F92: 18.4 | G92: 53 | H92: 113 | I92: 99 | J92: 43 | K92: 42 | L92: 33220 | M92: 855
A93: 2017 Chrysler Pacifica Plug-in Hybrid PHEV | B93: 2017 | C93: Chrysler | D93: Pacifica Plug-in Hybrid | E93: PHEV | F93: 16 | G93: 33 | H93: 89 | I93: 78 | J93: 32 | K93: 33 | L93: 41995 | M93: 855
A94: 2017 Fiat 500e BEV | B94: 2017 | C94: Fiat | D94: 500e | E94: BEV | F94: 24 | G94: 84 | H94: 121 | I94: 103 | L94: 31800 | M94: 868.625
A95: 2017 Ford C-MAX Energi Plug-in Hybrid PHEV | B95: 2017 | C95: Ford | D95: C-MAX Energi Plug-in Hybrid | E95: PHEV | F95: 7.6 | G95: 20 | H95: 104 | I95: 87 | J95: 41 | K95: 38 | L95: 27120 | M95: 855
A96: 2017 Ford Focus Electric BEV | B96: 2017 | C96: Ford | D96: Focus Electric | E96: BEV | F96: 33.5 | G96: 115 | H96: 118 | I96: 96 | L96: 29120 | M96: 868.625
A97: 2017 Ford Fusion Energi Plug-in Hybrid PHEV | B97: 2017 | C97: Ford | D97: Fusion Energi Plug-in Hybrid | E97: PHEV | F97: 7.6 | G97: 22 | H97: 104 | I97: 91 | J97: 43 | K97: 41 | L97: 33120 | M97: 855
A98: 2017 Hyundai Ioniq Electric BEV | B98: 2017 | C98: Hyundai | D98: Ioniq Electric | E98: BEV | F98: 28 | G98: 124 | H98: 150 | I98: 122 | L98: 29500 | M98: 868.625
A99: 2017 Hyundai Sonata Plug-in Hybrid PHEV | B99: 2017 | C99: Hyundai | D99: Sonata Plug-in Hybrid | E99: PHEV | F99: 9.8 | G99: 27 | H99: 99 | I99: 98 | J99: 38 | K99: 40 | L99: 34600 | M99: 855
A100: 2017 Kia Soul Electric BEV | B100: 2017 | C100: Kia | D100: Soul Electric | E100: BEV | F100: 27 | G100: 93 | H100: 120 | I100: 92 | L100: 32250 | M100: 868.625
A101: 2017 Mitsubishi i-MiEV BEV | B101: 2017 | C101: Mitsubishi | D101: i-MiEV | E101: BEV | F101: 16 | G101: 59 | H101: 121 | I101: 102 | L101: 22995 | M101: 868.625
A102: 2017 Nissan Leaf BEV | B102: 2017 | C102: Nissan | D102: Leaf | E102: BEV | F102: 30 | G102: 107 | H102: 124 | I102: 101 | L102: 30680 | M102: 868.625
A103: 2017 Toyota Prius Prime PHEV | B103: 2017 | C103: Toyota | D103: Prius Prime | E103: PHEV | F103: 8.8 | G103: 25 | H103: 145 | I103: 121 | J103: 55 | K103: 53 | L103: 27100 | M103: 855
A104: 2017 Volkswagen e-Golf BEV | B104: 2017 | C104: Volkswagen | D104: e-Golf | E104: BEV | F104: 36 | G104: 125 | H104: 126 | I104: 111 | L104: 28995 | M104: 868.625
A106: 1 Battery size and range from manufacturer website/specifications; , MSRP from manufacturer's website or fueleconomy.gov
A107: 2 Fuel economy data from http://www.fueleconomy.gov
A108: 3 Annual insurance cost data is from Edmunds True Cost to Own https://www.edmunds.com/tco.html?mktcat=tco&kw=total+cost+ownership&mktid=ga56677244. Based on zip code 62701 (Springfiled,Illinois). Yellow cells are an average price based on vehicle type and available data.
A110: Federal and State Vehicle Incentives
A111: Selection Name | B111: Year | C111: Make | D111: Model | E111: Drivetrain Type | F111: Battery Size (kWh) | G111: Federal Tax Credit | H111: CA | I111: DE | J111: MA | K111: MD | L111: NY
A112: =Data!$B112&" "&Data!$C112&" "&Data!$D112&" "&Data!$E112 -> 2017 Chevrolet Bolt EV BEV | B112: 2017 | C112: Chevrolet | D112: Bolt EV | E112: BEV | F112: 60 | G112: 7500 | H112: 2500 | I112: 3500 | J112: 7500 | K112: 3000 | L112: 5000
A113: =Data!$B113&" "&Data!$C113&" "&Data!$D113&" "&Data!$E113 -> 2016 Chevrolet Spark EV BEV | B113: 2016 | C113: Chevrolet | D113: Spark EV | E113: BEV | F113: 19 | G113: 7500 | H113: 2500 | I113: 3500 | J113: 7500 | K113: =Data!$F113*125 -> 2375 | L113: 5000
A114: =Data!$B114&" "&Data!$C114&" "&Data!$D114&" "&Data!$E114 -> 2016 Chevrolet Volt PHEV | B114: 2016 | C114: Chevrolet | D114: Volt | E114: PHEV | F114: 18.4 | G114: 7500 | H114: 1500 | I114: 1500 | J114: 5000 | K114: =Data!$F114*125 -> 2300 | L114: 5000
A115: =Data!$B115&" "&Data!$C115&" "&Data!$D115&" "&Data!$E115 -> 2017 Chevrolet Volt PHEV | B115: 2017 | C115: Chevrolet | D115: Volt | E115: PHEV | F115: 18.4 | G115: 7500 | H115: 1500 | I115: 1500 | J115: 5000 | K115: =Data!$F115*125 -> 2300 | L115: 5000
A116: =Data!$B116&" "&Data!$C116&" "&Data!$D116&" "&Data!$E116 -> 2017 Chrysler Pacifica Plug-in Hybrid PHEV | B116: 2017 | C116: Chrysler | D116: Pacifica Plug-in Hybrid | E116: PHEV | F116: 16 | G116: 7500 | H116: 1500 | I116: 1500 | J116: 5000 | K116: =Data!$F116*125 -> 2000 | L116: 2500
A117: =Data!$B117&" "&Data!$C117&" "&Data!$D117&" "&Data!$E117 -> 2016 Fiat 500e BEV | B117: 2016 | C117: Fiat | D117: 500e | E117: BEV | F117: 24 | G117: 7500 | H117: 2500 | I117: 3500 | J117: 7500 | K117: =Data!$F117*125 -> 3000 | L117: 5000
A118: =Data!$B118&" "&Data!$C118&" "&Data!$D118&" "&Data!$E118 -> 2017 Fiat 500e BEV | B118: 2017 | C118: Fiat | D118: 500e | E118: BEV | F118: 24 | G118: 7500 | H118: 2500 | I118: 3500 | J118: 7500 | K118: =Data!$F118*125 -> 3000 | L118: 5000
A119: =Data!$B119&" "&Data!$C119&" "&Data!$D119&" "&Data!$E119 -> 2016 Ford C-MAX Energi Plug-in Hybrid PHEV | B119: 2016 | C119: Ford | D119: C-MAX Energi Plug-in Hybrid | E119: PHEV | F119: 7.6 | G119: 4007 | H119: 1500 | I119: 1500 | J119: 5000 | K119: =Data!$F119*125 -> 950 | L119: 2500
A120: =Data!$B120&" "&Data!$C120&" "&Data!$D120&" "&Data!$E120 -> 2016 Ford Focus Electric BEV | B120: 2016 | C120: Ford | D120: Focus Electric | E120: BEV | F120: 23 | G120: 7500 | H120: 2500 | I120: 3500 | J120: 7500 | K120: =Data!$F120*125 -> 2875 | L120: 5000
A121: =Data!$B121&" "&Data!$C121&" "&Data!$D121&" "&Data!$E121 -> 2017 Ford Focus Electric BEV | B121: 2017 | C121: Ford | D121: Focus Electric | E121: BEV | F121: 33.5 | G121: 7500 | H121: 2500 | I121: 3500 | J121: 7500 | K121: 3000 | L121: 5000
A122: =Data!$B122&" "&Data!$C122&" "&Data!$D122&" "&Data!$E122 -> 2016 Ford Fusion Energi Plug-in Hybrid PHEV | B122: 2016 | C122: Ford | D122: Fusion Energi Plug-in Hybrid | E122: PHEV | F122: 7.6 | G122: 4007 | H122: 1500 | I122: 1500 | J122: 5000 | K122: =Data!$F122*125 -> 950 | L122: 2500
A123: =Data!$B123&" "&Data!$C123&" "&Data!$D123&" "&Data!$E123 -> 2017 Ford Fusion Energi Plug-in Hybrid PHEV | B123: 2017 | C123: Ford | D123: Fusion Energi Plug-in Hybrid | E123: PHEV | F123: 7.6 | G123: 4007 | H123: 1500 | I123: 1500 | J123: 5000 | K123: =Data!$F123*125 -> 950 | L123: 2500
A124: =Data!$B124&" "&Data!$C124&" "&Data!$D124&" "&Data!$E124 -> 2017 Hyundai Ioniq Electric BEV | B124: 2017 | C124: Hyundai | D124: Ioniq Electric | E124: BEV | F124: 28 | G124: 7500 | H124: 2500 | I124: 3500 | J124: 7500 | K124: 3000 | L124: 5000
A125: =Data!$B125&" "&Data!$C125&" "&Data!$D125&" "&Data!$E125 -> 2016 Hyundai Sonata Plug-in Hybrid PHEV | B125: 2016 | C125: Hyundai | D125: Sonata Plug-in Hybrid | E125: PHEV | F125: 9.8 | G125: 4918.6 | H125: 1500 | I125: 1500 | J125: 5000 | K125: =Data!$F125*125 -> 1225 | L125: 2500
A126: =Data!$B126&" "&Data!$C126&" "&Data!$D126&" "&Data!$E126 -> 2017 Hyundai Sonata Plug-in Hybrid PHEV | B126: 2017 | C126: Hyundai | D126: Sonata Plug-in Hybrid | E126: PHEV | F126: 9.8 | G126: 4918.6 | H126: 1500 | I126: 1500 | J126: 5000 | K126: =Data!$F126*125 -> 1225 | L126: 2500
A127: =Data!$B127&" "&Data!$C127&" "&Data!$D127&" "&Data!$E127 -> 2016 Kia Soul Electric BEV | B127: 2016 | C127: Kia | D127: Soul Electric | E127: BEV | F127: 27 | G127: 7500 | H127: 2500 | I127: 3500 | J127: 7500 | K127: 3000 | L127: 5000
A128: =Data!$B128&" "&Data!$C128&" "&Data!$D128&" "&Data!$E128 -> 2017 Kia Soul Electric BEV | B128: 2017 | C128: Kia | D128: Soul Electric | E128: BEV | F128: 27 | G128: 7500 | H128: 2500 | I128: 3500 | J128: 7500 | K128: 3000 | L128: 5000
A129: =Data!$B129&" "&Data!$C129&" "&Data!$D129&" "&Data!$E129 -> 2016 Mitsubishi i-MiEV BEV | B129: 2016 | C129: Mitsubishi | D129: i-MiEV | E129: BEV | F129: 16 | G129: 7500 | H129: 2500 | I129: 3500 | J129: 7500 | K129: =Data!$F129*125 -> 2000 | L129: 5000
A130: =Data!$B130&" "&Data!$C130&" "&Data!$D130&" "&Data!$E130 -> 2017 Mitsubishi i-MiEV BEV | B130: 2017 | C130: Mitsubishi | D130: i-MiEV | E130: BEV | F130: 16 | G130: 7500 | H130: 2500 | I130: 3500 | J130: 7500 | K130: =Data!$F130*125 -> 2000 | L130: 5000
A131: =Data!$B131&" "&Data!$C131&" "&Data!$D131&" "&Data!$E131 -> 2016 Nissan Leaf BEV | B131: 2016 | C131: Nissan | D131: Leaf | E131: BEV | F131: 24 | G131: 7500 | H131: 2500 | I131: 3500 | J131: 7500 | K131: =Data!$F131*125 -> 3000 | L131: 5000
A132: =Data!$B132&" "&Data!$C132&" "&Data!$D132&" "&Data!$E132 -> 2017 Nissan Leaf BEV | B132: 2017 | C132: Nissan | D132: Leaf | E132: BEV | F132: 30 | G132: 7500 | H132: 2500 | I132: 3500 | J132: 7500 | K132: 3000 | L132: 5000
A133: =Data!$B133&" "&Data!$C133&" "&Data!$D133&" "&Data!$E133 -> 2016 Smart fortwo electric drive coupe BEV | B133: 2016 | C133: Smart | D133: fortwo electric drive coupe | E133: BEV | F133: 17.6 | G133: 7500 | H133: 2500 | I133: 3500 | J133: 7500 | K133: =Data!$F133*125 -> 2200 | L133: 5000
A134: =Data!$B134&" "&Data!$C134&" "&Data!$D134&" "&Data!$E134 -> 2017 Toyota Prius Prime PHEV | B134: 2017 | C134: Toyota | D134: Prius Prime | E134: PHEV | F134: 8.8 | G134: 4501.6 | H134: 1500 | I134: 1500 | J134: 5000 | K134: =Data!$F134*125 -> 1100 | L134: 2500
A135: =Data!$B135&" "&Data!$C135&" "&Data!$D135&" "&Data!$E135 -> 2016 Volkswagen e-Golf BEV | B135: 2016 | C135: Volkswagen | D135: e-Golf | E135: BEV | F135: 24.2 | G135: 7500 | H135: 2500 | I135: 3500 | J135: 7500 | K135: 3000 | L135: 5000
A137: Source: https://www.irs.gov/businesses/qualified-vehicles-acquired-after-12-31-2009 (Federal Tax Credit)
A139: Energy Inflation
A140: Field | B140: Units | C140: 2016 | D140: 2017 | E140: 2018 | F140: 2019 | G140: 2020 | H140: 2021 | I140: 2022 | J140: 2023 | K140: 2024 | L140: 2025 | M140: 2026 | N140: 2027 | O140: 2028 | P140: 2029 | Q140: 2030 | R140: 2031 | S140: 2032 | T140: 2033 | U140: 2034 | V140: 2035 | W140: 2036 | X140: 2037 | Y140: 2038 | Z140: 2039 | AA140: 2040
A141: Motor Gasoline - Reference case without Clean Power Plan | B141: 2015 $/MMBtu | C141: 16.811794 | D141: 18.30632 | E141: 19.651028 | F141: 21.625477 | G141: 22.710997 | H141: 23.430271 | I141: 23.789028 | J141: 24.166338 | K141: 24.381393 | L141: 24.682074 | M141: 25.206373 | N141: 25.613256 | O141: 25.905724 | P141: 26.279842 | Q141: 26.534843 | R141: 27.035015 | S141: 27.612432 | T141: 28.160969 | U141: 28.710022 | V141: 28.920519 | W141: 29.497013 | X141: 29.873716 | Y141: 30.530478 | Z141: 31.132334 | AA141: 31.788158
A142: Motor Gasoline - % over base | B142: % | C142: =C141/$C$141 -> 1 | D142: 1.088897473 | E142: 1.168883464 | F142: 1.286327741 | G142: 1.350896698 | H142: 1.393680591 | I142: 1.415020194 | J142: 1.437463366 | K142: 1.450255279 | L142: 1.468140402 | M142: 1.499326782 | N142: 1.523529018 | O142: 1.540925614 | P142: 1.563178921 | Q142: 1.578346903 | R142: 1.60809816 | S142: 1.642444108 | T142: 1.675072214 | U142: 1.707731013 | V142: 1.720251807 | W142: 1.754542852 | X142: 1.77694992 | Y142: 1.816015471 | Z142: 1.851815101 | AA142: 1.890824858
A143: Electricity - Reference case without Clean Power Plan | B143: 2015 $/MMBtu | C143: 29.737959 | D143: 29.438391 | E143: 30.531321 | F143: 32.163536 | G143: 32.959015 | H143: 33.605846 | I143: 33.95953 | J143: 34.370037 | K143: 34.751633 | L143: 35.272614 | M143: 35.575626 | N143: 35.519875 | O143: 35.526302 | P143: 35.511578 | Q143: 35.512962 | R143: 35.48069 | S143: 35.475903 | T143: 35.448685 | U143: 35.458553 | V143: 35.297573 | W143: 35.112625 | X143: 34.956844 | Y143: 34.850204 | Z143: 34.678581 | AA143: 34.537487
A144: Electricity - % over base | B144: % | C144: =C143/$C$143 -> 1 | D144: 0.9899264102 | E144: 1.026678428 | F144: 1.081565013 | G144: 1.108314629 | H144: 1.130065651 | I144: 1.141959003 | J144: 1.155763144 | K144: 1.168595094 | L144: 1.186114151 | M144: 1.196303553 | N144: 1.194428811 | O144: 1.194644932 | P144: 1.194149807 | Q144: 1.194196347 | R144: 1.193111134 | S144: 1.192950162 | T144: 1.192034901 | U144: 1.192366732 | V144: 1.186953449 | W144: 1.180734192 | X144: 1.175495736 | Y144: 1.171909747 | Z144: 1.166138571 | AA144: 1.161393995
A146: Source: http://www.eia.gov/outlooks/aeo/data/browser/#/?id=3-AEO2016&region=1-0&cases=ref2016~ref_no_cpp&start=2016&end=2040&f=A&linechart=ref2016-d032416a.3-3-AEO2016.1-0~ref_no_cpp-d032316a.3-3-AEO2016.1-0&map=ref_no_cpp-d032316a.3-3-AEO2016.1-0&chartin
A148: General Inflation (Maintenance
A149: Federal Inflation | E149: 2016 | F149: 2017 | G149: 2018 | H149: 2019 | I149: 2020 | J149: 2021 | K149: 2022 | L149: 2023 | M149: 2024 | N149: 2025 | O149: 2026 | P149: 2027 | Q149: 2028 | R149: 2029 | S149: 2030 | T149: 2031 | U149: 2032 | V149: 2033 | W149: 2034 | X149: 2035 | Y149: 2036 | Z149: 2037 | AA149: 2038 | AB149: 2039 | AC149: 2040
A150: =Inflation_Rate_General_Modeled -> 0.02 | E150: =(1+$A$150)^(C140-$C$140) -> 1 | F150: 1.02 | G150: 1.0404 | H150: 1.061208 | I150: 1.08243216 | J150: 1.104080803 | K150: 1.126162419 | L150: 1.148685668 | M150: 1.171659381 | N150: 1.195092569 | O150: 1.21899442 | P150: 1.243374308 | Q150: 1.268241795 | R150: 1.29360663 | S150: 1.319478763 | T150: 1.345868338 | U150: 1.372785705 | V150: 1.400241419 | W150: 1.428246248 | X150: 1.456811173 | Y150: 1.485947396 | Z150: 1.515666344 | AA150: 1.545979671 | AB150: 1.576899264 | AC150: 1.608437249
A152: Source: https://www.federalreserve.gov/faqs/economy_14400.htm
A154: Maintenance and Repair Costs
A155: Vehicle Type ($/mile) | B155: Year 1 | C155: Year 2 | D155: Year 3 | E155: Year 4 | F155: Year 5 | G155: Year 6 | H155: Year 7 | I155: Year 8 | J155: Year 9 | K155: Year 10 | L155: Year 11 | M155: Year 12 | N155: Year 13 | O155: Year 14 | P155: Year 15 | Q155: Year 16 | R155: Year 17 | S155: Year 18 | T155: Year 19 | U155: Year 20 | V155: Year 21 | W155: Year 22 | X155: Year 23 | Y155: Year 24 | Z155: Year 25
A156: ICE | B156: 0.08 | C156: 0.08 | D156: 0.08 | E156: 0.08 | F156: 0.08 | G156: =DB_Maint_Repair_Costs[[#This Row],[Year 5]]*1.3 -> 0.104 | H156: =DB_Maint_Repair_Costs[[#This Row],[Year 5]]*1.3 -> 0.104 | I156: =DB_Maint_Repair_Costs[[#This Row],[Year 5]]*1.3 -> 0.104 | J156: =DB_Maint_Repair_Costs[[#This Row],[Year 5]]*1.3 -> 0.104 | K156: =DB_Maint_Repair_Costs[[#This Row],[Year 5]]*1.3 -> 0.104 | L156: =DB_Maint_Repair_Costs[[#This Row],[Year 5]]*1.3 -> 0.104 | M156: =DB_Maint_Repair_Costs[[#This Row],[Year 5]]*1.3 -> 0.104 | N156: =DB_Maint_Repair_Costs[[#This Row],[Year 5]]*1.3 -> 0.104 | O156: =DB_Maint_Repair_Costs[[#This Row],[Year 5]]*1.3 -> 0.104 | P156: =DB_Maint_Repair_Costs[[#This Row],[Year 5]]*1.3 -> 0.104 | Q156: =DB_Maint_Repair_Costs[[#This Row],[Year 5]]*1.3 -> 0.104 | R156: =DB_Maint_Repair_Costs[[#This Row],[Year 5]]*1.3 -> 0.104 | S156: =DB_Maint_Repair_Costs[[#This Row],[Year 5]]*1.3 -> 0.104 | T156: =DB_Maint_Repair_Costs[[#This Row],[Year 5]]*1.3 -> 0.104 | U156: =DB_Maint_Repair_Costs[[#This Row],[Year 5]]*1.3 -> 0.104 | V156: =DB_Maint_Repair_Costs[[#This Row],[Year 5]]*1.3 -> 0.104 | W156: =DB_Maint_Repair_Costs[[#This Row],[Year 5]]*1.3 -> 0.104 | X156: =DB_Maint_Repair_Costs[[#This Row],[Year 5]]*1.3 -> 0.104 | Y156: =DB_Maint_Repair_Costs[[#This Row],[Year 5]]*1.3 -> 0.104 | Z156: =DB_Maint_Repair_Costs[[#This Row],[Year 5]]*1.3 -> 0.104
A157: BEV | B157: 0.04 | C157: 0.04 | D157: 0.04 | E157: 0.04 | F157: 0.04 | G157: =DB_Maint_Repair_Costs[[#This Row],[Year 5]]*1.3 -> 0.052 | H157: =DB_Maint_Repair_Costs[[#This Row],[Year 5]]*1.3 -> 0.052 | I157: =DB_Maint_Repair_Costs[[#This Row],[Year 5]]*1.3 -> 0.052 | J157: =DB_Maint_Repair_Costs[[#This Row],[Year 5]]*1.3 -> 0.052 | K157: =DB_Maint_Repair_Costs[[#This Row],[Year 5]]*1.3 -> 0.052 | L157: =DB_Maint_Repair_Costs[[#This Row],[Year 5]]*1.3 -> 0.052 | M157: =DB_Maint_Repair_Costs[[#This Row],[Year 5]]*1.3 -> 0.052 | N157: =DB_Maint_Repair_Costs[[#This Row],[Year 5]]*1.3 -> 0.052 | O157: =DB_Maint_Repair_Costs[[#This Row],[Year 5]]*1.3 -> 0.052 | P157: =DB_Maint_Repair_Costs[[#This Row],[Year 5]]*1.3 -> 0.052 | Q157: =DB_Maint_Repair_Costs[[#This Row],[Year 5]]*1.3 -> 0.052 | R157: =DB_Maint_Repair_Costs[[#This Row],[Year 5]]*1.3 -> 0.052 | S157: =DB_Maint_Repair_Costs[[#This Row],[Year 5]]*1.3 -> 0.052 | T157: =DB_Maint_Repair_Costs[[#This Row],[Year 5]]*1.3 -> 0.052 | U157: =DB_Maint_Repair_Costs[[#This Row],[Year 5]]*1.3 -> 0.052 | V157: =DB_Maint_Repair_Costs[[#This Row],[Year 5]]*1.3 -> 0.052 | W157: =DB_Maint_Repair_Costs[[#This Row],[Year 5]]*1.3 -> 0.052 | X157: =DB_Maint_Repair_Costs[[#This Row],[Year 5]]*1.3 -> 0.052 | Y157: =DB_Maint_Repair_Costs[[#This Row],[Year 5]]*1.3 -> 0.052 | Z157: =DB_Maint_Repair_Costs[[#This Row],[Year 5]]*1.3 -> 0.052
A158: PHEV | B158: 0.07 | C158: 0.07 | D158: 0.07 | E158: 0.07 | F158: 0.07 | G158: =DB_Maint_Repair_Costs[[#This Row],[Year 5]]*1.3 -> 0.091 | H158: =DB_Maint_Repair_Costs[[#This Row],[Year 5]]*1.3 -> 0.091 | I158: =DB_Maint_Repair_Costs[[#This Row],[Year 5]]*1.3 -> 0.091 | J158: =DB_Maint_Repair_Costs[[#This Row],[Year 5]]*1.3 -> 0.091 | K158: =DB_Maint_Repair_Costs[[#This Row],[Year 5]]*1.3 -> 0.091 | L158: =DB_Maint_Repair_Costs[[#This Row],[Year 5]]*1.3 -> 0.091 | M158: =DB_Maint_Repair_Costs[[#This Row],[Year 5]]*1.3 -> 0.091 | N158: =DB_Maint_Repair_Costs[[#This Row],[Year 5]]*1.3 -> 0.091 | O158: =DB_Maint_Repair_Costs[[#This Row],[Year 5]]*1.3 -> 0.091 | P158: =DB_Maint_Repair_Costs[[#This Row],[Year 5]]*1.3 -> 0.091 | Q158: =DB_Maint_Repair_Costs[[#This Row],[Year 5]]*1.3 -> 0.091 | R158: =DB_Maint_Repair_Costs[[#This Row],[Year 5]]*1.3 -> 0.091 | S158: =DB_Maint_Repair_Costs[[#This Row],[Year 5]]*1.3 -> 0.091 | T158: =DB_Maint_Repair_Costs[[#This Row],[Year 5]]*1.3 -> 0.091 | U158: =DB_Maint_Repair_Costs[[#This Row],[Year 5]]*1.3 -> 0.091 | V158: =DB_Maint_Repair_Costs[[#This Row],[Year 5]]*1.3 -> 0.091 | W158: =DB_Maint_Repair_Costs[[#This Row],[Year 5]]*1.3 -> 0.091 | X158: =DB_Maint_Repair_Costs[[#This Row],[Year 5]]*1.3 -> 0.091 | Y158: =DB_Maint_Repair_Costs[[#This Row],[Year 5]]*1.3 -> 0.091 | Z158: =DB_Maint_Repair_Costs[[#This Row],[Year 5]]*1.3 -> 0.091
A160: Source: Alameda County, 2017
A162: Electricity Emissions
A163: eGRID subregion name | B163: eGRID subregion acronym | C163: eGRID subregion annual CO2 total direct plant output emission rate (lb/MWh)1 | D163: eGRID subregion annual CH4 total output emission rate (lb/GWh)1 | E163: eGRID subregion annual N2O total output emission rate (lb/GWh)1 | F163: eGrid upstream CO2 emissions from extraction (lb/MWh)3 | G163: Grid Loss Factors eGrid 2014 (%)2 | H163: eGRID subregion annual NOx total direct plant output emission rate (lb/MWh)1 | I163: eGRID subregion annual SOx total direct plant output emission rate (lb/MWh)1 | J163: EPA PM10 total direct plant output emission rate based on national average (lb/MWh)4 | K163: EPA PM2.5 total direct plant output emission rate based on national average (lb/MWh)4 | L163: EPA VOC total direct plant output emission rate based on national average (lb/MWh)4
A164: ASCC Alaska Grid | B164: AKGD | C164: 929.736 | D164: 46.629 | E164: 7.161 | F164: 194.006949 | G164: 0.0563 | H164: 2.058 | I164: 0.625 | J164: =228.579845629779*1000/4079690473.912*2204.62 -> 0.1235220423 | K164: =177.330914739379*1000/4079690473.912*2204.62 -> 0.09582768197 | L164: =37.3576459820216*1000/4079690473.912*2204.62 -> 0.02018766228
A165: ASCC Miscellaneous | B165: AKMS | C165: 683.115 | D165: 36.07 | E165: 5.998 | F165: 112.4358454 | G165: 0.0563 | H165: 9.643 | I165: 0.967 | J165: =228.579845629779*1000/4079690473.912*2204.62 -> 0.1235220423 | K165: =177.330914739379*1000/4079690473.912*2204.62 -> 0.09582768197 | L165: =37.3576459820216*1000/4079690473.912*2204.62 -> 0.02018766228
A166: WECC Southwest | B166: AZNM | C166: 879.872 | D166: 66.378 | E166: 9.313 | F166: 125.663592 | G166: 0.0479 | H166: 0.654 | I166: 0.326 | J166: 0.1235220423 | K166: 0.09582768197 | L166: 0.02018766228
A167: WECC California | B167: CAMX | C167: 570.489 | D167: 33.105 | E167: 4.036 | F167: 130.0728408 | G167: 0.0479 | H167: 0.24 | I167: 0.04 | J167: 0.1235220423 | K167: 0.09582768197 | L167: 0.02018766228
A168: ERCOT All | B168: ERCT | C168: 1148.049 | D168: 81.835 | E168: 11.575 | F168: 147.7098362 | G168: 0.0512 | H168: 0.595 | I168: 1.587 | J168: 0.1235220423 | K168: 0.09582768197 | L168: 0.02018766228
A169: FRCC All | B169: FRCC | C169: 1080.768 | D169: 87.777 | E169: 12.051 | F169: 176.3699536 | G169: 0.0497 | H169: 0.619 | I169: 0.823 | J169: 0.1235220423 | K169: 0.09582768197 | L169: 0.02018766228
A170: HICC Miscellaneous | B170: HIMS | C170: 947.527 | D170: 95.34 | E170: 15.22 | F170: 253.5318083 | G170: 0.0518 | H170: 6.914 | I170: 3.816 | J170: 0.1235220423 | K170: 0.09582768197 | L170: 0.02018766228
A171: HICC Oahu | B171: HIOA | C171: 1490.366 | D171: 159.41 | E171: 24.46 | F171: 308.6474188 | G171: 0.0518 | H171: 2.639 | I171: 8.73 | J171: 0.1235220423 | K171: 0.09582768197 | L171: 0.02018766228
A172: MRO East | B172: MROE | C172: 1676.531 | D172: 191.16 | E172: 28.178 | F172: 123.4589675 | G172: 0.0497 | H172: 1.108 | I172: 3.052 | J172: 0.1235220423 | K172: 0.09582768197 | L172: 0.02018766228
A173: MRO West | B173: MROW | C173: 1375.606 | D173: 161.369 | E173: 23.347 | F173: 105.8219722 | G173: 0.0497 | H173: 1.457 | I173: 2.302 | J173: 0.1235220423 | K173: 0.09582768197 | L173: 0.02018766228
A174: NPCC New England | B174: NEWE | C174: 576.76 | D174: 96.003 | E174: 12.843 | F174: 130.0728408 | G174: 0.0497 | H174: 0.465 | I174: 0.235 | J174: 0.1235220423 | K174: 0.09582768197 | L174: 0.02018766228
A175: WECC Northwest | B175: NWPP | C175: 913.423 | D175: 97.807 | E175: 14.224 | F175: 59.52485934 | G175: 0.0479 | H175: 1.195 | I175: 0.626 | J175: 0.1235220423 | K175: 0.09582768197 | L175: 0.02018766228
A176: NPCC NYC/Westchester | B176: NYCW | C176: 666.939 | D176: 24.365 | E176: 2.971 | F176: 138.8913385 | G176: 0.0497 | H176: 0.31 | I176: 0.046 | J176: 0.1235220423 | K176: 0.09582768197 | L176: 0.02018766228
A177: NPCC Long Island | B177: NYLI | C177: 1204.323 | D177: 132.411 | E177: 17.194 | F177: 202.8254467 | G177: 0.0497 | H177: 0.894 | I177: 0.448 | J177: 0.1235220423 | K177: 0.09582768197 | L177: 0.02018766228
A178: NPCC Upstate NY | B178: NYUP | C178: 367.64 | D178: 30.686 | E178: 4.138 | F178: 81.57110355 | G178: 0.0497 | H178: 0.402 | I178: 0.422 | J178: 0.1235220423 | K178: 0.09582768197 | L178: 0.02018766228
A179: RFC East | B179: RFCE | C179: 834.476 | D179: 73.933 | E179: 11.226 | F179: 114.6404698 | G179: 0.0497 | H179: 0.83 | I179: 1.925 | J179: 0.1235220423 | K179: 0.09582768197 | L179: 0.02018766228
A180: RFC Michigan | B180: RFCM | C180: 1542.618 | D180: 170.085 | E180: 24.461 | F180: 145.5052117 | G180: 0.0497 | H180: 1.394 | I180: 3.504 | J180: 0.1235220423 | K180: 0.09582768197 | L180: 0.02018766228
A181: RFC West | B181: RFCW | C181: 1390.868 | D181: 150.199 | E181: 22.034 | F181: 121.2543431 | G181: 0.0497 | H181: 1.254 | I181: 2.905 | J181: 0.1235220423 | K181: 0.09582768197 | L181: 0.02018766228
A182: WECC Rockies | B182: RMPA | C182: 1749.42 | D182: 178.158 | E182: 25.771 | F182: 134.4820896 | G182: 0.0479 | H182: 1.526 | I182: 1.059 | J182: 0.1235220423 | K182: 0.09582768197 | L182: 0.02018766228
A183: SPP North | B183: SPNO | C183: 1586.459 | D183: 173.789 | E183: 25.217 | F183: 130.0728408 | G183: 0.0497 | H183: 1.192 | I183: 1.563 | J183: 0.1235220423 | K183: 0.09582768197 | L183: 0.02018766228
A184: SPP South | B184: SPSO | C184: 1484.801 | D184: 135.441 | E184: 19.69 | F184: 156.5283338 | G184: 0.0497 | H184: 1.136 | I184: 2.309 | J184: 0.1235220423 | K184: 0.09582768197 | L184: 0.02018766228
A185: SERC Mississippi Valley | B185: SRMV | C185: 1027.116 | D185: 78.625 | E185: 11.247 | F185: 154.3237094 | G185: 0.0497 | H185: 0.966 | I185: 1.461 | J185: 0.1235220423 | K185: 0.09582768197 | L185: 0.02018766228
A186: SERC Midwest | B186: SRMW | C186: 1785.806 | D186: 208.841 | E186: 30.371 | F186: 132.2774652 | G186: 0.0497 | H186: 1.282 | I186: 2.907 | J186: 0.1235220423 | K186: 0.09582768197 | L186: 0.02018766228
A187: SERC South | B187: SRSO | C187: 1150.733 | D187: 103.712 | E187: 15.325 | F187: 145.5052117 | G187: 0.0497 | H187: 0.757 | I187: 1.989 | J187: 0.1235220423 | K187: 0.09582768197 | L187: 0.02018766228
A188: SERC Tennessee Valley | B188: SRTV | C188: 1345.417 | D188: 138.639 | E188: 20.194 | F188: 121.2543431 | G188: 0.0497 | H188: 0.981 | I188: 2.115 | J188: 0.1235220423 | K188: 0.09582768197 | L188: 0.02018766228
A189: SERC Virginia/Carolina | B189: SRVC | C189: 862.786 | D189: 95.723 | E189: 13.777 | F189: 108.0265966 | G189: 0.0497 | H189: 0.582 | I189: 0.676 | J189: 0.1235220423 | K189: 0.09582768197 | L189: 0.02018766228
A191: Source: http://www.epa.gov/cleanenergy/energy-resources/egrid/index.html
A192: 1 - eGrid 2014 Data File V2 - SRL14 tab - https://www.epa.gov/energy/emissions-generation-resource-integrated-database-egrid
A193: 2 - Table 3.5 - Grid Loss Factors https://www.epa.gov/sites/production/files/2017-02/documents/egrid2014_technicalsupportdocument_v2.pdf
A194: 3 - http://www.ucsusa.org/sites/default/files/attach/2015/11/Cleaner-Cars-from-Cradle-to-Grave-full-report.pdf
A195: 4 - National Average Annual Emissions Trends - https://www.epa.gov/air-emissions-inventories/air-pollutant-emissions-trends-data
A197: Gasoline Emissions
A198: Pollutant | B198: Car Tailpipe Emissions | C198: Car Lifecycle Emissions | D198: Pickup Tailpipe Emissions | E198: Pickup Lifecycle Emissions | F198: SUV Tailpipe Emissions | G198: SUV Lifecycle Emissions
A199: CO2 ( g/MJ) | B199: 71.67 | C199: 90.01 | D199: 70.59 | E199: 88.93 | F199: 71.64 | G199: 89.98
A200: GHG-100 (g/MJ) | B200: 68.59 | C200: 90.24 | D200: 69.95 | E200: 91.59 | F200: 68.59 | G200: 90.24
A201: Nox (mg/MJ) | B201: 26.45 | C201: 67.84 | D201: 86.16 | E201: =0.13*1000 -> 130 | F201: 33.79 | G201: 75.18
A202: Sox (mg/MJ) | B202: 0 | C202: 35.49 | D202: 0 | E202: 35.49 | F202: 0 | G202: 35.49
A203: PM10 (mg/MJ) | B203: 1.19 | C203: 4.87 | D203: 1.97 | E203: 5.66 | F203: 1.39 | G203: 5.07
A204: PM2.5 (mg/MJ) | B204: 1.05 | C204: 3.5 | D204: 1.75 | E204: 4.19 | F204: 1.23 | G204: 3.68
A205: VOC (mg/MJ) | B205: 29.66 | C205: 57.99 | D205: 30.32 | E205: 58.66 | F205: 24.5 | G205: 52.83
A207: Source: https://greet.es.anl.gov
A209: Other Default Values and Scalars
A210: Factor | B210: Value | C210: Source
A211: % of Annual Miles City Driving | B211: 0.55 | C211: https://www.epa.gov/fueleconomy/plug-hybrid-electric-vehicle-learn-more-about-new-label
A212: Carbon Price | B212: 36 | C212: https://www.epa.gov/climatechange/social-cost-carbon
A213: kWh per Gasoline Gallon | B213: 33.7 | C213: *EPA number
A214: KWh per MJ | B214: 0.277778 | C214: kWh / MJ
A215: MJ per Gasoline Gallon | B215: =B213/B214 -> 121.3199029 | C215: *EPA uses 121 MJ/gallon
A216: Miligram per Pound | B216: 453592
A217: Grab per Pound | B217: =B216/1000 -> 453.592
... 2 more rows

Sheet Zipcode Data (hidden)
A1: Zipcode Data - EV Fleet Procurement Analysis Tool
A3: Zip Code Lookup Table
A4: PostalCodeStandardized | B4: City | C4: StateCode | D4: State Name | E4: PADD Region | F4: Primary eGRID Subregion
A5: 00705 | B5: AIBONITO | C5: PR | D5: Puerto Rico
A6: 00610 | B6: ANASCO | C6: PR | D6: Puerto Rico
A7: 00611 | B7: ANGELES | C7: PR | D7: Puerto Rico
A8: 00612 | B8: ARECIBO | C8: PR | D8: Puerto Rico
A9: 00601 | B9: ADJUNTAS | C9: PR | D9: Puerto Rico
A10: 00631 | B10: CASTANER | C10: PR | D10: Puerto Rico
A11: 00602 | B11: AGUADA | C11: PR | D11: Puerto Rico
A12: 00603 | B12: AGUADILLA | C12: PR | D12: Puerto Rico
A13: 00604 | B13: AGUADILLA | C13: PR | D13: Puerto Rico
A14: 00605 | B14: AGUADILLA | C14: PR | D14: Puerto Rico
A15: 00703 | B15: AGUAS BUENAS | C15: PR | D15: Puerto Rico
A16: 00704 | B16: AGUIRRE | C16: PR | D16: Puerto Rico
A17: 07675 | B17: WESTWOOD | C17: NJ | D17: New Jersey | E17: 1b | F17: NYUP
A18: 07677 | B18: WOODCLIFF LAKE | C18: NJ | D18: New Jersey | E18: 1b | F18: RFCE
A19: 07885 | B19: WHARTON | C19: NJ | D19: New Jersey | E19: 1b | F19: RFCE
A20: 07981 | B20: WHIPPANY | C20: NJ | D20: New Jersey | E20: 1b | F20: RFCE
A21: 07999 | B21: WHIPPANY | C21: NJ | D21: New Jersey | E21: 1b | F21: RFCE
A22: 08888 | B22: WHITEHOUSE | C22: NJ | D22: New Jersey | E22: 1b | F22: RFCE
A23: 08889 | B23: WHITEHOUSE STATION | C23: NJ | D23: New Jersey | E23: 1b | F23: RFCE
A24: 07095 | B24: WOODBRIDGE | C24: NJ | D24: New Jersey | E24: 1b | F24: RFCE
A25: 07481 | B25: WYCKOFF | C25: NJ | D25: New Jersey | E25: 1b | F25: NYUP
A26: 10451 | B26: BRONX | C26: NY | D26: New York | E26: 1b | F26: NYCW
A27: 10452 | B27: BRONX | C27: NY | D27: New York | E27: 1b | F27: NYCW
A28: 10453 | B28: BRONX | C28: NY | D28: New York | E28: 1b | F28: NYCW
A29: 10454 | B29: BRONX | C29: NY | D29: New York | E29: 1b | F29: NYCW
A30: 10455 | B30: BRONX | C30: NY | D30: New York | E30: 1b | F30: NYCW
A31: 10456 | B31: BRONX | C31: NY | D31: New York | E31: 1b | F31: NYCW
A32: 10457 | B32: BRONX | C32: NY | D32: New York | E32: 1b | F32: NYCW
A33: 10458 | B33: BRONX | C33: NY | D33: New York | E33: 1b | F33: NYCW
A34: 10459 | B34: BRONX | C34: NY | D34: New York | E34: 1b | F34: NYCW
A35: 10460 | B35: BRONX | C35: NY | D35: New York | E35: 1b | F35: NYCW
A36: 10461 | B36: BRONX | C36: NY | D36: New York | E36: 1b | F36: NYCW
A37: 10462 | B37: BRONX | C37: NY | D37: New York | E37: 1b | F37: NYCW
A38: 10463 | B38: BRONX | C38: NY | D38: New York | E38: 1b | F38: NYCW
A39: 10464 | B39: BRONX | C39: NY | D39: New York | E39: 1b | F39: NYCW
A40: 10465 | B40: BRONX | C40: NY | D40: New York | E40: 1b | F40: NYCW
A41: 10466 | B41: BRONX | C41: NY | D41: New York | E41: 1b | F41: NYCW
A42: 10467 | B42: BRONX | C42: NY | D42: New York | E42: 1b | F42: NYCW
A43: 10468 | B43: BRONX | C43: NY | D43: New York | E43: 1b | F43: NYCW
A44: 10469 | B44: BRONX | C44: NY | D44: New York | E44: 1b | F44: NYCW
A45: 10470 | B45: BRONX | C45: NY | D45: New York | E45: 1b | F45: NYCW
A46: 10471 | B46: BRONX | C46: NY | D46: New York | E46: 1b | F46: NYCW
A47: 10472 | B47: BRONX | C47: NY | D47: New York | E47: 1b | F47: NYCW
A48: 10473 | B48: BRONX | C48: NY | D48: New York | E48: 1b | F48: NYCW
A49: 10474 | B49: BRONX | C49: NY | D49: New York | E49: 1b | F49: NYCW
A50: 10475 | B50: BRONX | C50: NY | D50: New York | E50: 1b | F50: NYCW
A51: 10499 | B51: BRONX | C51: NY | D51: New York | E51: 1b | F51: NYCW
A52: 10001 | B52: NEW YORK | C52: NY | D52: New York | E52: 1b | F52: NYCW
A53: 10002 | B53: NEW YORK | C53: NY | D53: New York | E53: 1b | F53: NYCW
A54: 10003 | B54: NEW YORK | C54: NY | D54: New York | E54: 1b | F54: NYCW
A55: 10004 | B55: NEW YORK | C55: NY | D55: New York | E55: 1b | F55: NYCW
A56: 10005 | B56: NEW YORK | C56: NY | D56: New York | E56: 1b | F56: NYCW
A57: 10006 | B57: NEW YORK | C57: NY | D57: New York | E57: 1b | F57: NYCW
A58: 10007 | B58: NEW YORK | C58: NY | D58: New York | E58: 1b | F58: NYCW
A59: 10008 | B59: NEW YORK | C59: NY | D59: New York | E59: 1b | F59: NYCW
A60: 10009 | B60: NEW YORK | C60: NY | D60: New York | E60: 1b | F60: NYCW
A61: 10010 | B61: NEW YORK | C61: NY | D61: New York | E61: 1b | F61: NYCW
A62: 10011 | B62: NEW YORK | C62: NY | D62: New York | E62: 1b | F62: NYCW
A63: 10012 | B63: NEW YORK | C63: NY | D63: New York | E63: 1b | F63: NYCW
A64: 10013 | B64: NEW YORK | C64: NY | D64: New York | E64: 1b | F64: NYCW
A65: 10014 | B65: NEW YORK | C65: NY | D65: New York | E65: 1b | F65: NYCW
A66: 10016 | B66: NEW YORK | C66: NY | D66: New York | E66: 1b | F66: NYCW
A67: 10017 | B67: NEW YORK | C67: NY | D67: New York | E67: 1b | F67: NYCW
A68: 10018 | B68: NEW YORK | C68: NY | D68: New York | E68: 1b | F68: NYCW
A69: 10019 | B69: NEW YORK | C69: NY | D69: New York | E69: 1b | F69: NYCW
A70: 10020 | B70: NEW YORK | C70: NY | D70: New York | E70: 1b | F70: NYCW
A71: 10021 | B71: NEW YORK | C71: NY | D71: New York | E71: 1b | F71: NYCW
A72: 10022 | B72: NEW YORK | C72: NY | D72: New York | E72: 1b | F72: NYCW
A73: 10023 | B73: NEW YORK | C73: NY | D73: New York | E73: 1b | F73: NYCW
A74: 10024 | B74: NEW YORK | C74: NY | D74: New York | E74: 1b | F74: NYCW
A75: 10025 | B75: NEW YORK | C75: NY | D75: New York | E75: 1b | F75: NYCW
A76: 10026 | B76: NEW YORK | C76: NY | D76: New York | E76: 1b | F76: NYCW
A77: 10027 | B77: NEW YORK | C77: NY | D77: New York | E77: 1b | F77: NYCW
A78: 10028 | B78: NEW YORK | C78: NY | D78: New York | E78: 1b | F78: NYCW
A79: 10029 | B79: NEW YORK | C79: NY | D79: New York | E79: 1b | F79: NYCW
A80: 10030 | B80: NEW YORK | C80: NY | D80: New York | E80: 1b | F80: NYCW
A81: 10031 | B81: NEW YORK | C81: NY | D81: New York | E81: 1b | F81: NYCW
A82: 10032 | B82: NEW YORK | C82: NY | D82: New York | E82: 1b | F82: NYCW
A83: 10033 | B83: NEW YORK | C83: NY | D83: New York | E83: 1b | F83: NYCW
A84: 10034 | B84: NEW YORK | C84: NY | D84: New York | E84: 1b | F84: NYCW
A85: 00613 | B85: ARECIBO | C85: PR | D85: Puerto Rico
A86: 00614 | B86: ARECIBO | C86: PR | D86: Puerto Rico
A87: 00714 | B87: ARROYO | C87: PR | D87: Puerto Rico
A88: 00616 | B88: BAJADERO | C88: PR | D88: Puerto Rico
A89: 00617 | B89: BARCELONETA | C89: PR | D89: Puerto Rico
A90: 00794 | B90: BARRANQUITAS | C90: PR | D90: Puerto Rico
A91: 00622 | B91: BOQUERON | C91: PR | D91: Puerto Rico
A92: 00623 | B92: CABO ROJO | C92: PR | D92: Puerto Rico
A93: 00627 | B93: CAMUY | C93: PR | D93: Puerto Rico
A94: 00729 | B94: CANOVANAS | C94: PR | D94: Puerto Rico
A95: 00979 | B95: CAROLINA | C95: PR | D95: Puerto Rico
A96: 00981 | B96: CAROLINA | C96: PR | D96: Puerto Rico
A97: 00982 | B97: CAROLINA | C97: PR | D97: Puerto Rico
A98: 00983 | B98: CAROLINA | C98: PR | D98: Puerto Rico
A99: 00984 | B99: CAROLINA | C99: PR | D99: Puerto Rico
A100: 00985 | B100: CAROLINA | C100: PR | D100: Puerto Rico
A101: 00986 | B101: CAROLINA | C101: PR | D101: Puerto Rico
A102: 00987 | B102: CAROLINA | C102: PR | D102: Puerto Rico
A103: 00988 | B103: CAROLINA | C103: PR | D103: Puerto Rico
A104: 00736 | B104: CAYEY | C104: PR | D104: Puerto Rico
A105: 00739 | B105: CIDRA | C105: PR | D105: Puerto Rico
A106: 00769 | B106: COAMO | C106: PR | D106: Puerto Rico
A107: 00782 | B107: COMERIO | C107: PR | D107: Puerto Rico
A108: 00783 | B108: COROZAL | C108: PR | D108: Puerto Rico
A109: 09848 | B109: APO | C109: AE | D109: U.S. Armed Forces – Europe
A110: 10200 | B110: NEW YORK | C110: NY | D110: New York | E110: 1b | F110: NYCW
A111: 09323 | B111: APO | C111: AE | D111: U.S. Armed Forces – Europe
A112: 00659 | B112: HATILLO | C112: PR | D112: Puerto Rico
A113: 00660 | B113: HORMIGUEROS | C113: PR | D113: Puerto Rico
A114: 00791 | B114: HUMACAO | C114: PR | D114: Puerto Rico
A115: 00792 | B115: HUMACAO | C115: PR | D115: Puerto Rico
A116: 00662 | B116: ISABELA | C116: PR | D116: Puerto Rico
A117: 00664 | B117: JAYUYA | C117: PR | D117: Puerto Rico
A118: 00795 | B118: JUANA DIAZ | C118: PR | D118: Puerto Rico
A119: 00777 | B119: JUNCOS | C119: PR | D119: Puerto Rico
A120: 00728 | B120: PONCE | C120: PR | D120: Puerto Rico
A121: 00725 | B121: CAGUAS | C121: PR | D121: Puerto Rico
A122: 00726 | B122: CAGUAS | C122: PR | D122: Puerto Rico
A123: 00727 | B123: CAGUAS | C123: PR | D123: Puerto Rico
A124: 00737 | B124: CAYEY | C124: PR | D124: Puerto Rico
A125: 00735 | B125: CEIBA | C125: PR | D125: Puerto Rico
A126: 00742 | B126: ROOSEVELT ROADS | C126: PR | D126: Puerto Rico
A127: 00638 | B127: CIALES | C127: PR | D127: Puerto Rico
A128: 00780 | B128: COTO LAUREL | C128: PR | D128: Puerto Rico
A129: 00775 | B129: CULEBRA | C129: PR | D129: Puerto Rico
A130: 00646 | B130: DORADO | C130: PR | D130: Puerto Rico
A131: 00647 | B131: ENSENADA | C131: PR | D131: Puerto Rico
A132: 00738 | B132: FAJARDO | C132: PR | D132: Puerto Rico
A133: 00650 | B133: FLORIDA | C133: PR | D133: Puerto Rico
A134: 00652 | B134: GARROCHALES | C134: PR | D134: Puerto Rico
A135: 00653 | B135: GUANICA | C135: PR | D135: Puerto Rico
A136: 00784 | B136: GUAYAMA | C136: PR | D136: Puerto Rico
A137: 00785 | B137: GUAYAMA | C137: PR | D137: Puerto Rico
A138: 00965 | B138: GUAYNABO | C138: PR | D138: Puerto Rico
A139: 00966 | B139: GUAYNABO | C139: PR | D139: Puerto Rico
A140: 00968 | B140: GUAYNABO | C140: PR | D140: Puerto Rico
A141: 00969 | B141: GUAYNABO | C141: PR | D141: Puerto Rico
A142: 00970 | B142: GUAYNABO | C142: PR | D142: Puerto Rico
A143: 00971 | B143: GUAYNABO | C143: PR | D143: Puerto Rico
A144: 00778 | B144: GURABO | C144: PR | D144: Puerto Rico
A145: 00667 | B145: LAJAS | C145: PR | D145: Puerto Rico
A146: 00786 | B146: LA PLATA | C146: PR | D146: Puerto Rico
A147: 00669 | B147: LARES | C147: PR | D147: Puerto Rico
A148: 00670 | B148: LAS MARIAS | C148: PR | D148: Puerto Rico
A149: 00771 | B149: LAS PIEDRAS | C149: PR | D149: Puerto Rico
A150: 00931 | B150: SAN JUAN | C150: PR | D150: Puerto Rico
A151: 00933 | B151: SAN JUAN | C151: PR | D151: Puerto Rico
A152: 00934 | B152: FORT BUCHANAN | C152: PR | D152: Puerto Rico
A153: 00935 | B153: SAN JUAN | C153: PR | D153: Puerto Rico
A154: 00936 | B154: SAN JUAN | C154: PR | D154: Puerto Rico
A155: 00772 | B155: LOIZA | C155: PR | D155: Puerto Rico
A156: 00773 | B156: LUQUILLO | C156: PR | D156: Puerto Rico
A157: 00674 | B157: MANATI | C157: PR | D157: Puerto Rico
A158: 00606 | B158: MARICAO | C158: PR | D158: Puerto Rico
A159: 00707 | B159: MAUNABO | C159: PR | D159: Puerto Rico
A160: 00636 | B160: ROSARIO | C160: PR | D160: Puerto Rico
A161: 00680 | B161: MAYAGUEZ | C161: PR | D161: Puerto Rico
A162: 00681 | B162: MAYAGUEZ | C162: PR | D162: Puerto Rico
A163: 00682 | B163: MAYAGUEZ | C163: PR | D163: Puerto Rico
A164: 00715 | B164: MERCEDITA | C164: PR | D164: Puerto Rico
A165: 00676 | B165: MOCA | C165: PR | D165: Puerto Rico
A166: 00687 | B166: MOROVIS | C166: PR | D166: Puerto Rico
A167: 00718 | B167: NAGUABO | C167: PR | D167: Puerto Rico
A168: 00719 | B168: NARANJITO | C168: PR | D168: Puerto Rico
A169: 00720 | B169: OROCOVIS | C169: PR | D169: Puerto Rico
A170: 00723 | B170: PATILLAS | C170: PR | D170: Puerto Rico
A171: 00624 | B171: PENUELAS | C171: PR | D171: Puerto Rico
A172: 00716 | B172: PONCE | C172: PR | D172: Puerto Rico
A173: 00717 | B173: PONCE | C173: PR | D173: Puerto Rico
A174: 00730 | B174: PONCE | C174: PR | D174: Puerto Rico
A175: 00731 | B175: PONCE | C175: PR | D175: Puerto Rico
A176: 00732 | B176: PONCE | C176: PR | D176: Puerto Rico
A177: 00733 | B177: PONCE | C177: PR | D177: Puerto Rico
A178: 00734 | B178: PONCE | C178: PR | D178: Puerto Rico
A179: 00740 | B179: PUERTO REAL | C179: PR | D179: Puerto Rico
A180: 00741 | B180: PUNTA SANTIAGO | C180: PR | D180: Puerto Rico
A181: 00678 | B181: QUEBRADILLAS | C181: PR | D181: Puerto Rico
A182: 00677 | B182: RINCON | C182: PR | D182: Puerto Rico
A183: 00744 | B183: RIO BLANCO | C183: PR | D183: Puerto Rico
A184: 00721 | B184: PALMER | C184: PR | D184: Puerto Rico
A185: 00745 | B185: RIO GRANDE | C185: PR | D185: Puerto Rico
A186: 00637 | B186: SABANA GRANDE | C186: PR | D186: Puerto Rico
A187: 00688 | B187: SABANA HOYOS | C187: PR | D187: Puerto Rico
A188: 00952 | B188: SABANA SECA | C188: PR | D188: Puerto Rico
A189: 00751 | B189: SALINAS | C189: PR | D189: Puerto Rico
A190: 00690 | B190: SAN ANTONIO | C190: PR | D190: Puerto Rico
A191: 00683 | B191: SAN GERMAN | C191: PR | D191: Puerto Rico
A192: 00901 | B192: SAN JUAN | C192: PR | D192: Puerto Rico
A193: 00902 | B193: SAN JUAN | C193: PR | D193: Puerto Rico
A194: 00906 | B194: SAN JUAN | C194: PR | D194: Puerto Rico
A195: 00907 | B195: SAN JUAN | C195: PR | D195: Puerto Rico
A196: 00908 | B196: SAN JUAN | C196: PR | D196: Puerto Rico
A197: 00909 | B197: SAN JUAN | C197: PR | D197: Puerto Rico
A198: 00910 | B198: SAN JUAN | C198: PR | D198: Puerto Rico
A199: 00911 | B199: SAN JUAN | C199: PR | D199: Puerto Rico
A200: 00912 | B200: SAN JUAN | C200: PR | D200: Puerto Rico
A201: 00913 | B201: SAN JUAN | C201: PR | D201: Puerto Rico
... 4299 more rows

Sheet FMV Regression (hidden)
A1: FMV Regression Data - EV Fleet Procurement Analysis Tool
A3: BEV | H3: R-sq = .96
B4: Coefficient | C4: Standard Error | D4: t | E4: P>|t| | F4: 95% confidence interval
A5: age | B5: -1191.05 | C5: 881.9949 | D5: -1.35 | E5: 0.179 | F5: -2935.72 | G5: 553.6236
A6: agesq | B6: -131.283 | C6: 163.1746 | D6: -0.8 | E6: 0.423 | F6: -454.058 | G6: 191.4928
A7: msrp | B7: 0.810772 | C7: 0.020652 | D7: 39.26 | E7: 0 | F7: 0.76992 | G7: 0.851624
A8: all_elec_range | B8: 0
A9: mileage | B9: -0.18229 | C9: 0.050379 | D9: -3.62 | E9: 0 | F9: -0.28195 | G9: -0.08264
A10: constant | B10: 0
B11: INTERPRETATION: 1 unit change in these variables (age, age-squared, etc) results in a change in FMV price of coefficient
A13: PHEV | H13: R-sq = 0.98
B14: Coefficient | C14: Standard Error | D14: t | E14: P>|t| | F14: 95% confidence interval
A15: age | B15: -3764 | C15: 294.8351 | D15: -12.06 | E15: 0 | F15: -4138.964 | G15: -2972.855
A16: agesq | B16: 433 | C16: 73.93216 | D16: 6.01 | E16: 0 | F16: 298.2235 | G16: 590.6342
A17: msrp | B17: 0.75 | C17: 0.8015684 | D17: -4.33 | E17: 0 | F17: -5.052855 | G17: -1.882555
A18: all_elec_range | B18: 0 | C18: 86.58862 | D18: 3.8 | E18: 0 | F18: 157.6612 | G18: 500.1297
A19: mileage | B19: -0.076 | C19: 0.0115792 | D19: -6.25 | E19: 0 | F19: -0.0952357 | G19: -0.0494383
A20: _cons | B20: 0
B21: INTERPRETATION: 1 unit change in these variables (age, age-squared, etc) results in a change in FMV price of coefficient
A23: Gasoline (with MPG) | H23: R-sq = 0.98
B24: Coefficient | C24: Standard Error | D24: t | E24: P>|t| | F24: 95% confidence interval
A25: age | B25: -1013.43 | C25: 354.8791 | D25: -2.86 | E25: 0.005 | F25: -1713.94 | G25: -312.919
A26: agesq | B26: -158.85 | C26: 95.22333 | D26: -1.67 | E26: 0.097 | F26: -346.814 | G26: 29.1147
A27: msrp | B27: 0.905763 | C27: 0.017011 | D27: 53.25 | E27: 0 | F27: 0.872184 | G27: 0.939342
A28: mpg | B28: 0
A29: mileage | B29: -0.0093 | C29: 0.009258 | D29: -1 | E29: 0.317 | F29: -0.02757 | G29: 0.008974
A30: _cons | B30: 0
B31: INTERPRETATION: 1 unit change in these variables (age, age-squared, etc) results in a change in FMV price of coefficient

Sheet Sensitivity Tables (hidden)
A1: Sensitivity Data Tables - EV Fleet Procurement Analysis Tool
A5: Sensitivity Analysis #01
A6: =VLOOKUP(_xlfn.NUMBERVALUE(RIGHT(A5, 2)), Sensitivity_Summary, 2,FALSE) -> Electricity Cost ($/kWh)
B7: =Base_V1_Type_Ex&" (Baseline)" -> 2017 Chevrolet Cruze ICE (Baseline) | E7: =Comp_V1_Type_Ex&" (Comparison)" -> 2017 Chevrolet Bolt EV BEV (Comparison)
A8: Scenario | B8: Nominal Cost per Mile | C8: NPV Cost / Mile | D8: Lifecycle CO2 (lbs/mile) | E8: Nominal Cost per Mile | F8: NPV Cost / Mile | G8: Lifecycle CO2 (lbs/mile)
A9: =INDIRECT(VLOOKUP(_xlfn.NUMBERVALUE(RIGHT(A5,2)),Sensitivity_Summary,7,FALSE)) -> 0.1048 | B9: =_xlfn.NUMBERVALUE('Results Tables'!$C$29) -> 0.4747057288 | C9: =Results!$M$16 -> 0.4747057288 | D9: ='Environmental Model'!$B$18 -> 0.7122042101 | E9: =_xlfn.NUMBERVALUE('Results Tables'!$D$29) -> 0.4372135143 | F9: =Results!$N$16 -> 0.4372135143 | G9: ='Environmental Model'!$C$18 -> 0.3739377862
A10: =sensitivity_01_value_min -> 0 | B10: 0.4747057288 | C10: 0.4747057288 | D10: 0.7122042101 | E10: 0.4055648479 | F10: 0.4055648479 | G10: 0.3739377862
A11: =A12-($A$19-$A$10)/9 -> 0.2222222222 | B11: 0.4747057288 | C11: 0.4747057288 | D11: 0.7122042101 | E11: 0.4726739794 | F11: 0.4726739794 | G11: 0.3739377862
A12: =A13-($A$19-$A$10)/9 -> 0.4444444444 | B12: 0.4747057288 | C12: 0.4747057288 | D12: 0.7122042101 | E12: 0.5397831109 | F12: 0.5397831109 | G12: 0.3739377862
A13: 0.6666666667 | B13: 0.4747057288 | C13: 0.4747057288 | D13: 0.7122042101 | E13: 0.6068922424 | F13: 0.6068922424 | G13: 0.3739377862
A14: 0.8888888889 | B14: 0.4747057288 | C14: 0.4747057288 | D14: 0.7122042101 | E14: 0.6740013739 | F14: 0.6740013739 | G14: 0.3739377862
A15: 1.111111111 | B15: 0.4747057288 | C15: 0.4747057288 | D15: 0.7122042101 | E15: 0.7411105053 | F15: 0.7411105053 | G15: 0.3739377862
A16: 1.333333333 | B16: 0.4747057288 | C16: 0.4747057288 | D16: 0.7122042101 | E16: 0.8082196368 | F16: 0.8082196368 | G16: 0.3739377862
A17: 1.555555556 | B17: 0.4747057288 | C17: 0.4747057288 | D17: 0.7122042101 | E17: 0.8753287683 | F17: 0.8753287683 | G17: 0.3739377862
A18: 1.777777778 | B18: 0.4747057288 | C18: 0.4747057288 | D18: 0.7122042101 | E18: 0.9424378998 | F18: 0.9424378998 | G18: 0.3739377862
A19: =sensitivity_01_value_max -> 2 | B19: 0.4747057288 | C19: 0.4747057288 | D19: 0.7122042101 | E19: 1.009547031 | F19: 1.009547031 | G19: 0.3739377862
A21: Sensitivity Analysis #02
A22: =VLOOKUP(_xlfn.NUMBERVALUE(RIGHT(A21, 2)), Sensitivity_Summary, 2,FALSE) -> Cost of Carbon ($/Ton)
B23: =Base_V1_Type_Ex&" (Baseline)" -> 2017 Chevrolet Cruze ICE (Baseline) | E23: =Comp_V1_Type_Ex&" (Comparison)" -> 2017 Chevrolet Bolt EV BEV (Comparison)
A24: Scenario | B24: Nominal Cost per Mile | C24: NPV Cost / Mile | D24: Lifecycle CO2 (lbs/mile) | E24: Nominal Cost per Mile | F24: NPV Cost / Mile | G24: Lifecycle CO2 (lbs/mile)
A25: =INDIRECT(VLOOKUP(_xlfn.NUMBERVALUE(RIGHT(A21,2)),Sensitivity_Summary,7,FALSE)) -> 0 | B25: =_xlfn.NUMBERVALUE('Results Tables'!$C$29) -> 0.4747057288 | C25: =Results!$M$16 -> 0.4747057288 | D25: ='Environmental Model'!$B$18 -> 0.7122042101 | E25: =_xlfn.NUMBERVALUE('Results Tables'!$D$29) -> 0.4372135143 | F25: =Results!$N$16 -> 0.4372135143 | G25: ='Environmental Model'!$C$18 -> 0.3739377862
A26: =sensitivity_02_value_min -> 0 | B26: 0.4747057288 | C26: 0.4747057288 | D26: 0.7122042101 | E26: 0.4372135143 | F26: 0.4372135143 | G26: 0.3739377862
A27: =A28-($A$35-$A$26)/9 -> 16.66666667 | B27: 0.4800899085 | C27: 0.4800899085 | D27: 0.7122042101 | E27: 0.4400404398 | F27: 0.4400404398 | G27: 0.3739377862
A28: =A29-($A$35-$A$26)/9 -> 33.33333333 | B28: 0.4854740881 | C28: 0.4854740881 | D28: 0.7122042101 | E28: 0.4428673653 | F28: 0.4428673653 | G28: 0.3739377862
A29: 50 | B29: 0.4908582678 | C29: 0.4908582678 | D29: 0.7122042101 | E29: 0.4456942907 | F29: 0.4456942907 | G29: 0.3739377862
A30: 66.66666667 | B30: 0.4962424475 | C30: 0.4962424475 | D30: 0.7122042101 | E30: 0.4485212162 | F30: 0.4485212162 | G30: 0.3739377862
A31: 83.33333333 | B31: 0.5016266271 | C31: 0.5016266271 | D31: 0.7122042101 | E31: 0.4513481417 | F31: 0.4513481417 | G31: 0.3739377862
A32: 100 | B32: 0.5070108068 | C32: 0.5070108068 | D32: 0.7122042101 | E32: 0.4541750672 | F32: 0.4541750672 | G32: 0.3739377862
A33: 116.6666667 | B33: 0.5123949864 | C33: 0.5123949864 | D33: 0.7122042101 | E33: 0.4570019926 | F33: 0.4570019926 | G33: 0.3739377862
A34: 133.3333333 | B34: 0.5177791661 | C34: 0.5177791661 | D34: 0.7122042101 | E34: 0.4598289181 | F34: 0.4598289181 | G34: 0.3739377862
A35: =sensitivity_02_value_max -> 150 | B35: 0.5231633458 | C35: 0.5231633458 | D35: 0.7122042101 | E35: 0.4626558436 | F35: 0.4626558436 | G35: 0.3739377862
A37: Sensitivity Analysis #03
A38: =VLOOKUP(_xlfn.NUMBERVALUE(RIGHT(A37, 2)), Sensitivity_Summary, 2,FALSE) -> Gasoline Cost ($/Gallon)
B39: =Base_V1_Type_Ex&" (Baseline)" -> 2017 Chevrolet Cruze ICE (Baseline) | E39: =Comp_V1_Type_Ex&" (Comparison)" -> 2017 Chevrolet Bolt EV BEV (Comparison)
A40: Scenario | B40: Nominal Cost per Mile | C40: NPV Cost / Mile | D40: Lifecycle CO2 (lbs/mile) | E40: Nominal Cost per Mile | F40: NPV Cost / Mile | G40: Lifecycle CO2 (lbs/mile)
A41: =INDIRECT(VLOOKUP(_xlfn.NUMBERVALUE(RIGHT(A37,2)),Sensitivity_Summary,7,FALSE)) -> 2.417 | B41: =_xlfn.NUMBERVALUE('Results Tables'!$C$29) -> 0.4747057288 | C41: =Results!$M$16 -> 0.4747057288 | D41: ='Environmental Model'!$B$18 -> 0.7122042101 | E41: =_xlfn.NUMBERVALUE('Results Tables'!$D$29) -> 0.4372135143 | F41: =Results!$N$16 -> 0.4372135143 | G41: ='Environmental Model'!$C$18 -> 0.3739377862
A42: =sensitivity_03_value_min -> 0 | B42: 0.3857999608 | C42: 0.3857999608 | D42: 0.7122042101 | E42: 0.4372135143 | F42: 0.4372135143 | G42: 0.3739377862
A43: =A44-($A$51-$A$42)/9 -> 1.111111111 | B43: 0.4266705386 | C43: 0.4266705386 | D43: 0.7122042101 | E43: 0.4372135143 | F43: 0.4372135143 | G43: 0.3739377862
A44: =A45-($A$51-$A$42)/9 -> 2.222222222 | B44: 0.4675411165 | C44: 0.4675411165 | D44: 0.7122042101 | E44: 0.4372135143 | F44: 0.4372135143 | G44: 0.3739377862
A45: 3.333333333 | B45: 0.5084116944 | C45: 0.5084116944 | D45: 0.7122042101 | E45: 0.4372135143 | F45: 0.4372135143 | G45: 0.3739377862
A46: 4.444444444 | B46: 0.5492822722 | C46: 0.5492822722 | D46: 0.7122042101 | E46: 0.4372135143 | F46: 0.4372135143 | G46: 0.3739377862
A47: 5.555555556 | B47: 0.5901528501 | C47: 0.5901528501 | D47: 0.7122042101 | E47: 0.4372135143 | F47: 0.4372135143 | G47: 0.3739377862
A48: 6.666666667 | B48: 0.631023428 | C48: 0.631023428 | D48: 0.7122042101 | E48: 0.4372135143 | F48: 0.4372135143 | G48: 0.3739377862
A49: 7.777777778 | B49: 0.6718940058 | C49: 0.6718940058 | D49: 0.7122042101 | E49: 0.4372135143 | F49: 0.4372135143 | G49: 0.3739377862
A50: 8.888888889 | B50: 0.7127645837 | C50: 0.7127645837 | D50: 0.7122042101 | E50: 0.4372135143 | F50: 0.4372135143 | G50: 0.3739377862
A51: =sensitivity_03_value_max -> 10 | B51: 0.7536351616 | C51: 0.7536351616 | D51: 0.7122042101 | E51: 0.4372135143 | F51: 0.4372135143 | G51: 0.3739377862
A53: Sensitivity Analysis #04
A54: =VLOOKUP(_xlfn.NUMBERVALUE(RIGHT(A53, 2)), Sensitivity_Summary, 2,FALSE) -> Inflation Rate (Excluding Fuel) (%/Year)
B55: =Base_V1_Type_Ex&" (Baseline)" -> 2017 Chevrolet Cruze ICE (Baseline) | E55: =Comp_V1_Type_Ex&" (Comparison)" -> 2017 Chevrolet Bolt EV BEV (Comparison)
A56: Scenario | B56: Nominal Cost per Mile | C56: NPV Cost / Mile | D56: Lifecycle CO2 (lbs/mile) | E56: Nominal Cost per Mile | F56: NPV Cost / Mile | G56: Lifecycle CO2 (lbs/mile)
A57: =INDIRECT(VLOOKUP(_xlfn.NUMBERVALUE(RIGHT(A53,2)),Sensitivity_Summary,7,FALSE)) -> 0.02 | B57: =_xlfn.NUMBERVALUE('Results Tables'!$C$29) -> 0.4747057288 | C57: =Results!$M$16 -> 0.4747057288 | D57: ='Environmental Model'!$B$18 -> 0.7122042101 | E57: =_xlfn.NUMBERVALUE('Results Tables'!$D$29) -> 0.4372135143 | F57: =Results!$N$16 -> 0.4372135143 | G57: ='Environmental Model'!$C$18 -> 0.3739377862
A58: =sensitivity_04_value_min -> 0 | B58: 0.4654788178 | C58: 0.4654788178 | D58: 0.7122042101 | E58: 0.4308629253 | F58: 0.4308629253 | G58: 0.3739377862
A59: =A60-($A$67-$A$58)/9 -> 0.01111111111 | B59: 0.4705268125 | C59: 0.4705268125 | D59: 0.7122042101 | E59: 0.4343377332 | F59: 0.4343377332 | G59: 0.3739377862
A60: =A61-($A$67-$A$58)/9 -> 0.02222222222 | B60: 0.4757704183 | C60: 0.4757704183 | D60: 0.7122042101 | E60: 0.437946085 | F60: 0.437946085 | G60: 0.3739377862
A61: 0.03333333333 | B61: 0.4812163439 | C61: 0.4812163439 | D61: 0.7122042101 | E61: 0.441692534 | F61: 0.441692534 | G61: 0.3739377862
A62: 0.04444444444 | B62: 0.4868714792 | C62: 0.4868714792 | D62: 0.7122042101 | E62: 0.445581756 | F62: 0.445581756 | G62: 0.3739377862
A63: 0.05555555556 | B63: 0.4927428981 | C63: 0.4927428981 | D63: 0.7122042101 | E63: 0.4496185515 | F63: 0.4496185515 | G63: 0.3739377862
A64: 0.06666666667 | B64: 0.4988378622 | C64: 0.4988378622 | D64: 0.7122042101 | E64: 0.4538078477 | F64: 0.4538078477 | G64: 0.3739377862
A65: 0.07777777778 | B65: 0.505163824 | C65: 0.505163824 | D65: 0.7122042101 | E65: 0.4581547009 | F65: 0.4581547009 | G65: 0.3739377862
A66: 0.08888888889 | B66: 0.5117284304 | C66: 0.5117284304 | D66: 0.7122042101 | E66: 0.462664299 | F66: 0.462664299 | G66: 0.3739377862
A67: =sensitivity_04_value_max -> 0.1 | B67: 0.5185395263 | C67: 0.5185395263 | D67: 0.7122042101 | E67: 0.4673419635 | F67: 0.4673419635 | G67: 0.3739377862

Sheet Lists_Hidden (hidden)
A1: Lists (Hidden Tab) - EV Fleet Procurement Analysis Tool
A3: Ownership Structures | B3: Pricing Approaches | C3: Input Fields
A4: Purchase (Cash) | B4: MSRP Less Discounts | C4: Input Field Name | D4: Field Range Name
A5: Purchase (Loan) | B5: Dealer Cost Plus Markup | C5: =IF(IFERROR(FIND("Comp",D5,1)>0,FALSE),"Comparison "&OFFSET(INDIRECT(D5),0,-3),IF(IFERROR(FIND("Base",D5,1)>0,FALSE),"Baseline "&OFFSET(INDIRECT(D5),0,-3),OFFSET(INDIRECT(D5),0,-1))) -> Electricity Cost ($/kWh) | D5: Electricity_Price
A6: FMV (Closed-End) Lease | C6: =IF(IFERROR(FIND("Comp",D6,1)>0,FALSE),"Comparison "&OFFSET(INDIRECT(D6),0,-3),IF(IFERROR(FIND("Base",D6,1)>0,FALSE),"Baseline "&OFFSET(INDIRECT(D6),0,-3),OFFSET(INDIRECT(D6),0,-1))) -> Gasoline Cost ($/Gallon) | D6: Gasoline_Price
A7: FMV (Closed-End) Lease w/ Cash Purchase | C7: Cost of Carbon ($/Ton) | D7: Carbon_Price
A8: FMV (Closed-End) Lease w/ Loan Purchase | C8: Inflation Rate (Excluding Fuel) (%/Year) | D8: Inflation_Rate_General
A9: TRAC (Open-End) Lease | C9: Baseline Number of Level 2 EV Stations Needed (#) | D9: Base_Num_Stations
A10: TRAC (Open-End) Lease w/ Cash Purchase | C10: Baseline Equipment and Installation Cost ($/Station) | D10: Base_Station_Cost
A11: TRAC (Open-End) Lease w/ Loan Purchase | C11: Baseline Maintenance Cost ($/Station/Year) | D11: Base_Station_Maint_Cost
A12: Tax-Exempt Lease Purchase (Cash) | C12: Baseline Value of Negotiated Discounts off MSRP ($/Vehicle) | D12: Base_V1_Discounts
C13: Baseline Down Payment ($/Vehicle) | D13: Base_V1_Down_Payment
C14: Baseline Value of Federal Tax Incentives ($/Vehicle) | D14: Base_V1_Federal_Tax_Incentives
C15: Baseline Fuel Economy Electric City (MPGe) | D15: Base_V1_Fuel_Economy_Electric_City
C16: Baseline Fuel Economy Electric Highway (MPGe) | D16: Base_V1_Fuel_Economy_Electric_Hwy
C17: Baseline Fuel Economy Gas City (MPG) | D17: Base_V1_Fuel_Economy_Gas_City
C18: Baseline Fuel Economy Gas Highway (MPG) | D18: Base_V1_Fuel_Economy_Gas_Hwy
C19: Baseline Initial Tax, Title, and Registration Cost ($/Vehicle) | D19: Base_V1_Initial_Taxes_Fees
C20: Baseline Cost to Insure ($/Year) | D20: Base_V1_Insurance_Cost
C21: Baseline Acquisition Fee ($/Vehicle) | D21: Base_V1_Lease_Acquisition_Fee
C22: Baseline Lease Interest Rate (APR - %) | D22: Base_V1_Lease_APR
C23: Baseline Disposition Charge ($/Vehicle) | D23: Base_V1_Lease_Disposition_Fee
C24: Baseline Excess Mileage Cost ($/Mile) | D24: Base_V1_Lease_Mileage_Cost
C25: Baseline Mileage Included (Closed-End Only) | D25: Base_V1_Lease_Mileage_Inc
C26: Baseline Money Factor (#) | D26: Base_V1_Lease_Money_Factor
C27: Baseline Residual Value ($/Vehicle) | D27: Base_V1_Lease_Residual_Price
C28: Baseline Lease Term (Years) | D28: Base_V1_Lease_Term
C29: Baseline Dealer Triple Net Price ($/Vehicle) | D29: Base_V1_List_Price
C30: Baseline Dealer Markup ($/Vehicle) | D30: Base_V1_List_Price_Markup
C31: Baseline Loan Interest Rate (APR - %) | D31: Base_V1_Loan_APR
C32: Baseline Loan Term (Years) | D32: Base_V1_Loan_Term
C33: Baseline Maintenance and Repair Cost - Years 1 - 5 ($/Mile) | D33: Base_V1_Maint_Repair_Cost_Year_1
C34: Baseline % of Annual Miles City Driving | D34: Base_V1_Miles_City
C35: Baseline % of Annual Miles on Gasoline | D35: Base_V1_Miles_Gas
C36: Baseline MSRP ($/Vehicle) | D36: Base_V1_MSRP
C37: Baseline Number of Vehicles to Procure (#) | D37: Base_V1_Num_Vehicles
C38: Baseline Value of Non-tax Incentives ($/Vehicle) | D38: Base_V1_Other_Incentives
C39: Baseline Maintenance and Repair Cost - Years 5+ ($/Mile) | D39: Base_V1_Maint_Repair_Cost_Year_5
C40: Baseline State Tax Incentive Cap ($) | D40: Base_V1_State_Tax_Incentive_Cap
C41: Baseline Value of State Tax Incentives ($/Vehicle) | D41: Base_V1_State_Tax_Incentives
C42: Baseline Tax Credits Can Be Monetized? (Y/N) | D42: Base_V1_Tax_Incentives_Monetized
C43: Baseline Recurring Taxes and Fees ($/Year) | D43: Base_V1_Taxes_Fees
C44: Baseline Annual Vehicle Mileage (VMT/Year) | D44: Base_V1_VMT
C45: Baseline Expected Years of Use/Ownership (Years) | D45: Base_V1_Years_Usage
C46: Comparison Number of Level 2 EV Stations Needed (#) | D46: Comp_Num_Stations
C47: Comparison Equipment and Installation Cost ($/Station) | D47: Comp_Station_Cost
C48: Comparison Maintenance Cost ($/Station/Year) | D48: Comp_Station_Maint_Cost
C49: Comparison Value of Negotiated Discounts off MSRP ($/Vehicle) | D49: Comp_V1_Discounts
C50: Comparison Down Payment ($/Vehicle) | D50: Comp_V1_Down_Payment
C51: Comparison Value of Federal Tax Credits ($/Vehicle) | D51: Comp_V1_Federal_Tax_Incentives
C52: Comparison Fuel Economy Electric City (MPGe) | D52: Comp_V1_Fuel_Economy_Electric_City
C53: Comparison Fuel Economy Electric Highway (MPGe) | D53: Comp_V1_Fuel_Economy_Electric_Hwy
C54: Comparison Fuel Economy Gas City (MPG) | D54: Comp_V1_Fuel_Economy_Gas_City
C55: Comparison Fuel Economy Gas Highway (MPG) | D55: Comp_V1_Fuel_Economy_Gas_Hwy
C56: Comparison Initial Tax, Title, and Registration Cost ($/Vehicle) | D56: Comp_V1_Initial_Taxes_Fees
C57: Comparison Cost to Insure ($/Year) | D57: Comp_V1_Insurance_Cost
C58: Comparison Acquisition Fee ($/Vehicle) | D58: Comp_V1_Lease_Acquisition_Fee
C59: Comparison Lease Interest Rate (APR - %) | D59: Comp_V1_Lease_APR
C60: Comparison Disposition Charge ($/Vehicle) | D60: Comp_V1_Lease_Disposition_Fee
C61: Comparison Excess Mileage Cost ($/Mile) | D61: Comp_V1_Lease_Mileage_Cost
C62: =IF(IFERROR(FIND("Comp",D62,1)>0,FALSE),"Comparison "&OFFSET(INDIRECT(D62),0,-3),IF(IFERROR(FIND("Base",D62,1)>0,FALSE),"Baseline "&OFFSET(INDIRECT(D62),0,-3),OFFSET(INDIRECT(D62),0,-1))) -> Comparison Mileage Included (Closed-End Only) | D62: Comp_V1_Lease_Mileage_Inc
C63: Comparison Money Factor (#) | D63: Comp_V1_Lease_Money_Factor
C64: Comparison Negotiated Residual Value ($/Vehicle) | D64: Comp_V1_Lease_Residual_Price
C65: Comparison Lease Term (Years) | D65: Comp_V1_Lease_Term
C66: Comparison Dealer List Price ($) | D66: Comp_V1_List_Price
C67: Comparison Markup ($) | D67: Comp_V1_List_Price_Markup
C68: Comparison Loan Interest Rate (APR - %) | D68: Comp_V1_Loan_APR
C69: Comparison Loan Term (Years) | D69: Comp_V1_Loan_Term
C70: Comparison Maintenance and Repair Cost - Years 1 - 5 ($/Mile) | D70: Comp_V1_Maint_Repair_Cost_Year_1
C71: Comparison % of Annual Miles City Driving | D71: Comp_V1_Miles_City
C72: Comparison % of Annual Miles on Gasoline | D72: Comp_V1_Miles_Gas
C73: Comparison MSRP ($) | D73: Comp_V1_MSRP
C74: Comparison Number of Vehicles to Procure (#) | D74: Comp_V1_Num_Vehicles
C75: Comparison Value of Non-tax Incentives ($/Vehicle) | D75: Comp_V1_Other_Incentives
C76: Comparison Maintenance and Repair Cost - Years 5+ ($/Mile) | D76: Comp_V1_Maint_Repair_Cost_Year_5
C77: Comparison State Tax Incentive Cap ($) | D77: Comp_V1_State_Tax_Incentive_Cap
C78: Comparison Value of State Tax Incentives ($/Vehicle) | D78: Comp_V1_State_Tax_Incentives
C79: Comparison Tax Credits Can Be Monetized? (Y/N) | D79: Comp_V1_Tax_Incentives_Monetized
C80: Comparison Recurring Taxes and Fees ($/Year) | D80: Comp_V1_Taxes_Fees
C81: Comparison Annual Vehicle Mileage (VMT/Year) | D81: Comp_V1_VMT
C82: Comparison Expected Years of Use/Ownership (Years) | D82: Comp_V1_Years_Usage

Sheet Dynamic_Lists_Hidden (hidden)
B1: Vehicle 1 Baseline Dynamic Lists | F1: Vehicle 2 Comparison Dynamic Lists
A2: Drivetrain | B2: Year | C2: Make | D2: Model | E2: Drivetrain | F2: Year | G2: Make | H2: Model
A3: =INDEX(List_Vehicle_DB_Drivetrain,MATCH(0,COUNTIF($A$2:A2,List_Vehicle_DB_Drivetrain),0)) -> BEV | B3: =INDEX(List_Vehicle_DB_Year,MATCH(0,COUNTIF($B$2:B2,List_Vehicle_DB_Year)+(List_Vehicle_DB_Drivetrain<>_Base_V1_Vehicle_Drivetrain),0)) -> *Custom | C3: =INDEX(List_Vehicle_DB_Make,MATCH(0,COUNTIF(C$2:$C2,List_Vehicle_DB_Make)+(List_Vehicle_DB_Drivetrain<>_Base_V1_Vehicle_Drivetrain)+(List_Vehicle_DB_Year<>_Base_V1_Vehicle_Year),0)) -> Chevrolet | D3: =INDEX(List_Vehicle_DB_Model,MATCH(0,COUNTIF(D$2:$D2,List_Vehicle_DB_Model)+(List_Vehicle_DB_Drivetrain<>_Base_V1_Vehicle_Drivetrain)+(List_Vehicle_DB_Year<>_Base_V1_Vehicle_Year)++(List_Vehicle_DB_Make<>_Base_V1_Vehicle_Make),0)) -> Cruze | E3: =INDEX(List_Vehicle_DB_Drivetrain,MATCH(0,COUNTIF(E$2:$E2,List_Vehicle_DB_Drivetrain),0)) -> BEV | F3: =INDEX(List_Vehicle_DB_Year,MATCH(0,COUNTIF($F$2:F2,List_Vehicle_DB_Year)+(List_Vehicle_DB_Drivetrain<>_Comp_V1_Vehicle_Drivetrain),0)) -> *Custom | G3: =INDEX(List_Vehicle_DB_Make,MATCH(0,COUNTIF($G$2:G2,List_Vehicle_DB_Make)+(List_Vehicle_DB_Drivetrain<>_Comp_V1_Vehicle_Drivetrain)+(List_Vehicle_DB_Year<>_Comp_V1_Vehicle_Year),0)) -> Chevrolet | H3: =INDEX(List_Vehicle_DB_Model,MATCH(0,COUNTIF($H$2:H2,List_Vehicle_DB_Model)+(List_Vehicle_DB_Drivetrain<>_Comp_V1_Vehicle_Drivetrain)+(List_Vehicle_DB_Year<>_Comp_V1_Vehicle_Year)+(List_Vehicle_DB_Make<>_Comp_V1_Vehicle_Make),0)) -> Bolt EV
A4: =INDEX(List_Vehicle_DB_Drivetrain,MATCH(0,COUNTIF($A$2:A3,List_Vehicle_DB_Drivetrain),0)) -> ICE | B4: =INDEX(List_Vehicle_DB_Year,MATCH(0,COUNTIF($B$2:B3,List_Vehicle_DB_Year)+(List_Vehicle_DB_Drivetrain<>_Base_V1_Vehicle_Drivetrain),0)) -> 2016 | C4: =INDEX(List_Vehicle_DB_Make,MATCH(0,COUNTIF(C$2:$C3,List_Vehicle_DB_Make)+(List_Vehicle_DB_Drivetrain<>_Base_V1_Vehicle_Drivetrain)+(List_Vehicle_DB_Year<>_Base_V1_Vehicle_Year),0)) ->  | D4: =INDEX(List_Vehicle_DB_Model,MATCH(0,COUNTIF(D$2:$D3,List_Vehicle_DB_Model)+(List_Vehicle_DB_Drivetrain<>_Base_V1_Vehicle_Drivetrain)+(List_Vehicle_DB_Year<>_Base_V1_Vehicle_Year)++(List_Vehicle_DB_Make<>_Base_V1_Vehicle_Make),0)) ->  | E4: =INDEX(List_Vehicle_DB_Drivetrain,MATCH(0,COUNTIF(E$2:$E3,List_Vehicle_DB_Drivetrain),0)) -> ICE | F4: =INDEX(List_Vehicle_DB_Year,MATCH(0,COUNTIF($F$2:F3,List_Vehicle_DB_Year)+(List_Vehicle_DB_Drivetrain<>_Comp_V1_Vehicle_Drivetrain),0)) -> 2016 | G4: =INDEX(List_Vehicle_DB_Make,MATCH(0,COUNTIF($G$2:G3,List_Vehicle_DB_Make)+(List_Vehicle_DB_Drivetrain<>_Comp_V1_Vehicle_Drivetrain)+(List_Vehicle_DB_Year<>_Comp_V1_Vehicle_Year),0)) -> Fiat | H4: =INDEX(List_Vehicle_DB_Model,MATCH(0,COUNTIF($H$2:H3,List_Vehicle_DB_Model)+(List_Vehicle_DB_Drivetrain<>_Comp_V1_Vehicle_Drivetrain)+(List_Vehicle_DB_Year<>_Comp_V1_Vehicle_Year)+(List_Vehicle_DB_Make<>_Comp_V1_Vehicle_Make),0)) -> 
A5: =INDEX(List_Vehicle_DB_Drivetrain,MATCH(0,COUNTIF($A$2:A4,List_Vehicle_DB_Drivetrain),0)) -> PHEV | B5: =INDEX(List_Vehicle_DB_Year,MATCH(0,COUNTIF($B$2:B4,List_Vehicle_DB_Year)+(List_Vehicle_DB_Drivetrain<>_Base_V1_Vehicle_Drivetrain),0)) -> 2017 | C5: =INDEX(List_Vehicle_DB_Make,MATCH(0,COUNTIF(C$2:$C4,List_Vehicle_DB_Make)+(List_Vehicle_DB_Drivetrain<>_Base_V1_Vehicle_Drivetrain)+(List_Vehicle_DB_Year<>_Base_V1_Vehicle_Year),0)) ->  | D5: =INDEX(List_Vehicle_DB_Model,MATCH(0,COUNTIF(D$2:$D4,List_Vehicle_DB_Model)+(List_Vehicle_DB_Drivetrain<>_Base_V1_Vehicle_Drivetrain)+(List_Vehicle_DB_Year<>_Base_V1_Vehicle_Year)++(List_Vehicle_DB_Make<>_Base_V1_Vehicle_Make),0)) ->  | E5: =INDEX(List_Vehicle_DB_Drivetrain,MATCH(0,COUNTIF(E$2:$E4,List_Vehicle_DB_Drivetrain),0)) -> PHEV | F5: =INDEX(List_Vehicle_DB_Year,MATCH(0,COUNTIF($F$2:F4,List_Vehicle_DB_Year)+(List_Vehicle_DB_Drivetrain<>_Comp_V1_Vehicle_Drivetrain),0)) -> 2017 | G5: =INDEX(List_Vehicle_DB_Make,MATCH(0,COUNTIF($G$2:G4,List_Vehicle_DB_Make)+(List_Vehicle_DB_Drivetrain<>_Comp_V1_Vehicle_Drivetrain)+(List_Vehicle_DB_Year<>_Comp_V1_Vehicle_Year),0)) -> Ford | H5: =INDEX(List_Vehicle_DB_Model,MATCH(0,COUNTIF($H$2:H4,List_Vehicle_DB_Model)+(List_Vehicle_DB_Drivetrain<>_Comp_V1_Vehicle_Drivetrain)+(List_Vehicle_DB_Year<>_Comp_V1_Vehicle_Year)+(List_Vehicle_DB_Make<>_Comp_V1_Vehicle_Make),0)) -> 
A6: =INDEX(List_Vehicle_DB_Drivetrain,MATCH(0,COUNTIF($A$2:A5,List_Vehicle_DB_Drivetrain),0)) ->  | B6: =INDEX(List_Vehicle_DB_Year,MATCH(0,COUNTIF($B$2:B5,List_Vehicle_DB_Year)+(List_Vehicle_DB_Drivetrain<>_Base_V1_Vehicle_Drivetrain),0)) ->  | C6: =INDEX(List_Vehicle_DB_Make,MATCH(0,COUNTIF(C$2:$C5,List_Vehicle_DB_Make)+(List_Vehicle_DB_Drivetrain<>_Base_V1_Vehicle_Drivetrain)+(List_Vehicle_DB_Year<>_Base_V1_Vehicle_Year),0)) ->  | D6: =INDEX(List_Vehicle_DB_Model,MATCH(0,COUNTIF(D$2:$D5,List_Vehicle_DB_Model)+(List_Vehicle_DB_Drivetrain<>_Base_V1_Vehicle_Drivetrain)+(List_Vehicle_DB_Year<>_Base_V1_Vehicle_Year)++(List_Vehicle_DB_Make<>_Base_V1_Vehicle_Make),0)) ->  | E6: =INDEX(List_Vehicle_DB_Drivetrain,MATCH(0,COUNTIF(E$2:$E5,List_Vehicle_DB_Drivetrain),0)) ->  | F6: =INDEX(List_Vehicle_DB_Year,MATCH(0,COUNTIF($F$2:F5,List_Vehicle_DB_Year)+(List_Vehicle_DB_Drivetrain<>_Comp_V1_Vehicle_Drivetrain),0)) ->  | G6: =INDEX(List_Vehicle_DB_Make,MATCH(0,COUNTIF($G$2:G5,List_Vehicle_DB_Make)+(List_Vehicle_DB_Drivetrain<>_Comp_V1_Vehicle_Drivetrain)+(List_Vehicle_DB_Year<>_Comp_V1_Vehicle_Year),0)) -> Hyundai | H6: =INDEX(List_Vehicle_DB_Model,MATCH(0,COUNTIF($H$2:H5,List_Vehicle_DB_Model)+(List_Vehicle_DB_Drivetrain<>_Comp_V1_Vehicle_Drivetrain)+(List_Vehicle_DB_Year<>_Comp_V1_Vehicle_Year)+(List_Vehicle_DB_Make<>_Comp_V1_Vehicle_Make),0)) -> 
A7: =INDEX(List_Vehicle_DB_Drivetrain,MATCH(0,COUNTIF($A$2:A6,List_Vehicle_DB_Drivetrain),0)) ->  | B7: =INDEX(List_Vehicle_DB_Year,MATCH(0,COUNTIF($B$2:B6,List_Vehicle_DB_Year)+(List_Vehicle_DB_Drivetrain<>_Base_V1_Vehicle_Drivetrain),0)) ->  | C7: =INDEX(List_Vehicle_DB_Make,MATCH(0,COUNTIF(C$2:$C6,List_Vehicle_DB_Make)+(List_Vehicle_DB_Drivetrain<>_Base_V1_Vehicle_Drivetrain)+(List_Vehicle_DB_Year<>_Base_V1_Vehicle_Year),0)) ->  | D7: =INDEX(List_Vehicle_DB_Model,MATCH(0,COUNTIF(D$2:$D6,List_Vehicle_DB_Model)+(List_Vehicle_DB_Drivetrain<>_Base_V1_Vehicle_Drivetrain)+(List_Vehicle_DB_Year<>_Base_V1_Vehicle_Year)++(List_Vehicle_DB_Make<>_Base_V1_Vehicle_Make),0)) ->  | E7: =INDEX(List_Vehicle_DB_Drivetrain,MATCH(0,COUNTIF(E$2:$E6,List_Vehicle_DB_Drivetrain),0)) ->  | F7: =INDEX(List_Vehicle_DB_Year,MATCH(0,COUNTIF($F$2:F6,List_Vehicle_DB_Year)+(List_Vehicle_DB_Drivetrain<>_Comp_V1_Vehicle_Drivetrain),0)) ->  | G7: =INDEX(List_Vehicle_DB_Make,MATCH(0,COUNTIF($G$2:G6,List_Vehicle_DB_Make)+(List_Vehicle_DB_Drivetrain<>_Comp_V1_Vehicle_Drivetrain)+(List_Vehicle_DB_Year<>_Comp_V1_Vehicle_Year),0)) -> Kia | H7: =INDEX(List_Vehicle_DB_Model,MATCH(0,COUNTIF($H$2:H6,List_Vehicle_DB_Model)+(List_Vehicle_DB_Drivetrain<>_Comp_V1_Vehicle_Drivetrain)+(List_Vehicle_DB_Year<>_Comp_V1_Vehicle_Year)+(List_Vehicle_DB_Make<>_Comp_V1_Vehicle_Make),0)) -> 
A8: =INDEX(List_Vehicle_DB_Drivetrain,MATCH(0,COUNTIF($A$2:A7,List_Vehicle_DB_Drivetrain),0)) ->  | B8: =INDEX(List_Vehicle_DB_Year,MATCH(0,COUNTIF($B$2:B7,List_Vehicle_DB_Year)+(List_Vehicle_DB_Drivetrain<>_Base_V1_Vehicle_Drivetrain),0)) ->  | C8: =INDEX(List_Vehicle_DB_Make,MATCH(0,COUNTIF(C$2:$C7,List_Vehicle_DB_Make)+(List_Vehicle_DB_Drivetrain<>_Base_V1_Vehicle_Drivetrain)+(List_Vehicle_DB_Year<>_Base_V1_Vehicle_Year),0)) ->  | D8: =INDEX(List_Vehicle_DB_Model,MATCH(0,COUNTIF(D$2:$D7,List_Vehicle_DB_Model)+(List_Vehicle_DB_Drivetrain<>_Base_V1_Vehicle_Drivetrain)+(List_Vehicle_DB_Year<>_Base_V1_Vehicle_Year)++(List_Vehicle_DB_Make<>_Base_V1_Vehicle_Make),0)) ->  | E8: =INDEX(List_Vehicle_DB_Drivetrain,MATCH(0,COUNTIF(E$2:$E7,List_Vehicle_DB_Drivetrain),0)) ->  | F8: =INDEX(List_Vehicle_DB_Year,MATCH(0,COUNTIF($F$2:F7,List_Vehicle_DB_Year)+(List_Vehicle_DB_Drivetrain<>_Comp_V1_Vehicle_Drivetrain),0)) ->  | G8: =INDEX(List_Vehicle_DB_Make,MATCH(0,COUNTIF($G$2:G7,List_Vehicle_DB_Make)+(List_Vehicle_DB_Drivetrain<>_Comp_V1_Vehicle_Drivetrain)+(List_Vehicle_DB_Year<>_Comp_V1_Vehicle_Year),0)) -> Mitsubishi | H8: =INDEX(List_Vehicle_DB_Model,MATCH(0,COUNTIF($H$2:H7,List_Vehicle_DB_Model)+(List_Vehicle_DB_Drivetrain<>_Comp_V1_Vehicle_Drivetrain)+(List_Vehicle_DB_Year<>_Comp_V1_Vehicle_Year)+(List_Vehicle_DB_Make<>_Comp_V1_Vehicle_Make),0)) -> 
A9: =INDEX(List_Vehicle_DB_Drivetrain,MATCH(0,COUNTIF($A$2:A8,List_Vehicle_DB_Drivetrain),0)) ->  | B9: =INDEX(List_Vehicle_DB_Year,MATCH(0,COUNTIF($B$2:B8,List_Vehicle_DB_Year)+(List_Vehicle_DB_Drivetrain<>_Base_V1_Vehicle_Drivetrain),0)) ->  | C9: =INDEX(List_Vehicle_DB_Make,MATCH(0,COUNTIF(C$2:$C8,List_Vehicle_DB_Make)+(List_Vehicle_DB_Drivetrain<>_Base_V1_Vehicle_Drivetrain)+(List_Vehicle_DB_Year<>_Base_V1_Vehicle_Year),0)) ->  | D9: =INDEX(List_Vehicle_DB_Model,MATCH(0,COUNTIF(D$2:$D8,List_Vehicle_DB_Model)+(List_Vehicle_DB_Drivetrain<>_Base_V1_Vehicle_Drivetrain)+(List_Vehicle_DB_Year<>_Base_V1_Vehicle_Year)++(List_Vehicle_DB_Make<>_Base_V1_Vehicle_Make),0)) ->  | E9: =INDEX(List_Vehicle_DB_Drivetrain,MATCH(0,COUNTIF(E$2:$E8,List_Vehicle_DB_Drivetrain),0)) ->  | F9: =INDEX(List_Vehicle_DB_Year,MATCH(0,COUNTIF($F$2:F8,List_Vehicle_DB_Year)+(List_Vehicle_DB_Drivetrain<>_Comp_V1_Vehicle_Drivetrain),0)) ->  | G9: =INDEX(List_Vehicle_DB_Make,MATCH(0,COUNTIF($G$2:G8,List_Vehicle_DB_Make)+(List_Vehicle_DB_Drivetrain<>_Comp_V1_Vehicle_Drivetrain)+(List_Vehicle_DB_Year<>_Comp_V1_Vehicle_Year),0)) -> Nissan | H9: =INDEX(List_Vehicle_DB_Model,MATCH(0,COUNTIF($H$2:H8,List_Vehicle_DB_Model)+(List_Vehicle_DB_Drivetrain<>_Comp_V1_Vehicle_Drivetrain)+(List_Vehicle_DB_Year<>_Comp_V1_Vehicle_Year)+(List_Vehicle_DB_Make<>_Comp_V1_Vehicle_Make),0)) -> 
A10: =INDEX(List_Vehicle_DB_Drivetrain,MATCH(0,COUNTIF($A$2:A9,List_Vehicle_DB_Drivetrain),0)) ->  | B10: =INDEX(List_Vehicle_DB_Year,MATCH(0,COUNTIF($B$2:B9,List_Vehicle_DB_Year)+(List_Vehicle_DB_Drivetrain<>_Base_V1_Vehicle_Drivetrain),0)) ->  | C10: =INDEX(List_Vehicle_DB_Make,MATCH(0,COUNTIF(C$2:$C9,List_Vehicle_DB_Make)+(List_Vehicle_DB_Drivetrain<>_Base_V1_Vehicle_Drivetrain)+(List_Vehicle_DB_Year<>_Base_V1_Vehicle_Year),0)) ->  | D10: =INDEX(List_Vehicle_DB_Model,MATCH(0,COUNTIF(D$2:$D9,List_Vehicle_DB_Model)+(List_Vehicle_DB_Drivetrain<>_Base_V1_Vehicle_Drivetrain)+(List_Vehicle_DB_Year<>_Base_V1_Vehicle_Year)++(List_Vehicle_DB_Make<>_Base_V1_Vehicle_Make),0)) ->  | E10: =INDEX(List_Vehicle_DB_Drivetrain,MATCH(0,COUNTIF(E$2:$E9,List_Vehicle_DB_Drivetrain),0)) ->  | F10: =INDEX(List_Vehicle_DB_Year,MATCH(0,COUNTIF($F$2:F9,List_Vehicle_DB_Year)+(List_Vehicle_DB_Drivetrain<>_Comp_V1_Vehicle_Drivetrain),0)) ->  | G10: =INDEX(List_Vehicle_DB_Make,MATCH(0,COUNTIF($G$2:G9,List_Vehicle_DB_Make)+(List_Vehicle_DB_Drivetrain<>_Comp_V1_Vehicle_Drivetrain)+(List_Vehicle_DB_Year<>_Comp_V1_Vehicle_Year),0)) -> Volkswagen | H10: =INDEX(List_Vehicle_DB_Model,MATCH(0,COUNTIF($H$2:H9,List_Vehicle_DB_Model)+(List_Vehicle_DB_Drivetrain<>_Comp_V1_Vehicle_Drivetrain)+(List_Vehicle_DB_Year<>_Comp_V1_Vehicle_Year)+(List_Vehicle_DB_Make<>_Comp_V1_Vehicle_Make),0)) -> 
A11: =INDEX(List_Vehicle_DB_Drivetrain,MATCH(0,COUNTIF($A$2:A10,List_Vehicle_DB_Drivetrain),0)) ->  | B11: =INDEX(List_Vehicle_DB_Year,MATCH(0,COUNTIF($B$2:B10,List_Vehicle_DB_Year)+(List_Vehicle_DB_Drivetrain<>_Base_V1_Vehicle_Drivetrain),0)) ->  | C11: =INDEX(List_Vehicle_DB_Make,MATCH(0,COUNTIF(C$2:$C10,List_Vehicle_DB_Make)+(List_Vehicle_DB_Drivetrain<>_Base_V1_Vehicle_Drivetrain)+(List_Vehicle_DB_Year<>_Base_V1_Vehicle_Year),0)) ->  | D11: =INDEX(List_Vehicle_DB_Model,MATCH(0,COUNTIF(D$2:$D10,List_Vehicle_DB_Model)+(List_Vehicle_DB_Drivetrain<>_Base_V1_Vehicle_Drivetrain)+(List_Vehicle_DB_Year<>_Base_V1_Vehicle_Year)++(List_Vehicle_DB_Make<>_Base_V1_Vehicle_Make),0)) ->  | E11: =INDEX(List_Vehicle_DB_Drivetrain,MATCH(0,COUNTIF(E$2:$E10,List_Vehicle_DB_Drivetrain),0)) ->  | F11: =INDEX(List_Vehicle_DB_Year,MATCH(0,COUNTIF($F$2:F10,List_Vehicle_DB_Year)+(List_Vehicle_DB_Drivetrain<>_Comp_V1_Vehicle_Drivetrain),0)) ->  | G11: =INDEX(List_Vehicle_DB_Make,MATCH(0,COUNTIF($G$2:G10,List_Vehicle_DB_Make)+(List_Vehicle_DB_Drivetrain<>_Comp_V1_Vehicle_Drivetrain)+(List_Vehicle_DB_Year<>_Comp_V1_Vehicle_Year),0)) ->  | H11: =INDEX(List_Vehicle_DB_Model,MATCH(0,COUNTIF($H$2:H10,List_Vehicle_DB_Model)+(List_Vehicle_DB_Drivetrain<>_Comp_V1_Vehicle_Drivetrain)+(List_Vehicle_DB_Year<>_Comp_V1_Vehicle_Year)+(List_Vehicle_DB_Make<>_Comp_V1_Vehicle_Make),0)) -> 
A12: =INDEX(List_Vehicle_DB_Drivetrain,MATCH(0,COUNTIF($A$2:A11,List_Vehicle_DB_Drivetrain),0)) ->  | B12: =INDEX(List_Vehicle_DB_Year,MATCH(0,COUNTIF($B$2:B11,List_Vehicle_DB_Year)+(List_Vehicle_DB_Drivetrain<>_Base_V1_Vehicle_Drivetrain),0)) ->  | C12: =INDEX(List_Vehicle_DB_Make,MATCH(0,COUNTIF(C$2:$C11,List_Vehicle_DB_Make)+(List_Vehicle_DB_Drivetrain<>_Base_V1_Vehicle_Drivetrain)+(List_Vehicle_DB_Year<>_Base_V1_Vehicle_Year),0)) ->  | D12: =INDEX(List_Vehicle_DB_Model,MATCH(0,COUNTIF(D$2:$D11,List_Vehicle_DB_Model)+(List_Vehicle_DB_Drivetrain<>_Base_V1_Vehicle_Drivetrain)+(List_Vehicle_DB_Year<>_Base_V1_Vehicle_Year)++(List_Vehicle_DB_Make<>_Base_V1_Vehicle_Make),0)) ->  | E12: =INDEX(List_Vehicle_DB_Drivetrain,MATCH(0,COUNTIF(E$2:$E11,List_Vehicle_DB_Drivetrain),0)) ->  | F12: =INDEX(List_Vehicle_DB_Year,MATCH(0,COUNTIF($F$2:F11,List_Vehicle_DB_Year)+(List_Vehicle_DB_Drivetrain<>_Comp_V1_Vehicle_Drivetrain),0)) ->  | G12: =INDEX(List_Vehicle_DB_Make,MATCH(0,COUNTIF($G$2:G11,List_Vehicle_DB_Make)+(List_Vehicle_DB_Drivetrain<>_Comp_V1_Vehicle_Drivetrain)+(List_Vehicle_DB_Year<>_Comp_V1_Vehicle_Year),0)) ->  | H12: =INDEX(List_Vehicle_DB_Model,MATCH(0,COUNTIF($H$2:H11,List_Vehicle_DB_Model)+(List_Vehicle_DB_Drivetrain<>_Comp_V1_Vehicle_Drivetrain)+(List_Vehicle_DB_Year<>_Comp_V1_Vehicle_Year)+(List_Vehicle_DB_Make<>_Comp_V1_Vehicle_Make),0)) -> 
A13: =INDEX(List_Vehicle_DB_Drivetrain,MATCH(0,COUNTIF($A$2:A12,List_Vehicle_DB_Drivetrain),0)) ->  | B13: =INDEX(List_Vehicle_DB_Year,MATCH(0,COUNTIF($B$2:B12,List_Vehicle_DB_Year)+(List_Vehicle_DB_Drivetrain<>_Base_V1_Vehicle_Drivetrain),0)) ->  | C13: =INDEX(List_Vehicle_DB_Make,MATCH(0,COUNTIF(C$2:$C12,List_Vehicle_DB_Make)+(List_Vehicle_DB_Drivetrain<>_Base_V1_Vehicle_Drivetrain)+(List_Vehicle_DB_Year<>_Base_V1_Vehicle_Year),0)) ->  | D13: =INDEX(List_Vehicle_DB_Model,MATCH(0,COUNTIF(D$2:$D12,List_Vehicle_DB_Model)+(List_Vehicle_DB_Drivetrain<>_Base_V1_Vehicle_Drivetrain)+(List_Vehicle_DB_Year<>_Base_V1_Vehicle_Year)++(List_Vehicle_DB_Make<>_Base_V1_Vehicle_Make),0)) ->  | E13: =INDEX(List_Vehicle_DB_Drivetrain,MATCH(0,COUNTIF(E$2:$E12,List_Vehicle_DB_Drivetrain),0)) ->  | F13: =INDEX(List_Vehicle_DB_Year,MATCH(0,COUNTIF($F$2:F12,List_Vehicle_DB_Year)+(List_Vehicle_DB_Drivetrain<>_Comp_V1_Vehicle_Drivetrain),0)) ->  | G13: =INDEX(List_Vehicle_DB_Make,MATCH(0,COUNTIF($G$2:G12,List_Vehicle_DB_Make)+(List_Vehicle_DB_Drivetrain<>_Comp_V1_Vehicle_Drivetrain)+(List_Vehicle_DB_Year<>_Comp_V1_Vehicle_Year),0)) ->  | H13: =INDEX(List_Vehicle_DB_Model,MATCH(0,COUNTIF($H$2:H12,List_Vehicle_DB_Model)+(List_Vehicle_DB_Drivetrain<>_Comp_V1_Vehicle_Drivetrain)+(List_Vehicle_DB_Year<>_Comp_V1_Vehicle_Year)+(List_Vehicle_DB_Make<>_Comp_V1_Vehicle_Make),0)) -> 
A14: =INDEX(List_Vehicle_DB_Drivetrain,MATCH(0,COUNTIF($A$2:A13,List_Vehicle_DB_Drivetrain),0)) ->  | B14: =INDEX(List_Vehicle_DB_Year,MATCH(0,COUNTIF($B$2:B13,List_Vehicle_DB_Year)+(List_Vehicle_DB_Drivetrain<>_Base_V1_Vehicle_Drivetrain),0)) ->  | C14: =INDEX(List_Vehicle_DB_Make,MATCH(0,COUNTIF(C$2:$C13,List_Vehicle_DB_Make)+(List_Vehicle_DB_Drivetrain<>_Base_V1_Vehicle_Drivetrain)+(List_Vehicle_DB_Year<>_Base_V1_Vehicle_Year),0)) ->  | D14: =INDEX(List_Vehicle_DB_Model,MATCH(0,COUNTIF(D$2:$D13,List_Vehicle_DB_Model)+(List_Vehicle_DB_Drivetrain<>_Base_V1_Vehicle_Drivetrain)+(List_Vehicle_DB_Year<>_Base_V1_Vehicle_Year)++(List_Vehicle_DB_Make<>_Base_V1_Vehicle_Make),0)) ->  | E14: =INDEX(List_Vehicle_DB_Drivetrain,MATCH(0,COUNTIF(E$2:$E13,List_Vehicle_DB_Drivetrain),0)) ->  | F14: =INDEX(List_Vehicle_DB_Year,MATCH(0,COUNTIF($F$2:F13,List_Vehicle_DB_Year)+(List_Vehicle_DB_Drivetrain<>_Comp_V1_Vehicle_Drivetrain),0)) ->  | G14: =INDEX(List_Vehicle_DB_Make,MATCH(0,COUNTIF($G$2:G13,List_Vehicle_DB_Make)+(List_Vehicle_DB_Drivetrain<>_Comp_V1_Vehicle_Drivetrain)+(List_Vehicle_DB_Year<>_Comp_V1_Vehicle_Year),0)) ->  | H14: =INDEX(List_Vehicle_DB_Model,MATCH(0,COUNTIF($H$2:H13,List_Vehicle_DB_Model)+(List_Vehicle_DB_Drivetrain<>_Comp_V1_Vehicle_Drivetrain)+(List_Vehicle_DB_Year<>_Comp_V1_Vehicle_Year)+(List_Vehicle_DB_Make<>_Comp_V1_Vehicle_Make),0)) -> 
A15: =INDEX(List_Vehicle_DB_Drivetrain,MATCH(0,COUNTIF($A$2:A14,List_Vehicle_DB_Drivetrain),0)) ->  | B15: =INDEX(List_Vehicle_DB_Year,MATCH(0,COUNTIF($B$2:B14,List_Vehicle_DB_Year)+(List_Vehicle_DB_Drivetrain<>_Base_V1_Vehicle_Drivetrain),0)) ->  | C15: =INDEX(List_Vehicle_DB_Make,MATCH(0,COUNTIF(C$2:$C14,List_Vehicle_DB_Make)+(List_Vehicle_DB_Drivetrain<>_Base_V1_Vehicle_Drivetrain)+(List_Vehicle_DB_Year<>_Base_V1_Vehicle_Year),0)) ->  | D15: =INDEX(List_Vehicle_DB_Model,MATCH(0,COUNTIF(D$2:$D14,List_Vehicle_DB_Model)+(List_Vehicle_DB_Drivetrain<>_Base_V1_Vehicle_Drivetrain)+(List_Vehicle_DB_Year<>_Base_V1_Vehicle_Year)++(List_Vehicle_DB_Make<>_Base_V1_Vehicle_Make),0)) ->  | E15: =INDEX(List_Vehicle_DB_Drivetrain,MATCH(0,COUNTIF(E$2:$E14,List_Vehicle_DB_Drivetrain),0)) ->  | F15: =INDEX(List_Vehicle_DB_Year,MATCH(0,COUNTIF($F$2:F14,List_Vehicle_DB_Year)+(List_Vehicle_DB_Drivetrain<>_Comp_V1_Vehicle_Drivetrain),0)) ->  | G15: =INDEX(List_Vehicle_DB_Make,MATCH(0,COUNTIF($G$2:G14,List_Vehicle_DB_Make)+(List_Vehicle_DB_Drivetrain<>_Comp_V1_Vehicle_Drivetrain)+(List_Vehicle_DB_Year<>_Comp_V1_Vehicle_Year),0)) ->  | H15: =INDEX(List_Vehicle_DB_Model,MATCH(0,COUNTIF($H$2:H14,List_Vehicle_DB_Model)+(List_Vehicle_DB_Drivetrain<>_Comp_V1_Vehicle_Drivetrain)+(List_Vehicle_DB_Year<>_Comp_V1_Vehicle_Year)+(List_Vehicle_DB_Make<>_Comp_V1_Vehicle_Make),0)) -> 
A16: =INDEX(List_Vehicle_DB_Drivetrain,MATCH(0,COUNTIF($A$2:A15,List_Vehicle_DB_Drivetrain),0)) ->  | B16: =INDEX(List_Vehicle_DB_Year,MATCH(0,COUNTIF($B$2:B15,List_Vehicle_DB_Year)+(List_Vehicle_DB_Drivetrain<>_Base_V1_Vehicle_Drivetrain),0)) ->  | C16: =INDEX(List_Vehicle_DB_Make,MATCH(0,COUNTIF(C$2:$C15,List_Vehicle_DB_Make)+(List_Vehicle_DB_Drivetrain<>_Base_V1_Vehicle_Drivetrain)+(List_Vehicle_DB_Year<>_Base_V1_Vehicle_Year),0)) ->  | D16: =INDEX(List_Vehicle_DB_Model,MATCH(0,COUNTIF(D$2:$D15,List_Vehicle_DB_Model)+(List_Vehicle_DB_Drivetrain<>_Base_V1_Vehicle_Drivetrain)+(List_Vehicle_DB_Year<>_Base_V1_Vehicle_Year)++(List_Vehicle_DB_Make<>_Base_V1_Vehicle_Make),0)) ->  | E16: =INDEX(List_Vehicle_DB_Drivetrain,MATCH(0,COUNTIF(E$2:$E15,List_Vehicle_DB_Drivetrain),0)) ->  | F16: =INDEX(List_Vehicle_DB_Year,MATCH(0,COUNTIF($F$2:F15,List_Vehicle_DB_Year)+(List_Vehicle_DB_Drivetrain<>_Comp_V1_Vehicle_Drivetrain),0)) ->  | G16: =INDEX(List_Vehicle_DB_Make,MATCH(0,COUNTIF($G$2:G15,List_Vehicle_DB_Make)+(List_Vehicle_DB_Drivetrain<>_Comp_V1_Vehicle_Drivetrain)+(List_Vehicle_DB_Year<>_Comp_V1_Vehicle_Year),0)) ->  | H16: =INDEX(List_Vehicle_DB_Model,MATCH(0,COUNTIF($H$2:H15,List_Vehicle_DB_Model)+(List_Vehicle_DB_Drivetrain<>_Comp_V1_Vehicle_Drivetrain)+(List_Vehicle_DB_Year<>_Comp_V1_Vehicle_Year)+(List_Vehicle_DB_Make<>_Comp_V1_Vehicle_Make),0)) -> 
A17: =INDEX(List_Vehicle_DB_Drivetrain,MATCH(0,COUNTIF($A$2:A16,List_Vehicle_DB_Drivetrain),0)) ->  | B17: =INDEX(List_Vehicle_DB_Year,MATCH(0,COUNTIF($B$2:B16,List_Vehicle_DB_Year)+(List_Vehicle_DB_Drivetrain<>_Base_V1_Vehicle_Drivetrain),0)) ->  | C17: =INDEX(List_Vehicle_DB_Make,MATCH(0,COUNTIF(C$2:$C16,List_Vehicle_DB_Make)+(List_Vehicle_DB_Drivetrain<>_Base_V1_Vehicle_Drivetrain)+(List_Vehicle_DB_Year<>_Base_V1_Vehicle_Year),0)) ->  | D17: =INDEX(List_Vehicle_DB_Model,MATCH(0,COUNTIF(D$2:$D16,List_Vehicle_DB_Model)+(List_Vehicle_DB_Drivetrain<>_Base_V1_Vehicle_Drivetrain)+(List_Vehicle_DB_Year<>_Base_V1_Vehicle_Year)++(List_Vehicle_DB_Make<>_Base_V1_Vehicle_Make),0)) ->  | E17: =INDEX(List_Vehicle_DB_Drivetrain,MATCH(0,COUNTIF(E$2:$E16,List_Vehicle_DB_Drivetrain),0)) ->  | F17: =INDEX(List_Vehicle_DB_Year,MATCH(0,COUNTIF($F$2:F16,List_Vehicle_DB_Year)+(List_Vehicle_DB_Drivetrain<>_Comp_V1_Vehicle_Drivetrain),0)) ->  | G17: =INDEX(List_Vehicle_DB_Make,MATCH(0,COUNTIF($G$2:G16,List_Vehicle_DB_Make)+(List_Vehicle_DB_Drivetrain<>_Comp_V1_Vehicle_Drivetrain)+(List_Vehicle_DB_Year<>_Comp_V1_Vehicle_Year),0)) ->  | H17: =INDEX(List_Vehicle_DB_Model,MATCH(0,COUNTIF($H$2:H16,List_Vehicle_DB_Model)+(List_Vehicle_DB_Drivetrain<>_Comp_V1_Vehicle_Drivetrain)+(List_Vehicle_DB_Year<>_Comp_V1_Vehicle_Year)+(List_Vehicle_DB_Make<>_Comp_V1_Vehicle_Make),0)) -> 
A18: =INDEX(List_Vehicle_DB_Drivetrain,MATCH(0,COUNTIF($A$2:A17,List_Vehicle_DB_Drivetrain),0)) ->  | B18: =INDEX(List_Vehicle_DB_Year,MATCH(0,COUNTIF($B$2:B17,List_Vehicle_DB_Year)+(List_Vehicle_DB_Drivetrain<>_Base_V1_Vehicle_Drivetrain),0)) ->  | C18: =INDEX(List_Vehicle_DB_Make,MATCH(0,COUNTIF(C$2:$C17,List_Vehicle_DB_Make)+(List_Vehicle_DB_Drivetrain<>_Base_V1_Vehicle_Drivetrain)+(List_Vehicle_DB_Year<>_Base_V1_Vehicle_Year),0)) ->  | D18: =INDEX(List_Vehicle_DB_Model,MATCH(0,COUNTIF(D$2:$D17,List_Vehicle_DB_Model)+(List_Vehicle_DB_Drivetrain<>_Base_V1_Vehicle_Drivetrain)+(List_Vehicle_DB_Year<>_Base_V1_Vehicle_Year)++(List_Vehicle_DB_Make<>_Base_V1_Vehicle_Make),0)) ->  | E18: =INDEX(List_Vehicle_DB_Drivetrain,MATCH(0,COUNTIF(E$2:$E17,List_Vehicle_DB_Drivetrain),0)) ->  | F18: =INDEX(List_Vehicle_DB_Year,MATCH(0,COUNTIF($F$2:F17,List_Vehicle_DB_Year)+(List_Vehicle_DB_Drivetrain<>_Comp_V1_Vehicle_Drivetrain),0)) ->  | G18: =INDEX(List_Vehicle_DB_Make,MATCH(0,COUNTIF($G$2:G17,List_Vehicle_DB_Make)+(List_Vehicle_DB_Drivetrain<>_Comp_V1_Vehicle_Drivetrain)+(List_Vehicle_DB_Year<>_Comp_V1_Vehicle_Year),0)) ->  | H18: =INDEX(List_Vehicle_DB_Model,MATCH(0,COUNTIF($H$2:H17,List_Vehicle_DB_Model)+(List_Vehicle_DB_Drivetrain<>_Comp_V1_Vehicle_Drivetrain)+(List_Vehicle_DB_Year<>_Comp_V1_Vehicle_Year)+(List_Vehicle_DB_Make<>_Comp_V1_Vehicle_Make),0)) -> 
A19: =INDEX(List_Vehicle_DB_Drivetrain,MATCH(0,COUNTIF($A$2:A18,List_Vehicle_DB_Drivetrain),0)) ->  | B19: =INDEX(List_Vehicle_DB_Year,MATCH(0,COUNTIF($B$2:B18,List_Vehicle_DB_Year)+(List_Vehicle_DB_Drivetrain<>_Base_V1_Vehicle_Drivetrain),0)) ->  | C19: =INDEX(List_Vehicle_DB_Make,MATCH(0,COUNTIF(C$2:$C18,List_Vehicle_DB_Make)+(List_Vehicle_DB_Drivetrain<>_Base_V1_Vehicle_Drivetrain)+(List_Vehicle_DB_Year<>_Base_V1_Vehicle_Year),0)) ->  | D19: =INDEX(List_Vehicle_DB_Model,MATCH(0,COUNTIF(D$2:$D18,List_Vehicle_DB_Model)+(List_Vehicle_DB_Drivetrain<>_Base_V1_Vehicle_Drivetrain)+(List_Vehicle_DB_Year<>_Base_V1_Vehicle_Year)++(List_Vehicle_DB_Make<>_Base_V1_Vehicle_Make),0)) ->  | E19: =INDEX(List_Vehicle_DB_Drivetrain,MATCH(0,COUNTIF(E$2:$E18,List_Vehicle_DB_Drivetrain),0)) ->  | F19: =INDEX(List_Vehicle_DB_Year,MATCH(0,COUNTIF($F$2:F18,List_Vehicle_DB_Year)+(List_Vehicle_DB_Drivetrain<>_Comp_V1_Vehicle_Drivetrain),0)) ->  | G19: =INDEX(List_Vehicle_DB_Make,MATCH(0,COUNTIF($G$2:G18,List_Vehicle_DB_Make)+(List_Vehicle_DB_Drivetrain<>_Comp_V1_Vehicle_Drivetrain)+(List_Vehicle_DB_Year<>_Comp_V1_Vehicle_Year),0)) ->  | H19: =INDEX(List_Vehicle_DB_Model,MATCH(0,COUNTIF($H$2:H18,List_Vehicle_DB_Model)+(List_Vehicle_DB_Drivetrain<>_Comp_V1_Vehicle_Drivetrain)+(List_Vehicle_DB_Year<>_Comp_V1_Vehicle_Year)+(List_Vehicle_DB_Make<>_Comp_V1_Vehicle_Make),0)) -> 
A20: =INDEX(List_Vehicle_DB_Drivetrain,MATCH(0,COUNTIF($A$2:A19,List_Vehicle_DB_Drivetrain),0)) ->  | B20: =INDEX(List_Vehicle_DB_Year,MATCH(0,COUNTIF($B$2:B19,List_Vehicle_DB_Year)+(List_Vehicle_DB_Drivetrain<>_Base_V1_Vehicle_Drivetrain),0)) ->  | C20: =INDEX(List_Vehicle_DB_Make,MATCH(0,COUNTIF(C$2:$C19,List_Vehicle_DB_Make)+(List_Vehicle_DB_Drivetrain<>_Base_V1_Vehicle_Drivetrain)+(List_Vehicle_DB_Year<>_Base_V1_Vehicle_Year),0)) ->  | D20: =INDEX(List_Vehicle_DB_Model,MATCH(0,COUNTIF(D$2:$D19,List_Vehicle_DB_Model)+(List_Vehicle_DB_Drivetrain<>_Base_V1_Vehicle_Drivetrain)+(List_Vehicle_DB_Year<>_Base_V1_Vehicle_Year)++(List_Vehicle_DB_Make<>_Base_V1_Vehicle_Make),0)) ->  | E20: =INDEX(List_Vehicle_DB_Drivetrain,MATCH(0,COUNTIF(E$2:$E19,List_Vehicle_DB_Drivetrain),0)) ->  | F20: =INDEX(List_Vehicle_DB_Year,MATCH(0,COUNTIF($F$2:F19,List_Vehicle_DB_Year)+(List_Vehicle_DB_Drivetrain<>_Comp_V1_Vehicle_Drivetrain),0)) ->  | G20: =INDEX(List_Vehicle_DB_Make,MATCH(0,COUNTIF($G$2:G19,List_Vehicle_DB_Make)+(List_Vehicle_DB_Drivetrain<>_Comp_V1_Vehicle_Drivetrain)+(List_Vehicle_DB_Year<>_Comp_V1_Vehicle_Year),0)) ->  | H20: =INDEX(List_Vehicle_DB_Model,MATCH(0,COUNTIF($H$2:H19,List_Vehicle_DB_Model)+(List_Vehicle_DB_Drivetrain<>_Comp_V1_Vehicle_Drivetrain)+(List_Vehicle_DB_Year<>_Comp_V1_Vehicle_Year)+(List_Vehicle_DB_Make<>_Comp_V1_Vehicle_Make),0)) -> 
A21: =INDEX(List_Vehicle_DB_Drivetrain,MATCH(0,COUNTIF($A$2:A20,List_Vehicle_DB_Drivetrain),0)) ->  | B21: =INDEX(List_Vehicle_DB_Year,MATCH(0,COUNTIF($B$2:B20,List_Vehicle_DB_Year)+(List_Vehicle_DB_Drivetrain<>_Base_V1_Vehicle_Drivetrain),0)) ->  | C21: =INDEX(List_Vehicle_DB_Make,MATCH(0,COUNTIF(C$2:$C20,List_Vehicle_DB_Make)+(List_Vehicle_DB_Drivetrain<>_Base_V1_Vehicle_Drivetrain)+(List_Vehicle_DB_Year<>_Base_V1_Vehicle_Year),0)) ->  | D21: =INDEX(List_Vehicle_DB_Model,MATCH(0,COUNTIF(D$2:$D20,List_Vehicle_DB_Model)+(List_Vehicle_DB_Drivetrain<>_Base_V1_Vehicle_Drivetrain)+(List_Vehicle_DB_Year<>_Base_V1_Vehicle_Year)++(List_Vehicle_DB_Make<>_Base_V1_Vehicle_Make),0)) ->  | E21: =INDEX(List_Vehicle_DB_Drivetrain,MATCH(0,COUNTIF(E$2:$E20,List_Vehicle_DB_Drivetrain),0)) ->  | F21: =INDEX(List_Vehicle_DB_Year,MATCH(0,COUNTIF($F$2:F20,List_Vehicle_DB_Year)+(List_Vehicle_DB_Drivetrain<>_Comp_V1_Vehicle_Drivetrain),0)) ->  | G21: =INDEX(List_Vehicle_DB_Make,MATCH(0,COUNTIF($G$2:G20,List_Vehicle_DB_Make)+(List_Vehicle_DB_Drivetrain<>_Comp_V1_Vehicle_Drivetrain)+(List_Vehicle_DB_Year<>_Comp_V1_Vehicle_Year),0)) ->  | H21: =INDEX(List_Vehicle_DB_Model,MATCH(0,COUNTIF($H$2:H20,List_Vehicle_DB_Model)+(List_Vehicle_DB_Drivetrain<>_Comp_V1_Vehicle_Drivetrain)+(List_Vehicle_DB_Year<>_Comp_V1_Vehicle_Year)+(List_Vehicle_DB_Make<>_Comp_V1_Vehicle_Make),0)) -> 
A22: =INDEX(List_Vehicle_DB_Drivetrain,MATCH(0,COUNTIF($A$2:A21,List_Vehicle_DB_Drivetrain),0)) ->  | B22: =INDEX(List_Vehicle_DB_Year,MATCH(0,COUNTIF($B$2:B21,List_Vehicle_DB_Year)+(List_Vehicle_DB_Drivetrain<>_Base_V1_Vehicle_Drivetrain),0)) ->  | C22: =INDEX(List_Vehicle_DB_Make,MATCH(0,COUNTIF(C$2:$C21,List_Vehicle_DB_Make)+(List_Vehicle_DB_Drivetrain<>_Base_V1_Vehicle_Drivetrain)+(List_Vehicle_DB_Year<>_Base_V1_Vehicle_Year),0)) ->  | D22: =INDEX(List_Vehicle_DB_Model,MATCH(0,COUNTIF(D$2:$D21,List_Vehicle_DB_Model)+(List_Vehicle_DB_Drivetrain<>_Base_V1_Vehicle_Drivetrain)+(List_Vehicle_DB_Year<>_Base_V1_Vehicle_Year)++(List_Vehicle_DB_Make<>_Base_V1_Vehicle_Make),0)) ->  | E22: =INDEX(List_Vehicle_DB_Drivetrain,MATCH(0,COUNTIF(E$2:$E21,List_Vehicle_DB_Drivetrain),0)) ->  | F22: =INDEX(List_Vehicle_DB_Year,MATCH(0,COUNTIF($F$2:F21,List_Vehicle_DB_Year)+(List_Vehicle_DB_Drivetrain<>_Comp_V1_Vehicle_Drivetrain),0)) ->  | G22: =INDEX(List_Vehicle_DB_Make,MATCH(0,COUNTIF($G$2:G21,List_Vehicle_DB_Make)+(List_Vehicle_DB_Drivetrain<>_Comp_V1_Vehicle_Drivetrain)+(List_Vehicle_DB_Year<>_Comp_V1_Vehicle_Year),0)) ->  | H22: =INDEX(List_Vehicle_DB_Model,MATCH(0,COUNTIF($H$2:H21,List_Vehicle_DB_Model)+(List_Vehicle_DB_Drivetrain<>_Comp_V1_Vehicle_Drivetrain)+(List_Vehicle_DB_Year<>_Comp_V1_Vehicle_Year)+(List_Vehicle_DB_Make<>_Comp_V1_Vehicle_Make),0)) -> 
A23: =INDEX(List_Vehicle_DB_Drivetrain,MATCH(0,COUNTIF($A$2:A22,List_Vehicle_DB_Drivetrain),0)) ->  | B23: =INDEX(List_Vehicle_DB_Year,MATCH(0,COUNTIF($B$2:B22,List_Vehicle_DB_Year)+(List_Vehicle_DB_Drivetrain<>_Base_V1_Vehicle_Drivetrain),0)) ->  | C23: =INDEX(List_Vehicle_DB_Make,MATCH(0,COUNTIF(C$2:$C22,List_Vehicle_DB_Make)+(List_Vehicle_DB_Drivetrain<>_Base_V1_Vehicle_Drivetrain)+(List_Vehicle_DB_Year<>_Base_V1_Vehicle_Year),0)) ->  | D23: =INDEX(List_Vehicle_DB_Model,MATCH(0,COUNTIF(D$2:$D22,List_Vehicle_DB_Model)+(List_Vehicle_DB_Drivetrain<>_Base_V1_Vehicle_Drivetrain)+(List_Vehicle_DB_Year<>_Base_V1_Vehicle_Year)++(List_Vehicle_DB_Make<>_Base_V1_Vehicle_Make),0)) ->  | E23: =INDEX(List_Vehicle_DB_Drivetrain,MATCH(0,COUNTIF(E$2:$E22,List_Vehicle_DB_Drivetrain),0)) ->  | F23: =INDEX(List_Vehicle_DB_Year,MATCH(0,COUNTIF($F$2:F22,List_Vehicle_DB_Year)+(List_Vehicle_DB_Drivetrain<>_Comp_V1_Vehicle_Drivetrain),0)) ->  | G23: =INDEX(List_Vehicle_DB_Make,MATCH(0,COUNTIF($G$2:G22,List_Vehicle_DB_Make)+(List_Vehicle_DB_Drivetrain<>_Comp_V1_Vehicle_Drivetrain)+(List_Vehicle_DB_Year<>_Comp_V1_Vehicle_Year),0)) ->  | H23: =INDEX(List_Vehicle_DB_Model,MATCH(0,COUNTIF($H$2:H22,List_Vehicle_DB_Model)+(List_Vehicle_DB_Drivetrain<>_Comp_V1_Vehicle_Drivetrain)+(List_Vehicle_DB_Year<>_Comp_V1_Vehicle_Year)+(List_Vehicle_DB_Make<>_Comp_V1_Vehicle_Make),0)) -> 
A24: =INDEX(List_Vehicle_DB_Drivetrain,MATCH(0,COUNTIF($A$2:A23,List_Vehicle_DB_Drivetrain),0)) ->  | B24: =INDEX(List_Vehicle_DB_Year,MATCH(0,COUNTIF($B$2:B23,List_Vehicle_DB_Year)+(List_Vehicle_DB_Drivetrain<>_Base_V1_Vehicle_Drivetrain),0)) ->  | C24: =INDEX(List_Vehicle_DB_Make,MATCH(0,COUNTIF(C$2:$C23,List_Vehicle_DB_Make)+(List_Vehicle_DB_Drivetrain<>_Base_V1_Vehicle_Drivetrain)+(List_Vehicle_DB_Year<>_Base_V1_Vehicle_Year),0)) ->  | D24: =INDEX(List_Vehicle_DB_Model,MATCH(0,COUNTIF(D$2:$D23,List_Vehicle_DB_Model)+(List_Vehicle_DB_Drivetrain<>_Base_V1_Vehicle_Drivetrain)+(List_Vehicle_DB_Year<>_Base_V1_Vehicle_Year)++(List_Vehicle_DB_Make<>_Base_V1_Vehicle_Make),0)) ->  | E24: =INDEX(List_Vehicle_DB_Drivetrain,MATCH(0,COUNTIF(E$2:$E23,List_Vehicle_DB_Drivetrain),0)) ->  | F24: =INDEX(List_Vehicle_DB_Year,MATCH(0,COUNTIF($F$2:F23,List_Vehicle_DB_Year)+(List_Vehicle_DB_Drivetrain<>_Comp_V1_Vehicle_Drivetrain),0)) ->  | G24: =INDEX(List_Vehicle_DB_Make,MATCH(0,COUNTIF($G$2:G23,List_Vehicle_DB_Make)+(List_Vehicle_DB_Drivetrain<>_Comp_V1_Vehicle_Drivetrain)+(List_Vehicle_DB_Year<>_Comp_V1_Vehicle_Year),0)) ->  | H24: =INDEX(List_Vehicle_DB_Model,MATCH(0,COUNTIF($H$2:H23,List_Vehicle_DB_Model)+(List_Vehicle_DB_Drivetrain<>_Comp_V1_Vehicle_Drivetrain)+(List_Vehicle_DB_Year<>_Comp_V1_Vehicle_Year)+(List_Vehicle_DB_Make<>_Comp_V1_Vehicle_Make),0)) -> 
A25: =INDEX(List_Vehicle_DB_Drivetrain,MATCH(0,COUNTIF($A$2:A24,List_Vehicle_DB_Drivetrain),0)) ->  | B25: =INDEX(List_Vehicle_DB_Year,MATCH(0,COUNTIF($B$2:B24,List_Vehicle_DB_Year)+(List_Vehicle_DB_Drivetrain<>_Base_V1_Vehicle_Drivetrain),0)) ->  | C25: =INDEX(List_Vehicle_DB_Make,MATCH(0,COUNTIF(C$2:$C24,List_Vehicle_DB_Make)+(List_Vehicle_DB_Drivetrain<>_Base_V1_Vehicle_Drivetrain)+(List_Vehicle_DB_Year<>_Base_V1_Vehicle_Year),0)) ->  | D25: =INDEX(List_Vehicle_DB_Model,MATCH(0,COUNTIF(D$2:$D24,List_Vehicle_DB_Model)+(List_Vehicle_DB_Drivetrain<>_Base_V1_Vehicle_Drivetrain)+(List_Vehicle_DB_Year<>_Base_V1_Vehicle_Year)++(List_Vehicle_DB_Make<>_Base_V1_Vehicle_Make),0)) ->  | E25: =INDEX(List_Vehicle_DB_Drivetrain,MATCH(0,COUNTIF(E$2:$E24,List_Vehicle_DB_Drivetrain),0)) ->  | F25: =INDEX(List_Vehicle_DB_Year,MATCH(0,COUNTIF($F$2:F24,List_Vehicle_DB_Year)+(List_Vehicle_DB_Drivetrain<>_Comp_V1_Vehicle_Drivetrain),0)) ->  | G25: =INDEX(List_Vehicle_DB_Make,MATCH(0,COUNTIF($G$2:G24,List_Vehicle_DB_Make)+(List_Vehicle_DB_Drivetrain<>_Comp_V1_Vehicle_Drivetrain)+(List_Vehicle_DB_Year<>_Comp_V1_Vehicle_Year),0)) ->  | H25: =INDEX(List_Vehicle_DB_Model,MATCH(0,COUNTIF($H$2:H24,List_Vehicle_DB_Model)+(List_Vehicle_DB_Drivetrain<>_Comp_V1_Vehicle_Drivetrain)+(List_Vehicle_DB_Year<>_Comp_V1_Vehicle_Year)+(List_Vehicle_DB_Make<>_Comp_V1_Vehicle_Make),0)) -> 
A26: =INDEX(List_Vehicle_DB_Drivetrain,MATCH(0,COUNTIF($A$2:A25,List_Vehicle_DB_Drivetrain),0)) ->  | B26: =INDEX(List_Vehicle_DB_Year,MATCH(0,COUNTIF($B$2:B25,List_Vehicle_DB_Year)+(List_Vehicle_DB_Drivetrain<>_Base_V1_Vehicle_Drivetrain),0)) ->  | C26: =INDEX(List_Vehicle_DB_Make,MATCH(0,COUNTIF(C$2:$C25,List_Vehicle_DB_Make)+(List_Vehicle_DB_Drivetrain<>_Base_V1_Vehicle_Drivetrain)+(List_Vehicle_DB_Year<>_Base_V1_Vehicle_Year),0)) ->  | D26: =INDEX(List_Vehicle_DB_Model,MATCH(0,COUNTIF(D$2:$D25,List_Vehicle_DB_Model)+(List_Vehicle_DB_Drivetrain<>_Base_V1_Vehicle_Drivetrain)+(List_Vehicle_DB_Year<>_Base_V1_Vehicle_Year)++(List_Vehicle_DB_Make<>_Base_V1_Vehicle_Make),0)) ->  | E26: =INDEX(List_Vehicle_DB_Drivetrain,MATCH(0,COUNTIF(E$2:$E25,List_Vehicle_DB_Drivetrain),0)) ->  | F26: =INDEX(List_Vehicle_DB_Year,MATCH(0,COUNTIF($F$2:F25,List_Vehicle_DB_Year)+(List_Vehicle_DB_Drivetrain<>_Comp_V1_Vehicle_Drivetrain),0)) ->  | G26: =INDEX(List_Vehicle_DB_Make,MATCH(0,COUNTIF($G$2:G25,List_Vehicle_DB_Make)+(List_Vehicle_DB_Drivetrain<>_Comp_V1_Vehicle_Drivetrain)+(List_Vehicle_DB_Year<>_Comp_V1_Vehicle_Year),0)) ->  | H26: =INDEX(List_Vehicle_DB_Model,MATCH(0,COUNTIF($H$2:H25,List_Vehicle_DB_Model)+(List_Vehicle_DB_Drivetrain<>_Comp_V1_Vehicle_Drivetrain)+(List_Vehicle_DB_Year<>_Comp_V1_Vehicle_Year)+(List_Vehicle_DB_Make<>_Comp_V1_Vehicle_Make),0)) -> 
A27: =INDEX(List_Vehicle_DB_Drivetrain,MATCH(0,COUNTIF($A$2:A26,List_Vehicle_DB_Drivetrain),0)) ->  | B27: =INDEX(List_Vehicle_DB_Year,MATCH(0,COUNTIF($B$2:B26,List_Vehicle_DB_Year)+(List_Vehicle_DB_Drivetrain<>_Base_V1_Vehicle_Drivetrain),0)) ->  | C27: =INDEX(List_Vehicle_DB_Make,MATCH(0,COUNTIF(C$2:$C26,List_Vehicle_DB_Make)+(List_Vehicle_DB_Drivetrain<>_Base_V1_Vehicle_Drivetrain)+(List_Vehicle_DB_Year<>_Base_V1_Vehicle_Year),0)) ->  | D27: =INDEX(List_Vehicle_DB_Model,MATCH(0,COUNTIF(D$2:$D26,List_Vehicle_DB_Model)+(List_Vehicle_DB_Drivetrain<>_Base_V1_Vehicle_Drivetrain)+(List_Vehicle_DB_Year<>_Base_V1_Vehicle_Year)++(List_Vehicle_DB_Make<>_Base_V1_Vehicle_Make),0)) ->  | E27: =INDEX(List_Vehicle_DB_Drivetrain,MATCH(0,COUNTIF(E$2:$E26,List_Vehicle_DB_Drivetrain),0)) ->  | F27: =INDEX(List_Vehicle_DB_Year,MATCH(0,COUNTIF($F$2:F26,List_Vehicle_DB_Year)+(List_Vehicle_DB_Drivetrain<>_Comp_V1_Vehicle_Drivetrain),0)) ->  | G27: =INDEX(List_Vehicle_DB_Make,MATCH(0,COUNTIF($G$2:G26,List_Vehicle_DB_Make)+(List_Vehicle_DB_Drivetrain<>_Comp_V1_Vehicle_Drivetrain)+(List_Vehicle_DB_Year<>_Comp_V1_Vehicle_Year),0)) ->  | H27: =INDEX(List_Vehicle_DB_Model,MATCH(0,COUNTIF($H$2:H26,List_Vehicle_DB_Model)+(List_Vehicle_DB_Drivetrain<>_Comp_V1_Vehicle_Drivetrain)+(List_Vehicle_DB_Year<>_Comp_V1_Vehicle_Year)+(List_Vehicle_DB_Make<>_Comp_V1_Vehicle_Make),0)) -> 
A28: =INDEX(List_Vehicle_DB_Drivetrain,MATCH(0,COUNTIF($A$2:A27,List_Vehicle_DB_Drivetrain),0)) ->  | B28: =INDEX(List_Vehicle_DB_Year,MATCH(0,COUNTIF($B$2:B27,List_Vehicle_DB_Year)+(List_Vehicle_DB_Drivetrain<>_Base_V1_Vehicle_Drivetrain),0)) ->  | C28: =INDEX(List_Vehicle_DB_Make,MATCH(0,COUNTIF(C$2:$C27,List_Vehicle_DB_Make)+(List_Vehicle_DB_Drivetrain<>_Base_V1_Vehicle_Drivetrain)+(List_Vehicle_DB_Year<>_Base_V1_Vehicle_Year),0)) ->  | D28: =INDEX(List_Vehicle_DB_Model,MATCH(0,COUNTIF(D$2:$D27,List_Vehicle_DB_Model)+(List_Vehicle_DB_Drivetrain<>_Base_V1_Vehicle_Drivetrain)+(List_Vehicle_DB_Year<>_Base_V1_Vehicle_Year)++(List_Vehicle_DB_Make<>_Base_V1_Vehicle_Make),0)) ->  | E28: =INDEX(List_Vehicle_DB_Drivetrain,MATCH(0,COUNTIF(E$2:$E27,List_Vehicle_DB_Drivetrain),0)) ->  | F28: =INDEX(List_Vehicle_DB_Year,MATCH(0,COUNTIF($F$2:F27,List_Vehicle_DB_Year)+(List_Vehicle_DB_Drivetrain<>_Comp_V1_Vehicle_Drivetrain),0)) ->  | G28: =INDEX(List_Vehicle_DB_Make,MATCH(0,COUNTIF($G$2:G27,List_Vehicle_DB_Make)+(List_Vehicle_DB_Drivetrain<>_Comp_V1_Vehicle_Drivetrain)+(List_Vehicle_DB_Year<>_Comp_V1_Vehicle_Year),0)) ->  | H28: =INDEX(List_Vehicle_DB_Model,MATCH(0,COUNTIF($H$2:H27,List_Vehicle_DB_Model)+(List_Vehicle_DB_Drivetrain<>_Comp_V1_Vehicle_Drivetrain)+(List_Vehicle_DB_Year<>_Comp_V1_Vehicle_Year)+(List_Vehicle_DB_Make<>_Comp_V1_Vehicle_Make),0)) -> 
A29: =INDEX(List_Vehicle_DB_Drivetrain,MATCH(0,COUNTIF($A$2:A28,List_Vehicle_DB_Drivetrain),0)) ->  | B29: =INDEX(List_Vehicle_DB_Year,MATCH(0,COUNTIF($B$2:B28,List_Vehicle_DB_Year)+(List_Vehicle_DB_Drivetrain<>_Base_V1_Vehicle_Drivetrain),0)) ->  | C29: =INDEX(List_Vehicle_DB_Make,MATCH(0,COUNTIF(C$2:$C28,List_Vehicle_DB_Make)+(List_Vehicle_DB_Drivetrain<>_Base_V1_Vehicle_Drivetrain)+(List_Vehicle_DB_Year<>_Base_V1_Vehicle_Year),0)) ->  | D29: =INDEX(List_Vehicle_DB_Model,MATCH(0,COUNTIF(D$2:$D28,List_Vehicle_DB_Model)+(List_Vehicle_DB_Drivetrain<>_Base_V1_Vehicle_Drivetrain)+(List_Vehicle_DB_Year<>_Base_V1_Vehicle_Year)++(List_Vehicle_DB_Make<>_Base_V1_Vehicle_Make),0)) ->  | E29: =INDEX(List_Vehicle_DB_Drivetrain,MATCH(0,COUNTIF(E$2:$E28,List_Vehicle_DB_Drivetrain),0)) ->  | F29: =INDEX(List_Vehicle_DB_Year,MATCH(0,COUNTIF($F$2:F28,List_Vehicle_DB_Year)+(List_Vehicle_DB_Drivetrain<>_Comp_V1_Vehicle_Drivetrain),0)) ->  | G29: =INDEX(List_Vehicle_DB_Make,MATCH(0,COUNTIF($G$2:G28,List_Vehicle_DB_Make)+(List_Vehicle_DB_Drivetrain<>_Comp_V1_Vehicle_Drivetrain)+(List_Vehicle_DB_Year<>_Comp_V1_Vehicle_Year),0)) ->  | H29: =INDEX(List_Vehicle_DB_Model,MATCH(0,COUNTIF($H$2:H28,List_Vehicle_DB_Model)+(List_Vehicle_DB_Drivetrain<>_Comp_V1_Vehicle_Drivetrain)+(List_Vehicle_DB_Year<>_Comp_V1_Vehicle_Year)+(List_Vehicle_DB_Make<>_Comp_V1_Vehicle_Make),0)) -> 
A30: =INDEX(List_Vehicle_DB_Drivetrain,MATCH(0,COUNTIF($A$2:A29,List_Vehicle_DB_Drivetrain),0)) ->  | B30: =INDEX(List_Vehicle_DB_Year,MATCH(0,COUNTIF($B$2:B29,List_Vehicle_DB_Year)+(List_Vehicle_DB_Drivetrain<>_Base_V1_Vehicle_Drivetrain),0)) ->  | C30: =INDEX(List_Vehicle_DB_Make,MATCH(0,COUNTIF(C$2:$C29,List_Vehicle_DB_Make)+(List_Vehicle_DB_Drivetrain<>_Base_V1_Vehicle_Drivetrain)+(List_Vehicle_DB_Year<>_Base_V1_Vehicle_Year),0)) ->  | D30: =INDEX(List_Vehicle_DB_Model,MATCH(0,COUNTIF(D$2:$D29,List_Vehicle_DB_Model)+(List_Vehicle_DB_Drivetrain<>_Base_V1_Vehicle_Drivetrain)+(List_Vehicle_DB_Year<>_Base_V1_Vehicle_Year)++(List_Vehicle_DB_Make<>_Base_V1_Vehicle_Make),0)) ->  | E30: =INDEX(List_Vehicle_DB_Drivetrain,MATCH(0,COUNTIF(E$2:$E29,List_Vehicle_DB_Drivetrain),0)) ->  | F30: =INDEX(List_Vehicle_DB_Year,MATCH(0,COUNTIF($F$2:F29,List_Vehicle_DB_Year)+(List_Vehicle_DB_Drivetrain<>_Comp_V1_Vehicle_Drivetrain),0)) ->  | G30: =INDEX(List_Vehicle_DB_Make,MATCH(0,COUNTIF($G$2:G29,List_Vehicle_DB_Make)+(List_Vehicle_DB_Drivetrain<>_Comp_V1_Vehicle_Drivetrain)+(List_Vehicle_DB_Year<>_Comp_V1_Vehicle_Year),0)) ->  | H30: =INDEX(List_Vehicle_DB_Model,MATCH(0,COUNTIF($H$2:H29,List_Vehicle_DB_Model)+(List_Vehicle_DB_Drivetrain<>_Comp_V1_Vehicle_Drivetrain)+(List_Vehicle_DB_Year<>_Comp_V1_Vehicle_Year)+(List_Vehicle_DB_Make<>_Comp_V1_Vehicle_Make),0)) -> 
A31: =INDEX(List_Vehicle_DB_Drivetrain,MATCH(0,COUNTIF($A$2:A30,List_Vehicle_DB_Drivetrain),0)) ->  | B31: =INDEX(List_Vehicle_DB_Year,MATCH(0,COUNTIF($B$2:B30,List_Vehicle_DB_Year)+(List_Vehicle_DB_Drivetrain<>_Base_V1_Vehicle_Drivetrain),0)) ->  | C31: =INDEX(List_Vehicle_DB_Make,MATCH(0,COUNTIF(C$2:$C30,List_Vehicle_DB_Make)+(List_Vehicle_DB_Drivetrain<>_Base_V1_Vehicle_Drivetrain)+(List_Vehicle_DB_Year<>_Base_V1_Vehicle_Year),0)) ->  | D31: =INDEX(List_Vehicle_DB_Model,MATCH(0,COUNTIF(D$2:$D30,List_Vehicle_DB_Model)+(List_Vehicle_DB_Drivetrain<>_Base_V1_Vehicle_Drivetrain)+(List_Vehicle_DB_Year<>_Base_V1_Vehicle_Year)++(List_Vehicle_DB_Make<>_Base_V1_Vehicle_Make),0)) ->  | E31: =INDEX(List_Vehicle_DB_Drivetrain,MATCH(0,COUNTIF(E$2:$E30,List_Vehicle_DB_Drivetrain),0)) ->  | F31: =INDEX(List_Vehicle_DB_Year,MATCH(0,COUNTIF($F$2:F30,List_Vehicle_DB_Year)+(List_Vehicle_DB_Drivetrain<>_Comp_V1_Vehicle_Drivetrain),0)) ->  | G31: =INDEX(List_Vehicle_DB_Make,MATCH(0,COUNTIF($G$2:G30,List_Vehicle_DB_Make)+(List_Vehicle_DB_Drivetrain<>_Comp_V1_Vehicle_Drivetrain)+(List_Vehicle_DB_Year<>_Comp_V1_Vehicle_Year),0)) ->  | H31: =INDEX(List_Vehicle_DB_Model,MATCH(0,COUNTIF($H$2:H30,List_Vehicle_DB_Model)+(List_Vehicle_DB_Drivetrain<>_Comp_V1_Vehicle_Drivetrain)+(List_Vehicle_DB_Year<>_Comp_V1_Vehicle_Year)+(List_Vehicle_DB_Make<>_Comp_V1_Vehicle_Make),0)) -> 
A32: =INDEX(List_Vehicle_DB_Drivetrain,MATCH(0,COUNTIF($A$2:A31,List_Vehicle_DB_Drivetrain),0)) ->  | B32: =INDEX(List_Vehicle_DB_Year,MATCH(0,COUNTIF($B$2:B31,List_Vehicle_DB_Year)+(List_Vehicle_DB_Drivetrain<>_Base_V1_Vehicle_Drivetrain),0)) ->  | C32: =INDEX(List_Vehicle_DB_Make,MATCH(0,COUNTIF(C$2:$C31,List_Vehicle_DB_Make)+(List_Vehicle_DB_Drivetrain<>_Base_V1_Vehicle_Drivetrain)+(List_Vehicle_DB_Year<>_Base_V1_Vehicle_Year),0)) ->  | D32: =INDEX(List_Vehicle_DB_Model,MATCH(0,COUNTIF(D$2:$D31,List_Vehicle_DB_Model)+(List_Vehicle_DB_Drivetrain<>_Base_V1_Vehicle_Drivetrain)+(List_Vehicle_DB_Year<>_Base_V1_Vehicle_Year)++(List_Vehicle_DB_Make<>_Base_V1_Vehicle_Make),0)) ->  | E32: =INDEX(List_Vehicle_DB_Drivetrain,MATCH(0,COUNTIF(E$2:$E31,List_Vehicle_DB_Drivetrain),0)) ->  | F32: =INDEX(List_Vehicle_DB_Year,MATCH(0,COUNTIF($F$2:F31,List_Vehicle_DB_Year)+(List_Vehicle_DB_Drivetrain<>_Comp_V1_Vehicle_Drivetrain),0)) ->  | G32: =INDEX(List_Vehicle_DB_Make,MATCH(0,COUNTIF($G$2:G31,List_Vehicle_DB_Make)+(List_Vehicle_DB_Drivetrain<>_Comp_V1_Vehicle_Drivetrain)+(List_Vehicle_DB_Year<>_Comp_V1_Vehicle_Year),0)) ->  | H32: =INDEX(List_Vehicle_DB_Model,MATCH(0,COUNTIF($H$2:H31,List_Vehicle_DB_Model)+(List_Vehicle_DB_Drivetrain<>_Comp_V1_Vehicle_Drivetrain)+(List_Vehicle_DB_Year<>_Comp_V1_Vehicle_Year)+(List_Vehicle_DB_Make<>_Comp_V1_Vehicle_Make),0)) -> 
A33: =INDEX(List_Vehicle_DB_Drivetrain,MATCH(0,COUNTIF($A$2:A32,List_Vehicle_DB_Drivetrain),0)) ->  | B33: =INDEX(List_Vehicle_DB_Year,MATCH(0,COUNTIF($B$2:B32,List_Vehicle_DB_Year)+(List_Vehicle_DB_Drivetrain<>_Base_V1_Vehicle_Drivetrain),0)) ->  | C33: =INDEX(List_Vehicle_DB_Make,MATCH(0,COUNTIF(C$2:$C32,List_Vehicle_DB_Make)+(List_Vehicle_DB_Drivetrain<>_Base_V1_Vehicle_Drivetrain)+(List_Vehicle_DB_Year<>_Base_V1_Vehicle_Year),0)) ->  | D33: =INDEX(List_Vehicle_DB_Model,MATCH(0,COUNTIF(D$2:$D32,List_Vehicle_DB_Model)+(List_Vehicle_DB_Drivetrain<>_Base_V1_Vehicle_Drivetrain)+(List_Vehicle_DB_Year<>_Base_V1_Vehicle_Year)++(List_Vehicle_DB_Make<>_Base_V1_Vehicle_Make),0)) ->  | E33: =INDEX(List_Vehicle_DB_Drivetrain,MATCH(0,COUNTIF(E$2:$E32,List_Vehicle_DB_Drivetrain),0)) ->  | F33: =INDEX(List_Vehicle_DB_Year,MATCH(0,COUNTIF($F$2:F32,List_Vehicle_DB_Year)+(List_Vehicle_DB_Drivetrain<>_Comp_V1_Vehicle_Drivetrain),0)) ->  | G33: =INDEX(List_Vehicle_DB_Make,MATCH(0,COUNTIF($G$2:G32,List_Vehicle_DB_Make)+(List_Vehicle_DB_Drivetrain<>_Comp_V1_Vehicle_Drivetrain)+(List_Vehicle_DB_Year<>_Comp_V1_Vehicle_Year),0)) ->  | H33: =INDEX(List_Vehicle_DB_Model,MATCH(0,COUNTIF($H$2:H32,List_Vehicle_DB_Model)+(List_Vehicle_DB_Drivetrain<>_Comp_V1_Vehicle_Drivetrain)+(List_Vehicle_DB_Year<>_Comp_V1_Vehicle_Year)+(List_Vehicle_DB_Make<>_Comp_V1_Vehicle_Make),0)) -> 
A34: =INDEX(List_Vehicle_DB_Drivetrain,MATCH(0,COUNTIF($A$2:A33,List_Vehicle_DB_Drivetrain),0)) ->  | B34: =INDEX(List_Vehicle_DB_Year,MATCH(0,COUNTIF($B$2:B33,List_Vehicle_DB_Year)+(List_Vehicle_DB_Drivetrain<>_Base_V1_Vehicle_Drivetrain),0)) ->  | C34: =INDEX(List_Vehicle_DB_Make,MATCH(0,COUNTIF(C$2:$C33,List_Vehicle_DB_Make)+(List_Vehicle_DB_Drivetrain<>_Base_V1_Vehicle_Drivetrain)+(List_Vehicle_DB_Year<>_Base_V1_Vehicle_Year),0)) ->  | D34: =INDEX(List_Vehicle_DB_Model,MATCH(0,COUNTIF(D$2:$D33,List_Vehicle_DB_Model)+(List_Vehicle_DB_Drivetrain<>_Base_V1_Vehicle_Drivetrain)+(List_Vehicle_DB_Year<>_Base_V1_Vehicle_Year)++(List_Vehicle_DB_Make<>_Base_V1_Vehicle_Make),0)) ->  | E34: =INDEX(List_Vehicle_DB_Drivetrain,MATCH(0,COUNTIF(E$2:$E33,List_Vehicle_DB_Drivetrain),0)) ->  | F34: =INDEX(List_Vehicle_DB_Year,MATCH(0,COUNTIF($F$2:F33,List_Vehicle_DB_Year)+(List_Vehicle_DB_Drivetrain<>_Comp_V1_Vehicle_Drivetrain),0)) ->  | G34: =INDEX(List_Vehicle_DB_Make,MATCH(0,COUNTIF($G$2:G33,List_Vehicle_DB_Make)+(List_Vehicle_DB_Drivetrain<>_Comp_V1_Vehicle_Drivetrain)+(List_Vehicle_DB_Year<>_Comp_V1_Vehicle_Year),0)) ->  | H34: =INDEX(List_Vehicle_DB_Model,MATCH(0,COUNTIF($H$2:H33,List_Vehicle_DB_Model)+(List_Vehicle_DB_Drivetrain<>_Comp_V1_Vehicle_Drivetrain)+(List_Vehicle_DB_Year<>_Comp_V1_Vehicle_Year)+(List_Vehicle_DB_Make<>_Comp_V1_Vehicle_Make),0)) -> 
A35: =INDEX(List_Vehicle_DB_Drivetrain,MATCH(0,COUNTIF($A$2:A34,List_Vehicle_DB_Drivetrain),0)) ->  | B35: =INDEX(List_Vehicle_DB_Year,MATCH(0,COUNTIF($B$2:B34,List_Vehicle_DB_Year)+(List_Vehicle_DB_Drivetrain<>_Base_V1_Vehicle_Drivetrain),0)) ->  | C35: =INDEX(List_Vehicle_DB_Make,MATCH(0,COUNTIF(C$2:$C34,List_Vehicle_DB_Make)+(List_Vehicle_DB_Drivetrain<>_Base_V1_Vehicle_Drivetrain)+(List_Vehicle_DB_Year<>_Base_V1_Vehicle_Year),0)) ->  | D35: =INDEX(List_Vehicle_DB_Model,MATCH(0,COUNTIF(D$2:$D34,List_Vehicle_DB_Model)+(List_Vehicle_DB_Drivetrain<>_Base_V1_Vehicle_Drivetrain)+(List_Vehicle_DB_Year<>_Base_V1_Vehicle_Year)++(List_Vehicle_DB_Make<>_Base_V1_Vehicle_Make),0)) ->  | E35: =INDEX(List_Vehicle_DB_Drivetrain,MATCH(0,COUNTIF(E$2:$E34,List_Vehicle_DB_Drivetrain),0)) ->  | F35: =INDEX(List_Vehicle_DB_Year,MATCH(0,COUNTIF($F$2:F34,List_Vehicle_DB_Year)+(List_Vehicle_DB_Drivetrain<>_Comp_V1_Vehicle_Drivetrain),0)) ->  | G35: =INDEX(List_Vehicle_DB_Make,MATCH(0,COUNTIF($G$2:G34,List_Vehicle_DB_Make)+(List_Vehicle_DB_Drivetrain<>_Comp_V1_Vehicle_Drivetrain)+(List_Vehicle_DB_Year<>_Comp_V1_Vehicle_Year),0)) ->  | H35: =INDEX(List_Vehicle_DB_Model,MATCH(0,COUNTIF($H$2:H34,List_Vehicle_DB_Model)+(List_Vehicle_DB_Drivetrain<>_Comp_V1_Vehicle_Drivetrain)+(List_Vehicle_DB_Year<>_Comp_V1_Vehicle_Year)+(List_Vehicle_DB_Make<>_Comp_V1_Vehicle_Make),0)) -> 
A36: =INDEX(List_Vehicle_DB_Drivetrain,MATCH(0,COUNTIF($A$2:A35,List_Vehicle_DB_Drivetrain),0)) ->  | B36: =INDEX(List_Vehicle_DB_Year,MATCH(0,COUNTIF($B$2:B35,List_Vehicle_DB_Year)+(List_Vehicle_DB_Drivetrain<>_Base_V1_Vehicle_Drivetrain),0)) ->  | C36: =INDEX(List_Vehicle_DB_Make,MATCH(0,COUNTIF(C$2:$C35,List_Vehicle_DB_Make)+(List_Vehicle_DB_Drivetrain<>_Base_V1_Vehicle_Drivetrain)+(List_Vehicle_DB_Year<>_Base_V1_Vehicle_Year),0)) ->  | D36: =INDEX(List_Vehicle_DB_Model,MATCH(0,COUNTIF(D$2:$D35,List_Vehicle_DB_Model)+(List_Vehicle_DB_Drivetrain<>_Base_V1_Vehicle_Drivetrain)+(List_Vehicle_DB_Year<>_Base_V1_Vehicle_Year)++(List_Vehicle_DB_Make<>_Base_V1_Vehicle_Make),0)) ->  | E36: =INDEX(List_Vehicle_DB_Drivetrain,MATCH(0,COUNTIF(E$2:$E35,List_Vehicle_DB_Drivetrain),0)) ->  | F36: =INDEX(List_Vehicle_DB_Year,MATCH(0,COUNTIF($F$2:F35,List_Vehicle_DB_Year)+(List_Vehicle_DB_Drivetrain<>_Comp_V1_Vehicle_Drivetrain),0)) ->  | G36: =INDEX(List_Vehicle_DB_Make,MATCH(0,COUNTIF($G$2:G35,List_Vehicle_DB_Make)+(List_Vehicle_DB_Drivetrain<>_Comp_V1_Vehicle_Drivetrain)+(List_Vehicle_DB_Year<>_Comp_V1_Vehicle_Year),0)) ->  | H36: =INDEX(List_Vehicle_DB_Model,MATCH(0,COUNTIF($H$2:H35,List_Vehicle_DB_Model)+(List_Vehicle_DB_Drivetrain<>_Comp_V1_Vehicle_Drivetrain)+(List_Vehicle_DB_Year<>_Comp_V1_Vehicle_Year)+(List_Vehicle_DB_Make<>_Comp_V1_Vehicle_Make),0)) -> 
